{"text_format":"1","workbook":"xlsx","n_sheets":10,"sheets":["Algemeen","Leidingsgroep","vb. sloebers","niet gebruikt 1","niet gebruikt 2","niet gebruikt 3","niet gebruikt 4","niet gebruikt 5","niet gebruikt 6","Postcode"],"not_rendered":{"charts":0,"images":0,"macros":1,"external_links":0,"defined_names":0,"comments":0,"pivot_tables":0},"unopened":[],"bounds":{"document_bytes":16777216,"sheet_cells":100000,"rows_first":2000,"rows_last":500,"rows_between":2000,"halvings":0,"cell_chars":16384,"cell_head_chars":4096},"cells_cut":0,"cells_raw":0,"read":"whole","date_system":"1900"}

{"sheet":"Algemeen","index":0,"n_rows":22,"n_cols":16,"rows_kept":22,"cut":false,"hidden":false,"merged":[[0,0,0,4],[18,0,18,6],[19,0,19,6],[20,0,20,6],[21,0,21,6],[12,0,12,5],[13,0,13,5]]}
["Ledenlijst voor erkenningsaanvraag/subsidieaanvraag jeugdvereniging:",null,null,null,null,null,null,null,null,null,null,null,null,null,null,"Algemeen"]
[]
[null,"Naam leeftijdsgroep","van … tot … jaar oud","aantal leden"]
["leeftijdsgroep 1","vb. sloebers","vb. 6 tot 8",{"$f":"COUNTIF('vb. sloebers'!$P$4:$P$102,4)","v":0},null,"Naam jeugdvereniging:"]
["leeftijdsgroep 2","niet gebruikt 1",null,{"$f":"COUNTIF('niet gebruikt 1'!$P$4:$P$102,4)","v":0}]
["leeftijdsgroep 3","niet gebruikt 2",null,{"$f":"COUNTIF('niet gebruikt 2'!$P$4:$P$102,4)","v":0}]
["leeftijdsgroep 4","niet gebruikt 3",null,{"$f":"COUNTIF('niet gebruikt 3'!$P$4:$P$102,4)","v":0}]
["leeftijdsgroep 5","niet gebruikt 4",null,{"$f":"COUNTIF('niet gebruikt 4'!$P$4:$P$102,4)","v":0},null,null,"Totaal aantal leden:",{"$f":"SUM(D4:D10)","v":0}]
["leeftijdsgroep 6","niet gebruikt 5",null,{"$f":"COUNTIF('niet gebruikt 5'!$P$4:$P$102,4)","v":0},null,null,"Totaal aantal leden incl. begeleiders",{"$f":"SUM(D4:D11)","v":0}]
["leeftijdsgroep 7","niet gebruikt 6",null,{"$f":"COUNTIF('niet gebruikt 6'!$P$4:$P$102,4)","v":0}]
["leidingsgroep",null,null,{"$f":"COUNTIF(Leidingsgroep!H4:H102,4)","v":0}]
[]
["Wanneer alle namen van de leeftijdsgroepen zijn ingegegeven, druk je onderstaand op de knop \"wijzig namen tabbladen\""]
["Wanneer er minder dan 7 groepen zijn, behoud dan gewoon de oorspronkelijke benaming (niet gebruikt 5, niet gebruikt 6, …) "]
[]
[]
[]
[]
["Voor de subsidieaanvraag hoeft enkel het gedeelte 'gegegevens lid' te worden ingevuld per leeftijdsgroep."]
["Voor leeftijdsgroep 1 t.e.m. 4 kunnen de gegevens van de ouders mee worden opgenomen."]
["Deze gegegevens voor ouders zijn NIET nodig voor het subsidiedossier. Indien we ze toch verkrijgen, worden deze niet gebruikt."]
["De mogelijkheid om ze in te voeren is er enkel zodat je in de ledenlijsten voor de groepen tot 14 jaar direct alle info voor het opmaken van de fiscale attesten erbij hebt."]

{"sheet":"Leidingsgroep","index":1,"n_rows":102,"n_cols":16,"rows_kept":102,"cut":false,"hidden":false,"merged":[[0,0,0,7]]}
["Gegevens Leiding",null,null,null,null,null,null,null,null,null,null,null,null,null,null,"Leidingsgroep"]
["Naam","Voornaam","Geboortedatum","Straat","Nr°/Bus","Postcode","Gemeente","Controle"]
["vb. Evenepoel","vb. Remco","1990-04-03","Vogelzangstraat","37/3",3540,{"$f":"_xlfn.XLOOKUP(F3,Postcode!$A$2:$A$2766,Postcode!$D$2:$D$2766,\"postcode klopt niet\",0)","v":"HERK-DE-STAD"}]
[null,null,null,null,null,null,{"$f":"_xlfn.XLOOKUP(F4,Postcode!$A$2:$A$2766,Postcode!$D$2:$D$2766,\"postcode klopt niet\",0)","v":"postcode klopt niet"},{"$f":"COUNTA(A4,B4,C4,F4)","v":0}]
[null,null,null,null,null,null,{"$f":"_xlfn.XLOOKUP(F5,Postcode!$A$2:$A$2766,Postcode!$D$2:$D$2766,\"postcode klopt niet\",0)","v":"postcode klopt niet"},{"$f":"COUNTA(A5,B5,C5,F5)","v":0}]
[null,null,null,null,null,null,{"$f":"_xlfn.XLOOKUP(F6,Postcode!$A$2:$A$2766,Postcode!$D$2:$D$2766,\"postcode klopt niet\",0)","v":"postcode klopt niet"},0]
[null,null,null,null,null,null,{"$f":"_xlfn.XLOOKUP(F7,Postcode!$A$2:$A$2766,Postcode!$D$2:$D$2766,\"postcode klopt niet\",0)","v":"postcode klopt niet"},0]
[null,null,null,null,null,null,{"$f":"_xlfn.XLOOKUP(F8,Postcode!$A$2:$A$2766,Postcode!$D$2:$D$2766,\"postcode klopt niet\",0)","v":"postcode klopt niet"},0]
[null,null,null,null,null,null,{"$f":"_xlfn.XLOOKUP(F9,Postcode!$A$2:$A$2766,Postcode!$D$2:$D$2766,\"postcode klopt niet\",0)","v":"postcode klopt niet"},0]
[null,null,null,null,null,null,{"$f":"_xlfn.XLOOKUP(F10,Postcode!$A$2:$A$2766,Postcode!$D$2:$D$2766,\"postcode klopt niet\",0)","v":"postcode klopt niet"},0]
[null,null,null,null,null,null,{"$f":"_xlfn.XLOOKUP(F11,Postcode!$A$2:$A$2766,Postcode!$D$2:$D$2766,\"postcode klopt niet\",0)","v":"postcode klopt niet"},0]
[null,null,null,null,null,null,{"$f":"_xlfn.XLOOKUP(F12,Postcode!$A$2:$A$2766,Postcode!$D$2:$D$2766,\"postcode klopt niet\",0)","v":"postcode klopt niet"},{"$f":"COUNTA(A12,B12,C12,F12)","v":0}]
[null,null,null,null,null,null,{"$f":"_xlfn.XLOOKUP(F13,Postcode!$A$2:$A$2766,Postcode!$D$2:$D$2766,\"postcode klopt niet\",0)","v":"postcode klopt niet"},0]
[null,null,null,null,null,null,{"$f":"_xlfn.XLOOKUP(F14,Postcode!$A$2:$A$2766,Postcode!$D$2:$D$2766,\"postcode klopt niet\",0)","v":"postcode klopt niet"},0]
[null,null,null,null,null,null,{"$f":"_xlfn.XLOOKUP(F15,Postcode!$A$2:$A$2766,Postcode!$D$2:$D$2766,\"postcode klopt niet\",0)","v":"postcode klopt niet"},0]
[null,null,null,null,null,null,{"$f":"_xlfn.XLOOKUP(F16,Postcode!$A$2:$A$2766,Postcode!$D$2:$D$2766,\"postcode klopt niet\",0)","v":"postcode klopt niet"},0]
[null,null,null,null,null,null,{"$f":"_xlfn.XLOOKUP(F17,Postcode!$A$2:$A$2766,Postcode!$D$2:$D$2766,\"postcode klopt niet\",0)","v":"postcode klopt niet"},0]
[null,null,null,null,null,null,{"$f":"_xlfn.XLOOKUP(F18,Postcode!$A$2:$A$2766,Postcode!$D$2:$D$2766,\"postcode klopt niet\",0)","v":"postcode klopt niet"},0]
[null,null,null,null,null,null,{"$f":"_xlfn.XLOOKUP(F19,Postcode!$A$2:$A$2766,Postcode!$D$2:$D$2766,\"postcode klopt niet\",0)","v":"postcode klopt niet"},0]
[null,null,null,null,null,null,{"$f":"_xlfn.XLOOKUP(F20,Postcode!$A$2:$A$2766,Postcode!$D$2:$D$2766,\"postcode klopt niet\",0)","v":"postcode klopt niet"},0]
[null,null,null,null,null,null,{"$f":"_xlfn.XLOOKUP(F21,Postcode!$A$2:$A$2766,Postcode!$D$2:$D$2766,\"postcode klopt niet\",0)","v":"postcode klopt niet"},0]
[null,null,null,null,null,null,{"$f":"_xlfn.XLOOKUP(F22,Postcode!$A$2:$A$2766,Postcode!$D$2:$D$2766,\"postcode klopt niet\",0)","v":"postcode klopt niet"},0]
[null,null,null,null,null,null,{"$f":"_xlfn.XLOOKUP(F23,Postcode!$A$2:$A$2766,Postcode!$D$2:$D$2766,\"postcode klopt niet\",0)","v":"postcode klopt niet"},{"$f":"COUNTA(A23,B23,C23,F23)","v":0}]
[null,null,null,null,null,null,{"$f":"_xlfn.XLOOKUP(F24,Postcode!$A$2:$A$2766,Postcode!$D$2:$D$2766,\"postcode klopt niet\",0)","v":"postcode klopt niet"},0]
[null,null,null,null,null,null,{"$f":"_xlfn.XLOOKUP(F25,Postcode!$A$2:$A$2766,Postcode!$D$2:$D$2766,\"postcode klopt niet\",0)","v":"postcode klopt niet"},0]
[null,null,null,null,null,null,{"$f":"_xlfn.XLOOKUP(F26,Postcode!$A$2:$A$2766,Postcode!$D$2:$D$2766,\"postcode klopt niet\",0)","v":"postcode klopt niet"},0]
[null,null,null,null,null,null,{"$f":"_xlfn.XLOOKUP(F27,Postcode!$A$2:$A$2766,Postcode!$D$2:$D$2766,\"postcode klopt niet\",0)","v":"postcode klopt niet"},0]
[null,null,null,null,null,null,{"$f":"_xlfn.XLOOKUP(F28,Postcode!$A$2:$A$2766,Postcode!$D$2:$D$2766,\"postcode klopt niet\",0)","v":"postcode klopt niet"},0]
[null,null,null,null,null,null,{"$f":"_xlfn.XLOOKUP(F29,Postcode!$A$2:$A$2766,Postcode!$D$2:$D$2766,\"postcode klopt niet\",0)","v":"postcode klopt niet"},0]
[null,null,null,null,null,null,{"$f":"_xlfn.XLOOKUP(F30,Postcode!$A$2:$A$2766,Postcode!$D$2:$D$2766,\"postcode klopt niet\",0)","v":"postcode klopt niet"},0]
[null,null,null,null,null,null,{"$f":"_xlfn.XLOOKUP(F31,Postcode!$A$2:$A$2766,Postcode!$D$2:$D$2766,\"postcode klopt niet\",0)","v":"postcode klopt niet"},0]
[null,null,null,null,null,null,{"$f":"_xlfn.XLOOKUP(F32,Postcode!$A$2:$A$2766,Postcode!$D$2:$D$2766,\"postcode klopt niet\",0)","v":"postcode klopt niet"},0]
[null,null,null,null,null,null,{"$f":"_xlfn.XLOOKUP(F33,Postcode!$A$2:$A$2766,Postcode!$D$2:$D$2766,\"postcode klopt niet\",0)","v":"postcode klopt niet"},0]
[null,null,null,null,null,null,{"$f":"_xlfn.XLOOKUP(F34,Postcode!$A$2:$A$2766,Postcode!$D$2:$D$2766,\"postcode klopt niet\",0)","v":"postcode klopt niet"},0]
[null,null,null,null,null,null,{"$f":"_xlfn.XLOOKUP(F35,Postcode!$A$2:$A$2766,Postcode!$D$2:$D$2766,\"postcode klopt niet\",0)","v":"postcode klopt niet"},0]
[null,null,null,null,null,null,{"$f":"_xlfn.XLOOKUP(F36,Postcode!$A$2:$A$2766,Postcode!$D$2:$D$2766,\"postcode klopt niet\",0)","v":"postcode klopt niet"},0]
[null,null,null,null,null,null,{"$f":"_xlfn.XLOOKUP(F37,Postcode!$A$2:$A$2766,Postcode!$D$2:$D$2766,\"postcode klopt niet\",0)","v":"postcode klopt niet"},0]
[null,null,null,null,null,null,{"$f":"_xlfn.XLOOKUP(F38,Postcode!$A$2:$A$2766,Postcode!$D$2:$D$2766,\"postcode klopt niet\",0)","v":"postcode klopt niet"},0]
[null,null,null,null,null,null,{"$f":"_xlfn.XLOOKUP(F39,Postcode!$A$2:$A$2766,Postcode!$D$2:$D$2766,\"postcode klopt niet\",0)","v":"postcode klopt niet"},0]
[null,null,null,null,null,null,{"$f":"_xlfn.XLOOKUP(F40,Postcode!$A$2:$A$2766,Postcode!$D$2:$D$2766,\"postcode klopt niet\",0)","v":"postcode klopt niet"},0]
[null,null,null,null,null,null,{"$f":"_xlfn.XLOOKUP(F41,Postcode!$A$2:$A$2766,Postcode!$D$2:$D$2766,\"postcode klopt niet\",0)","v":"postcode klopt niet"},0]
[null,null,null,null,null,null,{"$f":"_xlfn.XLOOKUP(F42,Postcode!$A$2:$A$2766,Postcode!$D$2:$D$2766,\"postcode klopt niet\",0)","v":"postcode klopt niet"},0]
[null,null,null,null,null,null,{"$f":"_xlfn.XLOOKUP(F43,Postcode!$A$2:$A$2766,Postcode!$D$2:$D$2766,\"postcode klopt niet\",0)","v":"postcode klopt niet"},0]
[null,null,null,null,null,null,{"$f":"_xlfn.XLOOKUP(F44,Postcode!$A$2:$A$2766,Postcode!$D$2:$D$2766,\"postcode klopt niet\",0)","v":"postcode klopt niet"},0]
[null,null,null,null,null,null,{"$f":"_xlfn.XLOOKUP(F45,Postcode!$A$2:$A$2766,Postcode!$D$2:$D$2766,\"postcode klopt niet\",0)","v":"postcode klopt niet"},0]
[null,null,null,null,null,null,{"$f":"_xlfn.XLOOKUP(F46,Postcode!$A$2:$A$2766,Postcode!$D$2:$D$2766,\"postcode klopt niet\",0)","v":"postcode klopt niet"},0]
[null,null,null,null,null,null,{"$f":"_xlfn.XLOOKUP(F47,Postcode!$A$2:$A$2766,Postcode!$D$2:$D$2766,\"postcode klopt niet\",0)","v":"postcode klopt niet"},0]
[null,null,null,null,null,null,{"$f":"_xlfn.XLOOKUP(F48,Postcode!$A$2:$A$2766,Postcode!$D$2:$D$2766,\"postcode klopt niet\",0)","v":"postcode klopt niet"},0]
[null,null,null,null,null,null,{"$f":"_xlfn.XLOOKUP(F49,Postcode!$A$2:$A$2766,Postcode!$D$2:$D$2766,\"postcode klopt niet\",0)","v":"postcode klopt niet"},0]
[null,null,null,null,null,null,{"$f":"_xlfn.XLOOKUP(F50,Postcode!$A$2:$A$2766,Postcode!$D$2:$D$2766,\"postcode klopt niet\",0)","v":"postcode klopt niet"},0]
[null,null,null,null,null,null,{"$f":"_xlfn.XLOOKUP(F51,Postcode!$A$2:$A$2766,Postcode!$D$2:$D$2766,\"postcode klopt niet\",0)","v":"postcode klopt niet"},0]
[null,null,null,null,null,null,{"$f":"_xlfn.XLOOKUP(F52,Postcode!$A$2:$A$2766,Postcode!$D$2:$D$2766,\"postcode klopt niet\",0)","v":"postcode klopt niet"},0]
[null,null,null,null,null,null,{"$f":"_xlfn.XLOOKUP(F53,Postcode!$A$2:$A$2766,Postcode!$D$2:$D$2766,\"postcode klopt niet\",0)","v":"postcode klopt niet"},0]
[null,null,null,null,null,null,{"$f":"_xlfn.XLOOKUP(F54,Postcode!$A$2:$A$2766,Postcode!$D$2:$D$2766,\"postcode klopt niet\",0)","v":"postcode klopt niet"},0]
[null,null,null,null,null,null,{"$f":"_xlfn.XLOOKUP(F55,Postcode!$A$2:$A$2766,Postcode!$D$2:$D$2766,\"postcode klopt niet\",0)","v":"postcode klopt niet"},0]
[null,null,null,null,null,null,{"$f":"_xlfn.XLOOKUP(F56,Postcode!$A$2:$A$2766,Postcode!$D$2:$D$2766,\"postcode klopt niet\",0)","v":"postcode klopt niet"},0]
[null,null,null,null,null,null,{"$f":"_xlfn.XLOOKUP(F57,Postcode!$A$2:$A$2766,Postcode!$D$2:$D$2766,\"postcode klopt niet\",0)","v":"postcode klopt niet"},0]
[null,null,null,null,null,null,{"$f":"_xlfn.XLOOKUP(F58,Postcode!$A$2:$A$2766,Postcode!$D$2:$D$2766,\"postcode klopt niet\",0)","v":"postcode klopt niet"},0]
[null,null,null,null,null,null,{"$f":"_xlfn.XLOOKUP(F59,Postcode!$A$2:$A$2766,Postcode!$D$2:$D$2766,\"postcode klopt niet\",0)","v":"postcode klopt niet"},0]
[null,null,null,null,null,null,{"$f":"_xlfn.XLOOKUP(F60,Postcode!$A$2:$A$2766,Postcode!$D$2:$D$2766,\"postcode klopt niet\",0)","v":"postcode klopt niet"},0]
[null,null,null,null,null,null,{"$f":"_xlfn.XLOOKUP(F61,Postcode!$A$2:$A$2766,Postcode!$D$2:$D$2766,\"postcode klopt niet\",0)","v":"postcode klopt niet"},0]
[null,null,null,null,null,null,{"$f":"_xlfn.XLOOKUP(F62,Postcode!$A$2:$A$2766,Postcode!$D$2:$D$2766,\"postcode klopt niet\",0)","v":"postcode klopt niet"},0]
[null,null,null,null,null,null,{"$f":"_xlfn.XLOOKUP(F63,Postcode!$A$2:$A$2766,Postcode!$D$2:$D$2766,\"postcode klopt niet\",0)","v":"postcode klopt niet"},0]
[null,null,null,null,null,null,{"$f":"_xlfn.XLOOKUP(F64,Postcode!$A$2:$A$2766,Postcode!$D$2:$D$2766,\"postcode klopt niet\",0)","v":"postcode klopt niet"},0]
[null,null,null,null,null,null,{"$f":"_xlfn.XLOOKUP(F65,Postcode!$A$2:$A$2766,Postcode!$D$2:$D$2766,\"postcode klopt niet\",0)","v":"postcode klopt niet"},0]
[null,null,null,null,null,null,{"$f":"_xlfn.XLOOKUP(F66,Postcode!$A$2:$A$2766,Postcode!$D$2:$D$2766,\"postcode klopt niet\",0)","v":"postcode klopt niet"},0]
[null,null,null,null,null,null,{"$f":"_xlfn.XLOOKUP(F67,Postcode!$A$2:$A$2766,Postcode!$D$2:$D$2766,\"postcode klopt niet\",0)","v":"postcode klopt niet"},0]
[null,null,null,null,null,null,{"$f":"_xlfn.XLOOKUP(F68,Postcode!$A$2:$A$2766,Postcode!$D$2:$D$2766,\"postcode klopt niet\",0)","v":"postcode klopt niet"},0]
[null,null,null,null,null,null,{"$f":"_xlfn.XLOOKUP(F69,Postcode!$A$2:$A$2766,Postcode!$D$2:$D$2766,\"postcode klopt niet\",0)","v":"postcode klopt niet"},{"$f":"COUNTA(A69,B69,C69,F69)","v":0}]
[null,null,null,null,null,null,{"$f":"_xlfn.XLOOKUP(F70,Postcode!$A$2:$A$2766,Postcode!$D$2:$D$2766,\"postcode klopt niet\",0)","v":"postcode klopt niet"},0]
[null,null,null,null,null,null,{"$f":"_xlfn.XLOOKUP(F71,Postcode!$A$2:$A$2766,Postcode!$D$2:$D$2766,\"postcode klopt niet\",0)","v":"postcode klopt niet"},0]
[null,null,null,null,null,null,{"$f":"_xlfn.XLOOKUP(F72,Postcode!$A$2:$A$2766,Postcode!$D$2:$D$2766,\"postcode klopt niet\",0)","v":"postcode klopt niet"},0]
[null,null,null,null,null,null,{"$f":"_xlfn.XLOOKUP(F73,Postcode!$A$2:$A$2766,Postcode!$D$2:$D$2766,\"postcode klopt niet\",0)","v":"postcode klopt niet"},0]
[null,null,null,null,null,null,{"$f":"_xlfn.XLOOKUP(F74,Postcode!$A$2:$A$2766,Postcode!$D$2:$D$2766,\"postcode klopt niet\",0)","v":"postcode klopt niet"},0]
[null,null,null,null,null,null,{"$f":"_xlfn.XLOOKUP(F75,Postcode!$A$2:$A$2766,Postcode!$D$2:$D$2766,\"postcode klopt niet\",0)","v":"postcode klopt niet"},0]
[null,null,null,null,null,null,{"$f":"_xlfn.XLOOKUP(F76,Postcode!$A$2:$A$2766,Postcode!$D$2:$D$2766,\"postcode klopt niet\",0)","v":"postcode klopt niet"},0]
[null,null,null,null,null,null,{"$f":"_xlfn.XLOOKUP(F77,Postcode!$A$2:$A$2766,Postcode!$D$2:$D$2766,\"postcode klopt niet\",0)","v":"postcode klopt niet"},0]
[null,null,null,null,null,null,{"$f":"_xlfn.XLOOKUP(F78,Postcode!$A$2:$A$2766,Postcode!$D$2:$D$2766,\"postcode klopt niet\",0)","v":"postcode klopt niet"},0]
[null,null,null,null,null,null,{"$f":"_xlfn.XLOOKUP(F79,Postcode!$A$2:$A$2766,Postcode!$D$2:$D$2766,\"postcode klopt niet\",0)","v":"postcode klopt niet"},0]
[null,null,null,null,null,null,{"$f":"_xlfn.XLOOKUP(F80,Postcode!$A$2:$A$2766,Postcode!$D$2:$D$2766,\"postcode klopt niet\",0)","v":"postcode klopt niet"},0]
[null,null,null,null,null,null,{"$f":"_xlfn.XLOOKUP(F81,Postcode!$A$2:$A$2766,Postcode!$D$2:$D$2766,\"postcode klopt niet\",0)","v":"postcode klopt niet"},0]
[null,null,null,null,null,null,{"$f":"_xlfn.XLOOKUP(F82,Postcode!$A$2:$A$2766,Postcode!$D$2:$D$2766,\"postcode klopt niet\",0)","v":"postcode klopt niet"},0]
[null,null,null,null,null,null,{"$f":"_xlfn.XLOOKUP(F83,Postcode!$A$2:$A$2766,Postcode!$D$2:$D$2766,\"postcode klopt niet\",0)","v":"postcode klopt niet"},0]
[null,null,null,null,null,null,{"$f":"_xlfn.XLOOKUP(F84,Postcode!$A$2:$A$2766,Postcode!$D$2:$D$2766,\"postcode klopt niet\",0)","v":"postcode klopt niet"},0]
[null,null,null,null,null,null,{"$f":"_xlfn.XLOOKUP(F85,Postcode!$A$2:$A$2766,Postcode!$D$2:$D$2766,\"postcode klopt niet\",0)","v":"postcode klopt niet"},0]
[null,null,null,null,null,null,{"$f":"_xlfn.XLOOKUP(F86,Postcode!$A$2:$A$2766,Postcode!$D$2:$D$2766,\"postcode klopt niet\",0)","v":"postcode klopt niet"},0]
[null,null,null,null,null,null,{"$f":"_xlfn.XLOOKUP(F87,Postcode!$A$2:$A$2766,Postcode!$D$2:$D$2766,\"postcode klopt niet\",0)","v":"postcode klopt niet"},0]
[null,null,null,null,null,null,{"$f":"_xlfn.XLOOKUP(F88,Postcode!$A$2:$A$2766,Postcode!$D$2:$D$2766,\"postcode klopt niet\",0)","v":"postcode klopt niet"},0]
[null,null,null,null,null,null,{"$f":"_xlfn.XLOOKUP(F89,Postcode!$A$2:$A$2766,Postcode!$D$2:$D$2766,\"postcode klopt niet\",0)","v":"postcode klopt niet"},0]
[null,null,null,null,null,null,{"$f":"_xlfn.XLOOKUP(F90,Postcode!$A$2:$A$2766,Postcode!$D$2:$D$2766,\"postcode klopt niet\",0)","v":"postcode klopt niet"},0]
[null,null,null,null,null,null,{"$f":"_xlfn.XLOOKUP(F91,Postcode!$A$2:$A$2766,Postcode!$D$2:$D$2766,\"postcode klopt niet\",0)","v":"postcode klopt niet"},0]
[null,null,null,null,null,null,{"$f":"_xlfn.XLOOKUP(F92,Postcode!$A$2:$A$2766,Postcode!$D$2:$D$2766,\"postcode klopt niet\",0)","v":"postcode klopt niet"},0]
[null,null,null,null,null,null,{"$f":"_xlfn.XLOOKUP(F93,Postcode!$A$2:$A$2766,Postcode!$D$2:$D$2766,\"postcode klopt niet\",0)","v":"postcode klopt niet"},0]
[null,null,null,null,null,null,{"$f":"_xlfn.XLOOKUP(F94,Postcode!$A$2:$A$2766,Postcode!$D$2:$D$2766,\"postcode klopt niet\",0)","v":"postcode klopt niet"},0]
[null,null,null,null,null,null,{"$f":"_xlfn.XLOOKUP(F95,Postcode!$A$2:$A$2766,Postcode!$D$2:$D$2766,\"postcode klopt niet\",0)","v":"postcode klopt niet"},0]
[null,null,null,null,null,null,{"$f":"_xlfn.XLOOKUP(F96,Postcode!$A$2:$A$2766,Postcode!$D$2:$D$2766,\"postcode klopt niet\",0)","v":"postcode klopt niet"},0]
[null,null,null,null,null,null,{"$f":"_xlfn.XLOOKUP(F97,Postcode!$A$2:$A$2766,Postcode!$D$2:$D$2766,\"postcode klopt niet\",0)","v":"postcode klopt niet"},0]
[null,null,null,null,null,null,{"$f":"_xlfn.XLOOKUP(F98,Postcode!$A$2:$A$2766,Postcode!$D$2:$D$2766,\"postcode klopt niet\",0)","v":"postcode klopt niet"},0]
[null,null,null,null,null,null,{"$f":"_xlfn.XLOOKUP(F99,Postcode!$A$2:$A$2766,Postcode!$D$2:$D$2766,\"postcode klopt niet\",0)","v":"postcode klopt niet"},0]
[null,null,null,null,null,null,{"$f":"_xlfn.XLOOKUP(F100,Postcode!$A$2:$A$2766,Postcode!$D$2:$D$2766,\"postcode klopt niet\",0)","v":"postcode klopt niet"},0]
[null,null,null,null,null,null,{"$f":"_xlfn.XLOOKUP(F101,Postcode!$A$2:$A$2766,Postcode!$D$2:$D$2766,\"postcode klopt niet\",0)","v":"postcode klopt niet"},0]
[null,null,null,null,null,null,{"$f":"_xlfn.XLOOKUP(F102,Postcode!$A$2:$A$2766,Postcode!$D$2:$D$2766,\"postcode klopt niet\",0)","v":"postcode klopt niet"},0]

{"sheet":"vb. sloebers","index":2,"n_rows":102,"n_cols":16,"rows_kept":102,"cut":false,"hidden":false,"merged":[[0,0,0,7],[0,8,0,14]]}
["Gegevens Lid",null,null,null,null,null,null,null,"Gegevens Ouder/Voogd ( in geval van gescheiden ouders degene die betaalt)",null,null,null,null,null,null,{"$f":"Algemeen!B4","v":"vb. sloebers"}]
["Naam","Voornaam","Rijksregisternr° (00.00.00-000.00)","Geboortedatum","Straat","Nr°/Bus","Postcode","Gemeente","Naam","Voornaam","Rijksregisternr° (00.00.00-000.00)","Straat","Nr°/Bus","Postcode","Gemeente","Controle"]
["vb. Evenepoel","vb. Remco","93.04.07-131.88",{"$f":"DATE((IF(VALUE((RIGHT(SUBSTITUTE(SUBSTITUTE(C3,\".\",\"\"),\"-\",\"\"),2)))=(97-(MOD(LEFT(SUBSTITUTE(SUBSTITUTE(C3,\".\",\"\"),\"-\",\"\"),9),97))),1900+(LEFT(SUBSTITUTE(SUBSTITUTE(C3,\".\",\"\"),\"-\",\"\"),2)),2000+(LEFT(SUBSTITUTE(SUBSTITUTE(C3,\".\",\"\"),\"-\",\"\"),2)))),(MID(SUBSTITUTE(SUBSTITUTE(C3,\".\",\"\"),\"-\",\"\"),3,2)),(MID(SUBSTITUTE(SUBSTITUTE(C3,\".\",\"\"),\"-\",\"\"),5,2)))","v":"1993-04-07"},"Vogelzangstraat","37/3",3540,{"$f":"_xlfn.XLOOKUP(G3,Postcode!$A$2:$A$2766,Postcode!$D$2:$D$2766,\"postcode klopt niet\",0)","v":"HERK-DE-STAD"},"vb. Evenepoel","vb. Patrick","66.03.17-144.48","Parklaan",23,3800,{"$f":"_xlfn.XLOOKUP(N3,Postcode!$A$2:$A$2766,Postcode!$D$2:$D$2766,\"postcode klopt niet\",0)","v":"SINT-TRUIDEN"}]
[null,null,null,{"$error":"#VALUE!"},null,null,null,{"$f":"_xlfn.XLOOKUP(G4,Postcode!$A$2:$A$2766,Postcode!$D$2:$D$2766,\"postcode klopt niet\",0)","v":"postcode klopt niet"},null,null,null,null,null,null,{"$f":"_xlfn.XLOOKUP(N4,Postcode!$A$2:$A$2766,Postcode!$D$2:$D$2766,\"postcode klopt niet\",0)","v":"postcode klopt niet"},{"$f":"COUNTA(A4,B4,D4,G4)","v":1}]
[null,null,null,{"$error":"#VALUE!"},null,null,null,{"$f":"_xlfn.XLOOKUP(G5,Postcode!$A$2:$A$2766,Postcode!$D$2:$D$2766,\"postcode klopt niet\",0)","v":"postcode klopt niet"},null,null,null,null,null,null,{"$f":"_xlfn.XLOOKUP(N5,Postcode!$A$2:$A$2766,Postcode!$D$2:$D$2766,\"postcode klopt niet\",0)","v":"postcode klopt niet"},{"$f":"COUNTA(A5,B5,D5,G5)","v":1}]
[null,null,null,{"$error":"#VALUE!"},null,null,null,{"$f":"_xlfn.XLOOKUP(G6,Postcode!$A$2:$A$2766,Postcode!$D$2:$D$2766,\"postcode klopt niet\",0)","v":"postcode klopt niet"},null,null,null,null,null,null,{"$f":"_xlfn.XLOOKUP(N6,Postcode!$A$2:$A$2766,Postcode!$D$2:$D$2766,\"postcode klopt niet\",0)","v":"postcode klopt niet"},1]
[null,null,null,{"$error":"#VALUE!"},null,null,null,{"$f":"_xlfn.XLOOKUP(G7,Postcode!$A$2:$A$2766,Postcode!$D$2:$D$2766,\"postcode klopt niet\",0)","v":"postcode klopt niet"},null,null,null,null,null,null,{"$f":"_xlfn.XLOOKUP(N7,Postcode!$A$2:$A$2766,Postcode!$D$2:$D$2766,\"postcode klopt niet\",0)","v":"postcode klopt niet"},1]
[null,null,null,{"$error":"#VALUE!"},null,null,null,{"$f":"_xlfn.XLOOKUP(G8,Postcode!$A$2:$A$2766,Postcode!$D$2:$D$2766,\"postcode klopt niet\",0)","v":"postcode klopt niet"},null,null,null,null,null,null,{"$f":"_xlfn.XLOOKUP(N8,Postcode!$A$2:$A$2766,Postcode!$D$2:$D$2766,\"postcode klopt niet\",0)","v":"postcode klopt niet"},1]
[null,null,null,{"$error":"#VALUE!"},null,null,null,{"$f":"_xlfn.XLOOKUP(G9,Postcode!$A$2:$A$2766,Postcode!$D$2:$D$2766,\"postcode klopt niet\",0)","v":"postcode klopt niet"},null,null,null,null,null,null,{"$f":"_xlfn.XLOOKUP(N9,Postcode!$A$2:$A$2766,Postcode!$D$2:$D$2766,\"postcode klopt niet\",0)","v":"postcode klopt niet"},1]
[null,null,null,{"$error":"#VALUE!"},null,null,null,{"$f":"_xlfn.XLOOKUP(G10,Postcode!$A$2:$A$2766,Postcode!$D$2:$D$2766,\"postcode klopt niet\",0)","v":"postcode klopt niet"},null,null,null,null,null,null,{"$f":"_xlfn.XLOOKUP(N10,Postcode!$A$2:$A$2766,Postcode!$D$2:$D$2766,\"postcode klopt niet\",0)","v":"postcode klopt niet"},1]
[null,null,null,{"$error":"#VALUE!"},null,null,null,{"$f":"_xlfn.XLOOKUP(G11,Postcode!$A$2:$A$2766,Postcode!$D$2:$D$2766,\"postcode klopt niet\",0)","v":"postcode klopt niet"},null,null,null,null,null,null,{"$f":"_xlfn.XLOOKUP(N11,Postcode!$A$2:$A$2766,Postcode!$D$2:$D$2766,\"postcode klopt niet\",0)","v":"postcode klopt niet"},1]
[null,null,null,{"$error":"#VALUE!"},null,null,null,{"$f":"_xlfn.XLOOKUP(G12,Postcode!$A$2:$A$2766,Postcode!$D$2:$D$2766,\"postcode klopt niet\",0)","v":"postcode klopt niet"},null,null,null,null,null,null,{"$f":"_xlfn.XLOOKUP(N12,Postcode!$A$2:$A$2766,Postcode!$D$2:$D$2766,\"postcode klopt niet\",0)","v":"postcode klopt niet"},1]
[null,null,null,{"$error":"#VALUE!"},null,null,null,{"$f":"_xlfn.XLOOKUP(G13,Postcode!$A$2:$A$2766,Postcode!$D$2:$D$2766,\"postcode klopt niet\",0)","v":"postcode klopt niet"},null,null,null,null,null,null,{"$f":"_xlfn.XLOOKUP(N13,Postcode!$A$2:$A$2766,Postcode!$D$2:$D$2766,\"postcode klopt niet\",0)","v":"postcode klopt niet"},1]
[null,null,null,{"$error":"#VALUE!"},null,null,null,{"$f":"_xlfn.XLOOKUP(G14,Postcode!$A$2:$A$2766,Postcode!$D$2:$D$2766,\"postcode klopt niet\",0)","v":"postcode klopt niet"},null,null,null,null,null,null,{"$f":"_xlfn.XLOOKUP(N14,Postcode!$A$2:$A$2766,Postcode!$D$2:$D$2766,\"postcode klopt niet\",0)","v":"postcode klopt niet"},1]
[null,null,null,{"$error":"#VALUE!"},null,null,null,{"$f":"_xlfn.XLOOKUP(G15,Postcode!$A$2:$A$2766,Postcode!$D$2:$D$2766,\"postcode klopt niet\",0)","v":"postcode klopt niet"},null,null,null,null,null,null,{"$f":"_xlfn.XLOOKUP(N15,Postcode!$A$2:$A$2766,Postcode!$D$2:$D$2766,\"postcode klopt niet\",0)","v":"postcode klopt niet"},1]
[null,null,null,{"$error":"#VALUE!"},null,null,null,{"$f":"_xlfn.XLOOKUP(G16,Postcode!$A$2:$A$2766,Postcode!$D$2:$D$2766,\"postcode klopt niet\",0)","v":"postcode klopt niet"},null,null,null,null,null,null,{"$f":"_xlfn.XLOOKUP(N16,Postcode!$A$2:$A$2766,Postcode!$D$2:$D$2766,\"postcode klopt niet\",0)","v":"postcode klopt niet"},1]
[null,null,null,{"$error":"#VALUE!"},null,null,null,{"$f":"_xlfn.XLOOKUP(G17,Postcode!$A$2:$A$2766,Postcode!$D$2:$D$2766,\"postcode klopt niet\",0)","v":"postcode klopt niet"},null,null,null,null,null,null,{"$f":"_xlfn.XLOOKUP(N17,Postcode!$A$2:$A$2766,Postcode!$D$2:$D$2766,\"postcode klopt niet\",0)","v":"postcode klopt niet"},1]
[null,null,null,{"$error":"#VALUE!"},null,null,null,{"$f":"_xlfn.XLOOKUP(G18,Postcode!$A$2:$A$2766,Postcode!$D$2:$D$2766,\"postcode klopt niet\",0)","v":"postcode klopt niet"},null,null,null,null,null,null,{"$f":"_xlfn.XLOOKUP(N18,Postcode!$A$2:$A$2766,Postcode!$D$2:$D$2766,\"postcode klopt niet\",0)","v":"postcode klopt niet"},1]
[null,null,null,{"$error":"#VALUE!"},null,null,null,{"$f":"_xlfn.XLOOKUP(G19,Postcode!$A$2:$A$2766,Postcode!$D$2:$D$2766,\"postcode klopt niet\",0)","v":"postcode klopt niet"},null,null,null,null,null,null,{"$f":"_xlfn.XLOOKUP(N19,Postcode!$A$2:$A$2766,Postcode!$D$2:$D$2766,\"postcode klopt niet\",0)","v":"postcode klopt niet"},1]
[null,null,null,{"$error":"#VALUE!"},null,null,null,{"$f":"_xlfn.XLOOKUP(G20,Postcode!$A$2:$A$2766,Postcode!$D$2:$D$2766,\"postcode klopt niet\",0)","v":"postcode klopt niet"},null,null,null,null,null,null,{"$f":"_xlfn.XLOOKUP(N20,Postcode!$A$2:$A$2766,Postcode!$D$2:$D$2766,\"postcode klopt niet\",0)","v":"postcode klopt niet"},1]
[null,null,null,{"$error":"#VALUE!"},null,null,null,{"$f":"_xlfn.XLOOKUP(G21,Postcode!$A$2:$A$2766,Postcode!$D$2:$D$2766,\"postcode klopt niet\",0)","v":"postcode klopt niet"},null,null,null,null,null,null,{"$f":"_xlfn.XLOOKUP(N21,Postcode!$A$2:$A$2766,Postcode!$D$2:$D$2766,\"postcode klopt niet\",0)","v":"postcode klopt niet"},1]
[null,null,null,{"$error":"#VALUE!"},null,null,null,{"$f":"_xlfn.XLOOKUP(G22,Postcode!$A$2:$A$2766,Postcode!$D$2:$D$2766,\"postcode klopt niet\",0)","v":"postcode klopt niet"},null,null,null,null,null,null,{"$f":"_xlfn.XLOOKUP(N22,Postcode!$A$2:$A$2766,Postcode!$D$2:$D$2766,\"postcode klopt niet\",0)","v":"postcode klopt niet"},1]
[null,null,null,{"$error":"#VALUE!"},null,null,null,{"$f":"_xlfn.XLOOKUP(G23,Postcode!$A$2:$A$2766,Postcode!$D$2:$D$2766,\"postcode klopt niet\",0)","v":"postcode klopt niet"},null,null,null,null,null,null,{"$f":"_xlfn.XLOOKUP(N23,Postcode!$A$2:$A$2766,Postcode!$D$2:$D$2766,\"postcode klopt niet\",0)","v":"postcode klopt niet"},1]
[null,null,null,{"$error":"#VALUE!"},null,null,null,{"$f":"_xlfn.XLOOKUP(G24,Postcode!$A$2:$A$2766,Postcode!$D$2:$D$2766,\"postcode klopt niet\",0)","v":"postcode klopt niet"},null,null,null,null,null,null,{"$f":"_xlfn.XLOOKUP(N24,Postcode!$A$2:$A$2766,Postcode!$D$2:$D$2766,\"postcode klopt niet\",0)","v":"postcode klopt niet"},1]
[null,null,null,{"$error":"#VALUE!"},null,null,null,{"$f":"_xlfn.XLOOKUP(G25,Postcode!$A$2:$A$2766,Postcode!$D$2:$D$2766,\"postcode klopt niet\",0)","v":"postcode klopt niet"},null,null,null,null,null,null,{"$f":"_xlfn.XLOOKUP(N25,Postcode!$A$2:$A$2766,Postcode!$D$2:$D$2766,\"postcode klopt niet\",0)","v":"postcode klopt niet"},1]
[null,null,null,{"$error":"#VALUE!"},null,null,null,{"$f":"_xlfn.XLOOKUP(G26,Postcode!$A$2:$A$2766,Postcode!$D$2:$D$2766,\"postcode klopt niet\",0)","v":"postcode klopt niet"},null,null,null,null,null,null,{"$f":"_xlfn.XLOOKUP(N26,Postcode!$A$2:$A$2766,Postcode!$D$2:$D$2766,\"postcode klopt niet\",0)","v":"postcode klopt niet"},1]
[null,null,null,{"$error":"#VALUE!"},null,null,null,{"$f":"_xlfn.XLOOKUP(G27,Postcode!$A$2:$A$2766,Postcode!$D$2:$D$2766,\"postcode klopt niet\",0)","v":"postcode klopt niet"},null,null,null,null,null,null,{"$f":"_xlfn.XLOOKUP(N27,Postcode!$A$2:$A$2766,Postcode!$D$2:$D$2766,\"postcode klopt niet\",0)","v":"postcode klopt niet"},1]
[null,null,null,{"$error":"#VALUE!"},null,null,null,{"$f":"_xlfn.XLOOKUP(G28,Postcode!$A$2:$A$2766,Postcode!$D$2:$D$2766,\"postcode klopt niet\",0)","v":"postcode klopt niet"},null,null,null,null,null,null,{"$f":"_xlfn.XLOOKUP(N28,Postcode!$A$2:$A$2766,Postcode!$D$2:$D$2766,\"postcode klopt niet\",0)","v":"postcode klopt niet"},1]
[null,null,null,{"$error":"#VALUE!"},null,null,null,{"$f":"_xlfn.XLOOKUP(G29,Postcode!$A$2:$A$2766,Postcode!$D$2:$D$2766,\"postcode klopt niet\",0)","v":"postcode klopt niet"},null,null,null,null,null,null,{"$f":"_xlfn.XLOOKUP(N29,Postcode!$A$2:$A$2766,Postcode!$D$2:$D$2766,\"postcode klopt niet\",0)","v":"postcode klopt niet"},1]
[null,null,null,{"$error":"#VALUE!"},null,null,null,{"$f":"_xlfn.XLOOKUP(G30,Postcode!$A$2:$A$2766,Postcode!$D$2:$D$2766,\"postcode klopt niet\",0)","v":"postcode klopt niet"},null,null,null,null,null,null,{"$f":"_xlfn.XLOOKUP(N30,Postcode!$A$2:$A$2766,Postcode!$D$2:$D$2766,\"postcode klopt niet\",0)","v":"postcode klopt niet"},1]
[null,null,null,{"$error":"#VALUE!"},null,null,null,{"$f":"_xlfn.XLOOKUP(G31,Postcode!$A$2:$A$2766,Postcode!$D$2:$D$2766,\"postcode klopt niet\",0)","v":"postcode klopt niet"},null,null,null,null,null,null,{"$f":"_xlfn.XLOOKUP(N31,Postcode!$A$2:$A$2766,Postcode!$D$2:$D$2766,\"postcode klopt niet\",0)","v":"postcode klopt niet"},1]
[null,null,null,{"$error":"#VALUE!"},null,null,null,{"$f":"_xlfn.XLOOKUP(G32,Postcode!$A$2:$A$2766,Postcode!$D$2:$D$2766,\"postcode klopt niet\",0)","v":"postcode klopt niet"},null,null,null,null,null,null,{"$f":"_xlfn.XLOOKUP(N32,Postcode!$A$2:$A$2766,Postcode!$D$2:$D$2766,\"postcode klopt niet\",0)","v":"postcode klopt niet"},1]
[null,null,null,{"$error":"#VALUE!"},null,null,null,{"$f":"_xlfn.XLOOKUP(G33,Postcode!$A$2:$A$2766,Postcode!$D$2:$D$2766,\"postcode klopt niet\",0)","v":"postcode klopt niet"},null,null,null,null,null,null,{"$f":"_xlfn.XLOOKUP(N33,Postcode!$A$2:$A$2766,Postcode!$D$2:$D$2766,\"postcode klopt niet\",0)","v":"postcode klopt niet"},1]
[null,null,null,{"$error":"#VALUE!"},null,null,null,{"$f":"_xlfn.XLOOKUP(G34,Postcode!$A$2:$A$2766,Postcode!$D$2:$D$2766,\"postcode klopt niet\",0)","v":"postcode klopt niet"},null,null,null,null,null,null,{"$f":"_xlfn.XLOOKUP(N34,Postcode!$A$2:$A$2766,Postcode!$D$2:$D$2766,\"postcode klopt niet\",0)","v":"postcode klopt niet"},1]
[null,null,null,{"$error":"#VALUE!"},null,null,null,{"$f":"_xlfn.XLOOKUP(G35,Postcode!$A$2:$A$2766,Postcode!$D$2:$D$2766,\"postcode klopt niet\",0)","v":"postcode klopt niet"},null,null,null,null,null,null,{"$f":"_xlfn.XLOOKUP(N35,Postcode!$A$2:$A$2766,Postcode!$D$2:$D$2766,\"postcode klopt niet\",0)","v":"postcode klopt niet"},1]
[null,null,null,{"$error":"#VALUE!"},null,null,null,{"$f":"_xlfn.XLOOKUP(G36,Postcode!$A$2:$A$2766,Postcode!$D$2:$D$2766,\"postcode klopt niet\",0)","v":"postcode klopt niet"},null,null,null,null,null,null,{"$f":"_xlfn.XLOOKUP(N36,Postcode!$A$2:$A$2766,Postcode!$D$2:$D$2766,\"postcode klopt niet\",0)","v":"postcode klopt niet"},1]
[null,null,null,{"$error":"#VALUE!"},null,null,null,{"$f":"_xlfn.XLOOKUP(G37,Postcode!$A$2:$A$2766,Postcode!$D$2:$D$2766,\"postcode klopt niet\",0)","v":"postcode klopt niet"},null,null,null,null,null,null,{"$f":"_xlfn.XLOOKUP(N37,Postcode!$A$2:$A$2766,Postcode!$D$2:$D$2766,\"postcode klopt niet\",0)","v":"postcode klopt niet"},1]
[null,null,null,{"$error":"#VALUE!"},null,null,null,{"$f":"_xlfn.XLOOKUP(G38,Postcode!$A$2:$A$2766,Postcode!$D$2:$D$2766,\"postcode klopt niet\",0)","v":"postcode klopt niet"},null,null,null,null,null,null,{"$f":"_xlfn.XLOOKUP(N38,Postcode!$A$2:$A$2766,Postcode!$D$2:$D$2766,\"postcode klopt niet\",0)","v":"postcode klopt niet"},1]
[null,null,null,{"$error":"#VALUE!"},null,null,null,{"$f":"_xlfn.XLOOKUP(G39,Postcode!$A$2:$A$2766,Postcode!$D$2:$D$2766,\"postcode klopt niet\",0)","v":"postcode klopt niet"},null,null,null,null,null,null,{"$f":"_xlfn.XLOOKUP(N39,Postcode!$A$2:$A$2766,Postcode!$D$2:$D$2766,\"postcode klopt niet\",0)","v":"postcode klopt niet"},1]
[null,null,null,{"$error":"#VALUE!"},null,null,null,{"$f":"_xlfn.XLOOKUP(G40,Postcode!$A$2:$A$2766,Postcode!$D$2:$D$2766,\"postcode klopt niet\",0)","v":"postcode klopt niet"},null,null,null,null,null,null,{"$f":"_xlfn.XLOOKUP(N40,Postcode!$A$2:$A$2766,Postcode!$D$2:$D$2766,\"postcode klopt niet\",0)","v":"postcode klopt niet"},1]
[null,null,null,{"$error":"#VALUE!"},null,null,null,{"$f":"_xlfn.XLOOKUP(G41,Postcode!$A$2:$A$2766,Postcode!$D$2:$D$2766,\"postcode klopt niet\",0)","v":"postcode klopt niet"},null,null,null,null,null,null,{"$f":"_xlfn.XLOOKUP(N41,Postcode!$A$2:$A$2766,Postcode!$D$2:$D$2766,\"postcode klopt niet\",0)","v":"postcode klopt niet"},1]
[null,null,null,{"$error":"#VALUE!"},null,null,null,{"$f":"_xlfn.XLOOKUP(G42,Postcode!$A$2:$A$2766,Postcode!$D$2:$D$2766,\"postcode klopt niet\",0)","v":"postcode klopt niet"},null,null,null,null,null,null,{"$f":"_xlfn.XLOOKUP(N42,Postcode!$A$2:$A$2766,Postcode!$D$2:$D$2766,\"postcode klopt niet\",0)","v":"postcode klopt niet"},1]
[null,null,null,{"$error":"#VALUE!"},null,null,null,{"$f":"_xlfn.XLOOKUP(G43,Postcode!$A$2:$A$2766,Postcode!$D$2:$D$2766,\"postcode klopt niet\",0)","v":"postcode klopt niet"},null,null,null,null,null,null,{"$f":"_xlfn.XLOOKUP(N43,Postcode!$A$2:$A$2766,Postcode!$D$2:$D$2766,\"postcode klopt niet\",0)","v":"postcode klopt niet"},1]
[null,null,null,{"$error":"#VALUE!"},null,null,null,{"$f":"_xlfn.XLOOKUP(G44,Postcode!$A$2:$A$2766,Postcode!$D$2:$D$2766,\"postcode klopt niet\",0)","v":"postcode klopt niet"},null,null,null,null,null,null,{"$f":"_xlfn.XLOOKUP(N44,Postcode!$A$2:$A$2766,Postcode!$D$2:$D$2766,\"postcode klopt niet\",0)","v":"postcode klopt niet"},1]
[null,null,null,{"$error":"#VALUE!"},null,null,null,{"$f":"_xlfn.XLOOKUP(G45,Postcode!$A$2:$A$2766,Postcode!$D$2:$D$2766,\"postcode klopt niet\",0)","v":"postcode klopt niet"},null,null,null,null,null,null,{"$f":"_xlfn.XLOOKUP(N45,Postcode!$A$2:$A$2766,Postcode!$D$2:$D$2766,\"postcode klopt niet\",0)","v":"postcode klopt niet"},1]
[null,null,null,{"$error":"#VALUE!"},null,null,null,{"$f":"_xlfn.XLOOKUP(G46,Postcode!$A$2:$A$2766,Postcode!$D$2:$D$2766,\"postcode klopt niet\",0)","v":"postcode klopt niet"},null,null,null,null,null,null,{"$f":"_xlfn.XLOOKUP(N46,Postcode!$A$2:$A$2766,Postcode!$D$2:$D$2766,\"postcode klopt niet\",0)","v":"postcode klopt niet"},1]
[null,null,null,{"$error":"#VALUE!"},null,null,null,{"$f":"_xlfn.XLOOKUP(G47,Postcode!$A$2:$A$2766,Postcode!$D$2:$D$2766,\"postcode klopt niet\",0)","v":"postcode klopt niet"},null,null,null,null,null,null,{"$f":"_xlfn.XLOOKUP(N47,Postcode!$A$2:$A$2766,Postcode!$D$2:$D$2766,\"postcode klopt niet\",0)","v":"postcode klopt niet"},1]
[null,null,null,{"$error":"#VALUE!"},null,null,null,{"$f":"_xlfn.XLOOKUP(G48,Postcode!$A$2:$A$2766,Postcode!$D$2:$D$2766,\"postcode klopt niet\",0)","v":"postcode klopt niet"},null,null,null,null,null,null,{"$f":"_xlfn.XLOOKUP(N48,Postcode!$A$2:$A$2766,Postcode!$D$2:$D$2766,\"postcode klopt niet\",0)","v":"postcode klopt niet"},1]
[null,null,null,{"$error":"#VALUE!"},null,null,null,{"$f":"_xlfn.XLOOKUP(G49,Postcode!$A$2:$A$2766,Postcode!$D$2:$D$2766,\"postcode klopt niet\",0)","v":"postcode klopt niet"},null,null,null,null,null,null,{"$f":"_xlfn.XLOOKUP(N49,Postcode!$A$2:$A$2766,Postcode!$D$2:$D$2766,\"postcode klopt niet\",0)","v":"postcode klopt niet"},1]
[null,null,null,{"$error":"#VALUE!"},null,null,null,{"$f":"_xlfn.XLOOKUP(G50,Postcode!$A$2:$A$2766,Postcode!$D$2:$D$2766,\"postcode klopt niet\",0)","v":"postcode klopt niet"},null,null,null,null,null,null,{"$f":"_xlfn.XLOOKUP(N50,Postcode!$A$2:$A$2766,Postcode!$D$2:$D$2766,\"postcode klopt niet\",0)","v":"postcode klopt niet"},1]
[null,null,null,{"$error":"#VALUE!"},null,null,null,{"$f":"_xlfn.XLOOKUP(G51,Postcode!$A$2:$A$2766,Postcode!$D$2:$D$2766,\"postcode klopt niet\",0)","v":"postcode klopt niet"},null,null,null,null,null,null,{"$f":"_xlfn.XLOOKUP(N51,Postcode!$A$2:$A$2766,Postcode!$D$2:$D$2766,\"postcode klopt niet\",0)","v":"postcode klopt niet"},1]
[null,null,null,{"$error":"#VALUE!"},null,null,null,{"$f":"_xlfn.XLOOKUP(G52,Postcode!$A$2:$A$2766,Postcode!$D$2:$D$2766,\"postcode klopt niet\",0)","v":"postcode klopt niet"},null,null,null,null,null,null,{"$f":"_xlfn.XLOOKUP(N52,Postcode!$A$2:$A$2766,Postcode!$D$2:$D$2766,\"postcode klopt niet\",0)","v":"postcode klopt niet"},1]
[null,null,null,{"$error":"#VALUE!"},null,null,null,{"$f":"_xlfn.XLOOKUP(G53,Postcode!$A$2:$A$2766,Postcode!$D$2:$D$2766,\"postcode klopt niet\",0)","v":"postcode klopt niet"},null,null,null,null,null,null,{"$f":"_xlfn.XLOOKUP(N53,Postcode!$A$2:$A$2766,Postcode!$D$2:$D$2766,\"postcode klopt niet\",0)","v":"postcode klopt niet"},1]
[null,null,null,{"$error":"#VALUE!"},null,null,null,{"$f":"_xlfn.XLOOKUP(G54,Postcode!$A$2:$A$2766,Postcode!$D$2:$D$2766,\"postcode klopt niet\",0)","v":"postcode klopt niet"},null,null,null,null,null,null,{"$f":"_xlfn.XLOOKUP(N54,Postcode!$A$2:$A$2766,Postcode!$D$2:$D$2766,\"postcode klopt niet\",0)","v":"postcode klopt niet"},1]
[null,null,null,{"$error":"#VALUE!"},null,null,null,{"$f":"_xlfn.XLOOKUP(G55,Postcode!$A$2:$A$2766,Postcode!$D$2:$D$2766,\"postcode klopt niet\",0)","v":"postcode klopt niet"},null,null,null,null,null,null,{"$f":"_xlfn.XLOOKUP(N55,Postcode!$A$2:$A$2766,Postcode!$D$2:$D$2766,\"postcode klopt niet\",0)","v":"postcode klopt niet"},1]
[null,null,null,{"$error":"#VALUE!"},null,null,null,{"$f":"_xlfn.XLOOKUP(G56,Postcode!$A$2:$A$2766,Postcode!$D$2:$D$2766,\"postcode klopt niet\",0)","v":"postcode klopt niet"},null,null,null,null,null,null,{"$f":"_xlfn.XLOOKUP(N56,Postcode!$A$2:$A$2766,Postcode!$D$2:$D$2766,\"postcode klopt niet\",0)","v":"postcode klopt niet"},1]
[null,null,null,{"$error":"#VALUE!"},null,null,null,{"$f":"_xlfn.XLOOKUP(G57,Postcode!$A$2:$A$2766,Postcode!$D$2:$D$2766,\"postcode klopt niet\",0)","v":"postcode klopt niet"},null,null,null,null,null,null,{"$f":"_xlfn.XLOOKUP(N57,Postcode!$A$2:$A$2766,Postcode!$D$2:$D$2766,\"postcode klopt niet\",0)","v":"postcode klopt niet"},1]
[null,null,null,{"$error":"#VALUE!"},null,null,null,{"$f":"_xlfn.XLOOKUP(G58,Postcode!$A$2:$A$2766,Postcode!$D$2:$D$2766,\"postcode klopt niet\",0)","v":"postcode klopt niet"},null,null,null,null,null,null,{"$f":"_xlfn.XLOOKUP(N58,Postcode!$A$2:$A$2766,Postcode!$D$2:$D$2766,\"postcode klopt niet\",0)","v":"postcode klopt niet"},1]
[null,null,null,{"$error":"#VALUE!"},null,null,null,{"$f":"_xlfn.XLOOKUP(G59,Postcode!$A$2:$A$2766,Postcode!$D$2:$D$2766,\"postcode klopt niet\",0)","v":"postcode klopt niet"},null,null,null,null,null,null,{"$f":"_xlfn.XLOOKUP(N59,Postcode!$A$2:$A$2766,Postcode!$D$2:$D$2766,\"postcode klopt niet\",0)","v":"postcode klopt niet"},1]
[null,null,null,{"$error":"#VALUE!"},null,null,null,{"$f":"_xlfn.XLOOKUP(G60,Postcode!$A$2:$A$2766,Postcode!$D$2:$D$2766,\"postcode klopt niet\",0)","v":"postcode klopt niet"},null,null,null,null,null,null,{"$f":"_xlfn.XLOOKUP(N60,Postcode!$A$2:$A$2766,Postcode!$D$2:$D$2766,\"postcode klopt niet\",0)","v":"postcode klopt niet"},1]
[null,null,null,{"$error":"#VALUE!"},null,null,null,{"$f":"_xlfn.XLOOKUP(G61,Postcode!$A$2:$A$2766,Postcode!$D$2:$D$2766,\"postcode klopt niet\",0)","v":"postcode klopt niet"},null,null,null,null,null,null,{"$f":"_xlfn.XLOOKUP(N61,Postcode!$A$2:$A$2766,Postcode!$D$2:$D$2766,\"postcode klopt niet\",0)","v":"postcode klopt niet"},1]
[null,null,null,{"$error":"#VALUE!"},null,null,null,{"$f":"_xlfn.XLOOKUP(G62,Postcode!$A$2:$A$2766,Postcode!$D$2:$D$2766,\"postcode klopt niet\",0)","v":"postcode klopt niet"},null,null,null,null,null,null,{"$f":"_xlfn.XLOOKUP(N62,Postcode!$A$2:$A$2766,Postcode!$D$2:$D$2766,\"postcode klopt niet\",0)","v":"postcode klopt niet"},1]
[null,null,null,{"$error":"#VALUE!"},null,null,null,{"$f":"_xlfn.XLOOKUP(G63,Postcode!$A$2:$A$2766,Postcode!$D$2:$D$2766,\"postcode klopt niet\",0)","v":"postcode klopt niet"},null,null,null,null,null,null,{"$f":"_xlfn.XLOOKUP(N63,Postcode!$A$2:$A$2766,Postcode!$D$2:$D$2766,\"postcode klopt niet\",0)","v":"postcode klopt niet"},1]
[null,null,null,{"$error":"#VALUE!"},null,null,null,{"$f":"_xlfn.XLOOKUP(G64,Postcode!$A$2:$A$2766,Postcode!$D$2:$D$2766,\"postcode klopt niet\",0)","v":"postcode klopt niet"},null,null,null,null,null,null,{"$f":"_xlfn.XLOOKUP(N64,Postcode!$A$2:$A$2766,Postcode!$D$2:$D$2766,\"postcode klopt niet\",0)","v":"postcode klopt niet"},1]
[null,null,null,{"$error":"#VALUE!"},null,null,null,{"$f":"_xlfn.XLOOKUP(G65,Postcode!$A$2:$A$2766,Postcode!$D$2:$D$2766,\"postcode klopt niet\",0)","v":"postcode klopt niet"},null,null,null,null,null,null,{"$f":"_xlfn.XLOOKUP(N65,Postcode!$A$2:$A$2766,Postcode!$D$2:$D$2766,\"postcode klopt niet\",0)","v":"postcode klopt niet"},1]
[null,null,null,{"$error":"#VALUE!"},null,null,null,{"$f":"_xlfn.XLOOKUP(G66,Postcode!$A$2:$A$2766,Postcode!$D$2:$D$2766,\"postcode klopt niet\",0)","v":"postcode klopt niet"},null,null,null,null,null,null,{"$f":"_xlfn.XLOOKUP(N66,Postcode!$A$2:$A$2766,Postcode!$D$2:$D$2766,\"postcode klopt niet\",0)","v":"postcode klopt niet"},1]
[null,null,null,{"$f":"DATE((IF(VALUE((RIGHT(SUBSTITUTE(SUBSTITUTE(C67,\".\",\"\"),\"-\",\"\"),2)))=(97-(MOD(LEFT(SUBSTITUTE(SUBSTITUTE(C67,\".\",\"\"),\"-\",\"\"),9),97))),1900+(LEFT(SUBSTITUTE(SUBSTITUTE(C67,\".\",\"\"),\"-\",\"\"),2)),2000+(LEFT(SUBSTITUTE(SUBSTITUTE(C67,\".\",\"\"),\"-\",\"\"),2)))),(MID(SUBSTITUTE(SUBSTITUTE(C67,\".\",\"\"),\"-\",\"\"),3,2)),(MID(SUBSTITUTE(SUBSTITUTE(C67,\".\",\"\"),\"-\",\"\"),5,2)))","v":{"$error":"#VALUE!"}},null,null,null,{"$f":"_xlfn.XLOOKUP(G67,Postcode!$A$2:$A$2766,Postcode!$D$2:$D$2766,\"postcode klopt niet\",0)","v":"postcode klopt niet"},null,null,null,null,null,null,{"$f":"_xlfn.XLOOKUP(N67,Postcode!$A$2:$A$2766,Postcode!$D$2:$D$2766,\"postcode klopt niet\",0)","v":"postcode klopt niet"},1]
[null,null,null,{"$error":"#VALUE!"},null,null,null,{"$f":"_xlfn.XLOOKUP(G68,Postcode!$A$2:$A$2766,Postcode!$D$2:$D$2766,\"postcode klopt niet\",0)","v":"postcode klopt niet"},null,null,null,null,null,null,{"$f":"_xlfn.XLOOKUP(N68,Postcode!$A$2:$A$2766,Postcode!$D$2:$D$2766,\"postcode klopt niet\",0)","v":"postcode klopt niet"},1]
[null,null,null,{"$error":"#VALUE!"},null,null,null,{"$f":"_xlfn.XLOOKUP(G69,Postcode!$A$2:$A$2766,Postcode!$D$2:$D$2766,\"postcode klopt niet\",0)","v":"postcode klopt niet"},null,null,null,null,null,null,{"$f":"_xlfn.XLOOKUP(N69,Postcode!$A$2:$A$2766,Postcode!$D$2:$D$2766,\"postcode klopt niet\",0)","v":"postcode klopt niet"},{"$f":"COUNTA(A69,B69,D69,G69)","v":1}]
[null,null,null,{"$error":"#VALUE!"},null,null,null,{"$f":"_xlfn.XLOOKUP(G70,Postcode!$A$2:$A$2766,Postcode!$D$2:$D$2766,\"postcode klopt niet\",0)","v":"postcode klopt niet"},null,null,null,null,null,null,{"$f":"_xlfn.XLOOKUP(N70,Postcode!$A$2:$A$2766,Postcode!$D$2:$D$2766,\"postcode klopt niet\",0)","v":"postcode klopt niet"},1]
[null,null,null,{"$error":"#VALUE!"},null,null,null,{"$f":"_xlfn.XLOOKUP(G71,Postcode!$A$2:$A$2766,Postcode!$D$2:$D$2766,\"postcode klopt niet\",0)","v":"postcode klopt niet"},null,null,null,null,null,null,{"$f":"_xlfn.XLOOKUP(N71,Postcode!$A$2:$A$2766,Postcode!$D$2:$D$2766,\"postcode klopt niet\",0)","v":"postcode klopt niet"},1]
[null,null,null,{"$error":"#VALUE!"},null,null,null,{"$f":"_xlfn.XLOOKUP(G72,Postcode!$A$2:$A$2766,Postcode!$D$2:$D$2766,\"postcode klopt niet\",0)","v":"postcode klopt niet"},null,null,null,null,null,null,{"$f":"_xlfn.XLOOKUP(N72,Postcode!$A$2:$A$2766,Postcode!$D$2:$D$2766,\"postcode klopt niet\",0)","v":"postcode klopt niet"},1]
[null,null,null,{"$error":"#VALUE!"},null,null,null,{"$f":"_xlfn.XLOOKUP(G73,Postcode!$A$2:$A$2766,Postcode!$D$2:$D$2766,\"postcode klopt niet\",0)","v":"postcode klopt niet"},null,null,null,null,null,null,{"$f":"_xlfn.XLOOKUP(N73,Postcode!$A$2:$A$2766,Postcode!$D$2:$D$2766,\"postcode klopt niet\",0)","v":"postcode klopt niet"},1]
[null,null,null,{"$error":"#VALUE!"},null,null,null,{"$f":"_xlfn.XLOOKUP(G74,Postcode!$A$2:$A$2766,Postcode!$D$2:$D$2766,\"postcode klopt niet\",0)","v":"postcode klopt niet"},null,null,null,null,null,null,{"$f":"_xlfn.XLOOKUP(N74,Postcode!$A$2:$A$2766,Postcode!$D$2:$D$2766,\"postcode klopt niet\",0)","v":"postcode klopt niet"},1]
[null,null,null,{"$error":"#VALUE!"},null,null,null,{"$f":"_xlfn.XLOOKUP(G75,Postcode!$A$2:$A$2766,Postcode!$D$2:$D$2766,\"postcode klopt niet\",0)","v":"postcode klopt niet"},null,null,null,null,null,null,{"$f":"_xlfn.XLOOKUP(N75,Postcode!$A$2:$A$2766,Postcode!$D$2:$D$2766,\"postcode klopt niet\",0)","v":"postcode klopt niet"},1]
[null,null,null,{"$error":"#VALUE!"},null,null,null,{"$f":"_xlfn.XLOOKUP(G76,Postcode!$A$2:$A$2766,Postcode!$D$2:$D$2766,\"postcode klopt niet\",0)","v":"postcode klopt niet"},null,null,null,null,null,null,{"$f":"_xlfn.XLOOKUP(N76,Postcode!$A$2:$A$2766,Postcode!$D$2:$D$2766,\"postcode klopt niet\",0)","v":"postcode klopt niet"},1]
[null,null,null,{"$error":"#VALUE!"},null,null,null,{"$f":"_xlfn.XLOOKUP(G77,Postcode!$A$2:$A$2766,Postcode!$D$2:$D$2766,\"postcode klopt niet\",0)","v":"postcode klopt niet"},null,null,null,null,null,null,{"$f":"_xlfn.XLOOKUP(N77,Postcode!$A$2:$A$2766,Postcode!$D$2:$D$2766,\"postcode klopt niet\",0)","v":"postcode klopt niet"},1]
[null,null,null,{"$error":"#VALUE!"},null,null,null,{"$f":"_xlfn.XLOOKUP(G78,Postcode!$A$2:$A$2766,Postcode!$D$2:$D$2766,\"postcode klopt niet\",0)","v":"postcode klopt niet"},null,null,null,null,null,null,{"$f":"_xlfn.XLOOKUP(N78,Postcode!$A$2:$A$2766,Postcode!$D$2:$D$2766,\"postcode klopt niet\",0)","v":"postcode klopt niet"},1]
[null,null,null,{"$error":"#VALUE!"},null,null,null,{"$f":"_xlfn.XLOOKUP(G79,Postcode!$A$2:$A$2766,Postcode!$D$2:$D$2766,\"postcode klopt niet\",0)","v":"postcode klopt niet"},null,null,null,null,null,null,{"$f":"_xlfn.XLOOKUP(N79,Postcode!$A$2:$A$2766,Postcode!$D$2:$D$2766,\"postcode klopt niet\",0)","v":"postcode klopt niet"},1]
[null,null,null,{"$error":"#VALUE!"},null,null,null,{"$f":"_xlfn.XLOOKUP(G80,Postcode!$A$2:$A$2766,Postcode!$D$2:$D$2766,\"postcode klopt niet\",0)","v":"postcode klopt niet"},null,null,null,null,null,null,{"$f":"_xlfn.XLOOKUP(N80,Postcode!$A$2:$A$2766,Postcode!$D$2:$D$2766,\"postcode klopt niet\",0)","v":"postcode klopt niet"},1]
[null,null,null,{"$error":"#VALUE!"},null,null,null,{"$f":"_xlfn.XLOOKUP(G81,Postcode!$A$2:$A$2766,Postcode!$D$2:$D$2766,\"postcode klopt niet\",0)","v":"postcode klopt niet"},null,null,null,null,null,null,{"$f":"_xlfn.XLOOKUP(N81,Postcode!$A$2:$A$2766,Postcode!$D$2:$D$2766,\"postcode klopt niet\",0)","v":"postcode klopt niet"},1]
[null,null,null,{"$error":"#VALUE!"},null,null,null,{"$f":"_xlfn.XLOOKUP(G82,Postcode!$A$2:$A$2766,Postcode!$D$2:$D$2766,\"postcode klopt niet\",0)","v":"postcode klopt niet"},null,null,null,null,null,null,{"$f":"_xlfn.XLOOKUP(N82,Postcode!$A$2:$A$2766,Postcode!$D$2:$D$2766,\"postcode klopt niet\",0)","v":"postcode klopt niet"},1]
[null,null,null,{"$error":"#VALUE!"},null,null,null,{"$f":"_xlfn.XLOOKUP(G83,Postcode!$A$2:$A$2766,Postcode!$D$2:$D$2766,\"postcode klopt niet\",0)","v":"postcode klopt niet"},null,null,null,null,null,null,{"$f":"_xlfn.XLOOKUP(N83,Postcode!$A$2:$A$2766,Postcode!$D$2:$D$2766,\"postcode klopt niet\",0)","v":"postcode klopt niet"},1]
[null,null,null,{"$error":"#VALUE!"},null,null,null,{"$f":"_xlfn.XLOOKUP(G84,Postcode!$A$2:$A$2766,Postcode!$D$2:$D$2766,\"postcode klopt niet\",0)","v":"postcode klopt niet"},null,null,null,null,null,null,{"$f":"_xlfn.XLOOKUP(N84,Postcode!$A$2:$A$2766,Postcode!$D$2:$D$2766,\"postcode klopt niet\",0)","v":"postcode klopt niet"},1]
[null,null,null,{"$error":"#VALUE!"},null,null,null,{"$f":"_xlfn.XLOOKUP(G85,Postcode!$A$2:$A$2766,Postcode!$D$2:$D$2766,\"postcode klopt niet\",0)","v":"postcode klopt niet"},null,null,null,null,null,null,{"$f":"_xlfn.XLOOKUP(N85,Postcode!$A$2:$A$2766,Postcode!$D$2:$D$2766,\"postcode klopt niet\",0)","v":"postcode klopt niet"},1]
[null,null,null,{"$error":"#VALUE!"},null,null,null,{"$f":"_xlfn.XLOOKUP(G86,Postcode!$A$2:$A$2766,Postcode!$D$2:$D$2766,\"postcode klopt niet\",0)","v":"postcode klopt niet"},null,null,null,null,null,null,{"$f":"_xlfn.XLOOKUP(N86,Postcode!$A$2:$A$2766,Postcode!$D$2:$D$2766,\"postcode klopt niet\",0)","v":"postcode klopt niet"},1]
[null,null,null,{"$error":"#VALUE!"},null,null,null,{"$f":"_xlfn.XLOOKUP(G87,Postcode!$A$2:$A$2766,Postcode!$D$2:$D$2766,\"postcode klopt niet\",0)","v":"postcode klopt niet"},null,null,null,null,null,null,{"$f":"_xlfn.XLOOKUP(N87,Postcode!$A$2:$A$2766,Postcode!$D$2:$D$2766,\"postcode klopt niet\",0)","v":"postcode klopt niet"},1]
[null,null,null,{"$error":"#VALUE!"},null,null,null,{"$f":"_xlfn.XLOOKUP(G88,Postcode!$A$2:$A$2766,Postcode!$D$2:$D$2766,\"postcode klopt niet\",0)","v":"postcode klopt niet"},null,null,null,null,null,null,{"$f":"_xlfn.XLOOKUP(N88,Postcode!$A$2:$A$2766,Postcode!$D$2:$D$2766,\"postcode klopt niet\",0)","v":"postcode klopt niet"},1]
[null,null,null,{"$error":"#VALUE!"},null,null,null,{"$f":"_xlfn.XLOOKUP(G89,Postcode!$A$2:$A$2766,Postcode!$D$2:$D$2766,\"postcode klopt niet\",0)","v":"postcode klopt niet"},null,null,null,null,null,null,{"$f":"_xlfn.XLOOKUP(N89,Postcode!$A$2:$A$2766,Postcode!$D$2:$D$2766,\"postcode klopt niet\",0)","v":"postcode klopt niet"},1]
[null,null,null,{"$error":"#VALUE!"},null,null,null,{"$f":"_xlfn.XLOOKUP(G90,Postcode!$A$2:$A$2766,Postcode!$D$2:$D$2766,\"postcode klopt niet\",0)","v":"postcode klopt niet"},null,null,null,null,null,null,{"$f":"_xlfn.XLOOKUP(N90,Postcode!$A$2:$A$2766,Postcode!$D$2:$D$2766,\"postcode klopt niet\",0)","v":"postcode klopt niet"},1]
[null,null,null,{"$error":"#VALUE!"},null,null,null,{"$f":"_xlfn.XLOOKUP(G91,Postcode!$A$2:$A$2766,Postcode!$D$2:$D$2766,\"postcode klopt niet\",0)","v":"postcode klopt niet"},null,null,null,null,null,null,{"$f":"_xlfn.XLOOKUP(N91,Postcode!$A$2:$A$2766,Postcode!$D$2:$D$2766,\"postcode klopt niet\",0)","v":"postcode klopt niet"},1]
[null,null,null,{"$error":"#VALUE!"},null,null,null,{"$f":"_xlfn.XLOOKUP(G92,Postcode!$A$2:$A$2766,Postcode!$D$2:$D$2766,\"postcode klopt niet\",0)","v":"postcode klopt niet"},null,null,null,null,null,null,{"$f":"_xlfn.XLOOKUP(N92,Postcode!$A$2:$A$2766,Postcode!$D$2:$D$2766,\"postcode klopt niet\",0)","v":"postcode klopt niet"},1]
[null,null,null,{"$error":"#VALUE!"},null,null,null,{"$f":"_xlfn.XLOOKUP(G93,Postcode!$A$2:$A$2766,Postcode!$D$2:$D$2766,\"postcode klopt niet\",0)","v":"postcode klopt niet"},null,null,null,null,null,null,{"$f":"_xlfn.XLOOKUP(N93,Postcode!$A$2:$A$2766,Postcode!$D$2:$D$2766,\"postcode klopt niet\",0)","v":"postcode klopt niet"},1]
[null,null,null,{"$error":"#VALUE!"},null,null,null,{"$f":"_xlfn.XLOOKUP(G94,Postcode!$A$2:$A$2766,Postcode!$D$2:$D$2766,\"postcode klopt niet\",0)","v":"postcode klopt niet"},null,null,null,null,null,null,{"$f":"_xlfn.XLOOKUP(N94,Postcode!$A$2:$A$2766,Postcode!$D$2:$D$2766,\"postcode klopt niet\",0)","v":"postcode klopt niet"},1]
[null,null,null,{"$f":"DATE((IF(VALUE((RIGHT(SUBSTITUTE(SUBSTITUTE(C95,\".\",\"\"),\"-\",\"\"),2)))=(97-(MOD(LEFT(SUBSTITUTE(SUBSTITUTE(C95,\".\",\"\"),\"-\",\"\"),9),97))),1900+(LEFT(SUBSTITUTE(SUBSTITUTE(C95,\".\",\"\"),\"-\",\"\"),2)),2000+(LEFT(SUBSTITUTE(SUBSTITUTE(C95,\".\",\"\"),\"-\",\"\"),2)))),(MID(SUBSTITUTE(SUBSTITUTE(C95,\".\",\"\"),\"-\",\"\"),3,2)),(MID(SUBSTITUTE(SUBSTITUTE(C95,\".\",\"\"),\"-\",\"\"),5,2)))","v":{"$error":"#VALUE!"}},null,null,null,{"$f":"_xlfn.XLOOKUP(G95,Postcode!$A$2:$A$2766,Postcode!$D$2:$D$2766,\"postcode klopt niet\",0)","v":"postcode klopt niet"},null,null,null,null,null,null,{"$f":"_xlfn.XLOOKUP(N95,Postcode!$A$2:$A$2766,Postcode!$D$2:$D$2766,\"postcode klopt niet\",0)","v":"postcode klopt niet"},1]
[null,null,null,{"$error":"#VALUE!"},null,null,null,{"$f":"_xlfn.XLOOKUP(G96,Postcode!$A$2:$A$2766,Postcode!$D$2:$D$2766,\"postcode klopt niet\",0)","v":"postcode klopt niet"},null,null,null,null,null,null,{"$f":"_xlfn.XLOOKUP(N96,Postcode!$A$2:$A$2766,Postcode!$D$2:$D$2766,\"postcode klopt niet\",0)","v":"postcode klopt niet"},1]
[null,null,null,{"$error":"#VALUE!"},null,null,null,{"$f":"_xlfn.XLOOKUP(G97,Postcode!$A$2:$A$2766,Postcode!$D$2:$D$2766,\"postcode klopt niet\",0)","v":"postcode klopt niet"},null,null,null,null,null,null,{"$f":"_xlfn.XLOOKUP(N97,Postcode!$A$2:$A$2766,Postcode!$D$2:$D$2766,\"postcode klopt niet\",0)","v":"postcode klopt niet"},1]
[null,null,null,{"$error":"#VALUE!"},null,null,null,{"$f":"_xlfn.XLOOKUP(G98,Postcode!$A$2:$A$2766,Postcode!$D$2:$D$2766,\"postcode klopt niet\",0)","v":"postcode klopt niet"},null,null,null,null,null,null,{"$f":"_xlfn.XLOOKUP(N98,Postcode!$A$2:$A$2766,Postcode!$D$2:$D$2766,\"postcode klopt niet\",0)","v":"postcode klopt niet"},1]
[null,null,null,{"$error":"#VALUE!"},null,null,null,{"$f":"_xlfn.XLOOKUP(G99,Postcode!$A$2:$A$2766,Postcode!$D$2:$D$2766,\"postcode klopt niet\",0)","v":"postcode klopt niet"},null,null,null,null,null,null,{"$f":"_xlfn.XLOOKUP(N99,Postcode!$A$2:$A$2766,Postcode!$D$2:$D$2766,\"postcode klopt niet\",0)","v":"postcode klopt niet"},1]
[null,null,null,{"$error":"#VALUE!"},null,null,null,{"$f":"_xlfn.XLOOKUP(G100,Postcode!$A$2:$A$2766,Postcode!$D$2:$D$2766,\"postcode klopt niet\",0)","v":"postcode klopt niet"},null,null,null,null,null,null,{"$f":"_xlfn.XLOOKUP(N100,Postcode!$A$2:$A$2766,Postcode!$D$2:$D$2766,\"postcode klopt niet\",0)","v":"postcode klopt niet"},1]
[null,null,null,{"$error":"#VALUE!"},null,null,null,{"$f":"_xlfn.XLOOKUP(G101,Postcode!$A$2:$A$2766,Postcode!$D$2:$D$2766,\"postcode klopt niet\",0)","v":"postcode klopt niet"},null,null,null,null,null,null,{"$f":"_xlfn.XLOOKUP(N101,Postcode!$A$2:$A$2766,Postcode!$D$2:$D$2766,\"postcode klopt niet\",0)","v":"postcode klopt niet"},1]
[null,null,null,{"$error":"#VALUE!"},null,null,null,{"$f":"_xlfn.XLOOKUP(G102,Postcode!$A$2:$A$2766,Postcode!$D$2:$D$2766,\"postcode klopt niet\",0)","v":"postcode klopt niet"},null,null,null,null,null,null,{"$f":"_xlfn.XLOOKUP(N102,Postcode!$A$2:$A$2766,Postcode!$D$2:$D$2766,\"postcode klopt niet\",0)","v":"postcode klopt niet"},1]

{"sheet":"niet gebruikt 1","index":3,"n_rows":109,"n_cols":16,"rows_kept":109,"cut":false,"hidden":false,"merged":[[0,0,0,7],[0,8,0,14]]}
["Gegevens Lid",null,null,null,null,null,null,null,"Gegevens Ouder/Voogd ( in geval van gescheiden ouders, degene die betaalt)",null,null,null,null,null,null,{"$f":"Algemeen!B5","v":"niet gebruikt 1"}]
["Naam","Voornaam","Rijksregisternr° (00.00.00-000.00)","Geboortedatum","Straat","Nr°/Bus","Postcode","Gemeente","Naam","Voornaam","Rijksregisternr° (00.00.00-000.00)","Straat","Nr°/Bus","Postcode","Gemeente","Controle"]
["vb. Evenepoel","vb. Remco","93.04.07-131.88",{"$f":"DATE((IF(VALUE((RIGHT(SUBSTITUTE(SUBSTITUTE(C3,\".\",\"\"),\"-\",\"\"),2)))=(97-(MOD(LEFT(SUBSTITUTE(SUBSTITUTE(C3,\".\",\"\"),\"-\",\"\"),9),97))),1900+(LEFT(SUBSTITUTE(SUBSTITUTE(C3,\".\",\"\"),\"-\",\"\"),2)),2000+(LEFT(SUBSTITUTE(SUBSTITUTE(C3,\".\",\"\"),\"-\",\"\"),2)))),(MID(SUBSTITUTE(SUBSTITUTE(C3,\".\",\"\"),\"-\",\"\"),3,2)),(MID(SUBSTITUTE(SUBSTITUTE(C3,\".\",\"\"),\"-\",\"\"),5,2)))","v":"1993-04-07"},"Vogelzangstraat","37/3",3540,{"$f":"_xlfn.XLOOKUP(G3,Postcode!$A$2:$A$2766,Postcode!$D$2:$D$2766,\"postcode klopt niet\",0)","v":"HERK-DE-STAD"},"vb. Evenepoel","vb. Patrick","66.03.17-144.48","Parklaan",23,3800,{"$f":"_xlfn.XLOOKUP(N3,Postcode!$A$2:$A$2766,Postcode!$D$2:$D$2766,\"postcode klopt niet\",0)","v":"SINT-TRUIDEN"}]
[null,null,null,{"$error":"#VALUE!"},null,null,null,{"$f":"_xlfn.XLOOKUP(G4,Postcode!$A$2:$A$2766,Postcode!$D$2:$D$2766,\"postcode klopt niet\",0)","v":"postcode klopt niet"},null,null,null,null,null,null,{"$f":"_xlfn.XLOOKUP(N4,Postcode!$A$2:$A$2766,Postcode!$D$2:$D$2766,\"postcode klopt niet\",0)","v":"postcode klopt niet"},{"$f":"COUNTA(A4,B4,D4,G4)","v":1}]
[null,null,null,{"$error":"#VALUE!"},null,null,null,{"$f":"_xlfn.XLOOKUP(G5,Postcode!$A$2:$A$2766,Postcode!$D$2:$D$2766,\"postcode klopt niet\",0)","v":"postcode klopt niet"},null,null,null,null,null,null,{"$f":"_xlfn.XLOOKUP(N5,Postcode!$A$2:$A$2766,Postcode!$D$2:$D$2766,\"postcode klopt niet\",0)","v":"postcode klopt niet"},{"$f":"COUNTA(A5,B5,D5,G5)","v":1}]
[null,null,null,{"$error":"#VALUE!"},null,null,null,{"$f":"_xlfn.XLOOKUP(G6,Postcode!$A$2:$A$2766,Postcode!$D$2:$D$2766,\"postcode klopt niet\",0)","v":"postcode klopt niet"},null,null,null,null,null,null,{"$f":"_xlfn.XLOOKUP(N6,Postcode!$A$2:$A$2766,Postcode!$D$2:$D$2766,\"postcode klopt niet\",0)","v":"postcode klopt niet"},1]
[null,null,null,{"$error":"#VALUE!"},null,null,null,{"$f":"_xlfn.XLOOKUP(G7,Postcode!$A$2:$A$2766,Postcode!$D$2:$D$2766,\"postcode klopt niet\",0)","v":"postcode klopt niet"},null,null,null,null,null,null,{"$f":"_xlfn.XLOOKUP(N7,Postcode!$A$2:$A$2766,Postcode!$D$2:$D$2766,\"postcode klopt niet\",0)","v":"postcode klopt niet"},1]
[null,null,null,{"$error":"#VALUE!"},null,null,null,{"$f":"_xlfn.XLOOKUP(G8,Postcode!$A$2:$A$2766,Postcode!$D$2:$D$2766,\"postcode klopt niet\",0)","v":"postcode klopt niet"},null,null,null,null,null,null,{"$f":"_xlfn.XLOOKUP(N8,Postcode!$A$2:$A$2766,Postcode!$D$2:$D$2766,\"postcode klopt niet\",0)","v":"postcode klopt niet"},1]
[null,null,null,{"$error":"#VALUE!"},null,null,null,{"$f":"_xlfn.XLOOKUP(G9,Postcode!$A$2:$A$2766,Postcode!$D$2:$D$2766,\"postcode klopt niet\",0)","v":"postcode klopt niet"},null,null,null,null,null,null,{"$f":"_xlfn.XLOOKUP(N9,Postcode!$A$2:$A$2766,Postcode!$D$2:$D$2766,\"postcode klopt niet\",0)","v":"postcode klopt niet"},1]
[null,null,null,{"$error":"#VALUE!"},null,null,null,{"$f":"_xlfn.XLOOKUP(G10,Postcode!$A$2:$A$2766,Postcode!$D$2:$D$2766,\"postcode klopt niet\",0)","v":"postcode klopt niet"},null,null,null,null,null,null,{"$f":"_xlfn.XLOOKUP(N10,Postcode!$A$2:$A$2766,Postcode!$D$2:$D$2766,\"postcode klopt niet\",0)","v":"postcode klopt niet"},1]
[null,null,null,{"$error":"#VALUE!"},null,null,null,{"$f":"_xlfn.XLOOKUP(G11,Postcode!$A$2:$A$2766,Postcode!$D$2:$D$2766,\"postcode klopt niet\",0)","v":"postcode klopt niet"},null,null,null,null,null,null,{"$f":"_xlfn.XLOOKUP(N11,Postcode!$A$2:$A$2766,Postcode!$D$2:$D$2766,\"postcode klopt niet\",0)","v":"postcode klopt niet"},1]
[null,null,null,{"$error":"#VALUE!"},null,null,null,{"$f":"_xlfn.XLOOKUP(G12,Postcode!$A$2:$A$2766,Postcode!$D$2:$D$2766,\"postcode klopt niet\",0)","v":"postcode klopt niet"},null,null,null,null,null,null,{"$f":"_xlfn.XLOOKUP(N12,Postcode!$A$2:$A$2766,Postcode!$D$2:$D$2766,\"postcode klopt niet\",0)","v":"postcode klopt niet"},1]
[null,null,null,{"$error":"#VALUE!"},null,null,null,{"$f":"_xlfn.XLOOKUP(G13,Postcode!$A$2:$A$2766,Postcode!$D$2:$D$2766,\"postcode klopt niet\",0)","v":"postcode klopt niet"},null,null,null,null,null,null,{"$f":"_xlfn.XLOOKUP(N13,Postcode!$A$2:$A$2766,Postcode!$D$2:$D$2766,\"postcode klopt niet\",0)","v":"postcode klopt niet"},1]
[null,null,null,{"$error":"#VALUE!"},null,null,null,{"$f":"_xlfn.XLOOKUP(G14,Postcode!$A$2:$A$2766,Postcode!$D$2:$D$2766,\"postcode klopt niet\",0)","v":"postcode klopt niet"},null,null,null,null,null,null,{"$f":"_xlfn.XLOOKUP(N14,Postcode!$A$2:$A$2766,Postcode!$D$2:$D$2766,\"postcode klopt niet\",0)","v":"postcode klopt niet"},1]
[null,null,null,{"$error":"#VALUE!"},null,null,null,{"$f":"_xlfn.XLOOKUP(G15,Postcode!$A$2:$A$2766,Postcode!$D$2:$D$2766,\"postcode klopt niet\",0)","v":"postcode klopt niet"},null,null,null,null,null,null,{"$f":"_xlfn.XLOOKUP(N15,Postcode!$A$2:$A$2766,Postcode!$D$2:$D$2766,\"postcode klopt niet\",0)","v":"postcode klopt niet"},1]
[null,null,null,{"$error":"#VALUE!"},null,null,null,{"$f":"_xlfn.XLOOKUP(G16,Postcode!$A$2:$A$2766,Postcode!$D$2:$D$2766,\"postcode klopt niet\",0)","v":"postcode klopt niet"},null,null,null,null,null,null,{"$f":"_xlfn.XLOOKUP(N16,Postcode!$A$2:$A$2766,Postcode!$D$2:$D$2766,\"postcode klopt niet\",0)","v":"postcode klopt niet"},1]
[null,null,null,{"$f":"DATE((IF(VALUE((RIGHT(SUBSTITUTE(SUBSTITUTE(C17,\".\",\"\"),\"-\",\"\"),2)))=(97-(MOD(LEFT(SUBSTITUTE(SUBSTITUTE(C17,\".\",\"\"),\"-\",\"\"),9),97))),1900+(LEFT(SUBSTITUTE(SUBSTITUTE(C17,\".\",\"\"),\"-\",\"\"),2)),2000+(LEFT(SUBSTITUTE(SUBSTITUTE(C17,\".\",\"\"),\"-\",\"\"),2)))),(MID(SUBSTITUTE(SUBSTITUTE(C17,\".\",\"\"),\"-\",\"\"),3,2)),(MID(SUBSTITUTE(SUBSTITUTE(C17,\".\",\"\"),\"-\",\"\"),5,2)))","v":{"$error":"#VALUE!"}},null,null,null,{"$f":"_xlfn.XLOOKUP(G17,Postcode!$A$2:$A$2766,Postcode!$D$2:$D$2766,\"postcode klopt niet\",0)","v":"postcode klopt niet"},null,null,null,null,null,null,{"$f":"_xlfn.XLOOKUP(N17,Postcode!$A$2:$A$2766,Postcode!$D$2:$D$2766,\"postcode klopt niet\",0)","v":"postcode klopt niet"},1]
[null,null,null,{"$error":"#VALUE!"},null,null,null,{"$f":"_xlfn.XLOOKUP(G18,Postcode!$A$2:$A$2766,Postcode!$D$2:$D$2766,\"postcode klopt niet\",0)","v":"postcode klopt niet"},null,null,null,null,null,null,{"$f":"_xlfn.XLOOKUP(N18,Postcode!$A$2:$A$2766,Postcode!$D$2:$D$2766,\"postcode klopt niet\",0)","v":"postcode klopt niet"},1]
[null,null,null,{"$error":"#VALUE!"},null,null,null,{"$f":"_xlfn.XLOOKUP(G19,Postcode!$A$2:$A$2766,Postcode!$D$2:$D$2766,\"postcode klopt niet\",0)","v":"postcode klopt niet"},null,null,null,null,null,null,{"$f":"_xlfn.XLOOKUP(N19,Postcode!$A$2:$A$2766,Postcode!$D$2:$D$2766,\"postcode klopt niet\",0)","v":"postcode klopt niet"},1]
[null,null,null,{"$error":"#VALUE!"},null,null,null,{"$f":"_xlfn.XLOOKUP(G20,Postcode!$A$2:$A$2766,Postcode!$D$2:$D$2766,\"postcode klopt niet\",0)","v":"postcode klopt niet"},null,null,null,null,null,null,{"$f":"_xlfn.XLOOKUP(N20,Postcode!$A$2:$A$2766,Postcode!$D$2:$D$2766,\"postcode klopt niet\",0)","v":"postcode klopt niet"},1]
[null,null,null,{"$error":"#VALUE!"},null,null,null,{"$f":"_xlfn.XLOOKUP(G21,Postcode!$A$2:$A$2766,Postcode!$D$2:$D$2766,\"postcode klopt niet\",0)","v":"postcode klopt niet"},null,null,null,null,null,null,{"$f":"_xlfn.XLOOKUP(N21,Postcode!$A$2:$A$2766,Postcode!$D$2:$D$2766,\"postcode klopt niet\",0)","v":"postcode klopt niet"},1]
[null,null,null,{"$error":"#VALUE!"},null,null,null,{"$f":"_xlfn.XLOOKUP(G22,Postcode!$A$2:$A$2766,Postcode!$D$2:$D$2766,\"postcode klopt niet\",0)","v":"postcode klopt niet"},null,null,null,null,null,null,{"$f":"_xlfn.XLOOKUP(N22,Postcode!$A$2:$A$2766,Postcode!$D$2:$D$2766,\"postcode klopt niet\",0)","v":"postcode klopt niet"},1]
[null,null,null,{"$error":"#VALUE!"},null,null,null,{"$f":"_xlfn.XLOOKUP(G23,Postcode!$A$2:$A$2766,Postcode!$D$2:$D$2766,\"postcode klopt niet\",0)","v":"postcode klopt niet"},null,null,null,null,null,null,{"$f":"_xlfn.XLOOKUP(N23,Postcode!$A$2:$A$2766,Postcode!$D$2:$D$2766,\"postcode klopt niet\",0)","v":"postcode klopt niet"},1]
[null,null,null,{"$error":"#VALUE!"},null,null,null,{"$f":"_xlfn.XLOOKUP(G24,Postcode!$A$2:$A$2766,Postcode!$D$2:$D$2766,\"postcode klopt niet\",0)","v":"postcode klopt niet"},null,null,null,null,null,null,{"$f":"_xlfn.XLOOKUP(N24,Postcode!$A$2:$A$2766,Postcode!$D$2:$D$2766,\"postcode klopt niet\",0)","v":"postcode klopt niet"},1]
[null,null,null,{"$error":"#VALUE!"},null,null,null,{"$f":"_xlfn.XLOOKUP(G25,Postcode!$A$2:$A$2766,Postcode!$D$2:$D$2766,\"postcode klopt niet\",0)","v":"postcode klopt niet"},null,null,null,null,null,null,{"$f":"_xlfn.XLOOKUP(N25,Postcode!$A$2:$A$2766,Postcode!$D$2:$D$2766,\"postcode klopt niet\",0)","v":"postcode klopt niet"},1]
[null,null,null,{"$error":"#VALUE!"},null,null,null,{"$f":"_xlfn.XLOOKUP(G26,Postcode!$A$2:$A$2766,Postcode!$D$2:$D$2766,\"postcode klopt niet\",0)","v":"postcode klopt niet"},null,null,null,null,null,null,{"$f":"_xlfn.XLOOKUP(N26,Postcode!$A$2:$A$2766,Postcode!$D$2:$D$2766,\"postcode klopt niet\",0)","v":"postcode klopt niet"},1]
[null,null,null,{"$error":"#VALUE!"},null,null,null,{"$f":"_xlfn.XLOOKUP(G27,Postcode!$A$2:$A$2766,Postcode!$D$2:$D$2766,\"postcode klopt niet\",0)","v":"postcode klopt niet"},null,null,null,null,null,null,{"$f":"_xlfn.XLOOKUP(N27,Postcode!$A$2:$A$2766,Postcode!$D$2:$D$2766,\"postcode klopt niet\",0)","v":"postcode klopt niet"},1]
[null,null,null,{"$error":"#VALUE!"},null,null,null,{"$f":"_xlfn.XLOOKUP(G28,Postcode!$A$2:$A$2766,Postcode!$D$2:$D$2766,\"postcode klopt niet\",0)","v":"postcode klopt niet"},null,null,null,null,null,null,{"$f":"_xlfn.XLOOKUP(N28,Postcode!$A$2:$A$2766,Postcode!$D$2:$D$2766,\"postcode klopt niet\",0)","v":"postcode klopt niet"},1]
[null,null,null,{"$error":"#VALUE!"},null,null,null,{"$f":"_xlfn.XLOOKUP(G29,Postcode!$A$2:$A$2766,Postcode!$D$2:$D$2766,\"postcode klopt niet\",0)","v":"postcode klopt niet"},null,null,null,null,null,null,{"$f":"_xlfn.XLOOKUP(N29,Postcode!$A$2:$A$2766,Postcode!$D$2:$D$2766,\"postcode klopt niet\",0)","v":"postcode klopt niet"},1]
[null,null,null,{"$error":"#VALUE!"},null,null,null,{"$f":"_xlfn.XLOOKUP(G30,Postcode!$A$2:$A$2766,Postcode!$D$2:$D$2766,\"postcode klopt niet\",0)","v":"postcode klopt niet"},null,null,null,null,null,null,{"$f":"_xlfn.XLOOKUP(N30,Postcode!$A$2:$A$2766,Postcode!$D$2:$D$2766,\"postcode klopt niet\",0)","v":"postcode klopt niet"},1]
[null,null,null,{"$error":"#VALUE!"},null,null,null,{"$f":"_xlfn.XLOOKUP(G31,Postcode!$A$2:$A$2766,Postcode!$D$2:$D$2766,\"postcode klopt niet\",0)","v":"postcode klopt niet"},null,null,null,null,null,null,{"$f":"_xlfn.XLOOKUP(N31,Postcode!$A$2:$A$2766,Postcode!$D$2:$D$2766,\"postcode klopt niet\",0)","v":"postcode klopt niet"},1]
[null,null,null,{"$error":"#VALUE!"},null,null,null,{"$f":"_xlfn.XLOOKUP(G32,Postcode!$A$2:$A$2766,Postcode!$D$2:$D$2766,\"postcode klopt niet\",0)","v":"postcode klopt niet"},null,null,null,null,null,null,{"$f":"_xlfn.XLOOKUP(N32,Postcode!$A$2:$A$2766,Postcode!$D$2:$D$2766,\"postcode klopt niet\",0)","v":"postcode klopt niet"},1]
[null,null,null,{"$error":"#VALUE!"},null,null,null,{"$f":"_xlfn.XLOOKUP(G33,Postcode!$A$2:$A$2766,Postcode!$D$2:$D$2766,\"postcode klopt niet\",0)","v":"postcode klopt niet"},null,null,null,null,null,null,{"$f":"_xlfn.XLOOKUP(N33,Postcode!$A$2:$A$2766,Postcode!$D$2:$D$2766,\"postcode klopt niet\",0)","v":"postcode klopt niet"},1]
[null,null,null,{"$error":"#VALUE!"},null,null,null,{"$f":"_xlfn.XLOOKUP(G34,Postcode!$A$2:$A$2766,Postcode!$D$2:$D$2766,\"postcode klopt niet\",0)","v":"postcode klopt niet"},null,null,null,null,null,null,{"$f":"_xlfn.XLOOKUP(N34,Postcode!$A$2:$A$2766,Postcode!$D$2:$D$2766,\"postcode klopt niet\",0)","v":"postcode klopt niet"},1]
[null,null,null,{"$error":"#VALUE!"},null,null,null,{"$f":"_xlfn.XLOOKUP(G35,Postcode!$A$2:$A$2766,Postcode!$D$2:$D$2766,\"postcode klopt niet\",0)","v":"postcode klopt niet"},null,null,null,null,null,null,{"$f":"_xlfn.XLOOKUP(N35,Postcode!$A$2:$A$2766,Postcode!$D$2:$D$2766,\"postcode klopt niet\",0)","v":"postcode klopt niet"},1]
[null,null,null,{"$error":"#VALUE!"},null,null,null,{"$f":"_xlfn.XLOOKUP(G36,Postcode!$A$2:$A$2766,Postcode!$D$2:$D$2766,\"postcode klopt niet\",0)","v":"postcode klopt niet"},null,null,null,null,null,null,{"$f":"_xlfn.XLOOKUP(N36,Postcode!$A$2:$A$2766,Postcode!$D$2:$D$2766,\"postcode klopt niet\",0)","v":"postcode klopt niet"},1]
[null,null,null,{"$error":"#VALUE!"},null,null,null,{"$f":"_xlfn.XLOOKUP(G37,Postcode!$A$2:$A$2766,Postcode!$D$2:$D$2766,\"postcode klopt niet\",0)","v":"postcode klopt niet"},null,null,null,null,null,null,{"$f":"_xlfn.XLOOKUP(N37,Postcode!$A$2:$A$2766,Postcode!$D$2:$D$2766,\"postcode klopt niet\",0)","v":"postcode klopt niet"},1]
[null,null,null,{"$error":"#VALUE!"},null,null,null,{"$f":"_xlfn.XLOOKUP(G38,Postcode!$A$2:$A$2766,Postcode!$D$2:$D$2766,\"postcode klopt niet\",0)","v":"postcode klopt niet"},null,null,null,null,null,null,{"$f":"_xlfn.XLOOKUP(N38,Postcode!$A$2:$A$2766,Postcode!$D$2:$D$2766,\"postcode klopt niet\",0)","v":"postcode klopt niet"},1]
[null,null,null,{"$error":"#VALUE!"},null,null,null,{"$f":"_xlfn.XLOOKUP(G39,Postcode!$A$2:$A$2766,Postcode!$D$2:$D$2766,\"postcode klopt niet\",0)","v":"postcode klopt niet"},null,null,null,null,null,null,{"$f":"_xlfn.XLOOKUP(N39,Postcode!$A$2:$A$2766,Postcode!$D$2:$D$2766,\"postcode klopt niet\",0)","v":"postcode klopt niet"},1]
[null,null,null,{"$error":"#VALUE!"},null,null,null,{"$f":"_xlfn.XLOOKUP(G40,Postcode!$A$2:$A$2766,Postcode!$D$2:$D$2766,\"postcode klopt niet\",0)","v":"postcode klopt niet"},null,null,null,null,null,null,{"$f":"_xlfn.XLOOKUP(N40,Postcode!$A$2:$A$2766,Postcode!$D$2:$D$2766,\"postcode klopt niet\",0)","v":"postcode klopt niet"},1]
[null,null,null,{"$error":"#VALUE!"},null,null,null,{"$f":"_xlfn.XLOOKUP(G41,Postcode!$A$2:$A$2766,Postcode!$D$2:$D$2766,\"postcode klopt niet\",0)","v":"postcode klopt niet"},null,null,null,null,null,null,{"$f":"_xlfn.XLOOKUP(N41,Postcode!$A$2:$A$2766,Postcode!$D$2:$D$2766,\"postcode klopt niet\",0)","v":"postcode klopt niet"},1]
[null,null,null,{"$error":"#VALUE!"},null,null,null,{"$f":"_xlfn.XLOOKUP(G42,Postcode!$A$2:$A$2766,Postcode!$D$2:$D$2766,\"postcode klopt niet\",0)","v":"postcode klopt niet"},null,null,null,null,null,null,{"$f":"_xlfn.XLOOKUP(N42,Postcode!$A$2:$A$2766,Postcode!$D$2:$D$2766,\"postcode klopt niet\",0)","v":"postcode klopt niet"},1]
[null,null,null,{"$error":"#VALUE!"},null,null,null,{"$f":"_xlfn.XLOOKUP(G43,Postcode!$A$2:$A$2766,Postcode!$D$2:$D$2766,\"postcode klopt niet\",0)","v":"postcode klopt niet"},null,null,null,null,null,null,{"$f":"_xlfn.XLOOKUP(N43,Postcode!$A$2:$A$2766,Postcode!$D$2:$D$2766,\"postcode klopt niet\",0)","v":"postcode klopt niet"},1]
[null,null,null,{"$error":"#VALUE!"},null,null,null,{"$f":"_xlfn.XLOOKUP(G44,Postcode!$A$2:$A$2766,Postcode!$D$2:$D$2766,\"postcode klopt niet\",0)","v":"postcode klopt niet"},null,null,null,null,null,null,{"$f":"_xlfn.XLOOKUP(N44,Postcode!$A$2:$A$2766,Postcode!$D$2:$D$2766,\"postcode klopt niet\",0)","v":"postcode klopt niet"},1]
[null,null,null,{"$error":"#VALUE!"},null,null,null,{"$f":"_xlfn.XLOOKUP(G45,Postcode!$A$2:$A$2766,Postcode!$D$2:$D$2766,\"postcode klopt niet\",0)","v":"postcode klopt niet"},null,null,null,null,null,null,{"$f":"_xlfn.XLOOKUP(N45,Postcode!$A$2:$A$2766,Postcode!$D$2:$D$2766,\"postcode klopt niet\",0)","v":"postcode klopt niet"},1]
[null,null,null,{"$error":"#VALUE!"},null,null,null,{"$f":"_xlfn.XLOOKUP(G46,Postcode!$A$2:$A$2766,Postcode!$D$2:$D$2766,\"postcode klopt niet\",0)","v":"postcode klopt niet"},null,null,null,null,null,null,{"$f":"_xlfn.XLOOKUP(N46,Postcode!$A$2:$A$2766,Postcode!$D$2:$D$2766,\"postcode klopt niet\",0)","v":"postcode klopt niet"},1]
[null,null,null,{"$error":"#VALUE!"},null,null,null,{"$f":"_xlfn.XLOOKUP(G47,Postcode!$A$2:$A$2766,Postcode!$D$2:$D$2766,\"postcode klopt niet\",0)","v":"postcode klopt niet"},null,null,null,null,null,null,{"$f":"_xlfn.XLOOKUP(N47,Postcode!$A$2:$A$2766,Postcode!$D$2:$D$2766,\"postcode klopt niet\",0)","v":"postcode klopt niet"},1]
[null,null,null,{"$error":"#VALUE!"},null,null,null,{"$f":"_xlfn.XLOOKUP(G48,Postcode!$A$2:$A$2766,Postcode!$D$2:$D$2766,\"postcode klopt niet\",0)","v":"postcode klopt niet"},null,null,null,null,null,null,{"$f":"_xlfn.XLOOKUP(N48,Postcode!$A$2:$A$2766,Postcode!$D$2:$D$2766,\"postcode klopt niet\",0)","v":"postcode klopt niet"},1]
[null,null,null,{"$error":"#VALUE!"},null,null,null,{"$f":"_xlfn.XLOOKUP(G49,Postcode!$A$2:$A$2766,Postcode!$D$2:$D$2766,\"postcode klopt niet\",0)","v":"postcode klopt niet"},null,null,null,null,null,null,{"$f":"_xlfn.XLOOKUP(N49,Postcode!$A$2:$A$2766,Postcode!$D$2:$D$2766,\"postcode klopt niet\",0)","v":"postcode klopt niet"},1]
[null,null,null,{"$error":"#VALUE!"},null,null,null,{"$f":"_xlfn.XLOOKUP(G50,Postcode!$A$2:$A$2766,Postcode!$D$2:$D$2766,\"postcode klopt niet\",0)","v":"postcode klopt niet"},null,null,null,null,null,null,{"$f":"_xlfn.XLOOKUP(N50,Postcode!$A$2:$A$2766,Postcode!$D$2:$D$2766,\"postcode klopt niet\",0)","v":"postcode klopt niet"},1]
[null,null,null,{"$error":"#VALUE!"},null,null,null,{"$f":"_xlfn.XLOOKUP(G51,Postcode!$A$2:$A$2766,Postcode!$D$2:$D$2766,\"postcode klopt niet\",0)","v":"postcode klopt niet"},null,null,null,null,null,null,{"$f":"_xlfn.XLOOKUP(N51,Postcode!$A$2:$A$2766,Postcode!$D$2:$D$2766,\"postcode klopt niet\",0)","v":"postcode klopt niet"},1]
[null,null,null,{"$error":"#VALUE!"},null,null,null,{"$f":"_xlfn.XLOOKUP(G52,Postcode!$A$2:$A$2766,Postcode!$D$2:$D$2766,\"postcode klopt niet\",0)","v":"postcode klopt niet"},null,null,null,null,null,null,{"$f":"_xlfn.XLOOKUP(N52,Postcode!$A$2:$A$2766,Postcode!$D$2:$D$2766,\"postcode klopt niet\",0)","v":"postcode klopt niet"},1]
[null,null,null,{"$error":"#VALUE!"},null,null,null,{"$f":"_xlfn.XLOOKUP(G53,Postcode!$A$2:$A$2766,Postcode!$D$2:$D$2766,\"postcode klopt niet\",0)","v":"postcode klopt niet"},null,null,null,null,null,null,{"$f":"_xlfn.XLOOKUP(N53,Postcode!$A$2:$A$2766,Postcode!$D$2:$D$2766,\"postcode klopt niet\",0)","v":"postcode klopt niet"},1]
[null,null,null,{"$error":"#VALUE!"},null,null,null,{"$f":"_xlfn.XLOOKUP(G54,Postcode!$A$2:$A$2766,Postcode!$D$2:$D$2766,\"postcode klopt niet\",0)","v":"postcode klopt niet"},null,null,null,null,null,null,{"$f":"_xlfn.XLOOKUP(N54,Postcode!$A$2:$A$2766,Postcode!$D$2:$D$2766,\"postcode klopt niet\",0)","v":"postcode klopt niet"},1]
[null,null,null,{"$error":"#VALUE!"},null,null,null,{"$f":"_xlfn.XLOOKUP(G55,Postcode!$A$2:$A$2766,Postcode!$D$2:$D$2766,\"postcode klopt niet\",0)","v":"postcode klopt niet"},null,null,null,null,null,null,{"$f":"_xlfn.XLOOKUP(N55,Postcode!$A$2:$A$2766,Postcode!$D$2:$D$2766,\"postcode klopt niet\",0)","v":"postcode klopt niet"},1]
[null,null,null,{"$error":"#VALUE!"},null,null,null,{"$f":"_xlfn.XLOOKUP(G56,Postcode!$A$2:$A$2766,Postcode!$D$2:$D$2766,\"postcode klopt niet\",0)","v":"postcode klopt niet"},null,null,null,null,null,null,{"$f":"_xlfn.XLOOKUP(N56,Postcode!$A$2:$A$2766,Postcode!$D$2:$D$2766,\"postcode klopt niet\",0)","v":"postcode klopt niet"},1]
[null,null,null,{"$error":"#VALUE!"},null,null,null,{"$f":"_xlfn.XLOOKUP(G57,Postcode!$A$2:$A$2766,Postcode!$D$2:$D$2766,\"postcode klopt niet\",0)","v":"postcode klopt niet"},null,null,null,null,null,null,{"$f":"_xlfn.XLOOKUP(N57,Postcode!$A$2:$A$2766,Postcode!$D$2:$D$2766,\"postcode klopt niet\",0)","v":"postcode klopt niet"},1]
[null,null,null,{"$error":"#VALUE!"},null,null,null,{"$f":"_xlfn.XLOOKUP(G58,Postcode!$A$2:$A$2766,Postcode!$D$2:$D$2766,\"postcode klopt niet\",0)","v":"postcode klopt niet"},null,null,null,null,null,null,{"$f":"_xlfn.XLOOKUP(N58,Postcode!$A$2:$A$2766,Postcode!$D$2:$D$2766,\"postcode klopt niet\",0)","v":"postcode klopt niet"},1]
[null,null,null,{"$error":"#VALUE!"},null,null,null,{"$f":"_xlfn.XLOOKUP(G59,Postcode!$A$2:$A$2766,Postcode!$D$2:$D$2766,\"postcode klopt niet\",0)","v":"postcode klopt niet"},null,null,null,null,null,null,{"$f":"_xlfn.XLOOKUP(N59,Postcode!$A$2:$A$2766,Postcode!$D$2:$D$2766,\"postcode klopt niet\",0)","v":"postcode klopt niet"},1]
[null,null,null,{"$error":"#VALUE!"},null,null,null,{"$f":"_xlfn.XLOOKUP(G60,Postcode!$A$2:$A$2766,Postcode!$D$2:$D$2766,\"postcode klopt niet\",0)","v":"postcode klopt niet"},null,null,null,null,null,null,{"$f":"_xlfn.XLOOKUP(N60,Postcode!$A$2:$A$2766,Postcode!$D$2:$D$2766,\"postcode klopt niet\",0)","v":"postcode klopt niet"},1]
[null,null,null,{"$error":"#VALUE!"},null,null,null,{"$f":"_xlfn.XLOOKUP(G61,Postcode!$A$2:$A$2766,Postcode!$D$2:$D$2766,\"postcode klopt niet\",0)","v":"postcode klopt niet"},null,null,null,null,null,null,{"$f":"_xlfn.XLOOKUP(N61,Postcode!$A$2:$A$2766,Postcode!$D$2:$D$2766,\"postcode klopt niet\",0)","v":"postcode klopt niet"},1]
[null,null,null,{"$error":"#VALUE!"},null,null,null,{"$f":"_xlfn.XLOOKUP(G62,Postcode!$A$2:$A$2766,Postcode!$D$2:$D$2766,\"postcode klopt niet\",0)","v":"postcode klopt niet"},null,null,null,null,null,null,{"$f":"_xlfn.XLOOKUP(N62,Postcode!$A$2:$A$2766,Postcode!$D$2:$D$2766,\"postcode klopt niet\",0)","v":"postcode klopt niet"},1]
[null,null,null,{"$error":"#VALUE!"},null,null,null,{"$f":"_xlfn.XLOOKUP(G63,Postcode!$A$2:$A$2766,Postcode!$D$2:$D$2766,\"postcode klopt niet\",0)","v":"postcode klopt niet"},null,null,null,null,null,null,{"$f":"_xlfn.XLOOKUP(N63,Postcode!$A$2:$A$2766,Postcode!$D$2:$D$2766,\"postcode klopt niet\",0)","v":"postcode klopt niet"},1]
[null,null,null,{"$error":"#VALUE!"},null,null,null,{"$f":"_xlfn.XLOOKUP(G64,Postcode!$A$2:$A$2766,Postcode!$D$2:$D$2766,\"postcode klopt niet\",0)","v":"postcode klopt niet"},null,null,null,null,null,null,{"$f":"_xlfn.XLOOKUP(N64,Postcode!$A$2:$A$2766,Postcode!$D$2:$D$2766,\"postcode klopt niet\",0)","v":"postcode klopt niet"},1]
[null,null,null,{"$error":"#VALUE!"},null,null,null,{"$f":"_xlfn.XLOOKUP(G65,Postcode!$A$2:$A$2766,Postcode!$D$2:$D$2766,\"postcode klopt niet\",0)","v":"postcode klopt niet"},null,null,null,null,null,null,{"$f":"_xlfn.XLOOKUP(N65,Postcode!$A$2:$A$2766,Postcode!$D$2:$D$2766,\"postcode klopt niet\",0)","v":"postcode klopt niet"},1]
[null,null,null,{"$error":"#VALUE!"},null,null,null,{"$f":"_xlfn.XLOOKUP(G66,Postcode!$A$2:$A$2766,Postcode!$D$2:$D$2766,\"postcode klopt niet\",0)","v":"postcode klopt niet"},null,null,null,null,null,null,{"$f":"_xlfn.XLOOKUP(N66,Postcode!$A$2:$A$2766,Postcode!$D$2:$D$2766,\"postcode klopt niet\",0)","v":"postcode klopt niet"},1]
[null,null,null,{"$f":"DATE((IF(VALUE((RIGHT(SUBSTITUTE(SUBSTITUTE(C67,\".\",\"\"),\"-\",\"\"),2)))=(97-(MOD(LEFT(SUBSTITUTE(SUBSTITUTE(C67,\".\",\"\"),\"-\",\"\"),9),97))),1900+(LEFT(SUBSTITUTE(SUBSTITUTE(C67,\".\",\"\"),\"-\",\"\"),2)),2000+(LEFT(SUBSTITUTE(SUBSTITUTE(C67,\".\",\"\"),\"-\",\"\"),2)))),(MID(SUBSTITUTE(SUBSTITUTE(C67,\".\",\"\"),\"-\",\"\"),3,2)),(MID(SUBSTITUTE(SUBSTITUTE(C67,\".\",\"\"),\"-\",\"\"),5,2)))","v":{"$error":"#VALUE!"}},null,null,null,{"$f":"_xlfn.XLOOKUP(G67,Postcode!$A$2:$A$2766,Postcode!$D$2:$D$2766,\"postcode klopt niet\",0)","v":"postcode klopt niet"},null,null,null,null,null,null,{"$f":"_xlfn.XLOOKUP(N67,Postcode!$A$2:$A$2766,Postcode!$D$2:$D$2766,\"postcode klopt niet\",0)","v":"postcode klopt niet"},1]
[null,null,null,{"$error":"#VALUE!"},null,null,null,{"$f":"_xlfn.XLOOKUP(G68,Postcode!$A$2:$A$2766,Postcode!$D$2:$D$2766,\"postcode klopt niet\",0)","v":"postcode klopt niet"},null,null,null,null,null,null,{"$f":"_xlfn.XLOOKUP(N68,Postcode!$A$2:$A$2766,Postcode!$D$2:$D$2766,\"postcode klopt niet\",0)","v":"postcode klopt niet"},1]
[null,null,null,{"$error":"#VALUE!"},null,null,null,{"$f":"_xlfn.XLOOKUP(G69,Postcode!$A$2:$A$2766,Postcode!$D$2:$D$2766,\"postcode klopt niet\",0)","v":"postcode klopt niet"},null,null,null,null,null,null,{"$f":"_xlfn.XLOOKUP(N69,Postcode!$A$2:$A$2766,Postcode!$D$2:$D$2766,\"postcode klopt niet\",0)","v":"postcode klopt niet"},{"$f":"COUNTA(A69,B69,D69,G69)","v":1}]
[null,null,null,{"$error":"#VALUE!"},null,null,null,{"$f":"_xlfn.XLOOKUP(G70,Postcode!$A$2:$A$2766,Postcode!$D$2:$D$2766,\"postcode klopt niet\",0)","v":"postcode klopt niet"},null,null,null,null,null,null,{"$f":"_xlfn.XLOOKUP(N70,Postcode!$A$2:$A$2766,Postcode!$D$2:$D$2766,\"postcode klopt niet\",0)","v":"postcode klopt niet"},1]
[null,null,null,{"$error":"#VALUE!"},null,null,null,{"$f":"_xlfn.XLOOKUP(G71,Postcode!$A$2:$A$2766,Postcode!$D$2:$D$2766,\"postcode klopt niet\",0)","v":"postcode klopt niet"},null,null,null,null,null,null,{"$f":"_xlfn.XLOOKUP(N71,Postcode!$A$2:$A$2766,Postcode!$D$2:$D$2766,\"postcode klopt niet\",0)","v":"postcode klopt niet"},1]
[null,null,null,{"$error":"#VALUE!"},null,null,null,{"$f":"_xlfn.XLOOKUP(G72,Postcode!$A$2:$A$2766,Postcode!$D$2:$D$2766,\"postcode klopt niet\",0)","v":"postcode klopt niet"},null,null,null,null,null,null,{"$f":"_xlfn.XLOOKUP(N72,Postcode!$A$2:$A$2766,Postcode!$D$2:$D$2766,\"postcode klopt niet\",0)","v":"postcode klopt niet"},1]
[null,null,null,{"$error":"#VALUE!"},null,null,null,{"$f":"_xlfn.XLOOKUP(G73,Postcode!$A$2:$A$2766,Postcode!$D$2:$D$2766,\"postcode klopt niet\",0)","v":"postcode klopt niet"},null,null,null,null,null,null,{"$f":"_xlfn.XLOOKUP(N73,Postcode!$A$2:$A$2766,Postcode!$D$2:$D$2766,\"postcode klopt niet\",0)","v":"postcode klopt niet"},1]
[null,null,null,{"$error":"#VALUE!"},null,null,null,{"$f":"_xlfn.XLOOKUP(G74,Postcode!$A$2:$A$2766,Postcode!$D$2:$D$2766,\"postcode klopt niet\",0)","v":"postcode klopt niet"},null,null,null,null,null,null,{"$f":"_xlfn.XLOOKUP(N74,Postcode!$A$2:$A$2766,Postcode!$D$2:$D$2766,\"postcode klopt niet\",0)","v":"postcode klopt niet"},1]
[null,null,null,{"$error":"#VALUE!"},null,null,null,{"$f":"_xlfn.XLOOKUP(G75,Postcode!$A$2:$A$2766,Postcode!$D$2:$D$2766,\"postcode klopt niet\",0)","v":"postcode klopt niet"},null,null,null,null,null,null,{"$f":"_xlfn.XLOOKUP(N75,Postcode!$A$2:$A$2766,Postcode!$D$2:$D$2766,\"postcode klopt niet\",0)","v":"postcode klopt niet"},1]
[null,null,null,{"$error":"#VALUE!"},null,null,null,{"$f":"_xlfn.XLOOKUP(G76,Postcode!$A$2:$A$2766,Postcode!$D$2:$D$2766,\"postcode klopt niet\",0)","v":"postcode klopt niet"},null,null,null,null,null,null,{"$f":"_xlfn.XLOOKUP(N76,Postcode!$A$2:$A$2766,Postcode!$D$2:$D$2766,\"postcode klopt niet\",0)","v":"postcode klopt niet"},1]
[null,null,null,{"$error":"#VALUE!"},null,null,null,{"$f":"_xlfn.XLOOKUP(G77,Postcode!$A$2:$A$2766,Postcode!$D$2:$D$2766,\"postcode klopt niet\",0)","v":"postcode klopt niet"},null,null,null,null,null,null,{"$f":"_xlfn.XLOOKUP(N77,Postcode!$A$2:$A$2766,Postcode!$D$2:$D$2766,\"postcode klopt niet\",0)","v":"postcode klopt niet"},1]
[null,null,null,{"$error":"#VALUE!"},null,null,null,{"$f":"_xlfn.XLOOKUP(G78,Postcode!$A$2:$A$2766,Postcode!$D$2:$D$2766,\"postcode klopt niet\",0)","v":"postcode klopt niet"},null,null,null,null,null,null,{"$f":"_xlfn.XLOOKUP(N78,Postcode!$A$2:$A$2766,Postcode!$D$2:$D$2766,\"postcode klopt niet\",0)","v":"postcode klopt niet"},1]
[null,null,null,{"$error":"#VALUE!"},null,null,null,{"$f":"_xlfn.XLOOKUP(G79,Postcode!$A$2:$A$2766,Postcode!$D$2:$D$2766,\"postcode klopt niet\",0)","v":"postcode klopt niet"},null,null,null,null,null,null,{"$f":"_xlfn.XLOOKUP(N79,Postcode!$A$2:$A$2766,Postcode!$D$2:$D$2766,\"postcode klopt niet\",0)","v":"postcode klopt niet"},1]
[null,null,null,{"$error":"#VALUE!"},null,null,null,{"$f":"_xlfn.XLOOKUP(G80,Postcode!$A$2:$A$2766,Postcode!$D$2:$D$2766,\"postcode klopt niet\",0)","v":"postcode klopt niet"},null,null,null,null,null,null,{"$f":"_xlfn.XLOOKUP(N80,Postcode!$A$2:$A$2766,Postcode!$D$2:$D$2766,\"postcode klopt niet\",0)","v":"postcode klopt niet"},1]
[null,null,null,{"$error":"#VALUE!"},null,null,null,{"$f":"_xlfn.XLOOKUP(G81,Postcode!$A$2:$A$2766,Postcode!$D$2:$D$2766,\"postcode klopt niet\",0)","v":"postcode klopt niet"},null,null,null,null,null,null,{"$f":"_xlfn.XLOOKUP(N81,Postcode!$A$2:$A$2766,Postcode!$D$2:$D$2766,\"postcode klopt niet\",0)","v":"postcode klopt niet"},1]
[null,null,null,{"$error":"#VALUE!"},null,null,null,{"$f":"_xlfn.XLOOKUP(G82,Postcode!$A$2:$A$2766,Postcode!$D$2:$D$2766,\"postcode klopt niet\",0)","v":"postcode klopt niet"},null,null,null,null,null,null,{"$f":"_xlfn.XLOOKUP(N82,Postcode!$A$2:$A$2766,Postcode!$D$2:$D$2766,\"postcode klopt niet\",0)","v":"postcode klopt niet"},1]
[null,null,null,{"$error":"#VALUE!"},null,null,null,{"$f":"_xlfn.XLOOKUP(G83,Postcode!$A$2:$A$2766,Postcode!$D$2:$D$2766,\"postcode klopt niet\",0)","v":"postcode klopt niet"},null,null,null,null,null,null,{"$f":"_xlfn.XLOOKUP(N83,Postcode!$A$2:$A$2766,Postcode!$D$2:$D$2766,\"postcode klopt niet\",0)","v":"postcode klopt niet"},1]
[null,null,null,{"$error":"#VALUE!"},null,null,null,{"$f":"_xlfn.XLOOKUP(G84,Postcode!$A$2:$A$2766,Postcode!$D$2:$D$2766,\"postcode klopt niet\",0)","v":"postcode klopt niet"},null,null,null,null,null,null,{"$f":"_xlfn.XLOOKUP(N84,Postcode!$A$2:$A$2766,Postcode!$D$2:$D$2766,\"postcode klopt niet\",0)","v":"postcode klopt niet"},1]
[null,null,null,{"$error":"#VALUE!"},null,null,null,{"$f":"_xlfn.XLOOKUP(G85,Postcode!$A$2:$A$2766,Postcode!$D$2:$D$2766,\"postcode klopt niet\",0)","v":"postcode klopt niet"},null,null,null,null,null,null,{"$f":"_xlfn.XLOOKUP(N85,Postcode!$A$2:$A$2766,Postcode!$D$2:$D$2766,\"postcode klopt niet\",0)","v":"postcode klopt niet"},1]
[null,null,null,{"$error":"#VALUE!"},null,null,null,{"$f":"_xlfn.XLOOKUP(G86,Postcode!$A$2:$A$2766,Postcode!$D$2:$D$2766,\"postcode klopt niet\",0)","v":"postcode klopt niet"},null,null,null,null,null,null,{"$f":"_xlfn.XLOOKUP(N86,Postcode!$A$2:$A$2766,Postcode!$D$2:$D$2766,\"postcode klopt niet\",0)","v":"postcode klopt niet"},1]
[null,null,null,{"$error":"#VALUE!"},null,null,null,{"$f":"_xlfn.XLOOKUP(G87,Postcode!$A$2:$A$2766,Postcode!$D$2:$D$2766,\"postcode klopt niet\",0)","v":"postcode klopt niet"},null,null,null,null,null,null,{"$f":"_xlfn.XLOOKUP(N87,Postcode!$A$2:$A$2766,Postcode!$D$2:$D$2766,\"postcode klopt niet\",0)","v":"postcode klopt niet"},1]
[null,null,null,{"$error":"#VALUE!"},null,null,null,{"$f":"_xlfn.XLOOKUP(G88,Postcode!$A$2:$A$2766,Postcode!$D$2:$D$2766,\"postcode klopt niet\",0)","v":"postcode klopt niet"},null,null,null,null,null,null,{"$f":"_xlfn.XLOOKUP(N88,Postcode!$A$2:$A$2766,Postcode!$D$2:$D$2766,\"postcode klopt niet\",0)","v":"postcode klopt niet"},1]
[null,null,null,{"$error":"#VALUE!"},null,null,null,{"$f":"_xlfn.XLOOKUP(G89,Postcode!$A$2:$A$2766,Postcode!$D$2:$D$2766,\"postcode klopt niet\",0)","v":"postcode klopt niet"},null,null,null,null,null,null,{"$f":"_xlfn.XLOOKUP(N89,Postcode!$A$2:$A$2766,Postcode!$D$2:$D$2766,\"postcode klopt niet\",0)","v":"postcode klopt niet"},1]
[null,null,null,{"$error":"#VALUE!"},null,null,null,{"$f":"_xlfn.XLOOKUP(G90,Postcode!$A$2:$A$2766,Postcode!$D$2:$D$2766,\"postcode klopt niet\",0)","v":"postcode klopt niet"},null,null,null,null,null,null,{"$f":"_xlfn.XLOOKUP(N90,Postcode!$A$2:$A$2766,Postcode!$D$2:$D$2766,\"postcode klopt niet\",0)","v":"postcode klopt niet"},1]
[null,null,null,{"$error":"#VALUE!"},null,null,null,{"$f":"_xlfn.XLOOKUP(G91,Postcode!$A$2:$A$2766,Postcode!$D$2:$D$2766,\"postcode klopt niet\",0)","v":"postcode klopt niet"},null,null,null,null,null,null,{"$f":"_xlfn.XLOOKUP(N91,Postcode!$A$2:$A$2766,Postcode!$D$2:$D$2766,\"postcode klopt niet\",0)","v":"postcode klopt niet"},1]
[null,null,null,{"$error":"#VALUE!"},null,null,null,{"$f":"_xlfn.XLOOKUP(G92,Postcode!$A$2:$A$2766,Postcode!$D$2:$D$2766,\"postcode klopt niet\",0)","v":"postcode klopt niet"},null,null,null,null,null,null,{"$f":"_xlfn.XLOOKUP(N92,Postcode!$A$2:$A$2766,Postcode!$D$2:$D$2766,\"postcode klopt niet\",0)","v":"postcode klopt niet"},1]
[null,null,null,{"$error":"#VALUE!"},null,null,null,{"$f":"_xlfn.XLOOKUP(G93,Postcode!$A$2:$A$2766,Postcode!$D$2:$D$2766,\"postcode klopt niet\",0)","v":"postcode klopt niet"},null,null,null,null,null,null,{"$f":"_xlfn.XLOOKUP(N93,Postcode!$A$2:$A$2766,Postcode!$D$2:$D$2766,\"postcode klopt niet\",0)","v":"postcode klopt niet"},1]
[null,null,null,{"$error":"#VALUE!"},null,null,null,{"$f":"_xlfn.XLOOKUP(G94,Postcode!$A$2:$A$2766,Postcode!$D$2:$D$2766,\"postcode klopt niet\",0)","v":"postcode klopt niet"},null,null,null,null,null,null,{"$f":"_xlfn.XLOOKUP(N94,Postcode!$A$2:$A$2766,Postcode!$D$2:$D$2766,\"postcode klopt niet\",0)","v":"postcode klopt niet"},1]
[null,null,null,{"$error":"#VALUE!"},null,null,null,{"$f":"_xlfn.XLOOKUP(G95,Postcode!$A$2:$A$2766,Postcode!$D$2:$D$2766,\"postcode klopt niet\",0)","v":"postcode klopt niet"},null,null,null,null,null,null,{"$f":"_xlfn.XLOOKUP(N95,Postcode!$A$2:$A$2766,Postcode!$D$2:$D$2766,\"postcode klopt niet\",0)","v":"postcode klopt niet"},1]
[null,null,null,{"$error":"#VALUE!"},null,null,null,{"$f":"_xlfn.XLOOKUP(G96,Postcode!$A$2:$A$2766,Postcode!$D$2:$D$2766,\"postcode klopt niet\",0)","v":"postcode klopt niet"},null,null,null,null,null,null,{"$f":"_xlfn.XLOOKUP(N96,Postcode!$A$2:$A$2766,Postcode!$D$2:$D$2766,\"postcode klopt niet\",0)","v":"postcode klopt niet"},1]
[null,null,null,{"$error":"#VALUE!"},null,null,null,{"$f":"_xlfn.XLOOKUP(G97,Postcode!$A$2:$A$2766,Postcode!$D$2:$D$2766,\"postcode klopt niet\",0)","v":"postcode klopt niet"},null,null,null,null,null,null,{"$f":"_xlfn.XLOOKUP(N97,Postcode!$A$2:$A$2766,Postcode!$D$2:$D$2766,\"postcode klopt niet\",0)","v":"postcode klopt niet"},1]
[null,null,null,{"$error":"#VALUE!"},null,null,null,{"$f":"_xlfn.XLOOKUP(G98,Postcode!$A$2:$A$2766,Postcode!$D$2:$D$2766,\"postcode klopt niet\",0)","v":"postcode klopt niet"},null,null,null,null,null,null,{"$f":"_xlfn.XLOOKUP(N98,Postcode!$A$2:$A$2766,Postcode!$D$2:$D$2766,\"postcode klopt niet\",0)","v":"postcode klopt niet"},1]
[null,null,null,{"$error":"#VALUE!"},null,null,null,{"$f":"_xlfn.XLOOKUP(G99,Postcode!$A$2:$A$2766,Postcode!$D$2:$D$2766,\"postcode klopt niet\",0)","v":"postcode klopt niet"},null,null,null,null,null,null,{"$f":"_xlfn.XLOOKUP(N99,Postcode!$A$2:$A$2766,Postcode!$D$2:$D$2766,\"postcode klopt niet\",0)","v":"postcode klopt niet"},1]
[null,null,null,{"$error":"#VALUE!"},null,null,null,{"$f":"_xlfn.XLOOKUP(G100,Postcode!$A$2:$A$2766,Postcode!$D$2:$D$2766,\"postcode klopt niet\",0)","v":"postcode klopt niet"},null,null,null,null,null,null,{"$f":"_xlfn.XLOOKUP(N100,Postcode!$A$2:$A$2766,Postcode!$D$2:$D$2766,\"postcode klopt niet\",0)","v":"postcode klopt niet"},1]
[null,null,null,{"$error":"#VALUE!"},null,null,null,{"$f":"_xlfn.XLOOKUP(G101,Postcode!$A$2:$A$2766,Postcode!$D$2:$D$2766,\"postcode klopt niet\",0)","v":"postcode klopt niet"},null,null,null,null,null,null,{"$f":"_xlfn.XLOOKUP(N101,Postcode!$A$2:$A$2766,Postcode!$D$2:$D$2766,\"postcode klopt niet\",0)","v":"postcode klopt niet"},1]
[null,null,null,{"$error":"#VALUE!"},null,null,null,{"$f":"_xlfn.XLOOKUP(G102,Postcode!$A$2:$A$2766,Postcode!$D$2:$D$2766,\"postcode klopt niet\",0)","v":"postcode klopt niet"},null,null,null,null,null,null,{"$f":"_xlfn.XLOOKUP(N102,Postcode!$A$2:$A$2766,Postcode!$D$2:$D$2766,\"postcode klopt niet\",0)","v":"postcode klopt niet"},1]
[]
[]
[]
[]
[]
[]
[null,null,null,null,null,null,{"$f":"MOD(930407131,97)","v":9}]

{"sheet":"niet gebruikt 2","index":4,"n_rows":109,"n_cols":16,"rows_kept":109,"cut":false,"hidden":false,"merged":[[0,0,0,7],[0,8,0,14]]}
["Gegevens Lid",null,null,null,null,null,null,null,"Gegevens Ouder/Voogd ( in geval van gescheiden ouders, degene die betaalt)",null,null,null,null,null,null,{"$f":"Algemeen!B6","v":"niet gebruikt 2"}]
["Naam","Voornaam","Rijksregisternr° (00.00.00-000.00)","Geboortedatum","Straat","Nr°/Bus","Postcode","Gemeente","Naam","Voornaam","Rijksregisternr° (00.00.00-000.00)","Straat","Nr°/Bus","Postcode","Gemeente","Controle"]
["vb. Evenepoel","vb. Remco","93.04.07-131.88",{"$f":"DATE((IF(VALUE((RIGHT(SUBSTITUTE(SUBSTITUTE(C3,\".\",\"\"),\"-\",\"\"),2)))=(97-(MOD(LEFT(SUBSTITUTE(SUBSTITUTE(C3,\".\",\"\"),\"-\",\"\"),9),97))),1900+(LEFT(SUBSTITUTE(SUBSTITUTE(C3,\".\",\"\"),\"-\",\"\"),2)),2000+(LEFT(SUBSTITUTE(SUBSTITUTE(C3,\".\",\"\"),\"-\",\"\"),2)))),(MID(SUBSTITUTE(SUBSTITUTE(C3,\".\",\"\"),\"-\",\"\"),3,2)),(MID(SUBSTITUTE(SUBSTITUTE(C3,\".\",\"\"),\"-\",\"\"),5,2)))","v":"1993-04-07"},"Vogelzangstraat","37/3",3540,{"$f":"_xlfn.XLOOKUP(G3,Postcode!$A$2:$A$2766,Postcode!$D$2:$D$2766,\"postcode klopt niet\",0)","v":"HERK-DE-STAD"},"vb. Evenepoel","vb. Patrick","66.03.17-144.48","Parklaan",23,3800,{"$f":"_xlfn.XLOOKUP(N3,Postcode!$A$2:$A$2766,Postcode!$D$2:$D$2766,\"postcode klopt niet\",0)","v":"SINT-TRUIDEN"}]
[null,null,null,{"$error":"#VALUE!"},null,null,null,{"$f":"_xlfn.XLOOKUP(G4,Postcode!$A$2:$A$2766,Postcode!$D$2:$D$2766,\"postcode klopt niet\",0)","v":"postcode klopt niet"},null,null,null,null,null,null,{"$f":"_xlfn.XLOOKUP(N4,Postcode!$A$2:$A$2766,Postcode!$D$2:$D$2766,\"postcode klopt niet\",0)","v":"postcode klopt niet"},{"$f":"COUNTA(A4,B4,D4,G4)","v":1}]
[null,null,null,{"$error":"#VALUE!"},null,null,null,{"$f":"_xlfn.XLOOKUP(G5,Postcode!$A$2:$A$2766,Postcode!$D$2:$D$2766,\"postcode klopt niet\",0)","v":"postcode klopt niet"},null,null,null,null,null,null,{"$f":"_xlfn.XLOOKUP(N5,Postcode!$A$2:$A$2766,Postcode!$D$2:$D$2766,\"postcode klopt niet\",0)","v":"postcode klopt niet"},{"$f":"COUNTA(A5,B5,D5,G5)","v":1}]
[null,null,null,{"$error":"#VALUE!"},null,null,null,{"$f":"_xlfn.XLOOKUP(G6,Postcode!$A$2:$A$2766,Postcode!$D$2:$D$2766,\"postcode klopt niet\",0)","v":"postcode klopt niet"},null,null,null,null,null,null,{"$f":"_xlfn.XLOOKUP(N6,Postcode!$A$2:$A$2766,Postcode!$D$2:$D$2766,\"postcode klopt niet\",0)","v":"postcode klopt niet"},1]
[null,null,null,{"$error":"#VALUE!"},null,null,null,{"$f":"_xlfn.XLOOKUP(G7,Postcode!$A$2:$A$2766,Postcode!$D$2:$D$2766,\"postcode klopt niet\",0)","v":"postcode klopt niet"},null,null,null,null,null,null,{"$f":"_xlfn.XLOOKUP(N7,Postcode!$A$2:$A$2766,Postcode!$D$2:$D$2766,\"postcode klopt niet\",0)","v":"postcode klopt niet"},1]
[null,null,null,{"$error":"#VALUE!"},null,null,null,{"$f":"_xlfn.XLOOKUP(G8,Postcode!$A$2:$A$2766,Postcode!$D$2:$D$2766,\"postcode klopt niet\",0)","v":"postcode klopt niet"},null,null,null,null,null,null,{"$f":"_xlfn.XLOOKUP(N8,Postcode!$A$2:$A$2766,Postcode!$D$2:$D$2766,\"postcode klopt niet\",0)","v":"postcode klopt niet"},1]
[null,null,null,{"$error":"#VALUE!"},null,null,null,{"$f":"_xlfn.XLOOKUP(G9,Postcode!$A$2:$A$2766,Postcode!$D$2:$D$2766,\"postcode klopt niet\",0)","v":"postcode klopt niet"},null,null,null,null,null,null,{"$f":"_xlfn.XLOOKUP(N9,Postcode!$A$2:$A$2766,Postcode!$D$2:$D$2766,\"postcode klopt niet\",0)","v":"postcode klopt niet"},1]
[null,null,null,{"$error":"#VALUE!"},null,null,null,{"$f":"_xlfn.XLOOKUP(G10,Postcode!$A$2:$A$2766,Postcode!$D$2:$D$2766,\"postcode klopt niet\",0)","v":"postcode klopt niet"},null,null,null,null,null,null,{"$f":"_xlfn.XLOOKUP(N10,Postcode!$A$2:$A$2766,Postcode!$D$2:$D$2766,\"postcode klopt niet\",0)","v":"postcode klopt niet"},1]
[null,null,null,{"$error":"#VALUE!"},null,null,null,{"$f":"_xlfn.XLOOKUP(G11,Postcode!$A$2:$A$2766,Postcode!$D$2:$D$2766,\"postcode klopt niet\",0)","v":"postcode klopt niet"},null,null,null,null,null,null,{"$f":"_xlfn.XLOOKUP(N11,Postcode!$A$2:$A$2766,Postcode!$D$2:$D$2766,\"postcode klopt niet\",0)","v":"postcode klopt niet"},1]
[null,null,null,{"$error":"#VALUE!"},null,null,null,{"$f":"_xlfn.XLOOKUP(G12,Postcode!$A$2:$A$2766,Postcode!$D$2:$D$2766,\"postcode klopt niet\",0)","v":"postcode klopt niet"},null,null,null,null,null,null,{"$f":"_xlfn.XLOOKUP(N12,Postcode!$A$2:$A$2766,Postcode!$D$2:$D$2766,\"postcode klopt niet\",0)","v":"postcode klopt niet"},1]
[null,null,null,{"$error":"#VALUE!"},null,null,null,{"$f":"_xlfn.XLOOKUP(G13,Postcode!$A$2:$A$2766,Postcode!$D$2:$D$2766,\"postcode klopt niet\",0)","v":"postcode klopt niet"},null,null,null,null,null,null,{"$f":"_xlfn.XLOOKUP(N13,Postcode!$A$2:$A$2766,Postcode!$D$2:$D$2766,\"postcode klopt niet\",0)","v":"postcode klopt niet"},1]
[null,null,null,{"$error":"#VALUE!"},null,null,null,{"$f":"_xlfn.XLOOKUP(G14,Postcode!$A$2:$A$2766,Postcode!$D$2:$D$2766,\"postcode klopt niet\",0)","v":"postcode klopt niet"},null,null,null,null,null,null,{"$f":"_xlfn.XLOOKUP(N14,Postcode!$A$2:$A$2766,Postcode!$D$2:$D$2766,\"postcode klopt niet\",0)","v":"postcode klopt niet"},1]
[null,null,null,{"$error":"#VALUE!"},null,null,null,{"$f":"_xlfn.XLOOKUP(G15,Postcode!$A$2:$A$2766,Postcode!$D$2:$D$2766,\"postcode klopt niet\",0)","v":"postcode klopt niet"},null,null,null,null,null,null,{"$f":"_xlfn.XLOOKUP(N15,Postcode!$A$2:$A$2766,Postcode!$D$2:$D$2766,\"postcode klopt niet\",0)","v":"postcode klopt niet"},1]
[null,null,null,{"$error":"#VALUE!"},null,null,null,{"$f":"_xlfn.XLOOKUP(G16,Postcode!$A$2:$A$2766,Postcode!$D$2:$D$2766,\"postcode klopt niet\",0)","v":"postcode klopt niet"},null,null,null,null,null,null,{"$f":"_xlfn.XLOOKUP(N16,Postcode!$A$2:$A$2766,Postcode!$D$2:$D$2766,\"postcode klopt niet\",0)","v":"postcode klopt niet"},1]
[null,null,null,{"$error":"#VALUE!"},null,null,null,{"$f":"_xlfn.XLOOKUP(G17,Postcode!$A$2:$A$2766,Postcode!$D$2:$D$2766,\"postcode klopt niet\",0)","v":"postcode klopt niet"},null,null,null,null,null,null,{"$f":"_xlfn.XLOOKUP(N17,Postcode!$A$2:$A$2766,Postcode!$D$2:$D$2766,\"postcode klopt niet\",0)","v":"postcode klopt niet"},1]
[null,null,null,{"$error":"#VALUE!"},null,null,null,{"$f":"_xlfn.XLOOKUP(G18,Postcode!$A$2:$A$2766,Postcode!$D$2:$D$2766,\"postcode klopt niet\",0)","v":"postcode klopt niet"},null,null,null,null,null,null,{"$f":"_xlfn.XLOOKUP(N18,Postcode!$A$2:$A$2766,Postcode!$D$2:$D$2766,\"postcode klopt niet\",0)","v":"postcode klopt niet"},1]
[null,null,null,{"$error":"#VALUE!"},null,null,null,{"$f":"_xlfn.XLOOKUP(G19,Postcode!$A$2:$A$2766,Postcode!$D$2:$D$2766,\"postcode klopt niet\",0)","v":"postcode klopt niet"},null,null,null,null,null,null,{"$f":"_xlfn.XLOOKUP(N19,Postcode!$A$2:$A$2766,Postcode!$D$2:$D$2766,\"postcode klopt niet\",0)","v":"postcode klopt niet"},1]
[null,null,null,{"$error":"#VALUE!"},null,null,null,{"$f":"_xlfn.XLOOKUP(G20,Postcode!$A$2:$A$2766,Postcode!$D$2:$D$2766,\"postcode klopt niet\",0)","v":"postcode klopt niet"},null,null,null,null,null,null,{"$f":"_xlfn.XLOOKUP(N20,Postcode!$A$2:$A$2766,Postcode!$D$2:$D$2766,\"postcode klopt niet\",0)","v":"postcode klopt niet"},1]
[null,null,null,{"$error":"#VALUE!"},null,null,null,{"$f":"_xlfn.XLOOKUP(G21,Postcode!$A$2:$A$2766,Postcode!$D$2:$D$2766,\"postcode klopt niet\",0)","v":"postcode klopt niet"},null,null,null,null,null,null,{"$f":"_xlfn.XLOOKUP(N21,Postcode!$A$2:$A$2766,Postcode!$D$2:$D$2766,\"postcode klopt niet\",0)","v":"postcode klopt niet"},1]
[null,null,null,{"$error":"#VALUE!"},null,null,null,{"$f":"_xlfn.XLOOKUP(G22,Postcode!$A$2:$A$2766,Postcode!$D$2:$D$2766,\"postcode klopt niet\",0)","v":"postcode klopt niet"},null,null,null,null,null,null,{"$f":"_xlfn.XLOOKUP(N22,Postcode!$A$2:$A$2766,Postcode!$D$2:$D$2766,\"postcode klopt niet\",0)","v":"postcode klopt niet"},1]
[null,null,null,{"$error":"#VALUE!"},null,null,null,{"$f":"_xlfn.XLOOKUP(G23,Postcode!$A$2:$A$2766,Postcode!$D$2:$D$2766,\"postcode klopt niet\",0)","v":"postcode klopt niet"},null,null,null,null,null,null,{"$f":"_xlfn.XLOOKUP(N23,Postcode!$A$2:$A$2766,Postcode!$D$2:$D$2766,\"postcode klopt niet\",0)","v":"postcode klopt niet"},1]
[null,null,null,{"$error":"#VALUE!"},null,null,null,{"$f":"_xlfn.XLOOKUP(G24,Postcode!$A$2:$A$2766,Postcode!$D$2:$D$2766,\"postcode klopt niet\",0)","v":"postcode klopt niet"},null,null,null,null,null,null,{"$f":"_xlfn.XLOOKUP(N24,Postcode!$A$2:$A$2766,Postcode!$D$2:$D$2766,\"postcode klopt niet\",0)","v":"postcode klopt niet"},1]
[null,null,null,{"$error":"#VALUE!"},null,null,null,{"$f":"_xlfn.XLOOKUP(G25,Postcode!$A$2:$A$2766,Postcode!$D$2:$D$2766,\"postcode klopt niet\",0)","v":"postcode klopt niet"},null,null,null,null,null,null,{"$f":"_xlfn.XLOOKUP(N25,Postcode!$A$2:$A$2766,Postcode!$D$2:$D$2766,\"postcode klopt niet\",0)","v":"postcode klopt niet"},1]
[null,null,null,{"$error":"#VALUE!"},null,null,null,{"$f":"_xlfn.XLOOKUP(G26,Postcode!$A$2:$A$2766,Postcode!$D$2:$D$2766,\"postcode klopt niet\",0)","v":"postcode klopt niet"},null,null,null,null,null,null,{"$f":"_xlfn.XLOOKUP(N26,Postcode!$A$2:$A$2766,Postcode!$D$2:$D$2766,\"postcode klopt niet\",0)","v":"postcode klopt niet"},1]
[null,null,null,{"$error":"#VALUE!"},null,null,null,{"$f":"_xlfn.XLOOKUP(G27,Postcode!$A$2:$A$2766,Postcode!$D$2:$D$2766,\"postcode klopt niet\",0)","v":"postcode klopt niet"},null,null,null,null,null,null,{"$f":"_xlfn.XLOOKUP(N27,Postcode!$A$2:$A$2766,Postcode!$D$2:$D$2766,\"postcode klopt niet\",0)","v":"postcode klopt niet"},1]
[null,null,null,{"$error":"#VALUE!"},null,null,null,{"$f":"_xlfn.XLOOKUP(G28,Postcode!$A$2:$A$2766,Postcode!$D$2:$D$2766,\"postcode klopt niet\",0)","v":"postcode klopt niet"},null,null,null,null,null,null,{"$f":"_xlfn.XLOOKUP(N28,Postcode!$A$2:$A$2766,Postcode!$D$2:$D$2766,\"postcode klopt niet\",0)","v":"postcode klopt niet"},1]
[null,null,null,{"$error":"#VALUE!"},null,null,null,{"$f":"_xlfn.XLOOKUP(G29,Postcode!$A$2:$A$2766,Postcode!$D$2:$D$2766,\"postcode klopt niet\",0)","v":"postcode klopt niet"},null,null,null,null,null,null,{"$f":"_xlfn.XLOOKUP(N29,Postcode!$A$2:$A$2766,Postcode!$D$2:$D$2766,\"postcode klopt niet\",0)","v":"postcode klopt niet"},1]
[null,null,null,{"$error":"#VALUE!"},null,null,null,{"$f":"_xlfn.XLOOKUP(G30,Postcode!$A$2:$A$2766,Postcode!$D$2:$D$2766,\"postcode klopt niet\",0)","v":"postcode klopt niet"},null,null,null,null,null,null,{"$f":"_xlfn.XLOOKUP(N30,Postcode!$A$2:$A$2766,Postcode!$D$2:$D$2766,\"postcode klopt niet\",0)","v":"postcode klopt niet"},1]
[null,null,null,{"$error":"#VALUE!"},null,null,null,{"$f":"_xlfn.XLOOKUP(G31,Postcode!$A$2:$A$2766,Postcode!$D$2:$D$2766,\"postcode klopt niet\",0)","v":"postcode klopt niet"},null,null,null,null,null,null,{"$f":"_xlfn.XLOOKUP(N31,Postcode!$A$2:$A$2766,Postcode!$D$2:$D$2766,\"postcode klopt niet\",0)","v":"postcode klopt niet"},1]
[null,null,null,{"$error":"#VALUE!"},null,null,null,{"$f":"_xlfn.XLOOKUP(G32,Postcode!$A$2:$A$2766,Postcode!$D$2:$D$2766,\"postcode klopt niet\",0)","v":"postcode klopt niet"},null,null,null,null,null,null,{"$f":"_xlfn.XLOOKUP(N32,Postcode!$A$2:$A$2766,Postcode!$D$2:$D$2766,\"postcode klopt niet\",0)","v":"postcode klopt niet"},1]
[null,null,null,{"$error":"#VALUE!"},null,null,null,{"$f":"_xlfn.XLOOKUP(G33,Postcode!$A$2:$A$2766,Postcode!$D$2:$D$2766,\"postcode klopt niet\",0)","v":"postcode klopt niet"},null,null,null,null,null,null,{"$f":"_xlfn.XLOOKUP(N33,Postcode!$A$2:$A$2766,Postcode!$D$2:$D$2766,\"postcode klopt niet\",0)","v":"postcode klopt niet"},1]
[null,null,null,{"$error":"#VALUE!"},null,null,null,{"$f":"_xlfn.XLOOKUP(G34,Postcode!$A$2:$A$2766,Postcode!$D$2:$D$2766,\"postcode klopt niet\",0)","v":"postcode klopt niet"},null,null,null,null,null,null,{"$f":"_xlfn.XLOOKUP(N34,Postcode!$A$2:$A$2766,Postcode!$D$2:$D$2766,\"postcode klopt niet\",0)","v":"postcode klopt niet"},1]
[null,null,null,{"$error":"#VALUE!"},null,null,null,{"$f":"_xlfn.XLOOKUP(G35,Postcode!$A$2:$A$2766,Postcode!$D$2:$D$2766,\"postcode klopt niet\",0)","v":"postcode klopt niet"},null,null,null,null,null,null,{"$f":"_xlfn.XLOOKUP(N35,Postcode!$A$2:$A$2766,Postcode!$D$2:$D$2766,\"postcode klopt niet\",0)","v":"postcode klopt niet"},1]
[null,null,null,{"$error":"#VALUE!"},null,null,null,{"$f":"_xlfn.XLOOKUP(G36,Postcode!$A$2:$A$2766,Postcode!$D$2:$D$2766,\"postcode klopt niet\",0)","v":"postcode klopt niet"},null,null,null,null,null,null,{"$f":"_xlfn.XLOOKUP(N36,Postcode!$A$2:$A$2766,Postcode!$D$2:$D$2766,\"postcode klopt niet\",0)","v":"postcode klopt niet"},1]
[null,null,null,{"$error":"#VALUE!"},null,null,null,{"$f":"_xlfn.XLOOKUP(G37,Postcode!$A$2:$A$2766,Postcode!$D$2:$D$2766,\"postcode klopt niet\",0)","v":"postcode klopt niet"},null,null,null,null,null,null,{"$f":"_xlfn.XLOOKUP(N37,Postcode!$A$2:$A$2766,Postcode!$D$2:$D$2766,\"postcode klopt niet\",0)","v":"postcode klopt niet"},1]
[null,null,null,{"$error":"#VALUE!"},null,null,null,{"$f":"_xlfn.XLOOKUP(G38,Postcode!$A$2:$A$2766,Postcode!$D$2:$D$2766,\"postcode klopt niet\",0)","v":"postcode klopt niet"},null,null,null,null,null,null,{"$f":"_xlfn.XLOOKUP(N38,Postcode!$A$2:$A$2766,Postcode!$D$2:$D$2766,\"postcode klopt niet\",0)","v":"postcode klopt niet"},1]
[null,null,null,{"$error":"#VALUE!"},null,null,null,{"$f":"_xlfn.XLOOKUP(G39,Postcode!$A$2:$A$2766,Postcode!$D$2:$D$2766,\"postcode klopt niet\",0)","v":"postcode klopt niet"},null,null,null,null,null,null,{"$f":"_xlfn.XLOOKUP(N39,Postcode!$A$2:$A$2766,Postcode!$D$2:$D$2766,\"postcode klopt niet\",0)","v":"postcode klopt niet"},1]
[null,null,null,{"$error":"#VALUE!"},null,null,null,{"$f":"_xlfn.XLOOKUP(G40,Postcode!$A$2:$A$2766,Postcode!$D$2:$D$2766,\"postcode klopt niet\",0)","v":"postcode klopt niet"},null,null,null,null,null,null,{"$f":"_xlfn.XLOOKUP(N40,Postcode!$A$2:$A$2766,Postcode!$D$2:$D$2766,\"postcode klopt niet\",0)","v":"postcode klopt niet"},1]
[null,null,null,{"$error":"#VALUE!"},null,null,null,{"$f":"_xlfn.XLOOKUP(G41,Postcode!$A$2:$A$2766,Postcode!$D$2:$D$2766,\"postcode klopt niet\",0)","v":"postcode klopt niet"},null,null,null,null,null,null,{"$f":"_xlfn.XLOOKUP(N41,Postcode!$A$2:$A$2766,Postcode!$D$2:$D$2766,\"postcode klopt niet\",0)","v":"postcode klopt niet"},1]
[null,null,null,{"$error":"#VALUE!"},null,null,null,{"$f":"_xlfn.XLOOKUP(G42,Postcode!$A$2:$A$2766,Postcode!$D$2:$D$2766,\"postcode klopt niet\",0)","v":"postcode klopt niet"},null,null,null,null,null,null,{"$f":"_xlfn.XLOOKUP(N42,Postcode!$A$2:$A$2766,Postcode!$D$2:$D$2766,\"postcode klopt niet\",0)","v":"postcode klopt niet"},1]
[null,null,null,{"$error":"#VALUE!"},null,null,null,{"$f":"_xlfn.XLOOKUP(G43,Postcode!$A$2:$A$2766,Postcode!$D$2:$D$2766,\"postcode klopt niet\",0)","v":"postcode klopt niet"},null,null,null,null,null,null,{"$f":"_xlfn.XLOOKUP(N43,Postcode!$A$2:$A$2766,Postcode!$D$2:$D$2766,\"postcode klopt niet\",0)","v":"postcode klopt niet"},1]
[null,null,null,{"$error":"#VALUE!"},null,null,null,{"$f":"_xlfn.XLOOKUP(G44,Postcode!$A$2:$A$2766,Postcode!$D$2:$D$2766,\"postcode klopt niet\",0)","v":"postcode klopt niet"},null,null,null,null,null,null,{"$f":"_xlfn.XLOOKUP(N44,Postcode!$A$2:$A$2766,Postcode!$D$2:$D$2766,\"postcode klopt niet\",0)","v":"postcode klopt niet"},1]
[null,null,null,{"$error":"#VALUE!"},null,null,null,{"$f":"_xlfn.XLOOKUP(G45,Postcode!$A$2:$A$2766,Postcode!$D$2:$D$2766,\"postcode klopt niet\",0)","v":"postcode klopt niet"},null,null,null,null,null,null,{"$f":"_xlfn.XLOOKUP(N45,Postcode!$A$2:$A$2766,Postcode!$D$2:$D$2766,\"postcode klopt niet\",0)","v":"postcode klopt niet"},1]
[null,null,null,{"$error":"#VALUE!"},null,null,null,{"$f":"_xlfn.XLOOKUP(G46,Postcode!$A$2:$A$2766,Postcode!$D$2:$D$2766,\"postcode klopt niet\",0)","v":"postcode klopt niet"},null,null,null,null,null,null,{"$f":"_xlfn.XLOOKUP(N46,Postcode!$A$2:$A$2766,Postcode!$D$2:$D$2766,\"postcode klopt niet\",0)","v":"postcode klopt niet"},1]
[null,null,null,{"$error":"#VALUE!"},null,null,null,{"$f":"_xlfn.XLOOKUP(G47,Postcode!$A$2:$A$2766,Postcode!$D$2:$D$2766,\"postcode klopt niet\",0)","v":"postcode klopt niet"},null,null,null,null,null,null,{"$f":"_xlfn.XLOOKUP(N47,Postcode!$A$2:$A$2766,Postcode!$D$2:$D$2766,\"postcode klopt niet\",0)","v":"postcode klopt niet"},1]
[null,null,null,{"$error":"#VALUE!"},null,null,null,{"$f":"_xlfn.XLOOKUP(G48,Postcode!$A$2:$A$2766,Postcode!$D$2:$D$2766,\"postcode klopt niet\",0)","v":"postcode klopt niet"},null,null,null,null,null,null,{"$f":"_xlfn.XLOOKUP(N48,Postcode!$A$2:$A$2766,Postcode!$D$2:$D$2766,\"postcode klopt niet\",0)","v":"postcode klopt niet"},1]
[null,null,null,{"$error":"#VALUE!"},null,null,null,{"$f":"_xlfn.XLOOKUP(G49,Postcode!$A$2:$A$2766,Postcode!$D$2:$D$2766,\"postcode klopt niet\",0)","v":"postcode klopt niet"},null,null,null,null,null,null,{"$f":"_xlfn.XLOOKUP(N49,Postcode!$A$2:$A$2766,Postcode!$D$2:$D$2766,\"postcode klopt niet\",0)","v":"postcode klopt niet"},1]
[null,null,null,{"$error":"#VALUE!"},null,null,null,{"$f":"_xlfn.XLOOKUP(G50,Postcode!$A$2:$A$2766,Postcode!$D$2:$D$2766,\"postcode klopt niet\",0)","v":"postcode klopt niet"},null,null,null,null,null,null,{"$f":"_xlfn.XLOOKUP(N50,Postcode!$A$2:$A$2766,Postcode!$D$2:$D$2766,\"postcode klopt niet\",0)","v":"postcode klopt niet"},1]
[null,null,null,{"$error":"#VALUE!"},null,null,null,{"$f":"_xlfn.XLOOKUP(G51,Postcode!$A$2:$A$2766,Postcode!$D$2:$D$2766,\"postcode klopt niet\",0)","v":"postcode klopt niet"},null,null,null,null,null,null,{"$f":"_xlfn.XLOOKUP(N51,Postcode!$A$2:$A$2766,Postcode!$D$2:$D$2766,\"postcode klopt niet\",0)","v":"postcode klopt niet"},1]
[null,null,null,{"$error":"#VALUE!"},null,null,null,{"$f":"_xlfn.XLOOKUP(G52,Postcode!$A$2:$A$2766,Postcode!$D$2:$D$2766,\"postcode klopt niet\",0)","v":"postcode klopt niet"},null,null,null,null,null,null,{"$f":"_xlfn.XLOOKUP(N52,Postcode!$A$2:$A$2766,Postcode!$D$2:$D$2766,\"postcode klopt niet\",0)","v":"postcode klopt niet"},1]
[null,null,null,{"$error":"#VALUE!"},null,null,null,{"$f":"_xlfn.XLOOKUP(G53,Postcode!$A$2:$A$2766,Postcode!$D$2:$D$2766,\"postcode klopt niet\",0)","v":"postcode klopt niet"},null,null,null,null,null,null,{"$f":"_xlfn.XLOOKUP(N53,Postcode!$A$2:$A$2766,Postcode!$D$2:$D$2766,\"postcode klopt niet\",0)","v":"postcode klopt niet"},1]
[null,null,null,{"$error":"#VALUE!"},null,null,null,{"$f":"_xlfn.XLOOKUP(G54,Postcode!$A$2:$A$2766,Postcode!$D$2:$D$2766,\"postcode klopt niet\",0)","v":"postcode klopt niet"},null,null,null,null,null,null,{"$f":"_xlfn.XLOOKUP(N54,Postcode!$A$2:$A$2766,Postcode!$D$2:$D$2766,\"postcode klopt niet\",0)","v":"postcode klopt niet"},1]
[null,null,null,{"$error":"#VALUE!"},null,null,null,{"$f":"_xlfn.XLOOKUP(G55,Postcode!$A$2:$A$2766,Postcode!$D$2:$D$2766,\"postcode klopt niet\",0)","v":"postcode klopt niet"},null,null,null,null,null,null,{"$f":"_xlfn.XLOOKUP(N55,Postcode!$A$2:$A$2766,Postcode!$D$2:$D$2766,\"postcode klopt niet\",0)","v":"postcode klopt niet"},1]
[null,null,null,{"$error":"#VALUE!"},null,null,null,{"$f":"_xlfn.XLOOKUP(G56,Postcode!$A$2:$A$2766,Postcode!$D$2:$D$2766,\"postcode klopt niet\",0)","v":"postcode klopt niet"},null,null,null,null,null,null,{"$f":"_xlfn.XLOOKUP(N56,Postcode!$A$2:$A$2766,Postcode!$D$2:$D$2766,\"postcode klopt niet\",0)","v":"postcode klopt niet"},1]
[null,null,null,{"$error":"#VALUE!"},null,null,null,{"$f":"_xlfn.XLOOKUP(G57,Postcode!$A$2:$A$2766,Postcode!$D$2:$D$2766,\"postcode klopt niet\",0)","v":"postcode klopt niet"},null,null,null,null,null,null,{"$f":"_xlfn.XLOOKUP(N57,Postcode!$A$2:$A$2766,Postcode!$D$2:$D$2766,\"postcode klopt niet\",0)","v":"postcode klopt niet"},1]
[null,null,null,{"$error":"#VALUE!"},null,null,null,{"$f":"_xlfn.XLOOKUP(G58,Postcode!$A$2:$A$2766,Postcode!$D$2:$D$2766,\"postcode klopt niet\",0)","v":"postcode klopt niet"},null,null,null,null,null,null,{"$f":"_xlfn.XLOOKUP(N58,Postcode!$A$2:$A$2766,Postcode!$D$2:$D$2766,\"postcode klopt niet\",0)","v":"postcode klopt niet"},1]
[null,null,null,{"$error":"#VALUE!"},null,null,null,{"$f":"_xlfn.XLOOKUP(G59,Postcode!$A$2:$A$2766,Postcode!$D$2:$D$2766,\"postcode klopt niet\",0)","v":"postcode klopt niet"},null,null,null,null,null,null,{"$f":"_xlfn.XLOOKUP(N59,Postcode!$A$2:$A$2766,Postcode!$D$2:$D$2766,\"postcode klopt niet\",0)","v":"postcode klopt niet"},1]
[null,null,null,{"$error":"#VALUE!"},null,null,null,{"$f":"_xlfn.XLOOKUP(G60,Postcode!$A$2:$A$2766,Postcode!$D$2:$D$2766,\"postcode klopt niet\",0)","v":"postcode klopt niet"},null,null,null,null,null,null,{"$f":"_xlfn.XLOOKUP(N60,Postcode!$A$2:$A$2766,Postcode!$D$2:$D$2766,\"postcode klopt niet\",0)","v":"postcode klopt niet"},1]
[null,null,null,{"$error":"#VALUE!"},null,null,null,{"$f":"_xlfn.XLOOKUP(G61,Postcode!$A$2:$A$2766,Postcode!$D$2:$D$2766,\"postcode klopt niet\",0)","v":"postcode klopt niet"},null,null,null,null,null,null,{"$f":"_xlfn.XLOOKUP(N61,Postcode!$A$2:$A$2766,Postcode!$D$2:$D$2766,\"postcode klopt niet\",0)","v":"postcode klopt niet"},1]
[null,null,null,{"$error":"#VALUE!"},null,null,null,{"$f":"_xlfn.XLOOKUP(G62,Postcode!$A$2:$A$2766,Postcode!$D$2:$D$2766,\"postcode klopt niet\",0)","v":"postcode klopt niet"},null,null,null,null,null,null,{"$f":"_xlfn.XLOOKUP(N62,Postcode!$A$2:$A$2766,Postcode!$D$2:$D$2766,\"postcode klopt niet\",0)","v":"postcode klopt niet"},1]
[null,null,null,{"$error":"#VALUE!"},null,null,null,{"$f":"_xlfn.XLOOKUP(G63,Postcode!$A$2:$A$2766,Postcode!$D$2:$D$2766,\"postcode klopt niet\",0)","v":"postcode klopt niet"},null,null,null,null,null,null,{"$f":"_xlfn.XLOOKUP(N63,Postcode!$A$2:$A$2766,Postcode!$D$2:$D$2766,\"postcode klopt niet\",0)","v":"postcode klopt niet"},1]
[null,null,null,{"$error":"#VALUE!"},null,null,null,{"$f":"_xlfn.XLOOKUP(G64,Postcode!$A$2:$A$2766,Postcode!$D$2:$D$2766,\"postcode klopt niet\",0)","v":"postcode klopt niet"},null,null,null,null,null,null,{"$f":"_xlfn.XLOOKUP(N64,Postcode!$A$2:$A$2766,Postcode!$D$2:$D$2766,\"postcode klopt niet\",0)","v":"postcode klopt niet"},1]
[null,null,null,{"$error":"#VALUE!"},null,null,null,{"$f":"_xlfn.XLOOKUP(G65,Postcode!$A$2:$A$2766,Postcode!$D$2:$D$2766,\"postcode klopt niet\",0)","v":"postcode klopt niet"},null,null,null,null,null,null,{"$f":"_xlfn.XLOOKUP(N65,Postcode!$A$2:$A$2766,Postcode!$D$2:$D$2766,\"postcode klopt niet\",0)","v":"postcode klopt niet"},1]
[null,null,null,{"$error":"#VALUE!"},null,null,null,{"$f":"_xlfn.XLOOKUP(G66,Postcode!$A$2:$A$2766,Postcode!$D$2:$D$2766,\"postcode klopt niet\",0)","v":"postcode klopt niet"},null,null,null,null,null,null,{"$f":"_xlfn.XLOOKUP(N66,Postcode!$A$2:$A$2766,Postcode!$D$2:$D$2766,\"postcode klopt niet\",0)","v":"postcode klopt niet"},1]
[null,null,null,{"$f":"DATE((IF(VALUE((RIGHT(SUBSTITUTE(SUBSTITUTE(C67,\".\",\"\"),\"-\",\"\"),2)))=(97-(MOD(LEFT(SUBSTITUTE(SUBSTITUTE(C67,\".\",\"\"),\"-\",\"\"),9),97))),1900+(LEFT(SUBSTITUTE(SUBSTITUTE(C67,\".\",\"\"),\"-\",\"\"),2)),2000+(LEFT(SUBSTITUTE(SUBSTITUTE(C67,\".\",\"\"),\"-\",\"\"),2)))),(MID(SUBSTITUTE(SUBSTITUTE(C67,\".\",\"\"),\"-\",\"\"),3,2)),(MID(SUBSTITUTE(SUBSTITUTE(C67,\".\",\"\"),\"-\",\"\"),5,2)))","v":{"$error":"#VALUE!"}},null,null,null,{"$f":"_xlfn.XLOOKUP(G67,Postcode!$A$2:$A$2766,Postcode!$D$2:$D$2766,\"postcode klopt niet\",0)","v":"postcode klopt niet"},null,null,null,null,null,null,{"$f":"_xlfn.XLOOKUP(N67,Postcode!$A$2:$A$2766,Postcode!$D$2:$D$2766,\"postcode klopt niet\",0)","v":"postcode klopt niet"},1]
[null,null,null,{"$error":"#VALUE!"},null,null,null,{"$f":"_xlfn.XLOOKUP(G68,Postcode!$A$2:$A$2766,Postcode!$D$2:$D$2766,\"postcode klopt niet\",0)","v":"postcode klopt niet"},null,null,null,null,null,null,{"$f":"_xlfn.XLOOKUP(N68,Postcode!$A$2:$A$2766,Postcode!$D$2:$D$2766,\"postcode klopt niet\",0)","v":"postcode klopt niet"},1]
[null,null,null,{"$error":"#VALUE!"},null,null,null,{"$f":"_xlfn.XLOOKUP(G69,Postcode!$A$2:$A$2766,Postcode!$D$2:$D$2766,\"postcode klopt niet\",0)","v":"postcode klopt niet"},null,null,null,null,null,null,{"$f":"_xlfn.XLOOKUP(N69,Postcode!$A$2:$A$2766,Postcode!$D$2:$D$2766,\"postcode klopt niet\",0)","v":"postcode klopt niet"},{"$f":"COUNTA(A69,B69,D69,G69)","v":1}]
[null,null,null,{"$error":"#VALUE!"},null,null,null,{"$f":"_xlfn.XLOOKUP(G70,Postcode!$A$2:$A$2766,Postcode!$D$2:$D$2766,\"postcode klopt niet\",0)","v":"postcode klopt niet"},null,null,null,null,null,null,{"$f":"_xlfn.XLOOKUP(N70,Postcode!$A$2:$A$2766,Postcode!$D$2:$D$2766,\"postcode klopt niet\",0)","v":"postcode klopt niet"},1]
[null,null,null,{"$error":"#VALUE!"},null,null,null,{"$f":"_xlfn.XLOOKUP(G71,Postcode!$A$2:$A$2766,Postcode!$D$2:$D$2766,\"postcode klopt niet\",0)","v":"postcode klopt niet"},null,null,null,null,null,null,{"$f":"_xlfn.XLOOKUP(N71,Postcode!$A$2:$A$2766,Postcode!$D$2:$D$2766,\"postcode klopt niet\",0)","v":"postcode klopt niet"},1]
[null,null,null,{"$error":"#VALUE!"},null,null,null,{"$f":"_xlfn.XLOOKUP(G72,Postcode!$A$2:$A$2766,Postcode!$D$2:$D$2766,\"postcode klopt niet\",0)","v":"postcode klopt niet"},null,null,null,null,null,null,{"$f":"_xlfn.XLOOKUP(N72,Postcode!$A$2:$A$2766,Postcode!$D$2:$D$2766,\"postcode klopt niet\",0)","v":"postcode klopt niet"},1]
[null,null,null,{"$error":"#VALUE!"},null,null,null,{"$f":"_xlfn.XLOOKUP(G73,Postcode!$A$2:$A$2766,Postcode!$D$2:$D$2766,\"postcode klopt niet\",0)","v":"postcode klopt niet"},null,null,null,null,null,null,{"$f":"_xlfn.XLOOKUP(N73,Postcode!$A$2:$A$2766,Postcode!$D$2:$D$2766,\"postcode klopt niet\",0)","v":"postcode klopt niet"},1]
[null,null,null,{"$error":"#VALUE!"},null,null,null,{"$f":"_xlfn.XLOOKUP(G74,Postcode!$A$2:$A$2766,Postcode!$D$2:$D$2766,\"postcode klopt niet\",0)","v":"postcode klopt niet"},null,null,null,null,null,null,{"$f":"_xlfn.XLOOKUP(N74,Postcode!$A$2:$A$2766,Postcode!$D$2:$D$2766,\"postcode klopt niet\",0)","v":"postcode klopt niet"},1]
[null,null,null,{"$error":"#VALUE!"},null,null,null,{"$f":"_xlfn.XLOOKUP(G75,Postcode!$A$2:$A$2766,Postcode!$D$2:$D$2766,\"postcode klopt niet\",0)","v":"postcode klopt niet"},null,null,null,null,null,null,{"$f":"_xlfn.XLOOKUP(N75,Postcode!$A$2:$A$2766,Postcode!$D$2:$D$2766,\"postcode klopt niet\",0)","v":"postcode klopt niet"},1]
[null,null,null,{"$error":"#VALUE!"},null,null,null,{"$f":"_xlfn.XLOOKUP(G76,Postcode!$A$2:$A$2766,Postcode!$D$2:$D$2766,\"postcode klopt niet\",0)","v":"postcode klopt niet"},null,null,null,null,null,null,{"$f":"_xlfn.XLOOKUP(N76,Postcode!$A$2:$A$2766,Postcode!$D$2:$D$2766,\"postcode klopt niet\",0)","v":"postcode klopt niet"},1]
[null,null,null,{"$error":"#VALUE!"},null,null,null,{"$f":"_xlfn.XLOOKUP(G77,Postcode!$A$2:$A$2766,Postcode!$D$2:$D$2766,\"postcode klopt niet\",0)","v":"postcode klopt niet"},null,null,null,null,null,null,{"$f":"_xlfn.XLOOKUP(N77,Postcode!$A$2:$A$2766,Postcode!$D$2:$D$2766,\"postcode klopt niet\",0)","v":"postcode klopt niet"},1]
[null,null,null,{"$error":"#VALUE!"},null,null,null,{"$f":"_xlfn.XLOOKUP(G78,Postcode!$A$2:$A$2766,Postcode!$D$2:$D$2766,\"postcode klopt niet\",0)","v":"postcode klopt niet"},null,null,null,null,null,null,{"$f":"_xlfn.XLOOKUP(N78,Postcode!$A$2:$A$2766,Postcode!$D$2:$D$2766,\"postcode klopt niet\",0)","v":"postcode klopt niet"},1]
[null,null,null,{"$error":"#VALUE!"},null,null,null,{"$f":"_xlfn.XLOOKUP(G79,Postcode!$A$2:$A$2766,Postcode!$D$2:$D$2766,\"postcode klopt niet\",0)","v":"postcode klopt niet"},null,null,null,null,null,null,{"$f":"_xlfn.XLOOKUP(N79,Postcode!$A$2:$A$2766,Postcode!$D$2:$D$2766,\"postcode klopt niet\",0)","v":"postcode klopt niet"},1]
[null,null,null,{"$error":"#VALUE!"},null,null,null,{"$f":"_xlfn.XLOOKUP(G80,Postcode!$A$2:$A$2766,Postcode!$D$2:$D$2766,\"postcode klopt niet\",0)","v":"postcode klopt niet"},null,null,null,null,null,null,{"$f":"_xlfn.XLOOKUP(N80,Postcode!$A$2:$A$2766,Postcode!$D$2:$D$2766,\"postcode klopt niet\",0)","v":"postcode klopt niet"},1]
[null,null,null,{"$error":"#VALUE!"},null,null,null,{"$f":"_xlfn.XLOOKUP(G81,Postcode!$A$2:$A$2766,Postcode!$D$2:$D$2766,\"postcode klopt niet\",0)","v":"postcode klopt niet"},null,null,null,null,null,null,{"$f":"_xlfn.XLOOKUP(N81,Postcode!$A$2:$A$2766,Postcode!$D$2:$D$2766,\"postcode klopt niet\",0)","v":"postcode klopt niet"},1]
[null,null,null,{"$error":"#VALUE!"},null,null,null,{"$f":"_xlfn.XLOOKUP(G82,Postcode!$A$2:$A$2766,Postcode!$D$2:$D$2766,\"postcode klopt niet\",0)","v":"postcode klopt niet"},null,null,null,null,null,null,{"$f":"_xlfn.XLOOKUP(N82,Postcode!$A$2:$A$2766,Postcode!$D$2:$D$2766,\"postcode klopt niet\",0)","v":"postcode klopt niet"},1]
[null,null,null,{"$error":"#VALUE!"},null,null,null,{"$f":"_xlfn.XLOOKUP(G83,Postcode!$A$2:$A$2766,Postcode!$D$2:$D$2766,\"postcode klopt niet\",0)","v":"postcode klopt niet"},null,null,null,null,null,null,{"$f":"_xlfn.XLOOKUP(N83,Postcode!$A$2:$A$2766,Postcode!$D$2:$D$2766,\"postcode klopt niet\",0)","v":"postcode klopt niet"},1]
[null,null,null,{"$error":"#VALUE!"},null,null,null,{"$f":"_xlfn.XLOOKUP(G84,Postcode!$A$2:$A$2766,Postcode!$D$2:$D$2766,\"postcode klopt niet\",0)","v":"postcode klopt niet"},null,null,null,null,null,null,{"$f":"_xlfn.XLOOKUP(N84,Postcode!$A$2:$A$2766,Postcode!$D$2:$D$2766,\"postcode klopt niet\",0)","v":"postcode klopt niet"},1]
[null,null,null,{"$error":"#VALUE!"},null,null,null,{"$f":"_xlfn.XLOOKUP(G85,Postcode!$A$2:$A$2766,Postcode!$D$2:$D$2766,\"postcode klopt niet\",0)","v":"postcode klopt niet"},null,null,null,null,null,null,{"$f":"_xlfn.XLOOKUP(N85,Postcode!$A$2:$A$2766,Postcode!$D$2:$D$2766,\"postcode klopt niet\",0)","v":"postcode klopt niet"},1]
[null,null,null,{"$error":"#VALUE!"},null,null,null,{"$f":"_xlfn.XLOOKUP(G86,Postcode!$A$2:$A$2766,Postcode!$D$2:$D$2766,\"postcode klopt niet\",0)","v":"postcode klopt niet"},null,null,null,null,null,null,{"$f":"_xlfn.XLOOKUP(N86,Postcode!$A$2:$A$2766,Postcode!$D$2:$D$2766,\"postcode klopt niet\",0)","v":"postcode klopt niet"},1]
[null,null,null,{"$error":"#VALUE!"},null,null,null,{"$f":"_xlfn.XLOOKUP(G87,Postcode!$A$2:$A$2766,Postcode!$D$2:$D$2766,\"postcode klopt niet\",0)","v":"postcode klopt niet"},null,null,null,null,null,null,{"$f":"_xlfn.XLOOKUP(N87,Postcode!$A$2:$A$2766,Postcode!$D$2:$D$2766,\"postcode klopt niet\",0)","v":"postcode klopt niet"},1]
[null,null,null,{"$error":"#VALUE!"},null,null,null,{"$f":"_xlfn.XLOOKUP(G88,Postcode!$A$2:$A$2766,Postcode!$D$2:$D$2766,\"postcode klopt niet\",0)","v":"postcode klopt niet"},null,null,null,null,null,null,{"$f":"_xlfn.XLOOKUP(N88,Postcode!$A$2:$A$2766,Postcode!$D$2:$D$2766,\"postcode klopt niet\",0)","v":"postcode klopt niet"},1]
[null,null,null,{"$error":"#VALUE!"},null,null,null,{"$f":"_xlfn.XLOOKUP(G89,Postcode!$A$2:$A$2766,Postcode!$D$2:$D$2766,\"postcode klopt niet\",0)","v":"postcode klopt niet"},null,null,null,null,null,null,{"$f":"_xlfn.XLOOKUP(N89,Postcode!$A$2:$A$2766,Postcode!$D$2:$D$2766,\"postcode klopt niet\",0)","v":"postcode klopt niet"},1]
[null,null,null,{"$error":"#VALUE!"},null,null,null,{"$f":"_xlfn.XLOOKUP(G90,Postcode!$A$2:$A$2766,Postcode!$D$2:$D$2766,\"postcode klopt niet\",0)","v":"postcode klopt niet"},null,null,null,null,null,null,{"$f":"_xlfn.XLOOKUP(N90,Postcode!$A$2:$A$2766,Postcode!$D$2:$D$2766,\"postcode klopt niet\",0)","v":"postcode klopt niet"},1]
[null,null,null,{"$error":"#VALUE!"},null,null,null,{"$f":"_xlfn.XLOOKUP(G91,Postcode!$A$2:$A$2766,Postcode!$D$2:$D$2766,\"postcode klopt niet\",0)","v":"postcode klopt niet"},null,null,null,null,null,null,{"$f":"_xlfn.XLOOKUP(N91,Postcode!$A$2:$A$2766,Postcode!$D$2:$D$2766,\"postcode klopt niet\",0)","v":"postcode klopt niet"},1]
[null,null,null,{"$error":"#VALUE!"},null,null,null,{"$f":"_xlfn.XLOOKUP(G92,Postcode!$A$2:$A$2766,Postcode!$D$2:$D$2766,\"postcode klopt niet\",0)","v":"postcode klopt niet"},null,null,null,null,null,null,{"$f":"_xlfn.XLOOKUP(N92,Postcode!$A$2:$A$2766,Postcode!$D$2:$D$2766,\"postcode klopt niet\",0)","v":"postcode klopt niet"},1]
[null,null,null,{"$error":"#VALUE!"},null,null,null,{"$f":"_xlfn.XLOOKUP(G93,Postcode!$A$2:$A$2766,Postcode!$D$2:$D$2766,\"postcode klopt niet\",0)","v":"postcode klopt niet"},null,null,null,null,null,null,{"$f":"_xlfn.XLOOKUP(N93,Postcode!$A$2:$A$2766,Postcode!$D$2:$D$2766,\"postcode klopt niet\",0)","v":"postcode klopt niet"},1]
[null,null,null,{"$error":"#VALUE!"},null,null,null,{"$f":"_xlfn.XLOOKUP(G94,Postcode!$A$2:$A$2766,Postcode!$D$2:$D$2766,\"postcode klopt niet\",0)","v":"postcode klopt niet"},null,null,null,null,null,null,{"$f":"_xlfn.XLOOKUP(N94,Postcode!$A$2:$A$2766,Postcode!$D$2:$D$2766,\"postcode klopt niet\",0)","v":"postcode klopt niet"},1]
[null,null,null,{"$error":"#VALUE!"},null,null,null,{"$f":"_xlfn.XLOOKUP(G95,Postcode!$A$2:$A$2766,Postcode!$D$2:$D$2766,\"postcode klopt niet\",0)","v":"postcode klopt niet"},null,null,null,null,null,null,{"$f":"_xlfn.XLOOKUP(N95,Postcode!$A$2:$A$2766,Postcode!$D$2:$D$2766,\"postcode klopt niet\",0)","v":"postcode klopt niet"},1]
[null,null,null,{"$error":"#VALUE!"},null,null,null,{"$f":"_xlfn.XLOOKUP(G96,Postcode!$A$2:$A$2766,Postcode!$D$2:$D$2766,\"postcode klopt niet\",0)","v":"postcode klopt niet"},null,null,null,null,null,null,{"$f":"_xlfn.XLOOKUP(N96,Postcode!$A$2:$A$2766,Postcode!$D$2:$D$2766,\"postcode klopt niet\",0)","v":"postcode klopt niet"},1]
[null,null,null,{"$error":"#VALUE!"},null,null,null,{"$f":"_xlfn.XLOOKUP(G97,Postcode!$A$2:$A$2766,Postcode!$D$2:$D$2766,\"postcode klopt niet\",0)","v":"postcode klopt niet"},null,null,null,null,null,null,{"$f":"_xlfn.XLOOKUP(N97,Postcode!$A$2:$A$2766,Postcode!$D$2:$D$2766,\"postcode klopt niet\",0)","v":"postcode klopt niet"},1]
[null,null,null,{"$error":"#VALUE!"},null,null,null,{"$f":"_xlfn.XLOOKUP(G98,Postcode!$A$2:$A$2766,Postcode!$D$2:$D$2766,\"postcode klopt niet\",0)","v":"postcode klopt niet"},null,null,null,null,null,null,{"$f":"_xlfn.XLOOKUP(N98,Postcode!$A$2:$A$2766,Postcode!$D$2:$D$2766,\"postcode klopt niet\",0)","v":"postcode klopt niet"},1]
[null,null,null,{"$error":"#VALUE!"},null,null,null,{"$f":"_xlfn.XLOOKUP(G99,Postcode!$A$2:$A$2766,Postcode!$D$2:$D$2766,\"postcode klopt niet\",0)","v":"postcode klopt niet"},null,null,null,null,null,null,{"$f":"_xlfn.XLOOKUP(N99,Postcode!$A$2:$A$2766,Postcode!$D$2:$D$2766,\"postcode klopt niet\",0)","v":"postcode klopt niet"},1]
[null,null,null,{"$error":"#VALUE!"},null,null,null,{"$f":"_xlfn.XLOOKUP(G100,Postcode!$A$2:$A$2766,Postcode!$D$2:$D$2766,\"postcode klopt niet\",0)","v":"postcode klopt niet"},null,null,null,null,null,null,{"$f":"_xlfn.XLOOKUP(N100,Postcode!$A$2:$A$2766,Postcode!$D$2:$D$2766,\"postcode klopt niet\",0)","v":"postcode klopt niet"},1]
[null,null,null,{"$error":"#VALUE!"},null,null,null,{"$f":"_xlfn.XLOOKUP(G101,Postcode!$A$2:$A$2766,Postcode!$D$2:$D$2766,\"postcode klopt niet\",0)","v":"postcode klopt niet"},null,null,null,null,null,null,{"$f":"_xlfn.XLOOKUP(N101,Postcode!$A$2:$A$2766,Postcode!$D$2:$D$2766,\"postcode klopt niet\",0)","v":"postcode klopt niet"},1]
[null,null,null,{"$error":"#VALUE!"},null,null,null,{"$f":"_xlfn.XLOOKUP(G102,Postcode!$A$2:$A$2766,Postcode!$D$2:$D$2766,\"postcode klopt niet\",0)","v":"postcode klopt niet"},null,null,null,null,null,null,{"$f":"_xlfn.XLOOKUP(N102,Postcode!$A$2:$A$2766,Postcode!$D$2:$D$2766,\"postcode klopt niet\",0)","v":"postcode klopt niet"},1]
[]
[]
[]
[]
[]
[]
[null,null,null,null,null,null,{"$f":"MOD(930407131,97)","v":9}]

{"sheet":"niet gebruikt 3","index":5,"n_rows":109,"n_cols":16,"rows_kept":109,"cut":false,"hidden":false,"merged":[[0,0,0,7],[0,8,0,14]]}
["Gegevens Lid",null,null,null,null,null,null,null,"Gegevens Ouder/Voogd ( in geval van gescheiden ouders, degene die betaalt)",null,null,null,null,null,null,{"$f":"Algemeen!B7","v":"niet gebruikt 3"}]
["Naam","Voornaam","Rijksregisternr° (00.00.00-000.00)","Geboortedatum","Straat","Nr°/Bus","Postcode","Gemeente","Naam","Voornaam","Rijksregisternr° (00.00.00-000.00)","Straat","Nr°/Bus","Postcode","Gemeente","Controle"]
["vb. Evenepoel","vb. Remco","93.04.07-131.88",{"$f":"DATE((IF(VALUE((RIGHT(SUBSTITUTE(SUBSTITUTE(C3,\".\",\"\"),\"-\",\"\"),2)))=(97-(MOD(LEFT(SUBSTITUTE(SUBSTITUTE(C3,\".\",\"\"),\"-\",\"\"),9),97))),1900+(LEFT(SUBSTITUTE(SUBSTITUTE(C3,\".\",\"\"),\"-\",\"\"),2)),2000+(LEFT(SUBSTITUTE(SUBSTITUTE(C3,\".\",\"\"),\"-\",\"\"),2)))),(MID(SUBSTITUTE(SUBSTITUTE(C3,\".\",\"\"),\"-\",\"\"),3,2)),(MID(SUBSTITUTE(SUBSTITUTE(C3,\".\",\"\"),\"-\",\"\"),5,2)))","v":"1993-04-07"},"Vogelzangstraat","37/3",3540,{"$f":"_xlfn.XLOOKUP(G3,Postcode!$A$2:$A$2766,Postcode!$D$2:$D$2766,\"postcode klopt niet\",0)","v":"HERK-DE-STAD"},"vb. Evenepoel","vb. Patrick","66.03.17-144.48","Parklaan",23,3800,{"$f":"_xlfn.XLOOKUP(N3,Postcode!$A$2:$A$2766,Postcode!$D$2:$D$2766,\"postcode klopt niet\",0)","v":"SINT-TRUIDEN"}]
[null,null,null,{"$error":"#VALUE!"},null,null,null,{"$f":"_xlfn.XLOOKUP(G4,Postcode!$A$2:$A$2766,Postcode!$D$2:$D$2766,\"postcode klopt niet\",0)","v":"postcode klopt niet"},null,null,null,null,null,null,{"$f":"_xlfn.XLOOKUP(N4,Postcode!$A$2:$A$2766,Postcode!$D$2:$D$2766,\"postcode klopt niet\",0)","v":"postcode klopt niet"},{"$f":"COUNTA(A4,B4,D4,G4)","v":1}]
[null,null,null,{"$error":"#VALUE!"},null,null,null,{"$f":"_xlfn.XLOOKUP(G5,Postcode!$A$2:$A$2766,Postcode!$D$2:$D$2766,\"postcode klopt niet\",0)","v":"postcode klopt niet"},null,null,null,null,null,null,{"$f":"_xlfn.XLOOKUP(N5,Postcode!$A$2:$A$2766,Postcode!$D$2:$D$2766,\"postcode klopt niet\",0)","v":"postcode klopt niet"},{"$f":"COUNTA(A5,B5,D5,G5)","v":1}]
[null,null,null,{"$error":"#VALUE!"},null,null,null,{"$f":"_xlfn.XLOOKUP(G6,Postcode!$A$2:$A$2766,Postcode!$D$2:$D$2766,\"postcode klopt niet\",0)","v":"postcode klopt niet"},null,null,null,null,null,null,{"$f":"_xlfn.XLOOKUP(N6,Postcode!$A$2:$A$2766,Postcode!$D$2:$D$2766,\"postcode klopt niet\",0)","v":"postcode klopt niet"},1]
[null,null,null,{"$error":"#VALUE!"},null,null,null,{"$f":"_xlfn.XLOOKUP(G7,Postcode!$A$2:$A$2766,Postcode!$D$2:$D$2766,\"postcode klopt niet\",0)","v":"postcode klopt niet"},null,null,null,null,null,null,{"$f":"_xlfn.XLOOKUP(N7,Postcode!$A$2:$A$2766,Postcode!$D$2:$D$2766,\"postcode klopt niet\",0)","v":"postcode klopt niet"},1]
[null,null,null,{"$error":"#VALUE!"},null,null,null,{"$f":"_xlfn.XLOOKUP(G8,Postcode!$A$2:$A$2766,Postcode!$D$2:$D$2766,\"postcode klopt niet\",0)","v":"postcode klopt niet"},null,null,null,null,null,null,{"$f":"_xlfn.XLOOKUP(N8,Postcode!$A$2:$A$2766,Postcode!$D$2:$D$2766,\"postcode klopt niet\",0)","v":"postcode klopt niet"},1]
[null,null,null,{"$error":"#VALUE!"},null,null,null,{"$f":"_xlfn.XLOOKUP(G9,Postcode!$A$2:$A$2766,Postcode!$D$2:$D$2766,\"postcode klopt niet\",0)","v":"postcode klopt niet"},null,null,null,null,null,null,{"$f":"_xlfn.XLOOKUP(N9,Postcode!$A$2:$A$2766,Postcode!$D$2:$D$2766,\"postcode klopt niet\",0)","v":"postcode klopt niet"},1]
[null,null,null,{"$error":"#VALUE!"},null,null,null,{"$f":"_xlfn.XLOOKUP(G10,Postcode!$A$2:$A$2766,Postcode!$D$2:$D$2766,\"postcode klopt niet\",0)","v":"postcode klopt niet"},null,null,null,null,null,null,{"$f":"_xlfn.XLOOKUP(N10,Postcode!$A$2:$A$2766,Postcode!$D$2:$D$2766,\"postcode klopt niet\",0)","v":"postcode klopt niet"},1]
[null,null,null,{"$error":"#VALUE!"},null,null,null,{"$f":"_xlfn.XLOOKUP(G11,Postcode!$A$2:$A$2766,Postcode!$D$2:$D$2766,\"postcode klopt niet\",0)","v":"postcode klopt niet"},null,null,null,null,null,null,{"$f":"_xlfn.XLOOKUP(N11,Postcode!$A$2:$A$2766,Postcode!$D$2:$D$2766,\"postcode klopt niet\",0)","v":"postcode klopt niet"},1]
[null,null,null,{"$error":"#VALUE!"},null,null,null,{"$f":"_xlfn.XLOOKUP(G12,Postcode!$A$2:$A$2766,Postcode!$D$2:$D$2766,\"postcode klopt niet\",0)","v":"postcode klopt niet"},null,null,null,null,null,null,{"$f":"_xlfn.XLOOKUP(N12,Postcode!$A$2:$A$2766,Postcode!$D$2:$D$2766,\"postcode klopt niet\",0)","v":"postcode klopt niet"},1]
[null,null,null,{"$error":"#VALUE!"},null,null,null,{"$f":"_xlfn.XLOOKUP(G13,Postcode!$A$2:$A$2766,Postcode!$D$2:$D$2766,\"postcode klopt niet\",0)","v":"postcode klopt niet"},null,null,null,null,null,null,{"$f":"_xlfn.XLOOKUP(N13,Postcode!$A$2:$A$2766,Postcode!$D$2:$D$2766,\"postcode klopt niet\",0)","v":"postcode klopt niet"},1]
[null,null,null,{"$error":"#VALUE!"},null,null,null,{"$f":"_xlfn.XLOOKUP(G14,Postcode!$A$2:$A$2766,Postcode!$D$2:$D$2766,\"postcode klopt niet\",0)","v":"postcode klopt niet"},null,null,null,null,null,null,{"$f":"_xlfn.XLOOKUP(N14,Postcode!$A$2:$A$2766,Postcode!$D$2:$D$2766,\"postcode klopt niet\",0)","v":"postcode klopt niet"},1]
[null,null,null,{"$error":"#VALUE!"},null,null,null,{"$f":"_xlfn.XLOOKUP(G15,Postcode!$A$2:$A$2766,Postcode!$D$2:$D$2766,\"postcode klopt niet\",0)","v":"postcode klopt niet"},null,null,null,null,null,null,{"$f":"_xlfn.XLOOKUP(N15,Postcode!$A$2:$A$2766,Postcode!$D$2:$D$2766,\"postcode klopt niet\",0)","v":"postcode klopt niet"},1]
[null,null,null,{"$error":"#VALUE!"},null,null,null,{"$f":"_xlfn.XLOOKUP(G16,Postcode!$A$2:$A$2766,Postcode!$D$2:$D$2766,\"postcode klopt niet\",0)","v":"postcode klopt niet"},null,null,null,null,null,null,{"$f":"_xlfn.XLOOKUP(N16,Postcode!$A$2:$A$2766,Postcode!$D$2:$D$2766,\"postcode klopt niet\",0)","v":"postcode klopt niet"},1]
[null,null,null,{"$error":"#VALUE!"},null,null,null,{"$f":"_xlfn.XLOOKUP(G17,Postcode!$A$2:$A$2766,Postcode!$D$2:$D$2766,\"postcode klopt niet\",0)","v":"postcode klopt niet"},null,null,null,null,null,null,{"$f":"_xlfn.XLOOKUP(N17,Postcode!$A$2:$A$2766,Postcode!$D$2:$D$2766,\"postcode klopt niet\",0)","v":"postcode klopt niet"},1]
[null,null,null,{"$error":"#VALUE!"},null,null,null,{"$f":"_xlfn.XLOOKUP(G18,Postcode!$A$2:$A$2766,Postcode!$D$2:$D$2766,\"postcode klopt niet\",0)","v":"postcode klopt niet"},null,null,null,null,null,null,{"$f":"_xlfn.XLOOKUP(N18,Postcode!$A$2:$A$2766,Postcode!$D$2:$D$2766,\"postcode klopt niet\",0)","v":"postcode klopt niet"},1]
[null,null,null,{"$error":"#VALUE!"},null,null,null,{"$f":"_xlfn.XLOOKUP(G19,Postcode!$A$2:$A$2766,Postcode!$D$2:$D$2766,\"postcode klopt niet\",0)","v":"postcode klopt niet"},null,null,null,null,null,null,{"$f":"_xlfn.XLOOKUP(N19,Postcode!$A$2:$A$2766,Postcode!$D$2:$D$2766,\"postcode klopt niet\",0)","v":"postcode klopt niet"},1]
[null,null,null,{"$error":"#VALUE!"},null,null,null,{"$f":"_xlfn.XLOOKUP(G20,Postcode!$A$2:$A$2766,Postcode!$D$2:$D$2766,\"postcode klopt niet\",0)","v":"postcode klopt niet"},null,null,null,null,null,null,{"$f":"_xlfn.XLOOKUP(N20,Postcode!$A$2:$A$2766,Postcode!$D$2:$D$2766,\"postcode klopt niet\",0)","v":"postcode klopt niet"},1]
[null,null,null,{"$error":"#VALUE!"},null,null,null,{"$f":"_xlfn.XLOOKUP(G21,Postcode!$A$2:$A$2766,Postcode!$D$2:$D$2766,\"postcode klopt niet\",0)","v":"postcode klopt niet"},null,null,null,null,null,null,{"$f":"_xlfn.XLOOKUP(N21,Postcode!$A$2:$A$2766,Postcode!$D$2:$D$2766,\"postcode klopt niet\",0)","v":"postcode klopt niet"},1]
[null,null,null,{"$error":"#VALUE!"},null,null,null,{"$f":"_xlfn.XLOOKUP(G22,Postcode!$A$2:$A$2766,Postcode!$D$2:$D$2766,\"postcode klopt niet\",0)","v":"postcode klopt niet"},null,null,null,null,null,null,{"$f":"_xlfn.XLOOKUP(N22,Postcode!$A$2:$A$2766,Postcode!$D$2:$D$2766,\"postcode klopt niet\",0)","v":"postcode klopt niet"},1]
[null,null,null,{"$error":"#VALUE!"},null,null,null,{"$f":"_xlfn.XLOOKUP(G23,Postcode!$A$2:$A$2766,Postcode!$D$2:$D$2766,\"postcode klopt niet\",0)","v":"postcode klopt niet"},null,null,null,null,null,null,{"$f":"_xlfn.XLOOKUP(N23,Postcode!$A$2:$A$2766,Postcode!$D$2:$D$2766,\"postcode klopt niet\",0)","v":"postcode klopt niet"},1]
[null,null,null,{"$error":"#VALUE!"},null,null,null,{"$f":"_xlfn.XLOOKUP(G24,Postcode!$A$2:$A$2766,Postcode!$D$2:$D$2766,\"postcode klopt niet\",0)","v":"postcode klopt niet"},null,null,null,null,null,null,{"$f":"_xlfn.XLOOKUP(N24,Postcode!$A$2:$A$2766,Postcode!$D$2:$D$2766,\"postcode klopt niet\",0)","v":"postcode klopt niet"},1]
[null,null,null,{"$error":"#VALUE!"},null,null,null,{"$f":"_xlfn.XLOOKUP(G25,Postcode!$A$2:$A$2766,Postcode!$D$2:$D$2766,\"postcode klopt niet\",0)","v":"postcode klopt niet"},null,null,null,null,null,null,{"$f":"_xlfn.XLOOKUP(N25,Postcode!$A$2:$A$2766,Postcode!$D$2:$D$2766,\"postcode klopt niet\",0)","v":"postcode klopt niet"},1]
[null,null,null,{"$error":"#VALUE!"},null,null,null,{"$f":"_xlfn.XLOOKUP(G26,Postcode!$A$2:$A$2766,Postcode!$D$2:$D$2766,\"postcode klopt niet\",0)","v":"postcode klopt niet"},null,null,null,null,null,null,{"$f":"_xlfn.XLOOKUP(N26,Postcode!$A$2:$A$2766,Postcode!$D$2:$D$2766,\"postcode klopt niet\",0)","v":"postcode klopt niet"},1]
[null,null,null,{"$error":"#VALUE!"},null,null,null,{"$f":"_xlfn.XLOOKUP(G27,Postcode!$A$2:$A$2766,Postcode!$D$2:$D$2766,\"postcode klopt niet\",0)","v":"postcode klopt niet"},null,null,null,null,null,null,{"$f":"_xlfn.XLOOKUP(N27,Postcode!$A$2:$A$2766,Postcode!$D$2:$D$2766,\"postcode klopt niet\",0)","v":"postcode klopt niet"},1]
[null,null,null,{"$error":"#VALUE!"},null,null,null,{"$f":"_xlfn.XLOOKUP(G28,Postcode!$A$2:$A$2766,Postcode!$D$2:$D$2766,\"postcode klopt niet\",0)","v":"postcode klopt niet"},null,null,null,null,null,null,{"$f":"_xlfn.XLOOKUP(N28,Postcode!$A$2:$A$2766,Postcode!$D$2:$D$2766,\"postcode klopt niet\",0)","v":"postcode klopt niet"},1]
[null,null,null,{"$error":"#VALUE!"},null,null,null,{"$f":"_xlfn.XLOOKUP(G29,Postcode!$A$2:$A$2766,Postcode!$D$2:$D$2766,\"postcode klopt niet\",0)","v":"postcode klopt niet"},null,null,null,null,null,null,{"$f":"_xlfn.XLOOKUP(N29,Postcode!$A$2:$A$2766,Postcode!$D$2:$D$2766,\"postcode klopt niet\",0)","v":"postcode klopt niet"},1]
[null,null,null,{"$error":"#VALUE!"},null,null,null,{"$f":"_xlfn.XLOOKUP(G30,Postcode!$A$2:$A$2766,Postcode!$D$2:$D$2766,\"postcode klopt niet\",0)","v":"postcode klopt niet"},null,null,null,null,null,null,{"$f":"_xlfn.XLOOKUP(N30,Postcode!$A$2:$A$2766,Postcode!$D$2:$D$2766,\"postcode klopt niet\",0)","v":"postcode klopt niet"},1]
[null,null,null,{"$error":"#VALUE!"},null,null,null,{"$f":"_xlfn.XLOOKUP(G31,Postcode!$A$2:$A$2766,Postcode!$D$2:$D$2766,\"postcode klopt niet\",0)","v":"postcode klopt niet"},null,null,null,null,null,null,{"$f":"_xlfn.XLOOKUP(N31,Postcode!$A$2:$A$2766,Postcode!$D$2:$D$2766,\"postcode klopt niet\",0)","v":"postcode klopt niet"},1]
[null,null,null,{"$error":"#VALUE!"},null,null,null,{"$f":"_xlfn.XLOOKUP(G32,Postcode!$A$2:$A$2766,Postcode!$D$2:$D$2766,\"postcode klopt niet\",0)","v":"postcode klopt niet"},null,null,null,null,null,null,{"$f":"_xlfn.XLOOKUP(N32,Postcode!$A$2:$A$2766,Postcode!$D$2:$D$2766,\"postcode klopt niet\",0)","v":"postcode klopt niet"},1]
[null,null,null,{"$error":"#VALUE!"},null,null,null,{"$f":"_xlfn.XLOOKUP(G33,Postcode!$A$2:$A$2766,Postcode!$D$2:$D$2766,\"postcode klopt niet\",0)","v":"postcode klopt niet"},null,null,null,null,null,null,{"$f":"_xlfn.XLOOKUP(N33,Postcode!$A$2:$A$2766,Postcode!$D$2:$D$2766,\"postcode klopt niet\",0)","v":"postcode klopt niet"},1]
[null,null,null,{"$error":"#VALUE!"},null,null,null,{"$f":"_xlfn.XLOOKUP(G34,Postcode!$A$2:$A$2766,Postcode!$D$2:$D$2766,\"postcode klopt niet\",0)","v":"postcode klopt niet"},null,null,null,null,null,null,{"$f":"_xlfn.XLOOKUP(N34,Postcode!$A$2:$A$2766,Postcode!$D$2:$D$2766,\"postcode klopt niet\",0)","v":"postcode klopt niet"},1]
[null,null,null,{"$error":"#VALUE!"},null,null,null,{"$f":"_xlfn.XLOOKUP(G35,Postcode!$A$2:$A$2766,Postcode!$D$2:$D$2766,\"postcode klopt niet\",0)","v":"postcode klopt niet"},null,null,null,null,null,null,{"$f":"_xlfn.XLOOKUP(N35,Postcode!$A$2:$A$2766,Postcode!$D$2:$D$2766,\"postcode klopt niet\",0)","v":"postcode klopt niet"},1]
[null,null,null,{"$error":"#VALUE!"},null,null,null,{"$f":"_xlfn.XLOOKUP(G36,Postcode!$A$2:$A$2766,Postcode!$D$2:$D$2766,\"postcode klopt niet\",0)","v":"postcode klopt niet"},null,null,null,null,null,null,{"$f":"_xlfn.XLOOKUP(N36,Postcode!$A$2:$A$2766,Postcode!$D$2:$D$2766,\"postcode klopt niet\",0)","v":"postcode klopt niet"},1]
[null,null,null,{"$error":"#VALUE!"},null,null,null,{"$f":"_xlfn.XLOOKUP(G37,Postcode!$A$2:$A$2766,Postcode!$D$2:$D$2766,\"postcode klopt niet\",0)","v":"postcode klopt niet"},null,null,null,null,null,null,{"$f":"_xlfn.XLOOKUP(N37,Postcode!$A$2:$A$2766,Postcode!$D$2:$D$2766,\"postcode klopt niet\",0)","v":"postcode klopt niet"},1]
[null,null,null,{"$error":"#VALUE!"},null,null,null,{"$f":"_xlfn.XLOOKUP(G38,Postcode!$A$2:$A$2766,Postcode!$D$2:$D$2766,\"postcode klopt niet\",0)","v":"postcode klopt niet"},null,null,null,null,null,null,{"$f":"_xlfn.XLOOKUP(N38,Postcode!$A$2:$A$2766,Postcode!$D$2:$D$2766,\"postcode klopt niet\",0)","v":"postcode klopt niet"},1]
[null,null,null,{"$error":"#VALUE!"},null,null,null,{"$f":"_xlfn.XLOOKUP(G39,Postcode!$A$2:$A$2766,Postcode!$D$2:$D$2766,\"postcode klopt niet\",0)","v":"postcode klopt niet"},null,null,null,null,null,null,{"$f":"_xlfn.XLOOKUP(N39,Postcode!$A$2:$A$2766,Postcode!$D$2:$D$2766,\"postcode klopt niet\",0)","v":"postcode klopt niet"},1]
[null,null,null,{"$error":"#VALUE!"},null,null,null,{"$f":"_xlfn.XLOOKUP(G40,Postcode!$A$2:$A$2766,Postcode!$D$2:$D$2766,\"postcode klopt niet\",0)","v":"postcode klopt niet"},null,null,null,null,null,null,{"$f":"_xlfn.XLOOKUP(N40,Postcode!$A$2:$A$2766,Postcode!$D$2:$D$2766,\"postcode klopt niet\",0)","v":"postcode klopt niet"},1]
[null,null,null,{"$error":"#VALUE!"},null,null,null,{"$f":"_xlfn.XLOOKUP(G41,Postcode!$A$2:$A$2766,Postcode!$D$2:$D$2766,\"postcode klopt niet\",0)","v":"postcode klopt niet"},null,null,null,null,null,null,{"$f":"_xlfn.XLOOKUP(N41,Postcode!$A$2:$A$2766,Postcode!$D$2:$D$2766,\"postcode klopt niet\",0)","v":"postcode klopt niet"},1]
[null,null,null,{"$error":"#VALUE!"},null,null,null,{"$f":"_xlfn.XLOOKUP(G42,Postcode!$A$2:$A$2766,Postcode!$D$2:$D$2766,\"postcode klopt niet\",0)","v":"postcode klopt niet"},null,null,null,null,null,null,{"$f":"_xlfn.XLOOKUP(N42,Postcode!$A$2:$A$2766,Postcode!$D$2:$D$2766,\"postcode klopt niet\",0)","v":"postcode klopt niet"},1]
[null,null,null,{"$error":"#VALUE!"},null,null,null,{"$f":"_xlfn.XLOOKUP(G43,Postcode!$A$2:$A$2766,Postcode!$D$2:$D$2766,\"postcode klopt niet\",0)","v":"postcode klopt niet"},null,null,null,null,null,null,{"$f":"_xlfn.XLOOKUP(N43,Postcode!$A$2:$A$2766,Postcode!$D$2:$D$2766,\"postcode klopt niet\",0)","v":"postcode klopt niet"},1]
[null,null,null,{"$error":"#VALUE!"},null,null,null,{"$f":"_xlfn.XLOOKUP(G44,Postcode!$A$2:$A$2766,Postcode!$D$2:$D$2766,\"postcode klopt niet\",0)","v":"postcode klopt niet"},null,null,null,null,null,null,{"$f":"_xlfn.XLOOKUP(N44,Postcode!$A$2:$A$2766,Postcode!$D$2:$D$2766,\"postcode klopt niet\",0)","v":"postcode klopt niet"},1]
[null,null,null,{"$error":"#VALUE!"},null,null,null,{"$f":"_xlfn.XLOOKUP(G45,Postcode!$A$2:$A$2766,Postcode!$D$2:$D$2766,\"postcode klopt niet\",0)","v":"postcode klopt niet"},null,null,null,null,null,null,{"$f":"_xlfn.XLOOKUP(N45,Postcode!$A$2:$A$2766,Postcode!$D$2:$D$2766,\"postcode klopt niet\",0)","v":"postcode klopt niet"},1]
[null,null,null,{"$error":"#VALUE!"},null,null,null,{"$f":"_xlfn.XLOOKUP(G46,Postcode!$A$2:$A$2766,Postcode!$D$2:$D$2766,\"postcode klopt niet\",0)","v":"postcode klopt niet"},null,null,null,null,null,null,{"$f":"_xlfn.XLOOKUP(N46,Postcode!$A$2:$A$2766,Postcode!$D$2:$D$2766,\"postcode klopt niet\",0)","v":"postcode klopt niet"},1]
[null,null,null,{"$error":"#VALUE!"},null,null,null,{"$f":"_xlfn.XLOOKUP(G47,Postcode!$A$2:$A$2766,Postcode!$D$2:$D$2766,\"postcode klopt niet\",0)","v":"postcode klopt niet"},null,null,null,null,null,null,{"$f":"_xlfn.XLOOKUP(N47,Postcode!$A$2:$A$2766,Postcode!$D$2:$D$2766,\"postcode klopt niet\",0)","v":"postcode klopt niet"},1]
[null,null,null,{"$error":"#VALUE!"},null,null,null,{"$f":"_xlfn.XLOOKUP(G48,Postcode!$A$2:$A$2766,Postcode!$D$2:$D$2766,\"postcode klopt niet\",0)","v":"postcode klopt niet"},null,null,null,null,null,null,{"$f":"_xlfn.XLOOKUP(N48,Postcode!$A$2:$A$2766,Postcode!$D$2:$D$2766,\"postcode klopt niet\",0)","v":"postcode klopt niet"},1]
[null,null,null,{"$error":"#VALUE!"},null,null,null,{"$f":"_xlfn.XLOOKUP(G49,Postcode!$A$2:$A$2766,Postcode!$D$2:$D$2766,\"postcode klopt niet\",0)","v":"postcode klopt niet"},null,null,null,null,null,null,{"$f":"_xlfn.XLOOKUP(N49,Postcode!$A$2:$A$2766,Postcode!$D$2:$D$2766,\"postcode klopt niet\",0)","v":"postcode klopt niet"},1]
[null,null,null,{"$error":"#VALUE!"},null,null,null,{"$f":"_xlfn.XLOOKUP(G50,Postcode!$A$2:$A$2766,Postcode!$D$2:$D$2766,\"postcode klopt niet\",0)","v":"postcode klopt niet"},null,null,null,null,null,null,{"$f":"_xlfn.XLOOKUP(N50,Postcode!$A$2:$A$2766,Postcode!$D$2:$D$2766,\"postcode klopt niet\",0)","v":"postcode klopt niet"},1]
[null,null,null,{"$error":"#VALUE!"},null,null,null,{"$f":"_xlfn.XLOOKUP(G51,Postcode!$A$2:$A$2766,Postcode!$D$2:$D$2766,\"postcode klopt niet\",0)","v":"postcode klopt niet"},null,null,null,null,null,null,{"$f":"_xlfn.XLOOKUP(N51,Postcode!$A$2:$A$2766,Postcode!$D$2:$D$2766,\"postcode klopt niet\",0)","v":"postcode klopt niet"},1]
[null,null,null,{"$error":"#VALUE!"},null,null,null,{"$f":"_xlfn.XLOOKUP(G52,Postcode!$A$2:$A$2766,Postcode!$D$2:$D$2766,\"postcode klopt niet\",0)","v":"postcode klopt niet"},null,null,null,null,null,null,{"$f":"_xlfn.XLOOKUP(N52,Postcode!$A$2:$A$2766,Postcode!$D$2:$D$2766,\"postcode klopt niet\",0)","v":"postcode klopt niet"},1]
[null,null,null,{"$error":"#VALUE!"},null,null,null,{"$f":"_xlfn.XLOOKUP(G53,Postcode!$A$2:$A$2766,Postcode!$D$2:$D$2766,\"postcode klopt niet\",0)","v":"postcode klopt niet"},null,null,null,null,null,null,{"$f":"_xlfn.XLOOKUP(N53,Postcode!$A$2:$A$2766,Postcode!$D$2:$D$2766,\"postcode klopt niet\",0)","v":"postcode klopt niet"},1]
[null,null,null,{"$error":"#VALUE!"},null,null,null,{"$f":"_xlfn.XLOOKUP(G54,Postcode!$A$2:$A$2766,Postcode!$D$2:$D$2766,\"postcode klopt niet\",0)","v":"postcode klopt niet"},null,null,null,null,null,null,{"$f":"_xlfn.XLOOKUP(N54,Postcode!$A$2:$A$2766,Postcode!$D$2:$D$2766,\"postcode klopt niet\",0)","v":"postcode klopt niet"},1]
[null,null,null,{"$error":"#VALUE!"},null,null,null,{"$f":"_xlfn.XLOOKUP(G55,Postcode!$A$2:$A$2766,Postcode!$D$2:$D$2766,\"postcode klopt niet\",0)","v":"postcode klopt niet"},null,null,null,null,null,null,{"$f":"_xlfn.XLOOKUP(N55,Postcode!$A$2:$A$2766,Postcode!$D$2:$D$2766,\"postcode klopt niet\",0)","v":"postcode klopt niet"},1]
[null,null,null,{"$error":"#VALUE!"},null,null,null,{"$f":"_xlfn.XLOOKUP(G56,Postcode!$A$2:$A$2766,Postcode!$D$2:$D$2766,\"postcode klopt niet\",0)","v":"postcode klopt niet"},null,null,null,null,null,null,{"$f":"_xlfn.XLOOKUP(N56,Postcode!$A$2:$A$2766,Postcode!$D$2:$D$2766,\"postcode klopt niet\",0)","v":"postcode klopt niet"},1]
[null,null,null,{"$error":"#VALUE!"},null,null,null,{"$f":"_xlfn.XLOOKUP(G57,Postcode!$A$2:$A$2766,Postcode!$D$2:$D$2766,\"postcode klopt niet\",0)","v":"postcode klopt niet"},null,null,null,null,null,null,{"$f":"_xlfn.XLOOKUP(N57,Postcode!$A$2:$A$2766,Postcode!$D$2:$D$2766,\"postcode klopt niet\",0)","v":"postcode klopt niet"},1]
[null,null,null,{"$error":"#VALUE!"},null,null,null,{"$f":"_xlfn.XLOOKUP(G58,Postcode!$A$2:$A$2766,Postcode!$D$2:$D$2766,\"postcode klopt niet\",0)","v":"postcode klopt niet"},null,null,null,null,null,null,{"$f":"_xlfn.XLOOKUP(N58,Postcode!$A$2:$A$2766,Postcode!$D$2:$D$2766,\"postcode klopt niet\",0)","v":"postcode klopt niet"},1]
[null,null,null,{"$error":"#VALUE!"},null,null,null,{"$f":"_xlfn.XLOOKUP(G59,Postcode!$A$2:$A$2766,Postcode!$D$2:$D$2766,\"postcode klopt niet\",0)","v":"postcode klopt niet"},null,null,null,null,null,null,{"$f":"_xlfn.XLOOKUP(N59,Postcode!$A$2:$A$2766,Postcode!$D$2:$D$2766,\"postcode klopt niet\",0)","v":"postcode klopt niet"},1]
[null,null,null,{"$error":"#VALUE!"},null,null,null,{"$f":"_xlfn.XLOOKUP(G60,Postcode!$A$2:$A$2766,Postcode!$D$2:$D$2766,\"postcode klopt niet\",0)","v":"postcode klopt niet"},null,null,null,null,null,null,{"$f":"_xlfn.XLOOKUP(N60,Postcode!$A$2:$A$2766,Postcode!$D$2:$D$2766,\"postcode klopt niet\",0)","v":"postcode klopt niet"},1]
[null,null,null,{"$error":"#VALUE!"},null,null,null,{"$f":"_xlfn.XLOOKUP(G61,Postcode!$A$2:$A$2766,Postcode!$D$2:$D$2766,\"postcode klopt niet\",0)","v":"postcode klopt niet"},null,null,null,null,null,null,{"$f":"_xlfn.XLOOKUP(N61,Postcode!$A$2:$A$2766,Postcode!$D$2:$D$2766,\"postcode klopt niet\",0)","v":"postcode klopt niet"},1]
[null,null,null,{"$error":"#VALUE!"},null,null,null,{"$f":"_xlfn.XLOOKUP(G62,Postcode!$A$2:$A$2766,Postcode!$D$2:$D$2766,\"postcode klopt niet\",0)","v":"postcode klopt niet"},null,null,null,null,null,null,{"$f":"_xlfn.XLOOKUP(N62,Postcode!$A$2:$A$2766,Postcode!$D$2:$D$2766,\"postcode klopt niet\",0)","v":"postcode klopt niet"},1]
[null,null,null,{"$error":"#VALUE!"},null,null,null,{"$f":"_xlfn.XLOOKUP(G63,Postcode!$A$2:$A$2766,Postcode!$D$2:$D$2766,\"postcode klopt niet\",0)","v":"postcode klopt niet"},null,null,null,null,null,null,{"$f":"_xlfn.XLOOKUP(N63,Postcode!$A$2:$A$2766,Postcode!$D$2:$D$2766,\"postcode klopt niet\",0)","v":"postcode klopt niet"},1]
[null,null,null,{"$error":"#VALUE!"},null,null,null,{"$f":"_xlfn.XLOOKUP(G64,Postcode!$A$2:$A$2766,Postcode!$D$2:$D$2766,\"postcode klopt niet\",0)","v":"postcode klopt niet"},null,null,null,null,null,null,{"$f":"_xlfn.XLOOKUP(N64,Postcode!$A$2:$A$2766,Postcode!$D$2:$D$2766,\"postcode klopt niet\",0)","v":"postcode klopt niet"},1]
[null,null,null,{"$error":"#VALUE!"},null,null,null,{"$f":"_xlfn.XLOOKUP(G65,Postcode!$A$2:$A$2766,Postcode!$D$2:$D$2766,\"postcode klopt niet\",0)","v":"postcode klopt niet"},null,null,null,null,null,null,{"$f":"_xlfn.XLOOKUP(N65,Postcode!$A$2:$A$2766,Postcode!$D$2:$D$2766,\"postcode klopt niet\",0)","v":"postcode klopt niet"},1]
[null,null,null,{"$error":"#VALUE!"},null,null,null,{"$f":"_xlfn.XLOOKUP(G66,Postcode!$A$2:$A$2766,Postcode!$D$2:$D$2766,\"postcode klopt niet\",0)","v":"postcode klopt niet"},null,null,null,null,null,null,{"$f":"_xlfn.XLOOKUP(N66,Postcode!$A$2:$A$2766,Postcode!$D$2:$D$2766,\"postcode klopt niet\",0)","v":"postcode klopt niet"},1]
[null,null,null,{"$f":"DATE((IF(VALUE((RIGHT(SUBSTITUTE(SUBSTITUTE(C67,\".\",\"\"),\"-\",\"\"),2)))=(97-(MOD(LEFT(SUBSTITUTE(SUBSTITUTE(C67,\".\",\"\"),\"-\",\"\"),9),97))),1900+(LEFT(SUBSTITUTE(SUBSTITUTE(C67,\".\",\"\"),\"-\",\"\"),2)),2000+(LEFT(SUBSTITUTE(SUBSTITUTE(C67,\".\",\"\"),\"-\",\"\"),2)))),(MID(SUBSTITUTE(SUBSTITUTE(C67,\".\",\"\"),\"-\",\"\"),3,2)),(MID(SUBSTITUTE(SUBSTITUTE(C67,\".\",\"\"),\"-\",\"\"),5,2)))","v":{"$error":"#VALUE!"}},null,null,null,{"$f":"_xlfn.XLOOKUP(G67,Postcode!$A$2:$A$2766,Postcode!$D$2:$D$2766,\"postcode klopt niet\",0)","v":"postcode klopt niet"},null,null,null,null,null,null,{"$f":"_xlfn.XLOOKUP(N67,Postcode!$A$2:$A$2766,Postcode!$D$2:$D$2766,\"postcode klopt niet\",0)","v":"postcode klopt niet"},1]
[null,null,null,{"$error":"#VALUE!"},null,null,null,{"$f":"_xlfn.XLOOKUP(G68,Postcode!$A$2:$A$2766,Postcode!$D$2:$D$2766,\"postcode klopt niet\",0)","v":"postcode klopt niet"},null,null,null,null,null,null,{"$f":"_xlfn.XLOOKUP(N68,Postcode!$A$2:$A$2766,Postcode!$D$2:$D$2766,\"postcode klopt niet\",0)","v":"postcode klopt niet"},1]
[null,null,null,{"$error":"#VALUE!"},null,null,null,{"$f":"_xlfn.XLOOKUP(G69,Postcode!$A$2:$A$2766,Postcode!$D$2:$D$2766,\"postcode klopt niet\",0)","v":"postcode klopt niet"},null,null,null,null,null,null,{"$f":"_xlfn.XLOOKUP(N69,Postcode!$A$2:$A$2766,Postcode!$D$2:$D$2766,\"postcode klopt niet\",0)","v":"postcode klopt niet"},{"$f":"COUNTA(A69,B69,D69,G69)","v":1}]
[null,null,null,{"$error":"#VALUE!"},null,null,null,{"$f":"_xlfn.XLOOKUP(G70,Postcode!$A$2:$A$2766,Postcode!$D$2:$D$2766,\"postcode klopt niet\",0)","v":"postcode klopt niet"},null,null,null,null,null,null,{"$f":"_xlfn.XLOOKUP(N70,Postcode!$A$2:$A$2766,Postcode!$D$2:$D$2766,\"postcode klopt niet\",0)","v":"postcode klopt niet"},1]
[null,null,null,{"$error":"#VALUE!"},null,null,null,{"$f":"_xlfn.XLOOKUP(G71,Postcode!$A$2:$A$2766,Postcode!$D$2:$D$2766,\"postcode klopt niet\",0)","v":"postcode klopt niet"},null,null,null,null,null,null,{"$f":"_xlfn.XLOOKUP(N71,Postcode!$A$2:$A$2766,Postcode!$D$2:$D$2766,\"postcode klopt niet\",0)","v":"postcode klopt niet"},1]
[null,null,null,{"$error":"#VALUE!"},null,null,null,{"$f":"_xlfn.XLOOKUP(G72,Postcode!$A$2:$A$2766,Postcode!$D$2:$D$2766,\"postcode klopt niet\",0)","v":"postcode klopt niet"},null,null,null,null,null,null,{"$f":"_xlfn.XLOOKUP(N72,Postcode!$A$2:$A$2766,Postcode!$D$2:$D$2766,\"postcode klopt niet\",0)","v":"postcode klopt niet"},1]
[null,null,null,{"$error":"#VALUE!"},null,null,null,{"$f":"_xlfn.XLOOKUP(G73,Postcode!$A$2:$A$2766,Postcode!$D$2:$D$2766,\"postcode klopt niet\",0)","v":"postcode klopt niet"},null,null,null,null,null,null,{"$f":"_xlfn.XLOOKUP(N73,Postcode!$A$2:$A$2766,Postcode!$D$2:$D$2766,\"postcode klopt niet\",0)","v":"postcode klopt niet"},1]
[null,null,null,{"$error":"#VALUE!"},null,null,null,{"$f":"_xlfn.XLOOKUP(G74,Postcode!$A$2:$A$2766,Postcode!$D$2:$D$2766,\"postcode klopt niet\",0)","v":"postcode klopt niet"},null,null,null,null,null,null,{"$f":"_xlfn.XLOOKUP(N74,Postcode!$A$2:$A$2766,Postcode!$D$2:$D$2766,\"postcode klopt niet\",0)","v":"postcode klopt niet"},1]
[null,null,null,{"$error":"#VALUE!"},null,null,null,{"$f":"_xlfn.XLOOKUP(G75,Postcode!$A$2:$A$2766,Postcode!$D$2:$D$2766,\"postcode klopt niet\",0)","v":"postcode klopt niet"},null,null,null,null,null,null,{"$f":"_xlfn.XLOOKUP(N75,Postcode!$A$2:$A$2766,Postcode!$D$2:$D$2766,\"postcode klopt niet\",0)","v":"postcode klopt niet"},1]
[null,null,null,{"$error":"#VALUE!"},null,null,null,{"$f":"_xlfn.XLOOKUP(G76,Postcode!$A$2:$A$2766,Postcode!$D$2:$D$2766,\"postcode klopt niet\",0)","v":"postcode klopt niet"},null,null,null,null,null,null,{"$f":"_xlfn.XLOOKUP(N76,Postcode!$A$2:$A$2766,Postcode!$D$2:$D$2766,\"postcode klopt niet\",0)","v":"postcode klopt niet"},1]
[null,null,null,{"$error":"#VALUE!"},null,null,null,{"$f":"_xlfn.XLOOKUP(G77,Postcode!$A$2:$A$2766,Postcode!$D$2:$D$2766,\"postcode klopt niet\",0)","v":"postcode klopt niet"},null,null,null,null,null,null,{"$f":"_xlfn.XLOOKUP(N77,Postcode!$A$2:$A$2766,Postcode!$D$2:$D$2766,\"postcode klopt niet\",0)","v":"postcode klopt niet"},1]
[null,null,null,{"$error":"#VALUE!"},null,null,null,{"$f":"_xlfn.XLOOKUP(G78,Postcode!$A$2:$A$2766,Postcode!$D$2:$D$2766,\"postcode klopt niet\",0)","v":"postcode klopt niet"},null,null,null,null,null,null,{"$f":"_xlfn.XLOOKUP(N78,Postcode!$A$2:$A$2766,Postcode!$D$2:$D$2766,\"postcode klopt niet\",0)","v":"postcode klopt niet"},1]
[null,null,null,{"$error":"#VALUE!"},null,null,null,{"$f":"_xlfn.XLOOKUP(G79,Postcode!$A$2:$A$2766,Postcode!$D$2:$D$2766,\"postcode klopt niet\",0)","v":"postcode klopt niet"},null,null,null,null,null,null,{"$f":"_xlfn.XLOOKUP(N79,Postcode!$A$2:$A$2766,Postcode!$D$2:$D$2766,\"postcode klopt niet\",0)","v":"postcode klopt niet"},1]
[null,null,null,{"$error":"#VALUE!"},null,null,null,{"$f":"_xlfn.XLOOKUP(G80,Postcode!$A$2:$A$2766,Postcode!$D$2:$D$2766,\"postcode klopt niet\",0)","v":"postcode klopt niet"},null,null,null,null,null,null,{"$f":"_xlfn.XLOOKUP(N80,Postcode!$A$2:$A$2766,Postcode!$D$2:$D$2766,\"postcode klopt niet\",0)","v":"postcode klopt niet"},1]
[null,null,null,{"$error":"#VALUE!"},null,null,null,{"$f":"_xlfn.XLOOKUP(G81,Postcode!$A$2:$A$2766,Postcode!$D$2:$D$2766,\"postcode klopt niet\",0)","v":"postcode klopt niet"},null,null,null,null,null,null,{"$f":"_xlfn.XLOOKUP(N81,Postcode!$A$2:$A$2766,Postcode!$D$2:$D$2766,\"postcode klopt niet\",0)","v":"postcode klopt niet"},1]
[null,null,null,{"$error":"#VALUE!"},null,null,null,{"$f":"_xlfn.XLOOKUP(G82,Postcode!$A$2:$A$2766,Postcode!$D$2:$D$2766,\"postcode klopt niet\",0)","v":"postcode klopt niet"},null,null,null,null,null,null,{"$f":"_xlfn.XLOOKUP(N82,Postcode!$A$2:$A$2766,Postcode!$D$2:$D$2766,\"postcode klopt niet\",0)","v":"postcode klopt niet"},1]
[null,null,null,{"$error":"#VALUE!"},null,null,null,{"$f":"_xlfn.XLOOKUP(G83,Postcode!$A$2:$A$2766,Postcode!$D$2:$D$2766,\"postcode klopt niet\",0)","v":"postcode klopt niet"},null,null,null,null,null,null,{"$f":"_xlfn.XLOOKUP(N83,Postcode!$A$2:$A$2766,Postcode!$D$2:$D$2766,\"postcode klopt niet\",0)","v":"postcode klopt niet"},1]
[null,null,null,{"$error":"#VALUE!"},null,null,null,{"$f":"_xlfn.XLOOKUP(G84,Postcode!$A$2:$A$2766,Postcode!$D$2:$D$2766,\"postcode klopt niet\",0)","v":"postcode klopt niet"},null,null,null,null,null,null,{"$f":"_xlfn.XLOOKUP(N84,Postcode!$A$2:$A$2766,Postcode!$D$2:$D$2766,\"postcode klopt niet\",0)","v":"postcode klopt niet"},1]
[null,null,null,{"$error":"#VALUE!"},null,null,null,{"$f":"_xlfn.XLOOKUP(G85,Postcode!$A$2:$A$2766,Postcode!$D$2:$D$2766,\"postcode klopt niet\",0)","v":"postcode klopt niet"},null,null,null,null,null,null,{"$f":"_xlfn.XLOOKUP(N85,Postcode!$A$2:$A$2766,Postcode!$D$2:$D$2766,\"postcode klopt niet\",0)","v":"postcode klopt niet"},1]
[null,null,null,{"$error":"#VALUE!"},null,null,null,{"$f":"_xlfn.XLOOKUP(G86,Postcode!$A$2:$A$2766,Postcode!$D$2:$D$2766,\"postcode klopt niet\",0)","v":"postcode klopt niet"},null,null,null,null,null,null,{"$f":"_xlfn.XLOOKUP(N86,Postcode!$A$2:$A$2766,Postcode!$D$2:$D$2766,\"postcode klopt niet\",0)","v":"postcode klopt niet"},1]
[null,null,null,{"$error":"#VALUE!"},null,null,null,{"$f":"_xlfn.XLOOKUP(G87,Postcode!$A$2:$A$2766,Postcode!$D$2:$D$2766,\"postcode klopt niet\",0)","v":"postcode klopt niet"},null,null,null,null,null,null,{"$f":"_xlfn.XLOOKUP(N87,Postcode!$A$2:$A$2766,Postcode!$D$2:$D$2766,\"postcode klopt niet\",0)","v":"postcode klopt niet"},1]
[null,null,null,{"$error":"#VALUE!"},null,null,null,{"$f":"_xlfn.XLOOKUP(G88,Postcode!$A$2:$A$2766,Postcode!$D$2:$D$2766,\"postcode klopt niet\",0)","v":"postcode klopt niet"},null,null,null,null,null,null,{"$f":"_xlfn.XLOOKUP(N88,Postcode!$A$2:$A$2766,Postcode!$D$2:$D$2766,\"postcode klopt niet\",0)","v":"postcode klopt niet"},1]
[null,null,null,{"$error":"#VALUE!"},null,null,null,{"$f":"_xlfn.XLOOKUP(G89,Postcode!$A$2:$A$2766,Postcode!$D$2:$D$2766,\"postcode klopt niet\",0)","v":"postcode klopt niet"},null,null,null,null,null,null,{"$f":"_xlfn.XLOOKUP(N89,Postcode!$A$2:$A$2766,Postcode!$D$2:$D$2766,\"postcode klopt niet\",0)","v":"postcode klopt niet"},1]
[null,null,null,{"$error":"#VALUE!"},null,null,null,{"$f":"_xlfn.XLOOKUP(G90,Postcode!$A$2:$A$2766,Postcode!$D$2:$D$2766,\"postcode klopt niet\",0)","v":"postcode klopt niet"},null,null,null,null,null,null,{"$f":"_xlfn.XLOOKUP(N90,Postcode!$A$2:$A$2766,Postcode!$D$2:$D$2766,\"postcode klopt niet\",0)","v":"postcode klopt niet"},1]
[null,null,null,{"$error":"#VALUE!"},null,null,null,{"$f":"_xlfn.XLOOKUP(G91,Postcode!$A$2:$A$2766,Postcode!$D$2:$D$2766,\"postcode klopt niet\",0)","v":"postcode klopt niet"},null,null,null,null,null,null,{"$f":"_xlfn.XLOOKUP(N91,Postcode!$A$2:$A$2766,Postcode!$D$2:$D$2766,\"postcode klopt niet\",0)","v":"postcode klopt niet"},1]
[null,null,null,{"$error":"#VALUE!"},null,null,null,{"$f":"_xlfn.XLOOKUP(G92,Postcode!$A$2:$A$2766,Postcode!$D$2:$D$2766,\"postcode klopt niet\",0)","v":"postcode klopt niet"},null,null,null,null,null,null,{"$f":"_xlfn.XLOOKUP(N92,Postcode!$A$2:$A$2766,Postcode!$D$2:$D$2766,\"postcode klopt niet\",0)","v":"postcode klopt niet"},1]
[null,null,null,{"$error":"#VALUE!"},null,null,null,{"$f":"_xlfn.XLOOKUP(G93,Postcode!$A$2:$A$2766,Postcode!$D$2:$D$2766,\"postcode klopt niet\",0)","v":"postcode klopt niet"},null,null,null,null,null,null,{"$f":"_xlfn.XLOOKUP(N93,Postcode!$A$2:$A$2766,Postcode!$D$2:$D$2766,\"postcode klopt niet\",0)","v":"postcode klopt niet"},1]
[null,null,null,{"$error":"#VALUE!"},null,null,null,{"$f":"_xlfn.XLOOKUP(G94,Postcode!$A$2:$A$2766,Postcode!$D$2:$D$2766,\"postcode klopt niet\",0)","v":"postcode klopt niet"},null,null,null,null,null,null,{"$f":"_xlfn.XLOOKUP(N94,Postcode!$A$2:$A$2766,Postcode!$D$2:$D$2766,\"postcode klopt niet\",0)","v":"postcode klopt niet"},1]
[null,null,null,{"$error":"#VALUE!"},null,null,null,{"$f":"_xlfn.XLOOKUP(G95,Postcode!$A$2:$A$2766,Postcode!$D$2:$D$2766,\"postcode klopt niet\",0)","v":"postcode klopt niet"},null,null,null,null,null,null,{"$f":"_xlfn.XLOOKUP(N95,Postcode!$A$2:$A$2766,Postcode!$D$2:$D$2766,\"postcode klopt niet\",0)","v":"postcode klopt niet"},1]
[null,null,null,{"$error":"#VALUE!"},null,null,null,{"$f":"_xlfn.XLOOKUP(G96,Postcode!$A$2:$A$2766,Postcode!$D$2:$D$2766,\"postcode klopt niet\",0)","v":"postcode klopt niet"},null,null,null,null,null,null,{"$f":"_xlfn.XLOOKUP(N96,Postcode!$A$2:$A$2766,Postcode!$D$2:$D$2766,\"postcode klopt niet\",0)","v":"postcode klopt niet"},1]
[null,null,null,{"$error":"#VALUE!"},null,null,null,{"$f":"_xlfn.XLOOKUP(G97,Postcode!$A$2:$A$2766,Postcode!$D$2:$D$2766,\"postcode klopt niet\",0)","v":"postcode klopt niet"},null,null,null,null,null,null,{"$f":"_xlfn.XLOOKUP(N97,Postcode!$A$2:$A$2766,Postcode!$D$2:$D$2766,\"postcode klopt niet\",0)","v":"postcode klopt niet"},1]
[null,null,null,{"$error":"#VALUE!"},null,null,null,{"$f":"_xlfn.XLOOKUP(G98,Postcode!$A$2:$A$2766,Postcode!$D$2:$D$2766,\"postcode klopt niet\",0)","v":"postcode klopt niet"},null,null,null,null,null,null,{"$f":"_xlfn.XLOOKUP(N98,Postcode!$A$2:$A$2766,Postcode!$D$2:$D$2766,\"postcode klopt niet\",0)","v":"postcode klopt niet"},1]
[null,null,null,{"$error":"#VALUE!"},null,null,null,{"$f":"_xlfn.XLOOKUP(G99,Postcode!$A$2:$A$2766,Postcode!$D$2:$D$2766,\"postcode klopt niet\",0)","v":"postcode klopt niet"},null,null,null,null,null,null,{"$f":"_xlfn.XLOOKUP(N99,Postcode!$A$2:$A$2766,Postcode!$D$2:$D$2766,\"postcode klopt niet\",0)","v":"postcode klopt niet"},1]
[null,null,null,{"$error":"#VALUE!"},null,null,null,{"$f":"_xlfn.XLOOKUP(G100,Postcode!$A$2:$A$2766,Postcode!$D$2:$D$2766,\"postcode klopt niet\",0)","v":"postcode klopt niet"},null,null,null,null,null,null,{"$f":"_xlfn.XLOOKUP(N100,Postcode!$A$2:$A$2766,Postcode!$D$2:$D$2766,\"postcode klopt niet\",0)","v":"postcode klopt niet"},1]
[null,null,null,{"$error":"#VALUE!"},null,null,null,{"$f":"_xlfn.XLOOKUP(G101,Postcode!$A$2:$A$2766,Postcode!$D$2:$D$2766,\"postcode klopt niet\",0)","v":"postcode klopt niet"},null,null,null,null,null,null,{"$f":"_xlfn.XLOOKUP(N101,Postcode!$A$2:$A$2766,Postcode!$D$2:$D$2766,\"postcode klopt niet\",0)","v":"postcode klopt niet"},1]
[null,null,null,{"$error":"#VALUE!"},null,null,null,{"$f":"_xlfn.XLOOKUP(G102,Postcode!$A$2:$A$2766,Postcode!$D$2:$D$2766,\"postcode klopt niet\",0)","v":"postcode klopt niet"},null,null,null,null,null,null,{"$f":"_xlfn.XLOOKUP(N102,Postcode!$A$2:$A$2766,Postcode!$D$2:$D$2766,\"postcode klopt niet\",0)","v":"postcode klopt niet"},1]
[]
[]
[]
[]
[]
[]
[null,null,null,null,null,null,{"$f":"MOD(930407131,97)","v":9}]

{"sheet":"niet gebruikt 4","index":6,"n_rows":109,"n_cols":16,"rows_kept":109,"cut":false,"hidden":false,"merged":[[0,0,0,6]]}
["Gegevens Lid",null,null,null,null,null,null,null,null,null,null,null,null,null,null,{"$f":"Algemeen!B8","v":"niet gebruikt 4"}]
["Naam","Voornaam","Geboortedatum","Straat","Nr°/Bus","Postcode","Gemeente",null,null,null,null,null,null,null,null,"Controle"]
["vb. Evenepoel","vb. Remco","1990-04-03","Vogelzangstraat","37/3",3540,{"$f":"_xlfn.XLOOKUP(F3,Postcode!$A$2:$A$2766,Postcode!$D$2:$D$2766,\"postcode klopt niet\",0)","v":"HERK-DE-STAD"}]
[null,null,null,null,null,null,{"$f":"_xlfn.XLOOKUP(F4,Postcode!$A$2:$A$2766,Postcode!$D$2:$D$2766,\"postcode klopt niet\",0)","v":"postcode klopt niet"},null,null,null,null,null,null,null,null,{"$f":"COUNTA(A4,B4,C4,F4)","v":0}]
[null,null,null,null,null,null,{"$f":"_xlfn.XLOOKUP(F5,Postcode!$A$2:$A$2766,Postcode!$D$2:$D$2766,\"postcode klopt niet\",0)","v":"postcode klopt niet"},null,null,null,null,null,null,null,null,0]
[null,null,null,null,null,null,{"$f":"_xlfn.XLOOKUP(F6,Postcode!$A$2:$A$2766,Postcode!$D$2:$D$2766,\"postcode klopt niet\",0)","v":"postcode klopt niet"},null,null,null,null,null,null,null,null,0]
[null,null,null,null,null,null,{"$f":"_xlfn.XLOOKUP(F7,Postcode!$A$2:$A$2766,Postcode!$D$2:$D$2766,\"postcode klopt niet\",0)","v":"postcode klopt niet"},null,null,null,null,null,null,null,null,0]
[null,null,null,null,null,null,{"$f":"_xlfn.XLOOKUP(F8,Postcode!$A$2:$A$2766,Postcode!$D$2:$D$2766,\"postcode klopt niet\",0)","v":"postcode klopt niet"},null,null,null,null,null,null,null,null,0]
[null,null,null,null,null,null,{"$f":"_xlfn.XLOOKUP(F9,Postcode!$A$2:$A$2766,Postcode!$D$2:$D$2766,\"postcode klopt niet\",0)","v":"postcode klopt niet"},null,null,null,null,null,null,null,null,0]
[null,null,null,null,null,null,{"$f":"_xlfn.XLOOKUP(F10,Postcode!$A$2:$A$2766,Postcode!$D$2:$D$2766,\"postcode klopt niet\",0)","v":"postcode klopt niet"},null,null,null,null,null,null,null,null,0]
[null,null,null,null,null,null,{"$f":"_xlfn.XLOOKUP(F11,Postcode!$A$2:$A$2766,Postcode!$D$2:$D$2766,\"postcode klopt niet\",0)","v":"postcode klopt niet"},null,null,null,null,null,null,null,null,0]
[null,null,null,null,null,null,{"$f":"_xlfn.XLOOKUP(F12,Postcode!$A$2:$A$2766,Postcode!$D$2:$D$2766,\"postcode klopt niet\",0)","v":"postcode klopt niet"},null,null,null,null,null,null,null,null,0]
[null,null,null,null,null,null,{"$f":"_xlfn.XLOOKUP(F13,Postcode!$A$2:$A$2766,Postcode!$D$2:$D$2766,\"postcode klopt niet\",0)","v":"postcode klopt niet"},null,null,null,null,null,null,null,null,0]
[null,null,null,null,null,null,{"$f":"_xlfn.XLOOKUP(F14,Postcode!$A$2:$A$2766,Postcode!$D$2:$D$2766,\"postcode klopt niet\",0)","v":"postcode klopt niet"},null,null,null,null,null,null,null,null,0]
[null,null,null,null,null,null,{"$f":"_xlfn.XLOOKUP(F15,Postcode!$A$2:$A$2766,Postcode!$D$2:$D$2766,\"postcode klopt niet\",0)","v":"postcode klopt niet"},null,null,null,null,null,null,null,null,0]
[null,null,null,null,null,null,{"$f":"_xlfn.XLOOKUP(F16,Postcode!$A$2:$A$2766,Postcode!$D$2:$D$2766,\"postcode klopt niet\",0)","v":"postcode klopt niet"},null,null,null,null,null,null,null,null,0]
[null,null,null,null,null,null,{"$f":"_xlfn.XLOOKUP(F17,Postcode!$A$2:$A$2766,Postcode!$D$2:$D$2766,\"postcode klopt niet\",0)","v":"postcode klopt niet"},null,null,null,null,null,null,null,null,0]
[null,null,null,null,null,null,{"$f":"_xlfn.XLOOKUP(F18,Postcode!$A$2:$A$2766,Postcode!$D$2:$D$2766,\"postcode klopt niet\",0)","v":"postcode klopt niet"},null,null,null,null,null,null,null,null,0]
[null,null,null,null,null,null,{"$f":"_xlfn.XLOOKUP(F19,Postcode!$A$2:$A$2766,Postcode!$D$2:$D$2766,\"postcode klopt niet\",0)","v":"postcode klopt niet"},null,null,null,null,null,null,null,null,0]
[null,null,null,null,null,null,{"$f":"_xlfn.XLOOKUP(F20,Postcode!$A$2:$A$2766,Postcode!$D$2:$D$2766,\"postcode klopt niet\",0)","v":"postcode klopt niet"},null,null,null,null,null,null,null,null,0]
[null,null,null,null,null,null,{"$f":"_xlfn.XLOOKUP(F21,Postcode!$A$2:$A$2766,Postcode!$D$2:$D$2766,\"postcode klopt niet\",0)","v":"postcode klopt niet"},null,null,null,null,null,null,null,null,0]
[null,null,null,null,null,null,{"$f":"_xlfn.XLOOKUP(F22,Postcode!$A$2:$A$2766,Postcode!$D$2:$D$2766,\"postcode klopt niet\",0)","v":"postcode klopt niet"},null,null,null,null,null,null,null,null,{"$f":"COUNTA(A22,B22,C22,F22)","v":0}]
[null,null,null,null,null,null,{"$f":"_xlfn.XLOOKUP(F23,Postcode!$A$2:$A$2766,Postcode!$D$2:$D$2766,\"postcode klopt niet\",0)","v":"postcode klopt niet"},null,null,null,null,null,null,null,null,0]
[null,null,null,null,null,null,{"$f":"_xlfn.XLOOKUP(F24,Postcode!$A$2:$A$2766,Postcode!$D$2:$D$2766,\"postcode klopt niet\",0)","v":"postcode klopt niet"},null,null,null,null,null,null,null,null,0]
[null,null,null,null,null,null,{"$f":"_xlfn.XLOOKUP(F25,Postcode!$A$2:$A$2766,Postcode!$D$2:$D$2766,\"postcode klopt niet\",0)","v":"postcode klopt niet"},null,null,null,null,null,null,null,null,0]
[null,null,null,null,null,null,{"$f":"_xlfn.XLOOKUP(F26,Postcode!$A$2:$A$2766,Postcode!$D$2:$D$2766,\"postcode klopt niet\",0)","v":"postcode klopt niet"},null,null,null,null,null,null,null,null,0]
[null,null,null,null,null,null,{"$f":"_xlfn.XLOOKUP(F27,Postcode!$A$2:$A$2766,Postcode!$D$2:$D$2766,\"postcode klopt niet\",0)","v":"postcode klopt niet"},null,null,null,null,null,null,null,null,0]
[null,null,null,null,null,null,{"$f":"_xlfn.XLOOKUP(F28,Postcode!$A$2:$A$2766,Postcode!$D$2:$D$2766,\"postcode klopt niet\",0)","v":"postcode klopt niet"},null,null,null,null,null,null,null,null,0]
[null,null,null,null,null,null,{"$f":"_xlfn.XLOOKUP(F29,Postcode!$A$2:$A$2766,Postcode!$D$2:$D$2766,\"postcode klopt niet\",0)","v":"postcode klopt niet"},null,null,null,null,null,null,null,null,0]
[null,null,null,null,null,null,{"$f":"_xlfn.XLOOKUP(F30,Postcode!$A$2:$A$2766,Postcode!$D$2:$D$2766,\"postcode klopt niet\",0)","v":"postcode klopt niet"},null,null,null,null,null,null,null,null,0]
[null,null,null,null,null,null,{"$f":"_xlfn.XLOOKUP(F31,Postcode!$A$2:$A$2766,Postcode!$D$2:$D$2766,\"postcode klopt niet\",0)","v":"postcode klopt niet"},null,null,null,null,null,null,null,null,0]
[null,null,null,null,null,null,{"$f":"_xlfn.XLOOKUP(F32,Postcode!$A$2:$A$2766,Postcode!$D$2:$D$2766,\"postcode klopt niet\",0)","v":"postcode klopt niet"},null,null,null,null,null,null,null,null,0]
[null,null,null,null,null,null,{"$f":"_xlfn.XLOOKUP(F33,Postcode!$A$2:$A$2766,Postcode!$D$2:$D$2766,\"postcode klopt niet\",0)","v":"postcode klopt niet"},null,null,null,null,null,null,null,null,0]
[null,null,null,null,null,null,{"$f":"_xlfn.XLOOKUP(F34,Postcode!$A$2:$A$2766,Postcode!$D$2:$D$2766,\"postcode klopt niet\",0)","v":"postcode klopt niet"},null,null,null,null,null,null,null,null,0]
[null,null,null,null,null,null,{"$f":"_xlfn.XLOOKUP(F35,Postcode!$A$2:$A$2766,Postcode!$D$2:$D$2766,\"postcode klopt niet\",0)","v":"postcode klopt niet"},null,null,null,null,null,null,null,null,0]
[null,null,null,null,null,null,{"$f":"_xlfn.XLOOKUP(F36,Postcode!$A$2:$A$2766,Postcode!$D$2:$D$2766,\"postcode klopt niet\",0)","v":"postcode klopt niet"},null,null,null,null,null,null,null,null,0]
[null,null,null,null,null,null,{"$f":"_xlfn.XLOOKUP(F37,Postcode!$A$2:$A$2766,Postcode!$D$2:$D$2766,\"postcode klopt niet\",0)","v":"postcode klopt niet"},null,null,null,null,null,null,null,null,0]
[null,null,null,null,null,null,{"$f":"_xlfn.XLOOKUP(F38,Postcode!$A$2:$A$2766,Postcode!$D$2:$D$2766,\"postcode klopt niet\",0)","v":"postcode klopt niet"},null,null,null,null,null,null,null,null,0]
[null,null,null,null,null,null,{"$f":"_xlfn.XLOOKUP(F39,Postcode!$A$2:$A$2766,Postcode!$D$2:$D$2766,\"postcode klopt niet\",0)","v":"postcode klopt niet"},null,null,null,null,null,null,null,null,0]
[null,null,null,null,null,null,{"$f":"_xlfn.XLOOKUP(F40,Postcode!$A$2:$A$2766,Postcode!$D$2:$D$2766,\"postcode klopt niet\",0)","v":"postcode klopt niet"},null,null,null,null,null,null,null,null,0]
[null,null,null,null,null,null,{"$f":"_xlfn.XLOOKUP(F41,Postcode!$A$2:$A$2766,Postcode!$D$2:$D$2766,\"postcode klopt niet\",0)","v":"postcode klopt niet"},null,null,null,null,null,null,null,null,0]
[null,null,null,null,null,null,{"$f":"_xlfn.XLOOKUP(F42,Postcode!$A$2:$A$2766,Postcode!$D$2:$D$2766,\"postcode klopt niet\",0)","v":"postcode klopt niet"},null,null,null,null,null,null,null,null,0]
[null,null,null,null,null,null,{"$f":"_xlfn.XLOOKUP(F43,Postcode!$A$2:$A$2766,Postcode!$D$2:$D$2766,\"postcode klopt niet\",0)","v":"postcode klopt niet"},null,null,null,null,null,null,null,null,0]
[null,null,null,null,null,null,{"$f":"_xlfn.XLOOKUP(F44,Postcode!$A$2:$A$2766,Postcode!$D$2:$D$2766,\"postcode klopt niet\",0)","v":"postcode klopt niet"},null,null,null,null,null,null,null,null,0]
[null,null,null,null,null,null,{"$f":"_xlfn.XLOOKUP(F45,Postcode!$A$2:$A$2766,Postcode!$D$2:$D$2766,\"postcode klopt niet\",0)","v":"postcode klopt niet"},null,null,null,null,null,null,null,null,0]
[null,null,null,null,null,null,{"$f":"_xlfn.XLOOKUP(F46,Postcode!$A$2:$A$2766,Postcode!$D$2:$D$2766,\"postcode klopt niet\",0)","v":"postcode klopt niet"},null,null,null,null,null,null,null,null,0]
[null,null,null,null,null,null,{"$f":"_xlfn.XLOOKUP(F47,Postcode!$A$2:$A$2766,Postcode!$D$2:$D$2766,\"postcode klopt niet\",0)","v":"postcode klopt niet"},null,null,null,null,null,null,null,null,0]
[null,null,null,null,null,null,{"$f":"_xlfn.XLOOKUP(F48,Postcode!$A$2:$A$2766,Postcode!$D$2:$D$2766,\"postcode klopt niet\",0)","v":"postcode klopt niet"},null,null,null,null,null,null,null,null,0]
[null,null,null,null,null,null,{"$f":"_xlfn.XLOOKUP(F49,Postcode!$A$2:$A$2766,Postcode!$D$2:$D$2766,\"postcode klopt niet\",0)","v":"postcode klopt niet"},null,null,null,null,null,null,null,null,0]
[null,null,null,null,null,null,{"$f":"_xlfn.XLOOKUP(F50,Postcode!$A$2:$A$2766,Postcode!$D$2:$D$2766,\"postcode klopt niet\",0)","v":"postcode klopt niet"},null,null,null,null,null,null,null,null,0]
[null,null,null,null,null,null,{"$f":"_xlfn.XLOOKUP(F51,Postcode!$A$2:$A$2766,Postcode!$D$2:$D$2766,\"postcode klopt niet\",0)","v":"postcode klopt niet"},null,null,null,null,null,null,null,null,0]
[null,null,null,null,null,null,{"$f":"_xlfn.XLOOKUP(F52,Postcode!$A$2:$A$2766,Postcode!$D$2:$D$2766,\"postcode klopt niet\",0)","v":"postcode klopt niet"},null,null,null,null,null,null,null,null,0]
[null,null,null,null,null,null,{"$f":"_xlfn.XLOOKUP(F53,Postcode!$A$2:$A$2766,Postcode!$D$2:$D$2766,\"postcode klopt niet\",0)","v":"postcode klopt niet"},null,null,null,null,null,null,null,null,0]
[null,null,null,null,null,null,{"$f":"_xlfn.XLOOKUP(F54,Postcode!$A$2:$A$2766,Postcode!$D$2:$D$2766,\"postcode klopt niet\",0)","v":"postcode klopt niet"},null,null,null,null,null,null,null,null,0]
[null,null,null,null,null,null,{"$f":"_xlfn.XLOOKUP(F55,Postcode!$A$2:$A$2766,Postcode!$D$2:$D$2766,\"postcode klopt niet\",0)","v":"postcode klopt niet"},null,null,null,null,null,null,null,null,0]
[null,null,null,null,null,null,{"$f":"_xlfn.XLOOKUP(F56,Postcode!$A$2:$A$2766,Postcode!$D$2:$D$2766,\"postcode klopt niet\",0)","v":"postcode klopt niet"},null,null,null,null,null,null,null,null,0]
[null,null,null,null,null,null,{"$f":"_xlfn.XLOOKUP(F57,Postcode!$A$2:$A$2766,Postcode!$D$2:$D$2766,\"postcode klopt niet\",0)","v":"postcode klopt niet"},null,null,null,null,null,null,null,null,0]
[null,null,null,null,null,null,{"$f":"_xlfn.XLOOKUP(F58,Postcode!$A$2:$A$2766,Postcode!$D$2:$D$2766,\"postcode klopt niet\",0)","v":"postcode klopt niet"},null,null,null,null,null,null,null,null,0]
[null,null,null,null,null,null,{"$f":"_xlfn.XLOOKUP(F59,Postcode!$A$2:$A$2766,Postcode!$D$2:$D$2766,\"postcode klopt niet\",0)","v":"postcode klopt niet"},null,null,null,null,null,null,null,null,0]
[null,null,null,null,null,null,{"$f":"_xlfn.XLOOKUP(F60,Postcode!$A$2:$A$2766,Postcode!$D$2:$D$2766,\"postcode klopt niet\",0)","v":"postcode klopt niet"},null,null,null,null,null,null,null,null,0]
[null,null,null,null,null,null,{"$f":"_xlfn.XLOOKUP(F61,Postcode!$A$2:$A$2766,Postcode!$D$2:$D$2766,\"postcode klopt niet\",0)","v":"postcode klopt niet"},null,null,null,null,null,null,null,null,0]
[null,null,null,null,null,null,{"$f":"_xlfn.XLOOKUP(F62,Postcode!$A$2:$A$2766,Postcode!$D$2:$D$2766,\"postcode klopt niet\",0)","v":"postcode klopt niet"},null,null,null,null,null,null,null,null,0]
[null,null,null,null,null,null,{"$f":"_xlfn.XLOOKUP(F63,Postcode!$A$2:$A$2766,Postcode!$D$2:$D$2766,\"postcode klopt niet\",0)","v":"postcode klopt niet"},null,null,null,null,null,null,null,null,0]
[null,null,null,null,null,null,{"$f":"_xlfn.XLOOKUP(F64,Postcode!$A$2:$A$2766,Postcode!$D$2:$D$2766,\"postcode klopt niet\",0)","v":"postcode klopt niet"},null,null,null,null,null,null,null,null,0]
[null,null,null,null,null,null,{"$f":"_xlfn.XLOOKUP(F65,Postcode!$A$2:$A$2766,Postcode!$D$2:$D$2766,\"postcode klopt niet\",0)","v":"postcode klopt niet"},null,null,null,null,null,null,null,null,0]
[null,null,null,null,null,null,{"$f":"_xlfn.XLOOKUP(F66,Postcode!$A$2:$A$2766,Postcode!$D$2:$D$2766,\"postcode klopt niet\",0)","v":"postcode klopt niet"},null,null,null,null,null,null,null,null,0]
[null,null,null,null,null,null,{"$f":"_xlfn.XLOOKUP(F67,Postcode!$A$2:$A$2766,Postcode!$D$2:$D$2766,\"postcode klopt niet\",0)","v":"postcode klopt niet"},null,null,null,null,null,null,null,null,0]
[null,null,null,null,null,null,{"$f":"_xlfn.XLOOKUP(F68,Postcode!$A$2:$A$2766,Postcode!$D$2:$D$2766,\"postcode klopt niet\",0)","v":"postcode klopt niet"},null,null,null,null,null,null,null,null,{"$f":"COUNTA(A68,B68,C68,F68)","v":0}]
[null,null,null,null,null,null,{"$f":"_xlfn.XLOOKUP(F69,Postcode!$A$2:$A$2766,Postcode!$D$2:$D$2766,\"postcode klopt niet\",0)","v":"postcode klopt niet"},null,null,null,null,null,null,null,null,0]
[null,null,null,null,null,null,{"$f":"_xlfn.XLOOKUP(F70,Postcode!$A$2:$A$2766,Postcode!$D$2:$D$2766,\"postcode klopt niet\",0)","v":"postcode klopt niet"},null,null,null,null,null,null,null,null,0]
[null,null,null,null,null,null,{"$f":"_xlfn.XLOOKUP(F71,Postcode!$A$2:$A$2766,Postcode!$D$2:$D$2766,\"postcode klopt niet\",0)","v":"postcode klopt niet"},null,null,null,null,null,null,null,null,0]
[null,null,null,null,null,null,{"$f":"_xlfn.XLOOKUP(F72,Postcode!$A$2:$A$2766,Postcode!$D$2:$D$2766,\"postcode klopt niet\",0)","v":"postcode klopt niet"},null,null,null,null,null,null,null,null,0]
[null,null,null,null,null,null,{"$f":"_xlfn.XLOOKUP(F73,Postcode!$A$2:$A$2766,Postcode!$D$2:$D$2766,\"postcode klopt niet\",0)","v":"postcode klopt niet"},null,null,null,null,null,null,null,null,0]
[null,null,null,null,null,null,{"$f":"_xlfn.XLOOKUP(F74,Postcode!$A$2:$A$2766,Postcode!$D$2:$D$2766,\"postcode klopt niet\",0)","v":"postcode klopt niet"},null,null,null,null,null,null,null,null,0]
[null,null,null,null,null,null,{"$f":"_xlfn.XLOOKUP(F75,Postcode!$A$2:$A$2766,Postcode!$D$2:$D$2766,\"postcode klopt niet\",0)","v":"postcode klopt niet"},null,null,null,null,null,null,null,null,0]
[null,null,null,null,null,null,{"$f":"_xlfn.XLOOKUP(F76,Postcode!$A$2:$A$2766,Postcode!$D$2:$D$2766,\"postcode klopt niet\",0)","v":"postcode klopt niet"},null,null,null,null,null,null,null,null,0]
[null,null,null,null,null,null,{"$f":"_xlfn.XLOOKUP(F77,Postcode!$A$2:$A$2766,Postcode!$D$2:$D$2766,\"postcode klopt niet\",0)","v":"postcode klopt niet"},null,null,null,null,null,null,null,null,0]
[null,null,null,null,null,null,{"$f":"_xlfn.XLOOKUP(F78,Postcode!$A$2:$A$2766,Postcode!$D$2:$D$2766,\"postcode klopt niet\",0)","v":"postcode klopt niet"},null,null,null,null,null,null,null,null,0]
[null,null,null,null,null,null,{"$f":"_xlfn.XLOOKUP(F79,Postcode!$A$2:$A$2766,Postcode!$D$2:$D$2766,\"postcode klopt niet\",0)","v":"postcode klopt niet"},null,null,null,null,null,null,null,null,0]
[null,null,null,null,null,null,{"$f":"_xlfn.XLOOKUP(F80,Postcode!$A$2:$A$2766,Postcode!$D$2:$D$2766,\"postcode klopt niet\",0)","v":"postcode klopt niet"},null,null,null,null,null,null,null,null,0]
[null,null,null,null,null,null,{"$f":"_xlfn.XLOOKUP(F81,Postcode!$A$2:$A$2766,Postcode!$D$2:$D$2766,\"postcode klopt niet\",0)","v":"postcode klopt niet"},null,null,null,null,null,null,null,null,0]
[null,null,null,null,null,null,{"$f":"_xlfn.XLOOKUP(F82,Postcode!$A$2:$A$2766,Postcode!$D$2:$D$2766,\"postcode klopt niet\",0)","v":"postcode klopt niet"},null,null,null,null,null,null,null,null,0]
[null,null,null,null,null,null,{"$f":"_xlfn.XLOOKUP(F83,Postcode!$A$2:$A$2766,Postcode!$D$2:$D$2766,\"postcode klopt niet\",0)","v":"postcode klopt niet"},null,null,null,null,null,null,null,null,0]
[null,null,null,null,null,null,{"$f":"_xlfn.XLOOKUP(F84,Postcode!$A$2:$A$2766,Postcode!$D$2:$D$2766,\"postcode klopt niet\",0)","v":"postcode klopt niet"},null,null,null,null,null,null,null,null,0]
[null,null,null,null,null,null,{"$f":"_xlfn.XLOOKUP(F85,Postcode!$A$2:$A$2766,Postcode!$D$2:$D$2766,\"postcode klopt niet\",0)","v":"postcode klopt niet"},null,null,null,null,null,null,null,null,0]
[null,null,null,null,null,null,{"$f":"_xlfn.XLOOKUP(F86,Postcode!$A$2:$A$2766,Postcode!$D$2:$D$2766,\"postcode klopt niet\",0)","v":"postcode klopt niet"},null,null,null,null,null,null,null,null,0]
[null,null,null,null,null,null,{"$f":"_xlfn.XLOOKUP(F87,Postcode!$A$2:$A$2766,Postcode!$D$2:$D$2766,\"postcode klopt niet\",0)","v":"postcode klopt niet"},null,null,null,null,null,null,null,null,0]
[null,null,null,null,null,null,{"$f":"_xlfn.XLOOKUP(F88,Postcode!$A$2:$A$2766,Postcode!$D$2:$D$2766,\"postcode klopt niet\",0)","v":"postcode klopt niet"},null,null,null,null,null,null,null,null,0]
[null,null,null,null,null,null,{"$f":"_xlfn.XLOOKUP(F89,Postcode!$A$2:$A$2766,Postcode!$D$2:$D$2766,\"postcode klopt niet\",0)","v":"postcode klopt niet"},null,null,null,null,null,null,null,null,0]
[null,null,null,null,null,null,{"$f":"_xlfn.XLOOKUP(F90,Postcode!$A$2:$A$2766,Postcode!$D$2:$D$2766,\"postcode klopt niet\",0)","v":"postcode klopt niet"},null,null,null,null,null,null,null,null,0]
[null,null,null,null,null,null,{"$f":"_xlfn.XLOOKUP(F91,Postcode!$A$2:$A$2766,Postcode!$D$2:$D$2766,\"postcode klopt niet\",0)","v":"postcode klopt niet"},null,null,null,null,null,null,null,null,0]
[null,null,null,null,null,null,{"$f":"_xlfn.XLOOKUP(F92,Postcode!$A$2:$A$2766,Postcode!$D$2:$D$2766,\"postcode klopt niet\",0)","v":"postcode klopt niet"},null,null,null,null,null,null,null,null,0]
[null,null,null,null,null,null,{"$f":"_xlfn.XLOOKUP(F93,Postcode!$A$2:$A$2766,Postcode!$D$2:$D$2766,\"postcode klopt niet\",0)","v":"postcode klopt niet"},null,null,null,null,null,null,null,null,0]
[null,null,null,null,null,null,{"$f":"_xlfn.XLOOKUP(F94,Postcode!$A$2:$A$2766,Postcode!$D$2:$D$2766,\"postcode klopt niet\",0)","v":"postcode klopt niet"},null,null,null,null,null,null,null,null,0]
[null,null,null,null,null,null,{"$f":"_xlfn.XLOOKUP(F95,Postcode!$A$2:$A$2766,Postcode!$D$2:$D$2766,\"postcode klopt niet\",0)","v":"postcode klopt niet"},null,null,null,null,null,null,null,null,0]
[null,null,null,null,null,null,{"$f":"_xlfn.XLOOKUP(F96,Postcode!$A$2:$A$2766,Postcode!$D$2:$D$2766,\"postcode klopt niet\",0)","v":"postcode klopt niet"},null,null,null,null,null,null,null,null,0]
[null,null,null,null,null,null,{"$f":"_xlfn.XLOOKUP(F97,Postcode!$A$2:$A$2766,Postcode!$D$2:$D$2766,\"postcode klopt niet\",0)","v":"postcode klopt niet"},null,null,null,null,null,null,null,null,0]
[null,null,null,null,null,null,{"$f":"_xlfn.XLOOKUP(F98,Postcode!$A$2:$A$2766,Postcode!$D$2:$D$2766,\"postcode klopt niet\",0)","v":"postcode klopt niet"},null,null,null,null,null,null,null,null,0]
[null,null,null,null,null,null,{"$f":"_xlfn.XLOOKUP(F99,Postcode!$A$2:$A$2766,Postcode!$D$2:$D$2766,\"postcode klopt niet\",0)","v":"postcode klopt niet"},null,null,null,null,null,null,null,null,0]
[null,null,null,null,null,null,{"$f":"_xlfn.XLOOKUP(F100,Postcode!$A$2:$A$2766,Postcode!$D$2:$D$2766,\"postcode klopt niet\",0)","v":"postcode klopt niet"},null,null,null,null,null,null,null,null,0]
[null,null,null,null,null,null,{"$f":"_xlfn.XLOOKUP(F101,Postcode!$A$2:$A$2766,Postcode!$D$2:$D$2766,\"postcode klopt niet\",0)","v":"postcode klopt niet"},null,null,null,null,null,null,null,null,0]
[null,null,null,null,null,null,{"$f":"_xlfn.XLOOKUP(F102,Postcode!$A$2:$A$2766,Postcode!$D$2:$D$2766,\"postcode klopt niet\",0)","v":"postcode klopt niet"},null,null,null,null,null,null,null,null,{"$f":"COUNTA(A102,B102,C102,F102)","v":0}]
[]
[]
[]
[]
[]
[]
[null,null,null,null,null,{"$f":"MOD(930407131,97)","v":9}]

{"sheet":"niet gebruikt 5","index":7,"n_rows":109,"n_cols":16,"rows_kept":109,"cut":false,"hidden":false,"merged":[[0,0,0,6]]}
["Gegevens Lid",null,null,null,null,null,null,null,null,null,null,null,null,null,null,{"$f":"Algemeen!B9","v":"niet gebruikt 5"}]
["Naam","Voornaam","Geboortedatum","Straat","Nr°/Bus","Postcode","Gemeente",null,null,null,null,null,null,null,null,"Controle"]
["vb. Evenepoel","vb. Remco","1990-04-03","Vogelzangstraat","37/3",3540,{"$f":"_xlfn.XLOOKUP(F3,Postcode!$A$2:$A$2766,Postcode!$D$2:$D$2766,\"postcode klopt niet\",0)","v":"HERK-DE-STAD"}]
[null,null,null,null,null,null,{"$f":"_xlfn.XLOOKUP(F4,Postcode!$A$2:$A$2766,Postcode!$D$2:$D$2766,\"postcode klopt niet\",0)","v":"postcode klopt niet"},null,null,null,null,null,null,null,null,{"$f":"COUNTA(A4,B4,C4,F4)","v":0}]
[null,null,null,null,null,null,{"$f":"_xlfn.XLOOKUP(F5,Postcode!$A$2:$A$2766,Postcode!$D$2:$D$2766,\"postcode klopt niet\",0)","v":"postcode klopt niet"},null,null,null,null,null,null,null,null,0]
[null,null,null,null,null,null,{"$f":"_xlfn.XLOOKUP(F6,Postcode!$A$2:$A$2766,Postcode!$D$2:$D$2766,\"postcode klopt niet\",0)","v":"postcode klopt niet"},null,null,null,null,null,null,null,null,0]
[null,null,null,null,null,null,{"$f":"_xlfn.XLOOKUP(F7,Postcode!$A$2:$A$2766,Postcode!$D$2:$D$2766,\"postcode klopt niet\",0)","v":"postcode klopt niet"},null,null,null,null,null,null,null,null,0]
[null,null,null,null,null,null,{"$f":"_xlfn.XLOOKUP(F8,Postcode!$A$2:$A$2766,Postcode!$D$2:$D$2766,\"postcode klopt niet\",0)","v":"postcode klopt niet"},null,null,null,null,null,null,null,null,0]
[null,null,null,null,null,null,{"$f":"_xlfn.XLOOKUP(F9,Postcode!$A$2:$A$2766,Postcode!$D$2:$D$2766,\"postcode klopt niet\",0)","v":"postcode klopt niet"},null,null,null,null,null,null,null,null,0]
[null,null,null,null,null,null,{"$f":"_xlfn.XLOOKUP(F10,Postcode!$A$2:$A$2766,Postcode!$D$2:$D$2766,\"postcode klopt niet\",0)","v":"postcode klopt niet"},null,null,null,null,null,null,null,null,0]
[null,null,null,null,null,null,{"$f":"_xlfn.XLOOKUP(F11,Postcode!$A$2:$A$2766,Postcode!$D$2:$D$2766,\"postcode klopt niet\",0)","v":"postcode klopt niet"},null,null,null,null,null,null,null,null,0]
[null,null,null,null,null,null,{"$f":"_xlfn.XLOOKUP(F12,Postcode!$A$2:$A$2766,Postcode!$D$2:$D$2766,\"postcode klopt niet\",0)","v":"postcode klopt niet"},null,null,null,null,null,null,null,null,0]
[null,null,null,null,null,null,{"$f":"_xlfn.XLOOKUP(F13,Postcode!$A$2:$A$2766,Postcode!$D$2:$D$2766,\"postcode klopt niet\",0)","v":"postcode klopt niet"},null,null,null,null,null,null,null,null,0]
[null,null,null,null,null,null,{"$f":"_xlfn.XLOOKUP(F14,Postcode!$A$2:$A$2766,Postcode!$D$2:$D$2766,\"postcode klopt niet\",0)","v":"postcode klopt niet"},null,null,null,null,null,null,null,null,0]
[null,null,null,null,null,null,{"$f":"_xlfn.XLOOKUP(F15,Postcode!$A$2:$A$2766,Postcode!$D$2:$D$2766,\"postcode klopt niet\",0)","v":"postcode klopt niet"},null,null,null,null,null,null,null,null,0]
[null,null,null,null,null,null,{"$f":"_xlfn.XLOOKUP(F16,Postcode!$A$2:$A$2766,Postcode!$D$2:$D$2766,\"postcode klopt niet\",0)","v":"postcode klopt niet"},null,null,null,null,null,null,null,null,0]
[null,null,null,null,null,null,{"$f":"_xlfn.XLOOKUP(F17,Postcode!$A$2:$A$2766,Postcode!$D$2:$D$2766,\"postcode klopt niet\",0)","v":"postcode klopt niet"},null,null,null,null,null,null,null,null,0]
[null,null,null,null,null,null,{"$f":"_xlfn.XLOOKUP(F18,Postcode!$A$2:$A$2766,Postcode!$D$2:$D$2766,\"postcode klopt niet\",0)","v":"postcode klopt niet"},null,null,null,null,null,null,null,null,0]
[null,null,null,null,null,null,{"$f":"_xlfn.XLOOKUP(F19,Postcode!$A$2:$A$2766,Postcode!$D$2:$D$2766,\"postcode klopt niet\",0)","v":"postcode klopt niet"},null,null,null,null,null,null,null,null,0]
[null,null,null,null,null,null,{"$f":"_xlfn.XLOOKUP(F20,Postcode!$A$2:$A$2766,Postcode!$D$2:$D$2766,\"postcode klopt niet\",0)","v":"postcode klopt niet"},null,null,null,null,null,null,null,null,0]
[null,null,null,null,null,null,{"$f":"_xlfn.XLOOKUP(F21,Postcode!$A$2:$A$2766,Postcode!$D$2:$D$2766,\"postcode klopt niet\",0)","v":"postcode klopt niet"},null,null,null,null,null,null,null,null,0]
[null,null,null,null,null,null,{"$f":"_xlfn.XLOOKUP(F22,Postcode!$A$2:$A$2766,Postcode!$D$2:$D$2766,\"postcode klopt niet\",0)","v":"postcode klopt niet"},null,null,null,null,null,null,null,null,0]
[null,null,null,null,null,null,{"$f":"_xlfn.XLOOKUP(F23,Postcode!$A$2:$A$2766,Postcode!$D$2:$D$2766,\"postcode klopt niet\",0)","v":"postcode klopt niet"},null,null,null,null,null,null,null,null,0]
[null,null,null,null,null,null,{"$f":"_xlfn.XLOOKUP(F24,Postcode!$A$2:$A$2766,Postcode!$D$2:$D$2766,\"postcode klopt niet\",0)","v":"postcode klopt niet"},null,null,null,null,null,null,null,null,0]
[null,null,null,null,null,null,{"$f":"_xlfn.XLOOKUP(F25,Postcode!$A$2:$A$2766,Postcode!$D$2:$D$2766,\"postcode klopt niet\",0)","v":"postcode klopt niet"},null,null,null,null,null,null,null,null,0]
[null,null,null,null,null,null,{"$f":"_xlfn.XLOOKUP(F26,Postcode!$A$2:$A$2766,Postcode!$D$2:$D$2766,\"postcode klopt niet\",0)","v":"postcode klopt niet"},null,null,null,null,null,null,null,null,0]
[null,null,null,null,null,null,{"$f":"_xlfn.XLOOKUP(F27,Postcode!$A$2:$A$2766,Postcode!$D$2:$D$2766,\"postcode klopt niet\",0)","v":"postcode klopt niet"},null,null,null,null,null,null,null,null,0]
[null,null,null,null,null,null,{"$f":"_xlfn.XLOOKUP(F28,Postcode!$A$2:$A$2766,Postcode!$D$2:$D$2766,\"postcode klopt niet\",0)","v":"postcode klopt niet"},null,null,null,null,null,null,null,null,0]
[null,null,null,null,null,null,{"$f":"_xlfn.XLOOKUP(F29,Postcode!$A$2:$A$2766,Postcode!$D$2:$D$2766,\"postcode klopt niet\",0)","v":"postcode klopt niet"},null,null,null,null,null,null,null,null,0]
[null,null,null,null,null,null,{"$f":"_xlfn.XLOOKUP(F30,Postcode!$A$2:$A$2766,Postcode!$D$2:$D$2766,\"postcode klopt niet\",0)","v":"postcode klopt niet"},null,null,null,null,null,null,null,null,0]
[null,null,null,null,null,null,{"$f":"_xlfn.XLOOKUP(F31,Postcode!$A$2:$A$2766,Postcode!$D$2:$D$2766,\"postcode klopt niet\",0)","v":"postcode klopt niet"},null,null,null,null,null,null,null,null,0]
[null,null,null,null,null,null,{"$f":"_xlfn.XLOOKUP(F32,Postcode!$A$2:$A$2766,Postcode!$D$2:$D$2766,\"postcode klopt niet\",0)","v":"postcode klopt niet"},null,null,null,null,null,null,null,null,0]
[null,null,null,null,null,null,{"$f":"_xlfn.XLOOKUP(F33,Postcode!$A$2:$A$2766,Postcode!$D$2:$D$2766,\"postcode klopt niet\",0)","v":"postcode klopt niet"},null,null,null,null,null,null,null,null,0]
[null,null,null,null,null,null,{"$f":"_xlfn.XLOOKUP(F34,Postcode!$A$2:$A$2766,Postcode!$D$2:$D$2766,\"postcode klopt niet\",0)","v":"postcode klopt niet"},null,null,null,null,null,null,null,null,0]
[null,null,null,null,null,null,{"$f":"_xlfn.XLOOKUP(F35,Postcode!$A$2:$A$2766,Postcode!$D$2:$D$2766,\"postcode klopt niet\",0)","v":"postcode klopt niet"},null,null,null,null,null,null,null,null,0]
[null,null,null,null,null,null,{"$f":"_xlfn.XLOOKUP(F36,Postcode!$A$2:$A$2766,Postcode!$D$2:$D$2766,\"postcode klopt niet\",0)","v":"postcode klopt niet"},null,null,null,null,null,null,null,null,0]
[null,null,null,null,null,null,{"$f":"_xlfn.XLOOKUP(F37,Postcode!$A$2:$A$2766,Postcode!$D$2:$D$2766,\"postcode klopt niet\",0)","v":"postcode klopt niet"},null,null,null,null,null,null,null,null,0]
[null,null,null,null,null,null,{"$f":"_xlfn.XLOOKUP(F38,Postcode!$A$2:$A$2766,Postcode!$D$2:$D$2766,\"postcode klopt niet\",0)","v":"postcode klopt niet"},null,null,null,null,null,null,null,null,0]
[null,null,null,null,null,null,{"$f":"_xlfn.XLOOKUP(F39,Postcode!$A$2:$A$2766,Postcode!$D$2:$D$2766,\"postcode klopt niet\",0)","v":"postcode klopt niet"},null,null,null,null,null,null,null,null,0]
[null,null,null,null,null,null,{"$f":"_xlfn.XLOOKUP(F40,Postcode!$A$2:$A$2766,Postcode!$D$2:$D$2766,\"postcode klopt niet\",0)","v":"postcode klopt niet"},null,null,null,null,null,null,null,null,0]
[null,null,null,null,null,null,{"$f":"_xlfn.XLOOKUP(F41,Postcode!$A$2:$A$2766,Postcode!$D$2:$D$2766,\"postcode klopt niet\",0)","v":"postcode klopt niet"},null,null,null,null,null,null,null,null,0]
[null,null,null,null,null,null,{"$f":"_xlfn.XLOOKUP(F42,Postcode!$A$2:$A$2766,Postcode!$D$2:$D$2766,\"postcode klopt niet\",0)","v":"postcode klopt niet"},null,null,null,null,null,null,null,null,0]
[null,null,null,null,null,null,{"$f":"_xlfn.XLOOKUP(F43,Postcode!$A$2:$A$2766,Postcode!$D$2:$D$2766,\"postcode klopt niet\",0)","v":"postcode klopt niet"},null,null,null,null,null,null,null,null,0]
[null,null,null,null,null,null,{"$f":"_xlfn.XLOOKUP(F44,Postcode!$A$2:$A$2766,Postcode!$D$2:$D$2766,\"postcode klopt niet\",0)","v":"postcode klopt niet"},null,null,null,null,null,null,null,null,0]
[null,null,null,null,null,null,{"$f":"_xlfn.XLOOKUP(F45,Postcode!$A$2:$A$2766,Postcode!$D$2:$D$2766,\"postcode klopt niet\",0)","v":"postcode klopt niet"},null,null,null,null,null,null,null,null,0]
[null,null,null,null,null,null,{"$f":"_xlfn.XLOOKUP(F46,Postcode!$A$2:$A$2766,Postcode!$D$2:$D$2766,\"postcode klopt niet\",0)","v":"postcode klopt niet"},null,null,null,null,null,null,null,null,0]
[null,null,null,null,null,null,{"$f":"_xlfn.XLOOKUP(F47,Postcode!$A$2:$A$2766,Postcode!$D$2:$D$2766,\"postcode klopt niet\",0)","v":"postcode klopt niet"},null,null,null,null,null,null,null,null,0]
[null,null,null,null,null,null,{"$f":"_xlfn.XLOOKUP(F48,Postcode!$A$2:$A$2766,Postcode!$D$2:$D$2766,\"postcode klopt niet\",0)","v":"postcode klopt niet"},null,null,null,null,null,null,null,null,0]
[null,null,null,null,null,null,{"$f":"_xlfn.XLOOKUP(F49,Postcode!$A$2:$A$2766,Postcode!$D$2:$D$2766,\"postcode klopt niet\",0)","v":"postcode klopt niet"},null,null,null,null,null,null,null,null,0]
[null,null,null,null,null,null,{"$f":"_xlfn.XLOOKUP(F50,Postcode!$A$2:$A$2766,Postcode!$D$2:$D$2766,\"postcode klopt niet\",0)","v":"postcode klopt niet"},null,null,null,null,null,null,null,null,0]
[null,null,null,null,null,null,{"$f":"_xlfn.XLOOKUP(F51,Postcode!$A$2:$A$2766,Postcode!$D$2:$D$2766,\"postcode klopt niet\",0)","v":"postcode klopt niet"},null,null,null,null,null,null,null,null,0]
[null,null,null,null,null,null,{"$f":"_xlfn.XLOOKUP(F52,Postcode!$A$2:$A$2766,Postcode!$D$2:$D$2766,\"postcode klopt niet\",0)","v":"postcode klopt niet"},null,null,null,null,null,null,null,null,0]
[null,null,null,null,null,null,{"$f":"_xlfn.XLOOKUP(F53,Postcode!$A$2:$A$2766,Postcode!$D$2:$D$2766,\"postcode klopt niet\",0)","v":"postcode klopt niet"},null,null,null,null,null,null,null,null,0]
[null,null,null,null,null,null,{"$f":"_xlfn.XLOOKUP(F54,Postcode!$A$2:$A$2766,Postcode!$D$2:$D$2766,\"postcode klopt niet\",0)","v":"postcode klopt niet"},null,null,null,null,null,null,null,null,0]
[null,null,null,null,null,null,{"$f":"_xlfn.XLOOKUP(F55,Postcode!$A$2:$A$2766,Postcode!$D$2:$D$2766,\"postcode klopt niet\",0)","v":"postcode klopt niet"},null,null,null,null,null,null,null,null,0]
[null,null,null,null,null,null,{"$f":"_xlfn.XLOOKUP(F56,Postcode!$A$2:$A$2766,Postcode!$D$2:$D$2766,\"postcode klopt niet\",0)","v":"postcode klopt niet"},null,null,null,null,null,null,null,null,0]
[null,null,null,null,null,null,{"$f":"_xlfn.XLOOKUP(F57,Postcode!$A$2:$A$2766,Postcode!$D$2:$D$2766,\"postcode klopt niet\",0)","v":"postcode klopt niet"},null,null,null,null,null,null,null,null,0]
[null,null,null,null,null,null,{"$f":"_xlfn.XLOOKUP(F58,Postcode!$A$2:$A$2766,Postcode!$D$2:$D$2766,\"postcode klopt niet\",0)","v":"postcode klopt niet"},null,null,null,null,null,null,null,null,0]
[null,null,null,null,null,null,{"$f":"_xlfn.XLOOKUP(F59,Postcode!$A$2:$A$2766,Postcode!$D$2:$D$2766,\"postcode klopt niet\",0)","v":"postcode klopt niet"},null,null,null,null,null,null,null,null,0]
[null,null,null,null,null,null,{"$f":"_xlfn.XLOOKUP(F60,Postcode!$A$2:$A$2766,Postcode!$D$2:$D$2766,\"postcode klopt niet\",0)","v":"postcode klopt niet"},null,null,null,null,null,null,null,null,0]
[null,null,null,null,null,null,{"$f":"_xlfn.XLOOKUP(F61,Postcode!$A$2:$A$2766,Postcode!$D$2:$D$2766,\"postcode klopt niet\",0)","v":"postcode klopt niet"},null,null,null,null,null,null,null,null,0]
[null,null,null,null,null,null,{"$f":"_xlfn.XLOOKUP(F62,Postcode!$A$2:$A$2766,Postcode!$D$2:$D$2766,\"postcode klopt niet\",0)","v":"postcode klopt niet"},null,null,null,null,null,null,null,null,0]
[null,null,null,null,null,null,{"$f":"_xlfn.XLOOKUP(F63,Postcode!$A$2:$A$2766,Postcode!$D$2:$D$2766,\"postcode klopt niet\",0)","v":"postcode klopt niet"},null,null,null,null,null,null,null,null,0]
[null,null,null,null,null,null,{"$f":"_xlfn.XLOOKUP(F64,Postcode!$A$2:$A$2766,Postcode!$D$2:$D$2766,\"postcode klopt niet\",0)","v":"postcode klopt niet"},null,null,null,null,null,null,null,null,0]
[null,null,null,null,null,null,{"$f":"_xlfn.XLOOKUP(F65,Postcode!$A$2:$A$2766,Postcode!$D$2:$D$2766,\"postcode klopt niet\",0)","v":"postcode klopt niet"},null,null,null,null,null,null,null,null,0]
[null,null,null,null,null,null,{"$f":"_xlfn.XLOOKUP(F66,Postcode!$A$2:$A$2766,Postcode!$D$2:$D$2766,\"postcode klopt niet\",0)","v":"postcode klopt niet"},null,null,null,null,null,null,null,null,0]
[null,null,null,null,null,null,{"$f":"_xlfn.XLOOKUP(F67,Postcode!$A$2:$A$2766,Postcode!$D$2:$D$2766,\"postcode klopt niet\",0)","v":"postcode klopt niet"},null,null,null,null,null,null,null,null,0]
[null,null,null,null,null,null,{"$f":"_xlfn.XLOOKUP(F68,Postcode!$A$2:$A$2766,Postcode!$D$2:$D$2766,\"postcode klopt niet\",0)","v":"postcode klopt niet"},null,null,null,null,null,null,null,null,{"$f":"COUNTA(A68,B68,C68,F68)","v":0}]
[null,null,null,null,null,null,{"$f":"_xlfn.XLOOKUP(F69,Postcode!$A$2:$A$2766,Postcode!$D$2:$D$2766,\"postcode klopt niet\",0)","v":"postcode klopt niet"},null,null,null,null,null,null,null,null,0]
[null,null,null,null,null,null,{"$f":"_xlfn.XLOOKUP(F70,Postcode!$A$2:$A$2766,Postcode!$D$2:$D$2766,\"postcode klopt niet\",0)","v":"postcode klopt niet"},null,null,null,null,null,null,null,null,0]
[null,null,null,null,null,null,{"$f":"_xlfn.XLOOKUP(F71,Postcode!$A$2:$A$2766,Postcode!$D$2:$D$2766,\"postcode klopt niet\",0)","v":"postcode klopt niet"},null,null,null,null,null,null,null,null,0]
[null,null,null,null,null,null,{"$f":"_xlfn.XLOOKUP(F72,Postcode!$A$2:$A$2766,Postcode!$D$2:$D$2766,\"postcode klopt niet\",0)","v":"postcode klopt niet"},null,null,null,null,null,null,null,null,0]
[null,null,null,null,null,null,{"$f":"_xlfn.XLOOKUP(F73,Postcode!$A$2:$A$2766,Postcode!$D$2:$D$2766,\"postcode klopt niet\",0)","v":"postcode klopt niet"},null,null,null,null,null,null,null,null,0]
[null,null,null,null,null,null,{"$f":"_xlfn.XLOOKUP(F74,Postcode!$A$2:$A$2766,Postcode!$D$2:$D$2766,\"postcode klopt niet\",0)","v":"postcode klopt niet"},null,null,null,null,null,null,null,null,0]
[null,null,null,null,null,null,{"$f":"_xlfn.XLOOKUP(F75,Postcode!$A$2:$A$2766,Postcode!$D$2:$D$2766,\"postcode klopt niet\",0)","v":"postcode klopt niet"},null,null,null,null,null,null,null,null,0]
[null,null,null,null,null,null,{"$f":"_xlfn.XLOOKUP(F76,Postcode!$A$2:$A$2766,Postcode!$D$2:$D$2766,\"postcode klopt niet\",0)","v":"postcode klopt niet"},null,null,null,null,null,null,null,null,0]
[null,null,null,null,null,null,{"$f":"_xlfn.XLOOKUP(F77,Postcode!$A$2:$A$2766,Postcode!$D$2:$D$2766,\"postcode klopt niet\",0)","v":"postcode klopt niet"},null,null,null,null,null,null,null,null,0]
[null,null,null,null,null,null,{"$f":"_xlfn.XLOOKUP(F78,Postcode!$A$2:$A$2766,Postcode!$D$2:$D$2766,\"postcode klopt niet\",0)","v":"postcode klopt niet"},null,null,null,null,null,null,null,null,0]
[null,null,null,null,null,null,{"$f":"_xlfn.XLOOKUP(F79,Postcode!$A$2:$A$2766,Postcode!$D$2:$D$2766,\"postcode klopt niet\",0)","v":"postcode klopt niet"},null,null,null,null,null,null,null,null,0]
[null,null,null,null,null,null,{"$f":"_xlfn.XLOOKUP(F80,Postcode!$A$2:$A$2766,Postcode!$D$2:$D$2766,\"postcode klopt niet\",0)","v":"postcode klopt niet"},null,null,null,null,null,null,null,null,0]
[null,null,null,null,null,null,{"$f":"_xlfn.XLOOKUP(F81,Postcode!$A$2:$A$2766,Postcode!$D$2:$D$2766,\"postcode klopt niet\",0)","v":"postcode klopt niet"},null,null,null,null,null,null,null,null,0]
[null,null,null,null,null,null,{"$f":"_xlfn.XLOOKUP(F82,Postcode!$A$2:$A$2766,Postcode!$D$2:$D$2766,\"postcode klopt niet\",0)","v":"postcode klopt niet"},null,null,null,null,null,null,null,null,0]
[null,null,null,null,null,null,{"$f":"_xlfn.XLOOKUP(F83,Postcode!$A$2:$A$2766,Postcode!$D$2:$D$2766,\"postcode klopt niet\",0)","v":"postcode klopt niet"},null,null,null,null,null,null,null,null,0]
[null,null,null,null,null,null,{"$f":"_xlfn.XLOOKUP(F84,Postcode!$A$2:$A$2766,Postcode!$D$2:$D$2766,\"postcode klopt niet\",0)","v":"postcode klopt niet"},null,null,null,null,null,null,null,null,0]
[null,null,null,null,null,null,{"$f":"_xlfn.XLOOKUP(F85,Postcode!$A$2:$A$2766,Postcode!$D$2:$D$2766,\"postcode klopt niet\",0)","v":"postcode klopt niet"},null,null,null,null,null,null,null,null,0]
[null,null,null,null,null,null,{"$f":"_xlfn.XLOOKUP(F86,Postcode!$A$2:$A$2766,Postcode!$D$2:$D$2766,\"postcode klopt niet\",0)","v":"postcode klopt niet"},null,null,null,null,null,null,null,null,0]
[null,null,null,null,null,null,{"$f":"_xlfn.XLOOKUP(F87,Postcode!$A$2:$A$2766,Postcode!$D$2:$D$2766,\"postcode klopt niet\",0)","v":"postcode klopt niet"},null,null,null,null,null,null,null,null,0]
[null,null,null,null,null,null,{"$f":"_xlfn.XLOOKUP(F88,Postcode!$A$2:$A$2766,Postcode!$D$2:$D$2766,\"postcode klopt niet\",0)","v":"postcode klopt niet"},null,null,null,null,null,null,null,null,0]
[null,null,null,null,null,null,{"$f":"_xlfn.XLOOKUP(F89,Postcode!$A$2:$A$2766,Postcode!$D$2:$D$2766,\"postcode klopt niet\",0)","v":"postcode klopt niet"},null,null,null,null,null,null,null,null,0]
[null,null,null,null,null,null,{"$f":"_xlfn.XLOOKUP(F90,Postcode!$A$2:$A$2766,Postcode!$D$2:$D$2766,\"postcode klopt niet\",0)","v":"postcode klopt niet"},null,null,null,null,null,null,null,null,0]
[null,null,null,null,null,null,{"$f":"_xlfn.XLOOKUP(F91,Postcode!$A$2:$A$2766,Postcode!$D$2:$D$2766,\"postcode klopt niet\",0)","v":"postcode klopt niet"},null,null,null,null,null,null,null,null,0]
[null,null,null,null,null,null,{"$f":"_xlfn.XLOOKUP(F92,Postcode!$A$2:$A$2766,Postcode!$D$2:$D$2766,\"postcode klopt niet\",0)","v":"postcode klopt niet"},null,null,null,null,null,null,null,null,0]
[null,null,null,null,null,null,{"$f":"_xlfn.XLOOKUP(F93,Postcode!$A$2:$A$2766,Postcode!$D$2:$D$2766,\"postcode klopt niet\",0)","v":"postcode klopt niet"},null,null,null,null,null,null,null,null,0]
[null,null,null,null,null,null,{"$f":"_xlfn.XLOOKUP(F94,Postcode!$A$2:$A$2766,Postcode!$D$2:$D$2766,\"postcode klopt niet\",0)","v":"postcode klopt niet"},null,null,null,null,null,null,null,null,0]
[null,null,null,null,null,null,{"$f":"_xlfn.XLOOKUP(F95,Postcode!$A$2:$A$2766,Postcode!$D$2:$D$2766,\"postcode klopt niet\",0)","v":"postcode klopt niet"},null,null,null,null,null,null,null,null,0]
[null,null,null,null,null,null,{"$f":"_xlfn.XLOOKUP(F96,Postcode!$A$2:$A$2766,Postcode!$D$2:$D$2766,\"postcode klopt niet\",0)","v":"postcode klopt niet"},null,null,null,null,null,null,null,null,0]
[null,null,null,null,null,null,{"$f":"_xlfn.XLOOKUP(F97,Postcode!$A$2:$A$2766,Postcode!$D$2:$D$2766,\"postcode klopt niet\",0)","v":"postcode klopt niet"},null,null,null,null,null,null,null,null,0]
[null,null,null,null,null,null,{"$f":"_xlfn.XLOOKUP(F98,Postcode!$A$2:$A$2766,Postcode!$D$2:$D$2766,\"postcode klopt niet\",0)","v":"postcode klopt niet"},null,null,null,null,null,null,null,null,0]
[null,null,null,null,null,null,{"$f":"_xlfn.XLOOKUP(F99,Postcode!$A$2:$A$2766,Postcode!$D$2:$D$2766,\"postcode klopt niet\",0)","v":"postcode klopt niet"},null,null,null,null,null,null,null,null,0]
[null,null,null,null,null,null,{"$f":"_xlfn.XLOOKUP(F100,Postcode!$A$2:$A$2766,Postcode!$D$2:$D$2766,\"postcode klopt niet\",0)","v":"postcode klopt niet"},null,null,null,null,null,null,null,null,0]
[null,null,null,null,null,null,{"$f":"_xlfn.XLOOKUP(F101,Postcode!$A$2:$A$2766,Postcode!$D$2:$D$2766,\"postcode klopt niet\",0)","v":"postcode klopt niet"},null,null,null,null,null,null,null,null,0]
[null,null,null,null,null,null,{"$f":"_xlfn.XLOOKUP(F102,Postcode!$A$2:$A$2766,Postcode!$D$2:$D$2766,\"postcode klopt niet\",0)","v":"postcode klopt niet"},null,null,null,null,null,null,null,null,{"$f":"COUNTA(A102,B102,C102,F102)","v":0}]
[]
[]
[]
[]
[]
[]
[null,null,null,null,null,{"$f":"MOD(930407131,97)","v":9}]

{"sheet":"niet gebruikt 6","index":8,"n_rows":102,"n_cols":16,"rows_kept":102,"cut":false,"hidden":false,"merged":[[0,0,0,6]]}
["Gegevens Lid",null,null,null,null,null,null,null,null,null,null,null,null,null,null,{"$f":"Algemeen!B10","v":"niet gebruikt 6"}]
["Naam","Voornaam","Geboortedatum","Straat","Nr°/Bus","Postcode","Gemeente",null,null,null,null,null,null,null,null,"Controle"]
["vb. Evenepoel","vb. Remco","1990-04-03","Vogelzangstraat","37/3",3540,{"$f":"_xlfn.XLOOKUP(F3,Postcode!$A$2:$A$2766,Postcode!$D$2:$D$2766,\"postcode klopt niet\",0)","v":"HERK-DE-STAD"}]
[null,null,null,null,null,null,{"$f":"_xlfn.XLOOKUP(F4,Postcode!$A$2:$A$2766,Postcode!$D$2:$D$2766,\"postcode klopt niet\",0)","v":"postcode klopt niet"},null,null,null,null,null,null,null,null,{"$f":"COUNTA(A4,B4,C4,F4)","v":0}]
[null,null,null,null,null,null,{"$f":"_xlfn.XLOOKUP(F5,Postcode!$A$2:$A$2766,Postcode!$D$2:$D$2766,\"postcode klopt niet\",0)","v":"postcode klopt niet"},null,null,null,null,null,null,null,null,0]
[null,null,null,null,null,null,{"$f":"_xlfn.XLOOKUP(F6,Postcode!$A$2:$A$2766,Postcode!$D$2:$D$2766,\"postcode klopt niet\",0)","v":"postcode klopt niet"},null,null,null,null,null,null,null,null,0]
[null,null,null,null,null,null,{"$f":"_xlfn.XLOOKUP(F7,Postcode!$A$2:$A$2766,Postcode!$D$2:$D$2766,\"postcode klopt niet\",0)","v":"postcode klopt niet"},null,null,null,null,null,null,null,null,0]
[null,null,null,null,null,null,{"$f":"_xlfn.XLOOKUP(F8,Postcode!$A$2:$A$2766,Postcode!$D$2:$D$2766,\"postcode klopt niet\",0)","v":"postcode klopt niet"},null,null,null,null,null,null,null,null,0]
[null,null,null,null,null,null,{"$f":"_xlfn.XLOOKUP(F9,Postcode!$A$2:$A$2766,Postcode!$D$2:$D$2766,\"postcode klopt niet\",0)","v":"postcode klopt niet"},null,null,null,null,null,null,null,null,0]
[null,null,null,null,null,null,{"$f":"_xlfn.XLOOKUP(F10,Postcode!$A$2:$A$2766,Postcode!$D$2:$D$2766,\"postcode klopt niet\",0)","v":"postcode klopt niet"},null,null,null,null,null,null,null,null,0]
[null,null,null,null,null,null,{"$f":"_xlfn.XLOOKUP(F11,Postcode!$A$2:$A$2766,Postcode!$D$2:$D$2766,\"postcode klopt niet\",0)","v":"postcode klopt niet"},null,null,null,null,null,null,null,null,0]
[null,null,null,null,null,null,{"$f":"_xlfn.XLOOKUP(F12,Postcode!$A$2:$A$2766,Postcode!$D$2:$D$2766,\"postcode klopt niet\",0)","v":"postcode klopt niet"},null,null,null,null,null,null,null,null,0]
[null,null,null,null,null,null,{"$f":"_xlfn.XLOOKUP(F13,Postcode!$A$2:$A$2766,Postcode!$D$2:$D$2766,\"postcode klopt niet\",0)","v":"postcode klopt niet"},null,null,null,null,null,null,null,null,0]
[null,null,null,null,null,null,{"$f":"_xlfn.XLOOKUP(F14,Postcode!$A$2:$A$2766,Postcode!$D$2:$D$2766,\"postcode klopt niet\",0)","v":"postcode klopt niet"},null,null,null,null,null,null,null,null,0]
[null,null,null,null,null,null,{"$f":"_xlfn.XLOOKUP(F15,Postcode!$A$2:$A$2766,Postcode!$D$2:$D$2766,\"postcode klopt niet\",0)","v":"postcode klopt niet"},null,null,null,null,null,null,null,null,0]
[null,null,null,null,null,null,{"$f":"_xlfn.XLOOKUP(F16,Postcode!$A$2:$A$2766,Postcode!$D$2:$D$2766,\"postcode klopt niet\",0)","v":"postcode klopt niet"},null,null,null,null,null,null,null,null,0]
[null,null,null,null,null,null,{"$f":"_xlfn.XLOOKUP(F17,Postcode!$A$2:$A$2766,Postcode!$D$2:$D$2766,\"postcode klopt niet\",0)","v":"postcode klopt niet"},null,null,null,null,null,null,null,null,0]
[null,null,null,null,null,null,{"$f":"_xlfn.XLOOKUP(F18,Postcode!$A$2:$A$2766,Postcode!$D$2:$D$2766,\"postcode klopt niet\",0)","v":"postcode klopt niet"},null,null,null,null,null,null,null,null,0]
[null,null,null,null,null,null,{"$f":"_xlfn.XLOOKUP(F19,Postcode!$A$2:$A$2766,Postcode!$D$2:$D$2766,\"postcode klopt niet\",0)","v":"postcode klopt niet"},null,null,null,null,null,null,null,null,0]
[null,null,null,null,null,null,{"$f":"_xlfn.XLOOKUP(F20,Postcode!$A$2:$A$2766,Postcode!$D$2:$D$2766,\"postcode klopt niet\",0)","v":"postcode klopt niet"},null,null,null,null,null,null,null,null,0]
[null,null,null,null,null,null,{"$f":"_xlfn.XLOOKUP(F21,Postcode!$A$2:$A$2766,Postcode!$D$2:$D$2766,\"postcode klopt niet\",0)","v":"postcode klopt niet"},null,null,null,null,null,null,null,null,0]
[null,null,null,null,null,null,{"$f":"_xlfn.XLOOKUP(F22,Postcode!$A$2:$A$2766,Postcode!$D$2:$D$2766,\"postcode klopt niet\",0)","v":"postcode klopt niet"},null,null,null,null,null,null,null,null,0]
[null,null,null,null,null,null,{"$f":"_xlfn.XLOOKUP(F23,Postcode!$A$2:$A$2766,Postcode!$D$2:$D$2766,\"postcode klopt niet\",0)","v":"postcode klopt niet"},null,null,null,null,null,null,null,null,0]
[null,null,null,null,null,null,{"$f":"_xlfn.XLOOKUP(F24,Postcode!$A$2:$A$2766,Postcode!$D$2:$D$2766,\"postcode klopt niet\",0)","v":"postcode klopt niet"},null,null,null,null,null,null,null,null,0]
[null,null,null,null,null,null,{"$f":"_xlfn.XLOOKUP(F25,Postcode!$A$2:$A$2766,Postcode!$D$2:$D$2766,\"postcode klopt niet\",0)","v":"postcode klopt niet"},null,null,null,null,null,null,null,null,0]
[null,null,null,null,null,null,{"$f":"_xlfn.XLOOKUP(F26,Postcode!$A$2:$A$2766,Postcode!$D$2:$D$2766,\"postcode klopt niet\",0)","v":"postcode klopt niet"},null,null,null,null,null,null,null,null,0]
[null,null,null,null,null,null,{"$f":"_xlfn.XLOOKUP(F27,Postcode!$A$2:$A$2766,Postcode!$D$2:$D$2766,\"postcode klopt niet\",0)","v":"postcode klopt niet"},null,null,null,null,null,null,null,null,0]
[null,null,null,null,null,null,{"$f":"_xlfn.XLOOKUP(F28,Postcode!$A$2:$A$2766,Postcode!$D$2:$D$2766,\"postcode klopt niet\",0)","v":"postcode klopt niet"},null,null,null,null,null,null,null,null,0]
[null,null,null,null,null,null,{"$f":"_xlfn.XLOOKUP(F29,Postcode!$A$2:$A$2766,Postcode!$D$2:$D$2766,\"postcode klopt niet\",0)","v":"postcode klopt niet"},null,null,null,null,null,null,null,null,0]
[null,null,null,null,null,null,{"$f":"_xlfn.XLOOKUP(F30,Postcode!$A$2:$A$2766,Postcode!$D$2:$D$2766,\"postcode klopt niet\",0)","v":"postcode klopt niet"},null,null,null,null,null,null,null,null,0]
[null,null,null,null,null,null,{"$f":"_xlfn.XLOOKUP(F31,Postcode!$A$2:$A$2766,Postcode!$D$2:$D$2766,\"postcode klopt niet\",0)","v":"postcode klopt niet"},null,null,null,null,null,null,null,null,0]
[null,null,null,null,null,null,{"$f":"_xlfn.XLOOKUP(F32,Postcode!$A$2:$A$2766,Postcode!$D$2:$D$2766,\"postcode klopt niet\",0)","v":"postcode klopt niet"},null,null,null,null,null,null,null,null,0]
[null,null,null,null,null,null,{"$f":"_xlfn.XLOOKUP(F33,Postcode!$A$2:$A$2766,Postcode!$D$2:$D$2766,\"postcode klopt niet\",0)","v":"postcode klopt niet"},null,null,null,null,null,null,null,null,0]
[null,null,null,null,null,null,{"$f":"_xlfn.XLOOKUP(F34,Postcode!$A$2:$A$2766,Postcode!$D$2:$D$2766,\"postcode klopt niet\",0)","v":"postcode klopt niet"},null,null,null,null,null,null,null,null,0]
[null,null,null,null,null,null,{"$f":"_xlfn.XLOOKUP(F35,Postcode!$A$2:$A$2766,Postcode!$D$2:$D$2766,\"postcode klopt niet\",0)","v":"postcode klopt niet"},null,null,null,null,null,null,null,null,0]
[null,null,null,null,null,null,{"$f":"_xlfn.XLOOKUP(F36,Postcode!$A$2:$A$2766,Postcode!$D$2:$D$2766,\"postcode klopt niet\",0)","v":"postcode klopt niet"},null,null,null,null,null,null,null,null,0]
[null,null,null,null,null,null,{"$f":"_xlfn.XLOOKUP(F37,Postcode!$A$2:$A$2766,Postcode!$D$2:$D$2766,\"postcode klopt niet\",0)","v":"postcode klopt niet"},null,null,null,null,null,null,null,null,0]
[null,null,null,null,null,null,{"$f":"_xlfn.XLOOKUP(F38,Postcode!$A$2:$A$2766,Postcode!$D$2:$D$2766,\"postcode klopt niet\",0)","v":"postcode klopt niet"},null,null,null,null,null,null,null,null,0]
[null,null,null,null,null,null,{"$f":"_xlfn.XLOOKUP(F39,Postcode!$A$2:$A$2766,Postcode!$D$2:$D$2766,\"postcode klopt niet\",0)","v":"postcode klopt niet"},null,null,null,null,null,null,null,null,0]
[null,null,null,null,null,null,{"$f":"_xlfn.XLOOKUP(F40,Postcode!$A$2:$A$2766,Postcode!$D$2:$D$2766,\"postcode klopt niet\",0)","v":"postcode klopt niet"},null,null,null,null,null,null,null,null,0]
[null,null,null,null,null,null,{"$f":"_xlfn.XLOOKUP(F41,Postcode!$A$2:$A$2766,Postcode!$D$2:$D$2766,\"postcode klopt niet\",0)","v":"postcode klopt niet"},null,null,null,null,null,null,null,null,0]
[null,null,null,null,null,null,{"$f":"_xlfn.XLOOKUP(F42,Postcode!$A$2:$A$2766,Postcode!$D$2:$D$2766,\"postcode klopt niet\",0)","v":"postcode klopt niet"},null,null,null,null,null,null,null,null,0]
[null,null,null,null,null,null,{"$f":"_xlfn.XLOOKUP(F43,Postcode!$A$2:$A$2766,Postcode!$D$2:$D$2766,\"postcode klopt niet\",0)","v":"postcode klopt niet"},null,null,null,null,null,null,null,null,0]
[null,null,null,null,null,null,{"$f":"_xlfn.XLOOKUP(F44,Postcode!$A$2:$A$2766,Postcode!$D$2:$D$2766,\"postcode klopt niet\",0)","v":"postcode klopt niet"},null,null,null,null,null,null,null,null,0]
[null,null,null,null,null,null,{"$f":"_xlfn.XLOOKUP(F45,Postcode!$A$2:$A$2766,Postcode!$D$2:$D$2766,\"postcode klopt niet\",0)","v":"postcode klopt niet"},null,null,null,null,null,null,null,null,0]
[null,null,null,null,null,null,{"$f":"_xlfn.XLOOKUP(F46,Postcode!$A$2:$A$2766,Postcode!$D$2:$D$2766,\"postcode klopt niet\",0)","v":"postcode klopt niet"},null,null,null,null,null,null,null,null,0]
[null,null,null,null,null,null,{"$f":"_xlfn.XLOOKUP(F47,Postcode!$A$2:$A$2766,Postcode!$D$2:$D$2766,\"postcode klopt niet\",0)","v":"postcode klopt niet"},null,null,null,null,null,null,null,null,0]
[null,null,null,null,null,null,{"$f":"_xlfn.XLOOKUP(F48,Postcode!$A$2:$A$2766,Postcode!$D$2:$D$2766,\"postcode klopt niet\",0)","v":"postcode klopt niet"},null,null,null,null,null,null,null,null,0]
[null,null,null,null,null,null,{"$f":"_xlfn.XLOOKUP(F49,Postcode!$A$2:$A$2766,Postcode!$D$2:$D$2766,\"postcode klopt niet\",0)","v":"postcode klopt niet"},null,null,null,null,null,null,null,null,0]
[null,null,null,null,null,null,{"$f":"_xlfn.XLOOKUP(F50,Postcode!$A$2:$A$2766,Postcode!$D$2:$D$2766,\"postcode klopt niet\",0)","v":"postcode klopt niet"},null,null,null,null,null,null,null,null,0]
[null,null,null,null,null,null,{"$f":"_xlfn.XLOOKUP(F51,Postcode!$A$2:$A$2766,Postcode!$D$2:$D$2766,\"postcode klopt niet\",0)","v":"postcode klopt niet"},null,null,null,null,null,null,null,null,0]
[null,null,null,null,null,null,{"$f":"_xlfn.XLOOKUP(F52,Postcode!$A$2:$A$2766,Postcode!$D$2:$D$2766,\"postcode klopt niet\",0)","v":"postcode klopt niet"},null,null,null,null,null,null,null,null,0]
[null,null,null,null,null,null,{"$f":"_xlfn.XLOOKUP(F53,Postcode!$A$2:$A$2766,Postcode!$D$2:$D$2766,\"postcode klopt niet\",0)","v":"postcode klopt niet"},null,null,null,null,null,null,null,null,0]
[null,null,null,null,null,null,{"$f":"_xlfn.XLOOKUP(F54,Postcode!$A$2:$A$2766,Postcode!$D$2:$D$2766,\"postcode klopt niet\",0)","v":"postcode klopt niet"},null,null,null,null,null,null,null,null,0]
[null,null,null,null,null,null,{"$f":"_xlfn.XLOOKUP(F55,Postcode!$A$2:$A$2766,Postcode!$D$2:$D$2766,\"postcode klopt niet\",0)","v":"postcode klopt niet"},null,null,null,null,null,null,null,null,0]
[null,null,null,null,null,null,{"$f":"_xlfn.XLOOKUP(F56,Postcode!$A$2:$A$2766,Postcode!$D$2:$D$2766,\"postcode klopt niet\",0)","v":"postcode klopt niet"},null,null,null,null,null,null,null,null,0]
[null,null,null,null,null,null,{"$f":"_xlfn.XLOOKUP(F57,Postcode!$A$2:$A$2766,Postcode!$D$2:$D$2766,\"postcode klopt niet\",0)","v":"postcode klopt niet"},null,null,null,null,null,null,null,null,0]
[null,null,null,null,null,null,{"$f":"_xlfn.XLOOKUP(F58,Postcode!$A$2:$A$2766,Postcode!$D$2:$D$2766,\"postcode klopt niet\",0)","v":"postcode klopt niet"},null,null,null,null,null,null,null,null,0]
[null,null,null,null,null,null,{"$f":"_xlfn.XLOOKUP(F59,Postcode!$A$2:$A$2766,Postcode!$D$2:$D$2766,\"postcode klopt niet\",0)","v":"postcode klopt niet"},null,null,null,null,null,null,null,null,0]
[null,null,null,null,null,null,{"$f":"_xlfn.XLOOKUP(F60,Postcode!$A$2:$A$2766,Postcode!$D$2:$D$2766,\"postcode klopt niet\",0)","v":"postcode klopt niet"},null,null,null,null,null,null,null,null,0]
[null,null,null,null,null,null,{"$f":"_xlfn.XLOOKUP(F61,Postcode!$A$2:$A$2766,Postcode!$D$2:$D$2766,\"postcode klopt niet\",0)","v":"postcode klopt niet"},null,null,null,null,null,null,null,null,0]
[null,null,null,null,null,null,{"$f":"_xlfn.XLOOKUP(F62,Postcode!$A$2:$A$2766,Postcode!$D$2:$D$2766,\"postcode klopt niet\",0)","v":"postcode klopt niet"},null,null,null,null,null,null,null,null,0]
[null,null,null,null,null,null,{"$f":"_xlfn.XLOOKUP(F63,Postcode!$A$2:$A$2766,Postcode!$D$2:$D$2766,\"postcode klopt niet\",0)","v":"postcode klopt niet"},null,null,null,null,null,null,null,null,0]
[null,null,null,null,null,null,{"$f":"_xlfn.XLOOKUP(F64,Postcode!$A$2:$A$2766,Postcode!$D$2:$D$2766,\"postcode klopt niet\",0)","v":"postcode klopt niet"},null,null,null,null,null,null,null,null,0]
[null,null,null,null,null,null,{"$f":"_xlfn.XLOOKUP(F65,Postcode!$A$2:$A$2766,Postcode!$D$2:$D$2766,\"postcode klopt niet\",0)","v":"postcode klopt niet"},null,null,null,null,null,null,null,null,0]
[null,null,null,null,null,null,{"$f":"_xlfn.XLOOKUP(F66,Postcode!$A$2:$A$2766,Postcode!$D$2:$D$2766,\"postcode klopt niet\",0)","v":"postcode klopt niet"},null,null,null,null,null,null,null,null,0]
[null,null,null,null,null,null,{"$f":"_xlfn.XLOOKUP(F67,Postcode!$A$2:$A$2766,Postcode!$D$2:$D$2766,\"postcode klopt niet\",0)","v":"postcode klopt niet"},null,null,null,null,null,null,null,null,0]
[null,null,null,null,null,null,{"$f":"_xlfn.XLOOKUP(F68,Postcode!$A$2:$A$2766,Postcode!$D$2:$D$2766,\"postcode klopt niet\",0)","v":"postcode klopt niet"},null,null,null,null,null,null,null,null,{"$f":"COUNTA(A68,B68,C68,F68)","v":0}]
[null,null,null,null,null,null,{"$f":"_xlfn.XLOOKUP(F69,Postcode!$A$2:$A$2766,Postcode!$D$2:$D$2766,\"postcode klopt niet\",0)","v":"postcode klopt niet"},null,null,null,null,null,null,null,null,0]
[null,null,null,null,null,null,{"$f":"_xlfn.XLOOKUP(F70,Postcode!$A$2:$A$2766,Postcode!$D$2:$D$2766,\"postcode klopt niet\",0)","v":"postcode klopt niet"},null,null,null,null,null,null,null,null,0]
[null,null,null,null,null,null,{"$f":"_xlfn.XLOOKUP(F71,Postcode!$A$2:$A$2766,Postcode!$D$2:$D$2766,\"postcode klopt niet\",0)","v":"postcode klopt niet"},null,null,null,null,null,null,null,null,0]
[null,null,null,null,null,null,{"$f":"_xlfn.XLOOKUP(F72,Postcode!$A$2:$A$2766,Postcode!$D$2:$D$2766,\"postcode klopt niet\",0)","v":"postcode klopt niet"},null,null,null,null,null,null,null,null,0]
[null,null,null,null,null,null,{"$f":"_xlfn.XLOOKUP(F73,Postcode!$A$2:$A$2766,Postcode!$D$2:$D$2766,\"postcode klopt niet\",0)","v":"postcode klopt niet"},null,null,null,null,null,null,null,null,0]
[null,null,null,null,null,null,{"$f":"_xlfn.XLOOKUP(F74,Postcode!$A$2:$A$2766,Postcode!$D$2:$D$2766,\"postcode klopt niet\",0)","v":"postcode klopt niet"},null,null,null,null,null,null,null,null,0]
[null,null,null,null,null,null,{"$f":"_xlfn.XLOOKUP(F75,Postcode!$A$2:$A$2766,Postcode!$D$2:$D$2766,\"postcode klopt niet\",0)","v":"postcode klopt niet"},null,null,null,null,null,null,null,null,0]
[null,null,null,null,null,null,{"$f":"_xlfn.XLOOKUP(F76,Postcode!$A$2:$A$2766,Postcode!$D$2:$D$2766,\"postcode klopt niet\",0)","v":"postcode klopt niet"},null,null,null,null,null,null,null,null,0]
[null,null,null,null,null,null,{"$f":"_xlfn.XLOOKUP(F77,Postcode!$A$2:$A$2766,Postcode!$D$2:$D$2766,\"postcode klopt niet\",0)","v":"postcode klopt niet"},null,null,null,null,null,null,null,null,0]
[null,null,null,null,null,null,{"$f":"_xlfn.XLOOKUP(F78,Postcode!$A$2:$A$2766,Postcode!$D$2:$D$2766,\"postcode klopt niet\",0)","v":"postcode klopt niet"},null,null,null,null,null,null,null,null,0]
[null,null,null,null,null,null,{"$f":"_xlfn.XLOOKUP(F79,Postcode!$A$2:$A$2766,Postcode!$D$2:$D$2766,\"postcode klopt niet\",0)","v":"postcode klopt niet"},null,null,null,null,null,null,null,null,0]
[null,null,null,null,null,null,{"$f":"_xlfn.XLOOKUP(F80,Postcode!$A$2:$A$2766,Postcode!$D$2:$D$2766,\"postcode klopt niet\",0)","v":"postcode klopt niet"},null,null,null,null,null,null,null,null,0]
[null,null,null,null,null,null,{"$f":"_xlfn.XLOOKUP(F81,Postcode!$A$2:$A$2766,Postcode!$D$2:$D$2766,\"postcode klopt niet\",0)","v":"postcode klopt niet"},null,null,null,null,null,null,null,null,0]
[null,null,null,null,null,null,{"$f":"_xlfn.XLOOKUP(F82,Postcode!$A$2:$A$2766,Postcode!$D$2:$D$2766,\"postcode klopt niet\",0)","v":"postcode klopt niet"},null,null,null,null,null,null,null,null,0]
[null,null,null,null,null,null,{"$f":"_xlfn.XLOOKUP(F83,Postcode!$A$2:$A$2766,Postcode!$D$2:$D$2766,\"postcode klopt niet\",0)","v":"postcode klopt niet"},null,null,null,null,null,null,null,null,0]
[null,null,null,null,null,null,{"$f":"_xlfn.XLOOKUP(F84,Postcode!$A$2:$A$2766,Postcode!$D$2:$D$2766,\"postcode klopt niet\",0)","v":"postcode klopt niet"},null,null,null,null,null,null,null,null,0]
[null,null,null,null,null,null,{"$f":"_xlfn.XLOOKUP(F85,Postcode!$A$2:$A$2766,Postcode!$D$2:$D$2766,\"postcode klopt niet\",0)","v":"postcode klopt niet"},null,null,null,null,null,null,null,null,0]
[null,null,null,null,null,null,{"$f":"_xlfn.XLOOKUP(F86,Postcode!$A$2:$A$2766,Postcode!$D$2:$D$2766,\"postcode klopt niet\",0)","v":"postcode klopt niet"},null,null,null,null,null,null,null,null,0]
[null,null,null,null,null,null,{"$f":"_xlfn.XLOOKUP(F87,Postcode!$A$2:$A$2766,Postcode!$D$2:$D$2766,\"postcode klopt niet\",0)","v":"postcode klopt niet"},null,null,null,null,null,null,null,null,0]
[null,null,null,null,null,null,{"$f":"_xlfn.XLOOKUP(F88,Postcode!$A$2:$A$2766,Postcode!$D$2:$D$2766,\"postcode klopt niet\",0)","v":"postcode klopt niet"},null,null,null,null,null,null,null,null,0]
[null,null,null,null,null,null,{"$f":"_xlfn.XLOOKUP(F89,Postcode!$A$2:$A$2766,Postcode!$D$2:$D$2766,\"postcode klopt niet\",0)","v":"postcode klopt niet"},null,null,null,null,null,null,null,null,0]
[null,null,null,null,null,null,{"$f":"_xlfn.XLOOKUP(F90,Postcode!$A$2:$A$2766,Postcode!$D$2:$D$2766,\"postcode klopt niet\",0)","v":"postcode klopt niet"},null,null,null,null,null,null,null,null,0]
[null,null,null,null,null,null,{"$f":"_xlfn.XLOOKUP(F91,Postcode!$A$2:$A$2766,Postcode!$D$2:$D$2766,\"postcode klopt niet\",0)","v":"postcode klopt niet"},null,null,null,null,null,null,null,null,0]
[null,null,null,null,null,null,{"$f":"_xlfn.XLOOKUP(F92,Postcode!$A$2:$A$2766,Postcode!$D$2:$D$2766,\"postcode klopt niet\",0)","v":"postcode klopt niet"},null,null,null,null,null,null,null,null,0]
[null,null,null,null,null,null,{"$f":"_xlfn.XLOOKUP(F93,Postcode!$A$2:$A$2766,Postcode!$D$2:$D$2766,\"postcode klopt niet\",0)","v":"postcode klopt niet"},null,null,null,null,null,null,null,null,0]
[null,null,null,null,null,null,{"$f":"_xlfn.XLOOKUP(F94,Postcode!$A$2:$A$2766,Postcode!$D$2:$D$2766,\"postcode klopt niet\",0)","v":"postcode klopt niet"},null,null,null,null,null,null,null,null,0]
[null,null,null,null,null,null,{"$f":"_xlfn.XLOOKUP(F95,Postcode!$A$2:$A$2766,Postcode!$D$2:$D$2766,\"postcode klopt niet\",0)","v":"postcode klopt niet"},null,null,null,null,null,null,null,null,0]
[null,null,null,null,null,null,{"$f":"_xlfn.XLOOKUP(F96,Postcode!$A$2:$A$2766,Postcode!$D$2:$D$2766,\"postcode klopt niet\",0)","v":"postcode klopt niet"},null,null,null,null,null,null,null,null,0]
[null,null,null,null,null,null,{"$f":"_xlfn.XLOOKUP(F97,Postcode!$A$2:$A$2766,Postcode!$D$2:$D$2766,\"postcode klopt niet\",0)","v":"postcode klopt niet"},null,null,null,null,null,null,null,null,0]
[null,null,null,null,null,null,{"$f":"_xlfn.XLOOKUP(F98,Postcode!$A$2:$A$2766,Postcode!$D$2:$D$2766,\"postcode klopt niet\",0)","v":"postcode klopt niet"},null,null,null,null,null,null,null,null,0]
[null,null,null,null,null,null,{"$f":"_xlfn.XLOOKUP(F99,Postcode!$A$2:$A$2766,Postcode!$D$2:$D$2766,\"postcode klopt niet\",0)","v":"postcode klopt niet"},null,null,null,null,null,null,null,null,0]
[null,null,null,null,null,null,{"$f":"_xlfn.XLOOKUP(F100,Postcode!$A$2:$A$2766,Postcode!$D$2:$D$2766,\"postcode klopt niet\",0)","v":"postcode klopt niet"},null,null,null,null,null,null,null,null,0]
[null,null,null,null,null,null,{"$f":"_xlfn.XLOOKUP(F101,Postcode!$A$2:$A$2766,Postcode!$D$2:$D$2766,\"postcode klopt niet\",0)","v":"postcode klopt niet"},null,null,null,null,null,null,null,null,0]
[null,null,null,null,null,null,{"$f":"_xlfn.XLOOKUP(F102,Postcode!$A$2:$A$2766,Postcode!$D$2:$D$2766,\"postcode klopt niet\",0)","v":"postcode klopt niet"},null,null,null,null,null,null,null,null,{"$f":"COUNTA(A102,B102,C102,F102)","v":0}]

{"sheet":"Postcode","index":9,"n_rows":2766,"n_cols":16,"rows_kept":2766,"cut":false,"hidden":false,"merged":[]}
["Postcode","Plaatsnaam","Deelgemeente","Hoofdgemeente","Provincie",null,null,null,null,null,null,null,null,null,null,"Postcode"]
[612,"Sinterklaas",null,"Sinterklaas"]
[1000,"Brussel","Neen","BRUSSEL","BRUSSEL"]
[1005,"Verenigde Vergadering van de Gemeenschappelijke ",null,"Verenigde Vergadering van de Gemeenschappelijke "]
[1006,"Raad van de Vlaamse Gemeenschapscommissie",null,"Raad van de Vlaamse Gemeenschapscommissie"]
[1007,"Assemblée de la Commission Communautaire Française",null,"Assemblée de la Commission Communautaire Française"]
[1008,"Kamer van Volksvertegenwoordigers",null,"Kamer van Volksvertegenwoordigers"]
[1009,"Belgische Senaat",null,"Belgische Senaat"]
[1011,"Vlaams Parlement",null,"Vlaams Parlement"]
[1012,"Parlement de la communauté française",null,"Parlement de la communauté française"]
[1020,"Laken","Ja","BRUSSEL","BRUSSEL"]
[1030,"Schaarbeek","Neen","SCHAARBEEK","BRUSSEL"]
[1031,"Christelijke Sociale Organisaties",null,"Christelijke Sociale Organisaties"]
[1033,"RTL-TVI",null,"RTL-TVI"]
[1035,"Ministerie van het Brussels Hoofdstedelijk Gewest",null,"Ministerie van het Brussels Hoofdstedelijk Gewest"]
[1040,"Etterbeek","Neen","ETTERBEEK","BRUSSEL"]
[1041,"International press center",null,"International press center"]
[1043,"VRT",null,"VRT"]
[1044,"RTBF",null,"RTBF"]
[1046,"European External Action Service",null,"European External Action Service"]
[1047,"Europees Parlement",null,"Europees Parlement"]
[1048,"Europese unie - Raad",null,"Europese unie - Raad"]
[1049,"Europese unie - Commissie",null,"Europese unie - Commissie"]
[1050,"Elsene","Neen","ELSENE","BRUSSEL"]
[1060,"Sint-Gillis","Neen","SINT-GILLIS","BRUSSEL"]
[1070,"Anderlecht","Neen","ANDERLECHT","BRUSSEL"]
[1080,"Sint-Jans-Molenbeek","Neen","SINT-JANS-MOLENBEEK","BRUSSEL"]
[1081,"Koekelberg","Neen","KOEKELBERG","BRUSSEL"]
[1082,"Sint-Agatha-Berchem","Neen","SINT-AGATHA-BERCHEM","BRUSSEL"]
[1083,"Ganshoren","Neen","GANSHOREN","BRUSSEL"]
[1090,"Jette","Neen","JETTE","BRUSSEL"]
[1099,"Brussel X",null,"Brussel X"]
[1100,"Postcheque",null,"Postcheque"]
[1101,"Scanning",null,"Scanning"]
[1105,"ACTISOC",null,"ACTISOC"]
[1110,"NATO",null,"NATO"]
[1120,"Neder-Over-Heembeek","Ja","BRUSSEL","BRUSSEL"]
[1130,"Haren","Ja","BRUSSEL","BRUSSEL"]
[1140,"Evere","Neen","EVERE","BRUSSEL"]
[1150,"Sint-Pieters-Woluwe","Neen","SINT-PIETERS-WOLUWE","BRUSSEL"]
[1160,"Oudergem","Neen","OUDERGEM","BRUSSEL"]
[1170,"Watermaal-Bosvoorde","Neen","WATERMAAL-BOSVOORDE","BRUSSEL"]
[1180,"Ukkel","Neen","UKKEL","BRUSSEL"]
[1190,"Vorst","Neen","VORST","BRUSSEL"]
[1200,"Sint-Lambrechts-Woluwe","Neen","SINT-LAMBRECHTS-WOLUWE","BRUSSEL"]
[1210,"Sint-Joost-ten-Node","Neen","SINT-JOOST-TEN-NODE","BRUSSEL"]
[1212,"FOD Mobiliteit",null,"FOD Mobiliteit"]
[1300,"Limal","Ja","WAVRE","WAALS-BRABANT"]
[1300,"Wavre","Neen","WAVRE","WAALS-BRABANT"]
[1301,"Bierges","Ja","WAVRE","WAALS-BRABANT"]
[1310,"La Hulpe","Neen","LA HULPE","WAALS-BRABANT"]
[1315,"Glimes","Ja","INCOURT","WAALS-BRABANT"]
[1315,"Incourt","Neen","INCOURT","WAALS-BRABANT"]
[1315,"Opprebais","Ja","INCOURT","WAALS-BRABANT"]
[1315,"Piétrebais","Ja","INCOURT","WAALS-BRABANT"]
[1315,"Roux-Miroir","Ja","INCOURT","WAALS-BRABANT"]
[1320,"Beauvechain","Neen","BEAUVECHAIN","WAALS-BRABANT"]
[1320,"Hamme-Mille","Ja","BEAUVECHAIN","WAALS-BRABANT"]
[1320,"l'Écluse","Ja","BEAUVECHAIN","WAALS-BRABANT"]
[1320,"Nodebais","Ja","BEAUVECHAIN","WAALS-BRABANT"]
[1320,"Tourinnes-la-Grosse","Ja","BEAUVECHAIN","WAALS-BRABANT"]
[1325,"Bonlez","Ja","CHAUMONT-GISTOUX","WAALS-BRABANT"]
[1325,"Chaumont-Gistoux","Neen","CHAUMONT-GISTOUX","WAALS-BRABANT"]
[1325,"Corroy-le-Grand","Ja","CHAUMONT-GISTOUX","WAALS-BRABANT"]
[1325,"Dion-Valmont","Ja","CHAUMONT-GISTOUX","WAALS-BRABANT"]
[1325,"Longueville","Ja","CHAUMONT-GISTOUX","WAALS-BRABANT"]
[1330,"Rixensart","Neen","RIXENSART","WAALS-BRABANT"]
[1331,"Rosières","Ja","RIXENSART","WAALS-BRABANT"]
[1332,"Genval","Ja","RIXENSART","WAALS-BRABANT"]
[1340,"Ottignies","Ja","OTTIGNIES-LOUVAIN-LA-NEUVE","WAALS-BRABANT"]
[1341,"Céroux-Mousty","Ja","OTTIGNIES-LOUVAIN-LA-NEUVE","WAALS-BRABANT"]
[1342,"Limelette","Ja","OTTIGNIES-LOUVAIN-LA-NEUVE","WAALS-BRABANT"]
[1348,"Louvain-la-Neuve","Ja","OTTIGNIES-LOUVAIN-LA-NEUVE","WAALS-BRABANT"]
[1350,"Enines","Ja","ORP-JAUCHE","WAALS-BRABANT"]
[1350,"Folx-les-Caves","Ja","ORP-JAUCHE","WAALS-BRABANT"]
[1350,"Jandrain-Jandrenouille","Ja","ORP-JAUCHE","WAALS-BRABANT"]
[1350,"Jauche","Ja","ORP-JAUCHE","WAALS-BRABANT"]
[1350,"Marilles","Ja","ORP-JAUCHE","WAALS-BRABANT"]
[1350,"Noduwez","Ja","ORP-JAUCHE","WAALS-BRABANT"]
[1350,"Orp-le-Grand","Ja","ORP-JAUCHE","WAALS-BRABANT"]
[1357,"Linsmeau","Ja","HÉLÉCINE","WAALS-BRABANT"]
[1357,"Neerheylissem","Ja","HÉLÉCINE","WAALS-BRABANT"]
[1357,"Opheylissem","Ja","HÉLÉCINE","WAALS-BRABANT"]
[1360,"Malèves-Sainte-Marie-Wastinnes","Ja","PERWEZ","WAALS-BRABANT"]
[1360,"Orbais","Ja","PERWEZ","WAALS-BRABANT"]
[1360,"Perwez","Neen","PERWEZ","WAALS-BRABANT"]
[1360,"Thorembais-les-Béguines","Ja","PERWEZ","WAALS-BRABANT"]
[1360,"Thorembais-Saint-Trond","Ja","PERWEZ","WAALS-BRABANT"]
[1367,"Autre-Eglise","Ja","RAMILLIES","WAALS-BRABANT"]
[1367,"Bomal","Ja","RAMILLIES","WAALS-BRABANT"]
[1367,"Geest-Gérompont-Petit-Rosière","Ja","RAMILLIES","WAALS-BRABANT"]
[1367,"Gérompont","Ja","RAMILLIES","WAALS-BRABANT"]
[1367,"Grand-Rosière-Hottomont","Ja","RAMILLIES","WAALS-BRABANT"]
[1367,"Huppaye","Ja","RAMILLIES","WAALS-BRABANT"]
[1367,"Mont-Saint-André","Ja","RAMILLIES","WAALS-BRABANT"]
[1367,"Ramillies","Neen","RAMILLIES","WAALS-BRABANT"]
[1370,"Dongelberg","Ja","JODOIGNE","WAALS-BRABANT"]
[1370,"Jauchelette","Ja","JODOIGNE","WAALS-BRABANT"]
[1370,"Jodoigne","Neen","JODOIGNE","WAALS-BRABANT"]
[1370,"Jodoigne-Souveraine","Ja","JODOIGNE","WAALS-BRABANT"]
[1370,"Lathuy","Ja","JODOIGNE","WAALS-BRABANT"]
[1370,"Mélin","Ja","JODOIGNE","WAALS-BRABANT"]
[1370,"Piétrain","Ja","JODOIGNE","WAALS-BRABANT"]
[1370,"Saint-Jean-Geest","Ja","JODOIGNE","WAALS-BRABANT"]
[1370,"Saint-Remy-Geest","Ja","JODOIGNE","WAALS-BRABANT"]
[1370,"Zétrud-Lumay","Ja","JODOIGNE","WAALS-BRABANT"]
[1380,"Couture-Saint-Germain","Ja","LASNE","WAALS-BRABANT"]
[1380,"Lasne-Chapelle-Saint-Lambert","Ja","LASNE","WAALS-BRABANT"]
[1380,"Maransart","Ja","LASNE","WAALS-BRABANT"]
[1380,"Ohain","Ja","LASNE","WAALS-BRABANT"]
[1380,"Plancenoit","Ja","LASNE","WAALS-BRABANT"]
[1390,"Archennes","Ja","GREZ-DOICEAU","WAALS-BRABANT"]
[1390,"Biez","Ja","GREZ-DOICEAU","WAALS-BRABANT"]
[1390,"Bossut-Gottechain","Ja","GREZ-DOICEAU","WAALS-BRABANT"]
[1390,"Grez-Doiceau","Neen","GREZ-DOICEAU","WAALS-BRABANT"]
[1390,"Nethen","Ja","GREZ-DOICEAU","WAALS-BRABANT"]
[1400,"Monstreux","Ja","NIVELLES","WAALS-BRABANT"]
[1400,"Nivelles","Neen","NIVELLES","WAALS-BRABANT"]
[1401,"Baulers","Ja","NIVELLES","WAALS-BRABANT"]
[1402,"Thines","Ja","NIVELLES","WAALS-BRABANT"]
[1404,"Bornival","Ja","NIVELLES","WAALS-BRABANT"]
[1410,"Waterloo","Neen","WATERLOO","WAALS-BRABANT"]
[1420,"Braine-l'Alleud","Neen","BRAINE-L'ALLEUD","WAALS-BRABANT"]
[1421,"Ophain-Bois-Seigneur-Isaac","Ja","BRAINE-L'ALLEUD","WAALS-BRABANT"]
[1428,"Lillois-Witterzée","Ja","BRAINE-L'ALLEUD","WAALS-BRABANT"]
[1430,"Bierghes","Ja","REBECQ","WAALS-BRABANT"]
[1430,"Quenast","Ja","REBECQ","WAALS-BRABANT"]
[1430,"Rebecq-Rognon","Ja","REBECQ","WAALS-BRABANT"]
[1435,"Corbais","Ja","MONT-SAINT-GUIBERT","WAALS-BRABANT"]
[1435,"Hévillers","Ja","MONT-SAINT-GUIBERT","WAALS-BRABANT"]
[1435,"Mont-Saint-Guibert","Neen","MONT-SAINT-GUIBERT","WAALS-BRABANT"]
[1440,"Braine-le-Château","Neen","BRAINE-LE-CHÂTEAU","WAALS-BRABANT"]
[1440,"Wauthier-Braine","Ja","BRAINE-LE-CHÂTEAU","WAALS-BRABANT"]
[1450,"Chastre-Villeroux-Blanmont","Ja","CHASTRE","WAALS-BRABANT"]
[1450,"Cortil-Noirmont","Ja","CHASTRE","WAALS-BRABANT"]
[1450,"Gentinnes","Ja","CHASTRE","WAALS-BRABANT"]
[1450,"Saint-Géry","Ja","CHASTRE","WAALS-BRABANT"]
[1457,"Nil-Saint-Vincent-Saint-Martin","Ja","WALHAIN","WAALS-BRABANT"]
[1457,"Tourinnes-Saint-Lambert","Ja","WALHAIN","WAALS-BRABANT"]
[1457,"Walhain-Saint-Paul","Ja","WALHAIN","WAALS-BRABANT"]
[1460,"Ittre","Neen","ITTRE","WAALS-BRABANT"]
[1460,"Virginal-Samme","Ja","ITTRE","WAALS-BRABANT"]
[1461,"Haut-Ittre","Ja","ITTRE","WAALS-BRABANT"]
[1470,"Baisy-Thy","Ja","GENAPPE","WAALS-BRABANT"]
[1470,"Bousval","Ja","GENAPPE","WAALS-BRABANT"]
[1470,"Genappe","Neen","GENAPPE","WAALS-BRABANT"]
[1471,"Loupoigne","Ja","GENAPPE","WAALS-BRABANT"]
[1472,"Vieux-Genappe","Ja","GENAPPE","WAALS-BRABANT"]
[1473,"Glabais","Ja","GENAPPE","WAALS-BRABANT"]
[1474,"Ways","Ja","GENAPPE","WAALS-BRABANT"]
[1476,"Houtain-le-Val","Ja","GENAPPE","WAALS-BRABANT"]
[1480,"Clabecq","Ja","TUBIZE","WAALS-BRABANT"]
[1480,"Oisquercq","Ja","TUBIZE","WAALS-BRABANT"]
[1480,"Saintes","Ja","TUBIZE","WAALS-BRABANT"]
[1480,"Tubize","Neen","TUBIZE","WAALS-BRABANT"]
[1490,"Court-Saint-Etienne","Neen","COURT-SAINT-ETIENNE","WAALS-BRABANT"]
[1495,"Marbais","Ja","VILLERS-LA-VILLE","WAALS-BRABANT"]
[1495,"Mellery","Ja","VILLERS-LA-VILLE","WAALS-BRABANT"]
[1495,"Sart-Dames-Avelines","Ja","VILLERS-LA-VILLE","WAALS-BRABANT"]
[1495,"Tilly","Ja","VILLERS-LA-VILLE","WAALS-BRABANT"]
[1495,"Villers-la-Ville","Neen","VILLERS-LA-VILLE","WAALS-BRABANT"]
[1500,"Halle","Neen","HALLE","VLAAMS-BRABANT"]
[1501,"Buizingen","Ja","HALLE","VLAAMS-BRABANT"]
[1502,"Lembeek","Ja","HALLE","VLAAMS-BRABANT"]
[1540,"Herfelingen","Ja","HERNE","VLAAMS-BRABANT"]
[1540,"Herne","Neen","HERNE","VLAAMS-BRABANT"]
[1541,"Sint-Pieters-Kapelle","Ja","HERNE","VLAAMS-BRABANT"]
[1547,"Bever","Neen","BEVER","VLAAMS-BRABANT"]
[1560,"Hoeilaart","Neen","HOEILAART","VLAAMS-BRABANT"]
[1570,"Galmaarden","Neen","GALMAARDEN","VLAAMS-BRABANT"]
[1570,"Tollembeek","Ja","GALMAARDEN","VLAAMS-BRABANT"]
[1570,"Vollezele","Ja","GALMAARDEN","VLAAMS-BRABANT"]
[1600,"Oudenaken","Ja","SINT-PIETERS-LEEUW","VLAAMS-BRABANT"]
[1600,"Sint-Laureins-Berchem","Ja","SINT-PIETERS-LEEUW","VLAAMS-BRABANT"]
[1600,"Sint-Pieters-Leeuw","Neen","SINT-PIETERS-LEEUW","VLAAMS-BRABANT"]
[1601,"Ruisbroek","Ja","SINT-PIETERS-LEEUW","VLAAMS-BRABANT"]
[1602,"Vlezenbeek","Ja","SINT-PIETERS-LEEUW","VLAAMS-BRABANT"]
[1620,"Drogenbos","Neen","DROGENBOS","VLAAMS-BRABANT"]
[1630,"Linkebeek","Neen","LINKEBEEK","VLAAMS-BRABANT"]
[1640,"Sint-Genesius-Rode","Neen","SINT-GENESIUS-RODE","VLAAMS-BRABANT"]
[1650,"Beersel","Neen","BEERSEL","VLAAMS-BRABANT"]
[1651,"Lot","Ja","BEERSEL","VLAAMS-BRABANT"]
[1652,"Alsemberg","Ja","BEERSEL","VLAAMS-BRABANT"]
[1653,"Dworp","Ja","BEERSEL","VLAAMS-BRABANT"]
[1654,"Huizingen","Ja","BEERSEL","VLAAMS-BRABANT"]
[1670,"Bogaarden","Ja","PEPINGEN","VLAAMS-BRABANT"]
[1670,"Heikruis","Ja","PEPINGEN","VLAAMS-BRABANT"]
[1670,"Pepingen","Neen","PEPINGEN","VLAAMS-BRABANT"]
[1671,"Elingen","Ja","PEPINGEN","VLAAMS-BRABANT"]
[1673,"Beert","Ja","PEPINGEN","VLAAMS-BRABANT"]
[1674,"Bellingen","Ja","PEPINGEN","VLAAMS-BRABANT"]
[1700,"Dilbeek","Neen","DILBEEK","VLAAMS-BRABANT"]
[1700,"Sint-Martens-Bodegem","Ja","DILBEEK","VLAAMS-BRABANT"]
[1700,"Sint-Ulriks-Kapelle","Ja","DILBEEK","VLAAMS-BRABANT"]
[1701,"Itterbeek","Ja","DILBEEK","VLAAMS-BRABANT"]
[1702,"Groot-Bijgaarden","Ja","DILBEEK","VLAAMS-BRABANT"]
[1703,"Schepdaal","Ja","DILBEEK","VLAAMS-BRABANT"]
[1730,"Asse","Neen","ASSE","VLAAMS-BRABANT"]
[1730,"Bekkerzeel","Ja","ASSE","VLAAMS-BRABANT"]
[1730,"Kobbegem","Ja","ASSE","VLAAMS-BRABANT"]
[1730,"Mollem","Ja","ASSE","VLAAMS-BRABANT"]
[1731,"Relegem","Ja","ASSE","VLAAMS-BRABANT"]
[1731,"Zellik","Ja","ASSE","VLAAMS-BRABANT"]
[1733,"HighCo DATA",null,"HighCo DATA"]
[1740,"Ternat","Neen","TERNAT","VLAAMS-BRABANT"]
[1741,"Wambeek","Ja","TERNAT","VLAAMS-BRABANT"]
[1742,"Sint-Katherina-Lombeek","Ja","TERNAT","VLAAMS-BRABANT"]
[1745,"Mazenzele","Ja","OPWIJK","VLAAMS-BRABANT"]
[1745,"Opwijk","Neen","OPWIJK","VLAAMS-BRABANT"]
[1750,"Gaasbeek","Ja","LENNIK","VLAAMS-BRABANT"]
[1750,"Sint-Kwintens-Lennik","Ja","LENNIK","VLAAMS-BRABANT"]
[1750,"Sint-Martens-Lennik","Ja","LENNIK","VLAAMS-BRABANT"]
[1755,"Gooik","Neen","GOOIK","VLAAMS-BRABANT"]
[1755,"Kester","Ja","GOOIK","VLAAMS-BRABANT"]
[1755,"Leerbeek","Ja","GOOIK","VLAAMS-BRABANT"]
[1755,"Oetingen","Ja","GOOIK","VLAAMS-BRABANT"]
[1760,"Onze-Lieve-Vrouw-Lombeek","Ja","ROOSDAAL","VLAAMS-BRABANT"]
[1760,"Pamel","Ja","ROOSDAAL","VLAAMS-BRABANT"]
[1760,"Roosdaal","Neen","ROOSDAAL","VLAAMS-BRABANT"]
[1760,"Strijtem","Ja","ROOSDAAL","VLAAMS-BRABANT"]
[1761,"Borchtlombeek","Ja","ROOSDAAL","VLAAMS-BRABANT"]
[1770,"Liedekerke","Neen","LIEDEKERKE","VLAAMS-BRABANT"]
[1780,"Wemmel","Neen","WEMMEL","VLAAMS-BRABANT"]
[1785,"Brussegem","Ja","MERCHTEM","VLAAMS-BRABANT"]
[1785,"Hamme","Ja","MERCHTEM","VLAAMS-BRABANT"]
[1785,"Merchtem","Neen","MERCHTEM","VLAAMS-BRABANT"]
[1790,"Affligem","Neen","AFFLIGEM","VLAAMS-BRABANT"]
[1790,"Essene","Ja","AFFLIGEM","VLAAMS-BRABANT"]
[1790,"Hekelgem","Ja","AFFLIGEM","VLAAMS-BRABANT"]
[1790,"Teralfene","Ja","AFFLIGEM","VLAAMS-BRABANT"]
[1800,"Peutie","Ja","VILVOORDE","VLAAMS-BRABANT"]
[1800,"Vilvoorde","Neen","VILVOORDE","VLAAMS-BRABANT"]
[1804,"Cargovil",null,"Cargovil"]
[1818,"VTM",null,"VTM"]
[1820,"Melsbroek","Ja","STEENOKKERZEEL","VLAAMS-BRABANT"]
[1820,"Perk","Ja","STEENOKKERZEEL","VLAAMS-BRABANT"]
[1820,"Steenokkerzeel","Neen","STEENOKKERZEEL","VLAAMS-BRABANT"]
[1830,"Machelen","Neen","MACHELEN","VLAAMS-BRABANT"]
[1831,"Diegem","Ja","MACHELEN","VLAAMS-BRABANT"]
[1840,"Londerzeel","Neen","LONDERZEEL","VLAAMS-BRABANT"]
[1840,"Malderen","Ja","LONDERZEEL","VLAAMS-BRABANT"]
[1840,"Steenhuffel","Ja","LONDERZEEL","VLAAMS-BRABANT"]
[1850,"Grimbergen","Neen","GRIMBERGEN","VLAAMS-BRABANT"]
[1851,"Humbeek","Ja","GRIMBERGEN","VLAAMS-BRABANT"]
[1852,"Beigem","Ja","GRIMBERGEN","VLAAMS-BRABANT"]
[1853,"Strombeek-Bever","Ja","GRIMBERGEN","VLAAMS-BRABANT"]
[1860,"Meise","Neen","MEISE","VLAAMS-BRABANT"]
[1861,"Wolvertem","Ja","MEISE","VLAAMS-BRABANT"]
[1880,"Kapelle-op-den-Bos","Neen","KAPELLE-OP-DEN-BOS","VLAAMS-BRABANT"]
[1880,"Nieuwenrode","Ja","KAPELLE-OP-DEN-BOS","VLAAMS-BRABANT"]
[1880,"Ramsdonk","Ja","KAPELLE-OP-DEN-BOS","VLAAMS-BRABANT"]
[1910,"Berg","Ja","KAMPENHOUT","VLAAMS-BRABANT"]
[1910,"Buken","Ja","KAMPENHOUT","VLAAMS-BRABANT"]
[1910,"Kampenhout","Neen","KAMPENHOUT","VLAAMS-BRABANT"]
[1910,"Nederokkerzeel","Ja","KAMPENHOUT","VLAAMS-BRABANT"]
[1930,"Nossegem","Ja","ZAVENTEM","VLAAMS-BRABANT"]
[1930,"Zaventem","Neen","ZAVENTEM","VLAAMS-BRABANT"]
[1931,"Brucargo",null,"Brucargo"]
[1932,"Sint-Stevens-Woluwe","Ja","ZAVENTEM","VLAAMS-BRABANT"]
[1933,"Sterrebeek","Ja","ZAVENTEM","VLAAMS-BRABANT"]
[1934,"Office Exchange Brussels Airport Remailing",null,"Office Exchange Brussels Airport Remailing"]
[1935,"Corporate Village",null,"Corporate Village"]
[1950,"Kraainem","Neen","KRAAINEM","VLAAMS-BRABANT"]
[1970,"Wezembeek-Oppem","Neen","WEZEMBEEK-OPPEM","VLAAMS-BRABANT"]
[1980,"Eppegem","Ja","ZEMST","VLAAMS-BRABANT"]
[1980,"Zemst","Neen","ZEMST","VLAAMS-BRABANT"]
[1981,"Hofstade","Ja","ZEMST","VLAAMS-BRABANT"]
[1982,"Elewijt","Ja","ZEMST","VLAAMS-BRABANT"]
[1982,"Weerde","Ja","ZEMST","VLAAMS-BRABANT"]
[2000,"Antwerpen","Neen","ANTWERPEN","ANTWERPEN"]
[2018,"Antwerpen","Neen","ANTWERPEN","ANTWERPEN"]
[2020,"Antwerpen","Neen","ANTWERPEN","ANTWERPEN"]
[2030,"Antwerpen","Neen","ANTWERPEN","ANTWERPEN"]
[2040,"Antwerpen","Neen","ANTWERPEN","ANTWERPEN"]
[2040,"Berendrecht","Ja","ANTWERPEN","ANTWERPEN"]
[2040,"Lillo","Ja","ANTWERPEN","ANTWERPEN"]
[2040,"Zandvliet","Ja","ANTWERPEN","ANTWERPEN"]
[2050,"Antwerpen","Neen","ANTWERPEN","ANTWERPEN"]
[2060,"Antwerpen","Neen","ANTWERPEN","ANTWERPEN"]
[2070,"Burcht","Ja","ZWIJNDRECHT","ANTWERPEN"]
[2070,"Zwijndrecht","Neen","ZWIJNDRECHT","ANTWERPEN"]
[2099,"Antwerpen X",null,"Antwerpen X"]
[2100,"Deurne","Ja","ANTWERPEN","ANTWERPEN"]
[2110,"Wijnegem","Neen","WIJNEGEM","ANTWERPEN"]
[2140,"Borgerhout","Ja","ANTWERPEN","ANTWERPEN"]
[2150,"Borsbeek","Neen","BORSBEEK","ANTWERPEN"]
[2160,"Wommelgem","Neen","WOMMELGEM","ANTWERPEN"]
[2170,"Merksem","Ja","ANTWERPEN","ANTWERPEN"]
[2180,"Ekeren","Ja","ANTWERPEN","ANTWERPEN"]
[2200,"Herentals","Neen","HERENTALS","ANTWERPEN"]
[2200,"Morkhoven","Ja","HERENTALS","ANTWERPEN"]
[2200,"Noorderwijk","Ja","HERENTALS","ANTWERPEN"]
[2220,"Hallaar","Ja","HEIST-OP-DEN-BERG","ANTWERPEN"]
[2220,"Heist-op-den-Berg","Neen","HEIST-OP-DEN-BERG","ANTWERPEN"]
[2221,"Booischot","Ja","HEIST-OP-DEN-BERG","ANTWERPEN"]
[2222,"Itegem","Ja","HEIST-OP-DEN-BERG","ANTWERPEN"]
[2222,"Wiekevorst","Ja","HEIST-OP-DEN-BERG","ANTWERPEN"]
[2223,"Schriek","Ja","HEIST-OP-DEN-BERG","ANTWERPEN"]
[2230,"Herselt","Neen","HERSELT","ANTWERPEN"]
[2230,"Ramsel","Ja","HERSELT","ANTWERPEN"]
[2235,"Houtvenne","Ja","HULSHOUT","ANTWERPEN"]
[2235,"Hulshout","Neen","HULSHOUT","ANTWERPEN"]
[2235,"Westmeerbeek","Ja","HULSHOUT","ANTWERPEN"]
[2240,"Massenhoven","Ja","ZANDHOVEN","ANTWERPEN"]
[2240,"Viersel","Ja","ZANDHOVEN","ANTWERPEN"]
[2240,"Zandhoven","Neen","ZANDHOVEN","ANTWERPEN"]
[2242,"Pulderbos","Ja","ZANDHOVEN","ANTWERPEN"]
[2243,"Pulle","Ja","ZANDHOVEN","ANTWERPEN"]
[2250,"Olen","Neen","OLEN","ANTWERPEN"]
[2260,"Oevel","Ja","WESTERLO","ANTWERPEN"]
[2260,"Tongerlo","Ja","WESTERLO","ANTWERPEN"]
[2260,"Westerlo","Neen","WESTERLO","ANTWERPEN"]
[2260,"Zoerle-Parwijs","Ja","WESTERLO","ANTWERPEN"]
[2270,"Herenthout","Neen","HERENTHOUT","ANTWERPEN"]
[2275,"Gierle","Ja","LILLE","ANTWERPEN"]
[2275,"Lille","Neen","LILLE","ANTWERPEN"]
[2275,"Poederlee","Ja","LILLE","ANTWERPEN"]
[2275,"Wechelderzande","Ja","LILLE","ANTWERPEN"]
[2280,"Grobbendonk","Neen","GROBBENDONK","ANTWERPEN"]
[2288,"Bouwel","Ja","GROBBENDONK","ANTWERPEN"]
[2290,"Vorselaar","Neen","VORSELAAR","ANTWERPEN"]
[2300,"Turnhout","Neen","TURNHOUT","ANTWERPEN"]
[2310,"Rijkevorsel","Neen","RIJKEVORSEL","ANTWERPEN"]
[2320,"Hoogstraten","Neen","HOOGSTRATEN","ANTWERPEN"]
[2321,"Meer","Ja","HOOGSTRATEN","ANTWERPEN"]
[2322,"Minderhout","Ja","HOOGSTRATEN","ANTWERPEN"]
[2323,"Wortel","Ja","HOOGSTRATEN","ANTWERPEN"]
[2328,"Meerle","Ja","HOOGSTRATEN","ANTWERPEN"]
[2330,"Merksplas","Neen","MERKSPLAS","ANTWERPEN"]
[2340,"Beerse","Neen","BEERSE","ANTWERPEN"]
[2340,"Vlimmeren","Ja","BEERSE","ANTWERPEN"]
[2350,"Vosselaar","Neen","VOSSELAAR","ANTWERPEN"]
[2360,"Oud-Turnhout","Neen","OUD-TURNHOUT","ANTWERPEN"]
[2370,"Arendonk","Neen","ARENDONK","ANTWERPEN"]
[2380,"Ravels","Neen","RAVELS","ANTWERPEN"]
[2381,"Weelde","Ja","RAVELS","ANTWERPEN"]
[2382,"Poppel","Ja","RAVELS","ANTWERPEN"]
[2387,"Baarle-Hertog","Neen","BAARLE-HERTOG","ANTWERPEN"]
[2390,"Malle","Neen","MALLE","ANTWERPEN"]
[2390,"Oostmalle","Ja","MALLE","ANTWERPEN"]
[2390,"Westmalle","Ja","MALLE","ANTWERPEN"]
[2400,"Mol","Neen","MOL","ANTWERPEN"]
[2430,"Eindhout","Ja","LAAKDAL","ANTWERPEN"]
[2430,"Vorst","Ja","LAAKDAL","ANTWERPEN"]
[2431,"Varendonk","Ja","LAAKDAL","ANTWERPEN"]
[2431,"Veerle","Ja","LAAKDAL","ANTWERPEN"]
[2440,"Geel","Neen","GEEL","ANTWERPEN"]
[2450,"Meerhout","Neen","MEERHOUT","ANTWERPEN"]
[2460,"Kasterlee","Neen","KASTERLEE","ANTWERPEN"]
[2460,"Lichtaart","Ja","KASTERLEE","ANTWERPEN"]
[2460,"Tielen","Ja","KASTERLEE","ANTWERPEN"]
[2470,"Retie","Neen","RETIE","ANTWERPEN"]
[2480,"Dessel","Neen","DESSEL","ANTWERPEN"]
[2490,"Balen","Neen","BALEN","ANTWERPEN"]
[2491,"Olmen","Ja","BALEN","ANTWERPEN"]
[2500,"Koningshooikt","Ja","LIER","ANTWERPEN"]
[2500,"Lier","Neen","LIER","ANTWERPEN"]
[2520,"Broechem","Ja","RANST","ANTWERPEN"]
[2520,"Emblem","Ja","RANST","ANTWERPEN"]
[2520,"Oelegem","Ja","RANST","ANTWERPEN"]
[2520,"Ranst","Neen","RANST","ANTWERPEN"]
[2530,"Boechout","Neen","BOECHOUT","ANTWERPEN"]
[2531,"Vremde","Ja","BOECHOUT","ANTWERPEN"]
[2540,"Hove","Neen","HOVE","ANTWERPEN"]
[2547,"Lint","Neen","LINT","ANTWERPEN"]
[2550,"Kontich","Neen","KONTICH","ANTWERPEN"]
[2550,"Waarloos","Ja","KONTICH","ANTWERPEN"]
[2560,"Bevel","Ja","NIJLEN","ANTWERPEN"]
[2560,"Kessel","Ja","NIJLEN","ANTWERPEN"]
[2560,"Nijlen","Neen","NIJLEN","ANTWERPEN"]
[2570,"Duffel","Neen","DUFFEL","ANTWERPEN"]
[2580,"Beerzel","Ja","PUTTE","ANTWERPEN"]
[2580,"Putte","Neen","PUTTE","ANTWERPEN"]
[2590,"Berlaar","Neen","BERLAAR","ANTWERPEN"]
[2590,"Gestel","Ja","BERLAAR","ANTWERPEN"]
[2600,"Berchem","Ja","ANTWERPEN","ANTWERPEN"]
[2610,"Wilrijk","Ja","ANTWERPEN","ANTWERPEN"]
[2620,"Hemiksem","Neen","HEMIKSEM","ANTWERPEN"]
[2627,"Schelle","Neen","SCHELLE","ANTWERPEN"]
[2630,"Aartselaar","Neen","AARTSELAAR","ANTWERPEN"]
[2640,"Mortsel","Neen","MORTSEL","ANTWERPEN"]
[2650,"Edegem","Neen","EDEGEM","ANTWERPEN"]
[2660,"Hoboken","Ja","ANTWERPEN","ANTWERPEN"]
[2800,"Mechelen","Neen","MECHELEN","ANTWERPEN"]
[2800,"Walem","Ja","MECHELEN","ANTWERPEN"]
[2801,"Heffen","Ja","MECHELEN","ANTWERPEN"]
[2811,"Hombeek","Ja","MECHELEN","ANTWERPEN"]
[2811,"Leest","Ja","MECHELEN","ANTWERPEN"]
[2812,"Muizen","Ja","MECHELEN","ANTWERPEN"]
[2820,"Bonheiden","Neen","BONHEIDEN","ANTWERPEN"]
[2820,"Rijmenam","Ja","BONHEIDEN","ANTWERPEN"]
[2830,"Blaasveld","Ja","WILLEBROEK","ANTWERPEN"]
[2830,"Heindonk","Ja","WILLEBROEK","ANTWERPEN"]
[2830,"Tisselt","Ja","WILLEBROEK","ANTWERPEN"]
[2830,"Willebroek","Neen","WILLEBROEK","ANTWERPEN"]
[2840,"Reet","Ja","RUMST","ANTWERPEN"]
[2840,"Rumst","Neen","RUMST","ANTWERPEN"]
[2840,"Terhagen","Ja","RUMST","ANTWERPEN"]
[2845,"Niel","Neen","NIEL","ANTWERPEN"]
[2850,"Boom","Neen","BOOM","ANTWERPEN"]
[2860,"Sint-Katelijne-Waver","Neen","SINT-KATELIJNE-WAVER","ANTWERPEN"]
[2861,"Onze-Lieve-Vrouw-Waver","Ja","SINT-KATELIJNE-WAVER","ANTWERPEN"]
[2870,"Breendonk","Ja","PUURS-SINT-AMANDS","ANTWERPEN"]
[2870,"Liezele","Ja","PUURS-SINT-AMANDS","ANTWERPEN"]
[2870,"Puurs","Ja","PUURS-SINT-AMANDS","ANTWERPEN"]
[2870,"Ruisbroek","Ja","PUURS-SINT-AMANDS","ANTWERPEN"]
[2880,"Bornem","Neen","BORNEM","ANTWERPEN"]
[2880,"Hingene","Ja","BORNEM","ANTWERPEN"]
[2880,"Mariekerke","Ja","BORNEM","ANTWERPEN"]
[2880,"Weert","Ja","BORNEM","ANTWERPEN"]
[2890,"Lippelo","Ja","PUURS-SINT-AMANDS","ANTWERPEN"]
[2890,"Oppuurs","Ja","PUURS-SINT-AMANDS","ANTWERPEN"]
[2890,"Sint-Amands","Ja","PUURS-SINT-AMANDS","ANTWERPEN"]
[2900,"Schoten","Neen","SCHOTEN","ANTWERPEN"]
[2910,"Essen","Neen","ESSEN","ANTWERPEN"]
[2920,"Kalmthout","Neen","KALMTHOUT","ANTWERPEN"]
[2930,"Brasschaat","Neen","BRASSCHAAT","ANTWERPEN"]
[2940,"Hoevenen","Ja","STABROEK","ANTWERPEN"]
[2940,"Stabroek","Neen","STABROEK","ANTWERPEN"]
[2950,"Kapellen","Neen","KAPELLEN","ANTWERPEN"]
[2960,"Brecht","Neen","BRECHT","ANTWERPEN"]
[2960,"Sint-Job-in-'t-Goor","Ja","BRECHT","ANTWERPEN"]
[2960,"Sint-Lenaarts","Ja","BRECHT","ANTWERPEN"]
[2970,"'s Gravenwezel","Ja","SCHILDE","ANTWERPEN"]
[2970,"Schilde","Neen","SCHILDE","ANTWERPEN"]
[2980,"Halle","Ja","ZOERSEL","ANTWERPEN"]
[2980,"Zoersel","Neen","ZOERSEL","ANTWERPEN"]
[2990,"Loenhout","Ja","WUUSTWEZEL","ANTWERPEN"]
[2990,"Wuustwezel","Neen","WUUSTWEZEL","ANTWERPEN"]
[3000,"Leuven","Neen","LEUVEN","VLAAMS-BRABANT"]
[3001,"Heverlee","Ja","LEUVEN","VLAAMS-BRABANT"]
[3010,"Kessel Lo","Ja","LEUVEN","VLAAMS-BRABANT"]
[3012,"Wilsele","Ja","LEUVEN","VLAAMS-BRABANT"]
[3018,"Wijgmaal","Ja","LEUVEN","VLAAMS-BRABANT"]
[3020,"Herent","Neen","HERENT","VLAAMS-BRABANT"]
[3020,"Veltem-Beisem","Ja","HERENT","VLAAMS-BRABANT"]
[3020,"Winksele","Ja","HERENT","VLAAMS-BRABANT"]
[3040,"Huldenberg","Neen","HULDENBERG","VLAAMS-BRABANT"]
[3040,"Loonbeek","Ja","HULDENBERG","VLAAMS-BRABANT"]
[3040,"Neerijse","Ja","HULDENBERG","VLAAMS-BRABANT"]
[3040,"Ottenburg","Ja","HULDENBERG","VLAAMS-BRABANT"]
[3040,"Sint-Agatha-Rode","Ja","HULDENBERG","VLAAMS-BRABANT"]
[3050,"Oud-Heverlee","Neen","OUD-HEVERLEE","VLAAMS-BRABANT"]
[3051,"Sint-Joris-Weert","Ja","OUD-HEVERLEE","VLAAMS-BRABANT"]
[3052,"Blanden","Ja","OUD-HEVERLEE","VLAAMS-BRABANT"]
[3053,"Haasrode","Ja","OUD-HEVERLEE","VLAAMS-BRABANT"]
[3054,"Vaalbeek","Ja","OUD-HEVERLEE","VLAAMS-BRABANT"]
[3060,"Bertem","Neen","BERTEM","VLAAMS-BRABANT"]
[3060,"Korbeek-Dijle","Ja","BERTEM","VLAAMS-BRABANT"]
[3061,"Leefdaal","Ja","BERTEM","VLAAMS-BRABANT"]
[3070,"Kortenberg","Neen","KORTENBERG","VLAAMS-BRABANT"]
[3071,"Erps-Kwerps","Ja","KORTENBERG","VLAAMS-BRABANT"]
[3078,"Everberg","Ja","KORTENBERG","VLAAMS-BRABANT"]
[3078,"Meerbeek","Ja","KORTENBERG","VLAAMS-BRABANT"]
[3080,"Duisburg","Ja","TERVUREN","VLAAMS-BRABANT"]
[3080,"Tervuren","Neen","TERVUREN","VLAAMS-BRABANT"]
[3080,"Vossem","Ja","TERVUREN","VLAAMS-BRABANT"]
[3090,"Overijse","Neen","OVERIJSE","VLAAMS-BRABANT"]
[3110,"Rotselaar","Neen","ROTSELAAR","VLAAMS-BRABANT"]
[3111,"Wezemaal","Ja","ROTSELAAR","VLAAMS-BRABANT"]
[3118,"Werchter","Ja","ROTSELAAR","VLAAMS-BRABANT"]
[3120,"Tremelo","Neen","TREMELO","VLAAMS-BRABANT"]
[3128,"Baal","Ja","TREMELO","VLAAMS-BRABANT"]
[3130,"Begijnendijk","Neen","BEGIJNENDIJK","VLAAMS-BRABANT"]
[3130,"Betekom","Ja","BEGIJNENDIJK","VLAAMS-BRABANT"]
[3140,"Keerbergen","Neen","KEERBERGEN","VLAAMS-BRABANT"]
[3150,"Haacht","Neen","HAACHT","VLAAMS-BRABANT"]
[3150,"Tildonk","Ja","HAACHT","VLAAMS-BRABANT"]
[3150,"Wespelaar","Ja","HAACHT","VLAAMS-BRABANT"]
[3190,"Boortmeerbeek","Neen","BOORTMEERBEEK","VLAAMS-BRABANT"]
[3191,"Hever","Ja","BOORTMEERBEEK","VLAAMS-BRABANT"]
[3200,"Aarschot","Neen","AARSCHOT","VLAAMS-BRABANT"]
[3200,"Gelrode","Ja","AARSCHOT","VLAAMS-BRABANT"]
[3201,"Langdorp","Ja","AARSCHOT","VLAAMS-BRABANT"]
[3202,"Rillaar","Ja","AARSCHOT","VLAAMS-BRABANT"]
[3210,"Linden","Ja","LUBBEEK","VLAAMS-BRABANT"]
[3210,"Lubbeek","Neen","LUBBEEK","VLAAMS-BRABANT"]
[3211,"Binkom","Ja","LUBBEEK","VLAAMS-BRABANT"]
[3212,"Pellenberg","Ja","LUBBEEK","VLAAMS-BRABANT"]
[3220,"Holsbeek","Neen","HOLSBEEK","VLAAMS-BRABANT"]
[3220,"Kortrijk-Dutsel","Ja","HOLSBEEK","VLAAMS-BRABANT"]
[3220,"Sint-Pieters-Rode","Ja","HOLSBEEK","VLAAMS-BRABANT"]
[3221,"Nieuwrode","Ja","HOLSBEEK","VLAAMS-BRABANT"]
[3270,"Scherpenheuvel","Ja","SCHERPENHEUVEL-ZICHEM","VLAAMS-BRABANT"]
[3271,"Averbode","Ja","SCHERPENHEUVEL-ZICHEM","VLAAMS-BRABANT"]
[3271,"Zichem","Ja","SCHERPENHEUVEL-ZICHEM","VLAAMS-BRABANT"]
[3272,"Messelbroek","Ja","SCHERPENHEUVEL-ZICHEM","VLAAMS-BRABANT"]
[3272,"Testelt","Ja","SCHERPENHEUVEL-ZICHEM","VLAAMS-BRABANT"]
[3290,"Deurne","Ja","DIEST","VLAAMS-BRABANT"]
[3290,"Diest","Neen","DIEST","VLAAMS-BRABANT"]
[3290,"Schaffen","Ja","DIEST","VLAAMS-BRABANT"]
[3290,"Webbekom","Ja","DIEST","VLAAMS-BRABANT"]
[3293,"Kaggevinne","Ja","DIEST","VLAAMS-BRABANT"]
[3294,"Molenstede","Ja","DIEST","VLAAMS-BRABANT"]
[3300,"Bost","Ja","TIENEN","VLAAMS-BRABANT"]
[3300,"Goetsenhoven","Ja","TIENEN","VLAAMS-BRABANT"]
[3300,"Hakendover","Ja","TIENEN","VLAAMS-BRABANT"]
[3300,"Kumtich","Ja","TIENEN","VLAAMS-BRABANT"]
[3300,"Oorbeek","Ja","TIENEN","VLAAMS-BRABANT"]
[3300,"Oplinter","Ja","TIENEN","VLAAMS-BRABANT"]
[3300,"Sint-Margriete-Houtem","Ja","TIENEN","VLAAMS-BRABANT"]
[3300,"Tienen","Neen","TIENEN","VLAAMS-BRABANT"]
[3300,"Vissenaken","Ja","TIENEN","VLAAMS-BRABANT"]
[3320,"Hoegaarden","Neen","HOEGAARDEN","VLAAMS-BRABANT"]
[3320,"Meldert","Ja","HOEGAARDEN","VLAAMS-BRABANT"]
[3321,"Outgaarden","Ja","HOEGAARDEN","VLAAMS-BRABANT"]
[3350,"Drieslinter","Ja","LINTER","VLAAMS-BRABANT"]
[3350,"Linter","Neen","LINTER","VLAAMS-BRABANT"]
[3350,"Melkwezer","Ja","LINTER","VLAAMS-BRABANT"]
[3350,"Neerhespen","Ja","LINTER","VLAAMS-BRABANT"]
[3350,"Neerlinter","Ja","LINTER","VLAAMS-BRABANT"]
[3350,"Orsmaal-Gussenhoven","Ja","LINTER","VLAAMS-BRABANT"]
[3350,"Overhespen","Ja","LINTER","VLAAMS-BRABANT"]
[3350,"Wommersom","Ja","LINTER","VLAAMS-BRABANT"]
[3360,"Bierbeek","Neen","BIERBEEK","VLAAMS-BRABANT"]
[3360,"Korbeek-Lo","Ja","BIERBEEK","VLAAMS-BRABANT"]
[3360,"Lovenjoel","Ja","BIERBEEK","VLAAMS-BRABANT"]
[3360,"Opvelp","Ja","BIERBEEK","VLAAMS-BRABANT"]
[3370,"Boutersem","Neen","BOUTERSEM","VLAAMS-BRABANT"]
[3370,"Kerkom","Ja","BOUTERSEM","VLAAMS-BRABANT"]
[3370,"Neervelp","Ja","BOUTERSEM","VLAAMS-BRABANT"]
[3370,"Roosbeek","Ja","BOUTERSEM","VLAAMS-BRABANT"]
[3370,"Vertrijk","Ja","BOUTERSEM","VLAAMS-BRABANT"]
[3370,"Willebringen","Ja","BOUTERSEM","VLAAMS-BRABANT"]
[3380,"Bunsbeek","Ja","GLABBEEK","VLAAMS-BRABANT"]
[3380,"Glabbeek","Neen","GLABBEEK","VLAAMS-BRABANT"]
[3381,"Kapellen","Ja","GLABBEEK","VLAAMS-BRABANT"]
[3384,"Attenrode","Ja","GLABBEEK","VLAAMS-BRABANT"]
[3390,"Houwaart","Ja","TIELT-WINGE","VLAAMS-BRABANT"]
[3390,"Sint-Joris-Winge","Ja","TIELT-WINGE","VLAAMS-BRABANT"]
[3390,"Tielt","Ja","TIELT-WINGE","VLAAMS-BRABANT"]
[3391,"Meensel-Kiezegem","Ja","TIELT-WINGE","VLAAMS-BRABANT"]
[3400,"Eliksem","Ja","LANDEN","VLAAMS-BRABANT"]
[3400,"Ezemaal","Ja","LANDEN","VLAAMS-BRABANT"]
[3400,"Laar","Ja","LANDEN","VLAAMS-BRABANT"]
[3400,"Landen","Neen","LANDEN","VLAAMS-BRABANT"]
[3400,"Neerwinden","Ja","LANDEN","VLAAMS-BRABANT"]
[3400,"Overwinden","Ja","LANDEN","VLAAMS-BRABANT"]
[3400,"Rumsdorp","Ja","LANDEN","VLAAMS-BRABANT"]
[3400,"Wange","Ja","LANDEN","VLAAMS-BRABANT"]
[3401,"Waasmont","Ja","LANDEN","VLAAMS-BRABANT"]
[3401,"Walsbets","Ja","LANDEN","VLAAMS-BRABANT"]
[3401,"Walshoutem","Ja","LANDEN","VLAAMS-BRABANT"]
[3401,"Wezeren","Ja","LANDEN","VLAAMS-BRABANT"]
[3404,"Attenhoven","Ja","LANDEN","VLAAMS-BRABANT"]
[3404,"Neerlanden","Ja","LANDEN","VLAAMS-BRABANT"]
[3440,"Budingen","Ja","ZOUTLEEUW","VLAAMS-BRABANT"]
[3440,"Dormaal","Ja","ZOUTLEEUW","VLAAMS-BRABANT"]
[3440,"Halle-Booienhoven","Ja","ZOUTLEEUW","VLAAMS-BRABANT"]
[3440,"Helen-Bos","Ja","ZOUTLEEUW","VLAAMS-BRABANT"]
[3440,"Zoutleeuw","Neen","ZOUTLEEUW","VLAAMS-BRABANT"]
[3450,"Geetbets","Neen","GEETBETS","VLAAMS-BRABANT"]
[3450,"Grazen","Ja","GEETBETS","VLAAMS-BRABANT"]
[3454,"Rummen","Ja","GEETBETS","VLAAMS-BRABANT"]
[3460,"Assent","Ja","BEKKEVOORT","VLAAMS-BRABANT"]
[3460,"Bekkevoort","Neen","BEKKEVOORT","VLAAMS-BRABANT"]
[3461,"Molenbeek-Wersbeek","Ja","BEKKEVOORT","VLAAMS-BRABANT"]
[3470,"Kortenaken","Neen","KORTENAKEN","VLAAMS-BRABANT"]
[3470,"Ransberg","Ja","KORTENAKEN","VLAAMS-BRABANT"]
[3470,"Sint-Margriete-Houtem","Ja","KORTENAKEN","VLAAMS-BRABANT"]
[3471,"Hoeleden","Ja","KORTENAKEN","VLAAMS-BRABANT"]
[3472,"Kersbeek-Miskom","Ja","KORTENAKEN","VLAAMS-BRABANT"]
[3473,"Waanrode","Ja","KORTENAKEN","VLAAMS-BRABANT"]
[3500,"Hasselt","Neen","HASSELT","LIMBURG"]
[3500,"Sint-Lambrechts-Herk","Ja","HASSELT","LIMBURG"]
[3501,"Wimmertingen","Ja","HASSELT","LIMBURG"]
[3510,"Kermt","Ja","HASSELT","LIMBURG"]
[3510,"Spalbeek","Ja","HASSELT","LIMBURG"]
[3511,"Kuringen","Ja","HASSELT","LIMBURG"]
[3511,"Stokrooie","Ja","HASSELT","LIMBURG"]
[3512,"Stevoort","Ja","HASSELT","LIMBURG"]
[3520,"Zonhoven","Neen","ZONHOVEN","LIMBURG"]
[3530,"Helchteren","Ja","HOUTHALEN-HELCHTEREN","LIMBURG"]
[3530,"Houthalen","Ja","HOUTHALEN-HELCHTEREN","LIMBURG"]
[3540,"Berbroek","Ja","HERK-DE-STAD","LIMBURG"]
[3540,"Donk","Ja","HERK-DE-STAD","LIMBURG"]
[3540,"Herk-de-Stad","Neen","HERK-DE-STAD","LIMBURG"]
[3540,"Schulen","Ja","HERK-DE-STAD","LIMBURG"]
[3545,"Halen","Neen","HALEN","LIMBURG"]
[3545,"Loksbergen","Ja","HALEN","LIMBURG"]
[3545,"Zelem","Ja","HALEN","LIMBURG"]
[3550,"Heusden","Ja","HEUSDEN-ZOLDER","LIMBURG"]
[3550,"Heusden-Zolder","Neen","HEUSDEN-ZOLDER","LIMBURG"]
[3550,"Zolder","Ja","HEUSDEN-ZOLDER","LIMBURG"]
[3560,"Linkhout","Ja","LUMMEN","LIMBURG"]
[3560,"Lummen","Neen","LUMMEN","LIMBURG"]
[3560,"Meldert","Ja","LUMMEN","LIMBURG"]
[3570,"Alken","Neen","ALKEN","LIMBURG"]
[3580,"Beringen","Neen","BERINGEN","LIMBURG"]
[3581,"Beverlo","Ja","BERINGEN","LIMBURG"]
[3582,"Koersel","Ja","BERINGEN","LIMBURG"]
[3583,"Paal","Ja","BERINGEN","LIMBURG"]
[3590,"Diepenbeek","Neen","DIEPENBEEK","LIMBURG"]
[3600,"Genk","Neen","GENK","LIMBURG"]
[3620,"Gellik","Ja","LANAKEN","LIMBURG"]
[3620,"Lanaken","Neen","LANAKEN","LIMBURG"]
[3620,"Neerharen","Ja","LANAKEN","LIMBURG"]
[3620,"Veldwezelt","Ja","LANAKEN","LIMBURG"]
[3621,"Rekem","Ja","LANAKEN","LIMBURG"]
[3630,"Eisden","Ja","MAASMECHELEN","LIMBURG"]
[3630,"Leut","Ja","MAASMECHELEN","LIMBURG"]
[3630,"Maasmechelen","Neen","MAASMECHELEN","LIMBURG"]
[3630,"Mechelen-aan-de-Maas","Ja","MAASMECHELEN","LIMBURG"]
[3630,"Meeswijk","Ja","MAASMECHELEN","LIMBURG"]
[3630,"Opgrimbie","Ja","MAASMECHELEN","LIMBURG"]
[3630,"Vucht","Ja","MAASMECHELEN","LIMBURG"]
[3631,"Boorsem","Ja","MAASMECHELEN","LIMBURG"]
[3631,"Uikhoven","Ja","MAASMECHELEN","LIMBURG"]
[3640,"Kessenich","Ja","KINROOI","LIMBURG"]
[3640,"Kinrooi","Neen","KINROOI","LIMBURG"]
[3640,"Molenbeersel","Ja","KINROOI","LIMBURG"]
[3640,"Ophoven","Ja","KINROOI","LIMBURG"]
[3650,"Dilsen","Ja","DILSEN-STOKKEM","LIMBURG"]
[3650,"Dilsen-Stokkem","Neen","DILSEN-STOKKEM","LIMBURG"]
[3650,"Elen","Ja","DILSEN-STOKKEM","LIMBURG"]
[3650,"Lanklaar","Ja","DILSEN-STOKKEM","LIMBURG"]
[3650,"Rotem","Ja","DILSEN-STOKKEM","LIMBURG"]
[3650,"Stokkem","Ja","DILSEN-STOKKEM","LIMBURG"]
[3660,"Opglabbeek","Ja","OUDSBERGEN","LIMBURG"]
[3665,"As","Neen","AS","LIMBURG"]
[3668,"Niel-bij-As","Ja","AS","LIMBURG"]
[3670,"Ellikom","Ja","OUDSBERGEN","LIMBURG"]
[3670,"Gruitrode","Ja","OUDSBERGEN","LIMBURG"]
[3670,"Meeuwen","Ja","OUDSBERGEN","LIMBURG"]
[3670,"Neerglabbeek","Ja","OUDSBERGEN","LIMBURG"]
[3670,"Wijshagen","Ja","OUDSBERGEN","LIMBURG"]
[3680,"Maaseik","Neen","MAASEIK","LIMBURG"]
[3680,"Neeroeteren","Ja","MAASEIK","LIMBURG"]
[3680,"Opoeteren","Ja","MAASEIK","LIMBURG"]
[3690,"Zutendaal","Neen","ZUTENDAAL","LIMBURG"]
[3700,"'s Herenelderen","Ja","TONGEREN","LIMBURG"]
[3700,"Berg","Ja","TONGEREN","LIMBURG"]
[3700,"Diets-Heur","Ja","TONGEREN","LIMBURG"]
[3700,"Haren","Ja","TONGEREN","LIMBURG"]
[3700,"Henis","Ja","TONGEREN","LIMBURG"]
[3700,"Kolmont","Ja","TONGEREN","LIMBURG"]
[3700,"Koninksem","Ja","TONGEREN","LIMBURG"]
[3700,"Lauw","Ja","TONGEREN","LIMBURG"]
[3700,"Mal","Ja","TONGEREN","LIMBURG"]
[3700,"Neerrepen","Ja","TONGEREN","LIMBURG"]
[3700,"Nerem","Ja","TONGEREN","LIMBURG"]
[3700,"Overrepen","Ja","TONGEREN","LIMBURG"]
[3700,"Piringen","Ja","TONGEREN","LIMBURG"]
[3700,"Riksingen","Ja","TONGEREN","LIMBURG"]
[3700,"Rutten","Ja","TONGEREN","LIMBURG"]
[3700,"Sluizen","Ja","TONGEREN","LIMBURG"]
[3700,"Tongeren","Neen","TONGEREN","LIMBURG"]
[3700,"Vreren","Ja","TONGEREN","LIMBURG"]
[3700,"Widooie","Ja","TONGEREN","LIMBURG"]
[3717,"Herstappe","Neen","HERSTAPPE","LIMBURG"]
[3720,"Kortessem","Neen","KORTESSEM","LIMBURG"]
[3721,"Vliermaalroot","Ja","KORTESSEM","LIMBURG"]
[3722,"Wintershoven","Ja","KORTESSEM","LIMBURG"]
[3723,"Guigoven","Ja","KORTESSEM","LIMBURG"]
[3724,"Vliermaal","Ja","KORTESSEM","LIMBURG"]
[3730,"Hoeselt","Neen","HOESELT","LIMBURG"]
[3730,"Romershoven","Ja","HOESELT","LIMBURG"]
[3730,"Sint-Huibrechts-Hern","Ja","HOESELT","LIMBURG"]
[3730,"Werm","Ja","HOESELT","LIMBURG"]
[3732,"Schalkhoven","Ja","HOESELT","LIMBURG"]
[3740,"Beverst","Ja","BILZEN","LIMBURG"]
[3740,"Bilzen","Neen","BILZEN","LIMBURG"]
[3740,"Eigenbilzen","Ja","BILZEN","LIMBURG"]
[3740,"Grote-Spouwen","Ja","BILZEN","LIMBURG"]
[3740,"Hees","Ja","BILZEN","LIMBURG"]
[3740,"Kleine-Spouwen","Ja","BILZEN","LIMBURG"]
[3740,"Mopertingen","Ja","BILZEN","LIMBURG"]
[3740,"Munsterbilzen","Ja","BILZEN","LIMBURG"]
[3740,"Rijkhoven","Ja","BILZEN","LIMBURG"]
[3740,"Rosmeer","Ja","BILZEN","LIMBURG"]
[3740,"Waltwilder","Ja","BILZEN","LIMBURG"]
[3742,"Martenslinde","Ja","BILZEN","LIMBURG"]
[3746,"Hoelbeek","Ja","BILZEN","LIMBURG"]
[3770,"Genoelselderen","Ja","RIEMST","LIMBURG"]
[3770,"Herderen","Ja","RIEMST","LIMBURG"]
[3770,"Kanne","Ja","RIEMST","LIMBURG"]
[3770,"Membruggen","Ja","RIEMST","LIMBURG"]
[3770,"Millen","Ja","RIEMST","LIMBURG"]
[3770,"Riemst","Neen","RIEMST","LIMBURG"]
[3770,"Val-Meer","Ja","RIEMST","LIMBURG"]
[3770,"Vlijtingen","Ja","RIEMST","LIMBURG"]
[3770,"Vroenhoven","Ja","RIEMST","LIMBURG"]
[3770,"Zichen-Zussen-Bolder","Ja","RIEMST","LIMBURG"]
[3790,"Moelingen","Ja","VOEREN","LIMBURG"]
[3790,"Sint-Martens-Voeren","Ja","VOEREN","LIMBURG"]
[3791,"Remersdaal","Ja","VOEREN","LIMBURG"]
[3792,"Sint-Pieters-Voeren","Ja","VOEREN","LIMBURG"]
[3793,"Teuven","Ja","VOEREN","LIMBURG"]
[3798,"'s-Gravenvoeren","Ja","VOEREN","LIMBURG"]
[3800,"Aalst","Ja","SINT-TRUIDEN","LIMBURG"]
[3800,"Brustem","Ja","SINT-TRUIDEN","LIMBURG"]
[3800,"Engelmanshoven","Ja","SINT-TRUIDEN","LIMBURG"]
[3800,"Gelinden","Ja","SINT-TRUIDEN","LIMBURG"]
[3800,"Groot-Gelmen","Ja","SINT-TRUIDEN","LIMBURG"]
[3800,"Halmaal","Ja","SINT-TRUIDEN","LIMBURG"]
[3800,"Kerkom-bij-Sint-Truiden","Ja","SINT-TRUIDEN","LIMBURG"]
[3800,"Ordingen","Ja","SINT-TRUIDEN","LIMBURG"]
[3800,"Sint-Truiden","Neen","SINT-TRUIDEN","LIMBURG"]
[3800,"Zepperen","Ja","SINT-TRUIDEN","LIMBURG"]
[3803,"Duras","Ja","SINT-TRUIDEN","LIMBURG"]
[3803,"Gorsem","Ja","SINT-TRUIDEN","LIMBURG"]
[3803,"Runkelen","Ja","SINT-TRUIDEN","LIMBURG"]
[3803,"Wilderen","Ja","SINT-TRUIDEN","LIMBURG"]
[3806,"Velm","Ja","SINT-TRUIDEN","LIMBURG"]
[3830,"Berlingen","Ja","WELLEN","LIMBURG"]
[3830,"Wellen","Neen","WELLEN","LIMBURG"]
[3831,"Herten","Ja","WELLEN","LIMBURG"]
[3832,"Ulbeek","Ja","WELLEN","LIMBURG"]
[3840,"Bommershoven","Ja","BORGLOON","LIMBURG"]
[3840,"Borgloon","Neen","BORGLOON","LIMBURG"]
[3840,"Broekom","Ja","BORGLOON","LIMBURG"]
[3840,"Gors-Opleeuw","Ja","BORGLOON","LIMBURG"]
[3840,"Gotem","Ja","BORGLOON","LIMBURG"]
[3840,"Groot-Loon","Ja","BORGLOON","LIMBURG"]
[3840,"Haren","Ja","BORGLOON","LIMBURG"]
[3840,"Hendrieken","Ja","BORGLOON","LIMBURG"]
[3840,"Hoepertingen","Ja","BORGLOON","LIMBURG"]
[3840,"Jesseren","Ja","BORGLOON","LIMBURG"]
[3840,"Kerniel","Ja","BORGLOON","LIMBURG"]
[3840,"Kolmont","Ja","BORGLOON","LIMBURG"]
[3840,"Kuttekoven","Ja","BORGLOON","LIMBURG"]
[3840,"Rijkel","Ja","BORGLOON","LIMBURG"]
[3840,"Voort","Ja","BORGLOON","LIMBURG"]
[3850,"Binderveld","Ja","NIEUWERKERKEN","LIMBURG"]
[3850,"Kozen","Ja","NIEUWERKERKEN","LIMBURG"]
[3850,"Nieuwerkerken","Neen","NIEUWERKERKEN","LIMBURG"]
[3850,"Wijer","Ja","NIEUWERKERKEN","LIMBURG"]
[3870,"Batsheers","Ja","HEERS","LIMBURG"]
[3870,"Bovelingen","Ja","HEERS","LIMBURG"]
[3870,"Gutshoven","Ja","HEERS","LIMBURG"]
[3870,"Heers","Neen","HEERS","LIMBURG"]
[3870,"Heks","Ja","HEERS","LIMBURG"]
[3870,"Horpmaal","Ja","HEERS","LIMBURG"]
[3870,"Klein-Gelmen","Ja","HEERS","LIMBURG"]
[3870,"Mechelen-Bovelingen","Ja","HEERS","LIMBURG"]
[3870,"Mettekoven","Ja","HEERS","LIMBURG"]
[3870,"Opheers","Ja","HEERS","LIMBURG"]
[3870,"Rukkelingen-Loon","Ja","HEERS","LIMBURG"]
[3870,"Vechmaal","Ja","HEERS","LIMBURG"]
[3870,"Veulen","Ja","HEERS","LIMBURG"]
[3890,"Boekhout","Ja","GINGELOM","LIMBURG"]
[3890,"Gingelom","Neen","GINGELOM","LIMBURG"]
[3890,"Jeuk","Ja","GINGELOM","LIMBURG"]
[3890,"Kortijs","Ja","GINGELOM","LIMBURG"]
[3890,"Montenaken","Ja","GINGELOM","LIMBURG"]
[3890,"Niel-bij-Sint-Truiden","Ja","GINGELOM","LIMBURG"]
[3890,"Vorsen","Ja","GINGELOM","LIMBURG"]
[3891,"Borlo","Ja","GINGELOM","LIMBURG"]
[3891,"Buvingen","Ja","GINGELOM","LIMBURG"]
[3891,"Mielen-boven-Aalst","Ja","GINGELOM","LIMBURG"]
[3891,"Muizen","Ja","GINGELOM","LIMBURG"]
[3900,"Overpelt","Ja","PELT","LIMBURG"]
[3910,"Neerpelt","Ja","PELT","LIMBURG"]
[3910,"Sint-Huibrechts-Lille","Ja","PELT","LIMBURG"]
[3920,"Lommel","Neen","LOMMEL","LIMBURG"]
[3930,"Achel","Ja","HAMONT-ACHEL","LIMBURG"]
[3930,"Hamont","Ja","HAMONT-ACHEL","LIMBURG"]
[3940,"Hechtel","Ja","HECHTEL-EKSEL","LIMBURG"]
[3941,"Eksel","Ja","HECHTEL-EKSEL","LIMBURG"]
[3945,"Kwaadmechelen","Ja","HAM","LIMBURG"]
[3945,"Oostham","Ja","HAM","LIMBURG"]
[3950,"Bocholt","Neen","BOCHOLT","LIMBURG"]
[3950,"Kaulille","Ja","BOCHOLT","LIMBURG"]
[3950,"Reppel","Ja","BOCHOLT","LIMBURG"]
[3960,"Beek","Ja","BREE","LIMBURG"]
[3960,"Bree","Neen","BREE","LIMBURG"]
[3960,"Gerdingen","Ja","BREE","LIMBURG"]
[3960,"Opitter","Ja","BREE","LIMBURG"]
[3960,"Tongerlo","Ja","BREE","LIMBURG"]
[3970,"Leopoldsburg","Neen","LEOPOLDSBURG","LIMBURG"]
[3971,"Heppen","Ja","LEOPOLDSBURG","LIMBURG"]
[3980,"Tessenderlo","Neen","TESSENDERLO","LIMBURG"]
[3990,"Grote-Brogel","Ja","PEER","LIMBURG"]
[3990,"Kleine-Brogel","Ja","PEER","LIMBURG"]
[3990,"Peer","Neen","PEER","LIMBURG"]
[3990,"Wijchmaal","Ja","PEER","LIMBURG"]
[4000,"Glain","Ja","LIÈGE","LUIK"]
[4000,"Liège","Neen","LIÈGE","LUIK"]
[4000,"Rocourt","Ja","LIÈGE","LUIK"]
[4020,"Bressoux","Ja","LIÈGE","LUIK"]
[4020,"Jupille-sur-Meuse","Ja","LIÈGE","LUIK"]
[4020,"Liège","Neen","LIÈGE","LUIK"]
[4020,"Wandre","Ja","LIÈGE","LUIK"]
[4030,"Grivegnée","Ja","LIÈGE","LUIK"]
[4031,"Angleur","Ja","LIÈGE","LUIK"]
[4032,"Chênée","Ja","LIÈGE","LUIK"]
[4040,"Herstal","Neen","HERSTAL","LUIK"]
[4041,"Milmort","Ja","HERSTAL","LUIK"]
[4041,"Vottem","Ja","HERSTAL","LUIK"]
[4042,"Liers","Ja","HERSTAL","LUIK"]
[4050,"Chaudfontaine","Neen","CHAUDFONTAINE","LUIK"]
[4051,"Vaux-sous-Chèvremont","Ja","CHAUDFONTAINE","LUIK"]
[4052,"Beaufays","Ja","CHAUDFONTAINE","LUIK"]
[4053,"Embourg","Ja","CHAUDFONTAINE","LUIK"]
[4099,"Liège X",null,"Liège X"]
[4100,"Boncelles","Ja","SERAING","LUIK"]
[4100,"Seraing","Neen","SERAING","LUIK"]
[4101,"Jemeppe-sur-Meuse","Ja","SERAING","LUIK"]
[4102,"Ougrée","Ja","SERAING","LUIK"]
[4120,"Ehein","Ja","NEUPRÉ","LUIK"]
[4120,"Rotheux-Rimière","Ja","NEUPRÉ","LUIK"]
[4121,"Neuville-en-Condroz","Ja","NEUPRÉ","LUIK"]
[4122,"Plainevaux","Ja","NEUPRÉ","LUIK"]
[4130,"Esneux","Neen","ESNEUX","LUIK"]
[4130,"Tilff","Ja","ESNEUX","LUIK"]
[4140,"Dolembreux","Ja","SPRIMONT","LUIK"]
[4140,"Gomzé-Andoumont","Ja","SPRIMONT","LUIK"]
[4140,"Rouvreux","Ja","SPRIMONT","LUIK"]
[4140,"Sprimont","Neen","SPRIMONT","LUIK"]
[4141,"Louveigné","Ja","SPRIMONT","LUIK"]
[4160,"Anthisnes","Neen","ANTHISNES","LUIK"]
[4161,"Villers-aux-Tours","Ja","ANTHISNES","LUIK"]
[4162,"Hody","Ja","ANTHISNES","LUIK"]
[4163,"Tavier","Ja","ANTHISNES","LUIK"]
[4170,"Comblain-au-Pont","Neen","COMBLAIN-AU-PONT","LUIK"]
[4171,"Poulseur","Ja","COMBLAIN-AU-PONT","LUIK"]
[4180,"Comblain-Fairon","Ja","HAMOIR","LUIK"]
[4180,"Comblain-la-Tour","Ja","HAMOIR","LUIK"]
[4180,"Hamoir","Neen","HAMOIR","LUIK"]
[4181,"Filot","Ja","HAMOIR","LUIK"]
[4190,"Ferrières","Neen","FERRIÈRES","LUIK"]
[4190,"My","Ja","FERRIÈRES","LUIK"]
[4190,"Vieuxville","Ja","FERRIÈRES","LUIK"]
[4190,"Werbomont","Ja","FERRIÈRES","LUIK"]
[4190,"Xhoris","Ja","FERRIÈRES","LUIK"]
[4210,"Burdinne","Neen","BURDINNE","LUIK"]
[4210,"Hannêche","Ja","BURDINNE","LUIK"]
[4210,"Lamontzée","Ja","BURDINNE","LUIK"]
[4210,"Marneffe","Ja","BURDINNE","LUIK"]
[4210,"Oteppe","Ja","BURDINNE","LUIK"]
[4217,"Héron","Neen","HÉRON","LUIK"]
[4217,"Lavoir","Ja","HÉRON","LUIK"]
[4217,"Waret-l'Évêque","Ja","HÉRON","LUIK"]
[4218,"Couthuin","Ja","HÉRON","LUIK"]
[4219,"Acosse","Ja","WASSEIGES","LUIK"]
[4219,"Ambresin","Ja","WASSEIGES","LUIK"]
[4219,"Meeffe","Ja","WASSEIGES","LUIK"]
[4219,"Wasseiges","Neen","WASSEIGES","LUIK"]
[4250,"Boëlhe","Ja","GEER","LUIK"]
[4250,"Geer","Neen","GEER","LUIK"]
[4250,"Hollogne-sur-Geer","Ja","GEER","LUIK"]
[4250,"Lens-Saint-Servais","Ja","GEER","LUIK"]
[4252,"Omal","Ja","GEER","LUIK"]
[4253,"Darion","Ja","GEER","LUIK"]
[4254,"Ligney","Ja","GEER","LUIK"]
[4257,"Berloz","Neen","BERLOZ","LUIK"]
[4257,"Corswarem","Ja","BERLOZ","LUIK"]
[4257,"Rosoux-Crenwick","Ja","BERLOZ","LUIK"]
[4260,"Avennes","Ja","BRAIVES","LUIK"]
[4260,"Braives","Neen","BRAIVES","LUIK"]
[4260,"Ciplet","Ja","BRAIVES","LUIK"]
[4260,"Fallais","Ja","BRAIVES","LUIK"]
[4260,"Fumal","Ja","BRAIVES","LUIK"]
[4260,"Ville-en-Hesbaye","Ja","BRAIVES","LUIK"]
[4261,"Latinne","Ja","BRAIVES","LUIK"]
[4263,"Tourinne","Ja","BRAIVES","LUIK"]
[4280,"Abolens","Ja","HANNUT","LUIK"]
[4280,"Avernas-le-Bauduin","Ja","HANNUT","LUIK"]
[4280,"Avin","Ja","HANNUT","LUIK"]
[4280,"Bertrée","Ja","HANNUT","LUIK"]
[4280,"Blehen","Ja","HANNUT","LUIK"]
[4280,"Cras-Avernas","Ja","HANNUT","LUIK"]
[4280,"Crehen","Ja","HANNUT","LUIK"]
[4280,"Grand-Hallet","Ja","HANNUT","LUIK"]
[4280,"Hannut","Neen","HANNUT","LUIK"]
[4280,"Lens-Saint-Remy","Ja","HANNUT","LUIK"]
[4280,"Merdorp","Ja","HANNUT","LUIK"]
[4280,"Moxhe","Ja","HANNUT","LUIK"]
[4280,"Petit-Hallet","Ja","HANNUT","LUIK"]
[4280,"Poucet","Ja","HANNUT","LUIK"]
[4280,"Thisnes","Ja","HANNUT","LUIK"]
[4280,"Trognée","Ja","HANNUT","LUIK"]
[4280,"Villers-le-Peuplier","Ja","HANNUT","LUIK"]
[4280,"Wansin","Ja","HANNUT","LUIK"]
[4287,"Lincent","Neen","LINCENT","LUIK"]
[4287,"Pellaines","Ja","LINCENT","LUIK"]
[4287,"Racour","Ja","LINCENT","LUIK"]
[4300,"Bettincourt","Ja","WAREMME","LUIK"]
[4300,"Bleret","Ja","WAREMME","LUIK"]
[4300,"Bovenistier","Ja","WAREMME","LUIK"]
[4300,"Grand-Axhe","Ja","WAREMME","LUIK"]
[4300,"Lantremange","Ja","WAREMME","LUIK"]
[4300,"Oleye","Ja","WAREMME","LUIK"]
[4300,"Waremme","Neen","WAREMME","LUIK"]
[4317,"Aineffe","Ja","FAIMES","LUIK"]
[4317,"Borlez","Ja","FAIMES","LUIK"]
[4317,"Celles","Ja","FAIMES","LUIK"]
[4317,"Faimes","Neen","FAIMES","LUIK"]
[4317,"Les Waleffes","Ja","FAIMES","LUIK"]
[4317,"Viemme","Ja","FAIMES","LUIK"]
[4340,"Awans","Neen","AWANS","LUIK"]
[4340,"Fooz","Ja","AWANS","LUIK"]
[4340,"Othée","Ja","AWANS","LUIK"]
[4340,"Villers-l'Evêque","Ja","AWANS","LUIK"]
[4342,"Hognoul","Ja","AWANS","LUIK"]
[4347,"Fexhe-le-Haut-Clocher","Neen","FEXHE-LE-HAUT-CLOCHER","LUIK"]
[4347,"Freloux","Ja","FEXHE-LE-HAUT-CLOCHER","LUIK"]
[4347,"Noville","Ja","FEXHE-LE-HAUT-CLOCHER","LUIK"]
[4347,"Roloux","Ja","FEXHE-LE-HAUT-CLOCHER","LUIK"]
[4347,"Voroux-Goreux","Ja","FEXHE-LE-HAUT-CLOCHER","LUIK"]
[4350,"Lamine","Ja","REMICOURT","LUIK"]
[4350,"Momalle","Ja","REMICOURT","LUIK"]
[4350,"Pousset","Ja","REMICOURT","LUIK"]
[4350,"Remicourt","Neen","REMICOURT","LUIK"]
[4351,"Hodeige","Ja","REMICOURT","LUIK"]
[4357,"Donceel","Neen","DONCEEL","LUIK"]
[4357,"Haneffe","Ja","DONCEEL","LUIK"]
[4357,"Jeneffe","Ja","DONCEEL","LUIK"]
[4357,"Limont","Ja","DONCEEL","LUIK"]
[4360,"Bergilers","Ja","OREYE","LUIK"]
[4360,"Grandville","Ja","OREYE","LUIK"]
[4360,"Lens-sur-Geer","Ja","OREYE","LUIK"]
[4360,"Oreye","Neen","OREYE","LUIK"]
[4360,"Otrange","Ja","OREYE","LUIK"]
[4367,"Crisnée","Neen","CRISNÉE","LUIK"]
[4367,"Fize-Le-Marsal","Ja","CRISNÉE","LUIK"]
[4367,"Kemexhe","Ja","CRISNÉE","LUIK"]
[4367,"Odeur","Ja","CRISNÉE","LUIK"]
[4367,"Thys","Ja","CRISNÉE","LUIK"]
[4400,"Awirs","Ja","FLÉMALLE","LUIK"]
[4400,"Chokier","Ja","FLÉMALLE","LUIK"]
[4400,"Flémalle-Grande","Ja","FLÉMALLE","LUIK"]
[4400,"Flémalle-Haute","Ja","FLÉMALLE","LUIK"]
[4400,"Gleixhe","Ja","FLÉMALLE","LUIK"]
[4400,"Ivoz-Ramet","Ja","FLÉMALLE","LUIK"]
[4400,"Mons-lez-Liège","Ja","FLÉMALLE","LUIK"]
[4420,"Montegnée","Ja","SAINT-NICOLAS","LUIK"]
[4420,"Saint-Nicolas","Neen","SAINT-NICOLAS","LUIK"]
[4420,"Tilleur","Ja","SAINT-NICOLAS","LUIK"]
[4430,"Ans","Neen","ANS","LUIK"]
[4431,"Loncin","Ja","ANS","LUIK"]
[4432,"Alleur","Ja","ANS","LUIK"]
[4432,"Xhendremael","Ja","ANS","LUIK"]
[4450,"Juprelle","Neen","JUPRELLE","LUIK"]
[4450,"Lantin","Ja","JUPRELLE","LUIK"]
[4450,"Slins","Ja","JUPRELLE","LUIK"]
[4451,"Voroux-lez-Liers","Ja","JUPRELLE","LUIK"]
[4452,"Paifve","Ja","JUPRELLE","LUIK"]
[4452,"Wihogne","Ja","JUPRELLE","LUIK"]
[4453,"Villers-Saint-Siméon","Ja","JUPRELLE","LUIK"]
[4458,"Fexhe-Slins","Ja","JUPRELLE","LUIK"]
[4460,"Bierset","Ja","GRÂCE-HOLLOGNE","LUIK"]
[4460,"Grâce-Berleur","Ja","GRÂCE-HOLLOGNE","LUIK"]
[4460,"Grâce-Hollogne","Neen","GRÂCE-HOLLOGNE","LUIK"]
[4460,"Hollogne-aux-Pierres","Ja","GRÂCE-HOLLOGNE","LUIK"]
[4460,"Horion-Hozémont","Ja","GRÂCE-HOLLOGNE","LUIK"]
[4460,"Velroux","Ja","GRÂCE-HOLLOGNE","LUIK"]
[4470,"Saint-Georges-sur-Meuse","Neen","SAINT-GEORGES-SUR-MEUSE","LUIK"]
[4480,"Clermont-sous-Huy","Ja","ENGIS","LUIK"]
[4480,"Ehein","Ja","ENGIS","LUIK"]
[4480,"Engis","Neen","ENGIS","LUIK"]
[4480,"Hermalle-sous-Huy","Ja","ENGIS","LUIK"]
[4500,"Ben-Ahin","Ja","HUY","LUIK"]
[4500,"Huy","Neen","HUY","LUIK"]
[4500,"Tihange","Ja","HUY","LUIK"]
[4520,"Antheit","Ja","WANZE","LUIK"]
[4520,"Bas-Oha","Ja","WANZE","LUIK"]
[4520,"Huccorgne","Ja","WANZE","LUIK"]
[4520,"Moha","Ja","WANZE","LUIK"]
[4520,"Vinalmont","Ja","WANZE","LUIK"]
[4520,"Wanze","Neen","WANZE","LUIK"]
[4530,"Fize-Fontaine","Ja","VILLERS-LE-BOUILLET","LUIK"]
[4530,"Vaux-et-Borset","Ja","VILLERS-LE-BOUILLET","LUIK"]
[4530,"Vieux-Waleffe","Ja","VILLERS-LE-BOUILLET","LUIK"]
[4530,"Villers-le-Bouillet","Neen","VILLERS-LE-BOUILLET","LUIK"]
[4530,"Warnant-Dreye","Ja","VILLERS-LE-BOUILLET","LUIK"]
[4537,"Bodegnée","Ja","VERLAINE","LUIK"]
[4537,"Chapon-Seraing","Ja","VERLAINE","LUIK"]
[4537,"Seraing-le-Château","Ja","VERLAINE","LUIK"]
[4537,"Verlaine","Neen","VERLAINE","LUIK"]
[4540,"Amay","Neen","AMAY","LUIK"]
[4540,"Ampsin","Ja","AMAY","LUIK"]
[4540,"Flône","Ja","AMAY","LUIK"]
[4540,"Jehay","Ja","AMAY","LUIK"]
[4540,"Ombret","Ja","AMAY","LUIK"]
[4550,"Nandrin","Neen","NANDRIN","LUIK"]
[4550,"Saint-Séverin","Ja","NANDRIN","LUIK"]
[4550,"Villers-le-Temple","Ja","NANDRIN","LUIK"]
[4550,"Yernée-Fraineux","Ja","NANDRIN","LUIK"]
[4557,"Abée","Ja","TINLOT","LUIK"]
[4557,"Fraiture","Ja","TINLOT","LUIK"]
[4557,"Ramelot","Ja","TINLOT","LUIK"]
[4557,"Seny","Ja","TINLOT","LUIK"]
[4557,"Soheit-Tinlot","Ja","TINLOT","LUIK"]
[4557,"Tinlot","Neen","TINLOT","LUIK"]
[4560,"Bois-et-Borsu","Ja","CLAVIER","LUIK"]
[4560,"Clavier","Neen","CLAVIER","LUIK"]
[4560,"Les Avins","Ja","CLAVIER","LUIK"]
[4560,"Ocquier","Ja","CLAVIER","LUIK"]
[4560,"Pailhe","Ja","CLAVIER","LUIK"]
[4560,"Terwagne","Ja","CLAVIER","LUIK"]
[4570,"Marchin","Neen","MARCHIN","LUIK"]
[4570,"Vyle-et-Tharoul","Ja","MARCHIN","LUIK"]
[4577,"Modave","Neen","MODAVE","LUIK"]
[4577,"Outrelouxhe","Ja","MODAVE","LUIK"]
[4577,"Strée-lez-Huy","Ja","MODAVE","LUIK"]
[4577,"Vierset-Barse","Ja","MODAVE","LUIK"]
[4590,"Ellemelle","Ja","OUFFET","LUIK"]
[4590,"Ouffet","Neen","OUFFET","LUIK"]
[4590,"Warzée","Ja","OUFFET","LUIK"]
[4600,"Lanaye","Ja","VISÉ","LUIK"]
[4600,"Lixhe","Ja","VISÉ","LUIK"]
[4600,"Richelle","Ja","VISÉ","LUIK"]
[4600,"Visé","Neen","VISÉ","LUIK"]
[4601,"Argenteau","Ja","VISÉ","LUIK"]
[4602,"Cheratte","Ja","VISÉ","LUIK"]
[4606,"Saint-André","Ja","DALHEM","LUIK"]
[4607,"Berneau","Ja","DALHEM","LUIK"]
[4607,"Bombaye","Ja","DALHEM","LUIK"]
[4607,"Dalhem","Neen","DALHEM","LUIK"]
[4607,"Feneur","Ja","DALHEM","LUIK"]
[4607,"Mortroux","Ja","DALHEM","LUIK"]
[4608,"Neufchâteau","Ja","DALHEM","LUIK"]
[4608,"Warsage","Ja","DALHEM","LUIK"]
[4610,"Bellaire","Ja","BEYNE-HEUSAY","LUIK"]
[4610,"Beyne-Heusay","Neen","BEYNE-HEUSAY","LUIK"]
[4610,"Queue-du-Bois","Ja","BEYNE-HEUSAY","LUIK"]
[4620,"Fléron","Neen","FLÉRON","LUIK"]
[4621,"Retinne","Ja","FLÉRON","LUIK"]
[4623,"Magnée","Ja","FLÉRON","LUIK"]
[4624,"Romsée","Ja","FLÉRON","LUIK"]
[4630,"Ayeneux","Ja","SOUMAGNE","LUIK"]
[4630,"Micheroux","Ja","SOUMAGNE","LUIK"]
[4630,"Soumagne","Neen","SOUMAGNE","LUIK"]
[4630,"Tignée","Ja","SOUMAGNE","LUIK"]
[4631,"Evegnée","Ja","SOUMAGNE","LUIK"]
[4632,"Cérexhe-Heuseux","Ja","SOUMAGNE","LUIK"]
[4633,"Melen","Ja","SOUMAGNE","LUIK"]
[4650,"Chaineux","Ja","HERVE","LUIK"]
[4650,"Grand-Rechain","Ja","HERVE","LUIK"]
[4650,"Herve","Neen","HERVE","LUIK"]
[4650,"Julémont","Ja","HERVE","LUIK"]
[4651,"Battice","Ja","HERVE","LUIK"]
[4652,"Xhendelesse","Ja","HERVE","LUIK"]
[4653,"Bolland","Ja","HERVE","LUIK"]
[4654,"Charneux","Ja","HERVE","LUIK"]
[4670,"Blégny","Neen","BLÉGNY","LUIK"]
[4670,"Mortier","Ja","BLÉGNY","LUIK"]
[4670,"Trembleur","Ja","BLÉGNY","LUIK"]
[4671,"Barchon","Ja","BLÉGNY","LUIK"]
[4671,"Housse","Ja","BLÉGNY","LUIK"]
[4671,"Saive","Ja","BLÉGNY","LUIK"]
[4672,"Saint-Remy","Ja","BLÉGNY","LUIK"]
[4680,"Hermée","Ja","OUPEYE","LUIK"]
[4680,"Oupeye","Neen","OUPEYE","LUIK"]
[4681,"Hermalle-sous-Argenteau","Ja","OUPEYE","LUIK"]
[4682,"Heure-le-Romain","Ja","OUPEYE","LUIK"]
[4682,"Houtain-Saint-Siméon","Ja","OUPEYE","LUIK"]
[4683,"Vivegnis","Ja","OUPEYE","LUIK"]
[4684,"Haccourt","Ja","OUPEYE","LUIK"]
[4690,"Bassenge","Neen","BASSENGE","LUIK"]
[4690,"Boirs","Ja","BASSENGE","LUIK"]
[4690,"Eben-Emael","Ja","BASSENGE","LUIK"]
[4690,"Glons","Ja","BASSENGE","LUIK"]
[4690,"Roclenge-sur-Geer","Ja","BASSENGE","LUIK"]
[4690,"Wonck","Ja","BASSENGE","LUIK"]
[4700,"Eupen","Neen","EUPEN","LUIK"]
[4701,"Kettenis","Ja","EUPEN","LUIK"]
[4710,"Lontzen","Neen","LONTZEN","LUIK"]
[4711,"Walhorn","Ja","LONTZEN","LUIK"]
[4720,"Kelmis","Neen","KELMIS","LUIK"]
[4721,"Neu-Moresnet","Ja","KELMIS","LUIK"]
[4728,"Hergenrath","Ja","KELMIS","LUIK"]
[4730,"Hauset","Ja","RAEREN","LUIK"]
[4730,"Raeren","Neen","RAEREN","LUIK"]
[4731,"Eynatten","Ja","RAEREN","LUIK"]
[4750,"Butgenbach","Neen","BUTGENBACH","LUIK"]
[4750,"Elsenborn","Ja","BUTGENBACH","LUIK"]
[4760,"Büllingen","Neen","BÜLLINGEN","LUIK"]
[4760,"Manderfeld","Ja","BÜLLINGEN","LUIK"]
[4761,"Rocherath","Ja","BÜLLINGEN","LUIK"]
[4770,"Amel","Neen","AMEL","LUIK"]
[4770,"Meyerode","Ja","AMEL","LUIK"]
[4771,"Heppenbach","Ja","AMEL","LUIK"]
[4780,"Recht","Ja","SANKT-VITH","LUIK"]
[4780,"Sankt-Vith","Neen","SANKT-VITH","LUIK"]
[4782,"Schönberg","Ja","SANKT-VITH","LUIK"]
[4783,"Lommersweiler","Ja","SANKT-VITH","LUIK"]
[4784,"Crombach","Ja","SANKT-VITH","LUIK"]
[4790,"Reuland","Ja","BURG-REULAND","LUIK"]
[4791,"Thommen","Ja","BURG-REULAND","LUIK"]
[4800,"Ensival","Ja","VERVIERS","LUIK"]
[4800,"Lambermont","Ja","VERVIERS","LUIK"]
[4800,"Petit-Rechain","Ja","VERVIERS","LUIK"]
[4800,"Polleur","Ja","VERVIERS","LUIK"]
[4800,"Verviers","Neen","VERVIERS","LUIK"]
[4801,"Stembert","Ja","VERVIERS","LUIK"]
[4802,"Heusy","Ja","VERVIERS","LUIK"]
[4820,"Dison","Neen","DISON","LUIK"]
[4821,"Andrimont","Ja","DISON","LUIK"]
[4830,"Limbourg","Neen","LIMBOURG","LUIK"]
[4831,"Bilstain","Ja","LIMBOURG","LUIK"]
[4834,"Goé","Ja","LIMBOURG","LUIK"]
[4837,"Baelen","Neen","BAELEN","LUIK"]
[4837,"Membach","Ja","BAELEN","LUIK"]
[4840,"Welkenraedt","Neen","WELKENRAEDT","LUIK"]
[4841,"Henri-Chapelle","Ja","WELKENRAEDT","LUIK"]
[4845,"Jalhay","Neen","JALHAY","LUIK"]
[4845,"Sart-lez-Spa","Ja","JALHAY","LUIK"]
[4850,"Montzen","Ja","PLOMBIÈRES","LUIK"]
[4850,"Moresnet","Ja","PLOMBIÈRES","LUIK"]
[4851,"Gemmenich","Ja","PLOMBIÈRES","LUIK"]
[4851,"Sippenaeken","Ja","PLOMBIÈRES","LUIK"]
[4852,"Hombourg","Ja","PLOMBIÈRES","LUIK"]
[4860,"Cornesse","Ja","PEPINSTER","LUIK"]
[4860,"Pepinster","Neen","PEPINSTER","LUIK"]
[4860,"Wegnez","Ja","PEPINSTER","LUIK"]
[4861,"Soiron","Ja","PEPINSTER","LUIK"]
[4870,"Forêt","Ja","TROOZ","LUIK"]
[4870,"Fraipont","Ja","TROOZ","LUIK"]
[4870,"Nessonvaux","Ja","TROOZ","LUIK"]
[4877,"Olne","Neen","OLNE","LUIK"]
[4880,"Aubel","Neen","AUBEL","LUIK"]
[4890,"Clermont","Ja","THIMISTER-CLERMONT","LUIK"]
[4890,"Thimister","Ja","THIMISTER-CLERMONT","LUIK"]
[4900,"Spa","Neen","SPA","LUIK"]
[4910,"La Reid","Ja","THEUX","LUIK"]
[4910,"Polleur","Ja","THEUX","LUIK"]
[4910,"Theux","Neen","THEUX","LUIK"]
[4920,"Aywaille","Neen","AYWAILLE","LUIK"]
[4920,"Ernonheid","Ja","AYWAILLE","LUIK"]
[4920,"Harzé","Ja","AYWAILLE","LUIK"]
[4920,"Louveigné","Ja","AYWAILLE","LUIK"]
[4920,"Sougné-Remouchamps","Ja","AYWAILLE","LUIK"]
[4950,"Faymonville","Ja","WEISMES","LUIK"]
[4950,"Robertville","Ja","WEISMES","LUIK"]
[4950,"Sourbrodt","Ja","WEISMES","LUIK"]
[4950,"Weismes","Neen","WEISMES","LUIK"]
[4960,"Bellevaux-Ligneuville","Ja","MALMEDY","LUIK"]
[4960,"Bevercé","Ja","MALMEDY","LUIK"]
[4960,"Malmedy","Neen","MALMEDY","LUIK"]
[4970,"Francorchamps","Ja","STAVELOT","LUIK"]
[4970,"Stavelot","Neen","STAVELOT","LUIK"]
[4980,"Fosse","Ja","TROIS-PONTS","LUIK"]
[4980,"Trois-Ponts","Neen","TROIS-PONTS","LUIK"]
[4980,"Wanne","Ja","TROIS-PONTS","LUIK"]
[4983,"Basse-Bodeux","Ja","TROIS-PONTS","LUIK"]
[4987,"Chevron","Ja","STOUMONT","LUIK"]
[4987,"La Gleize","Ja","STOUMONT","LUIK"]
[4987,"Lorcé","Ja","STOUMONT","LUIK"]
[4987,"Rahier","Ja","STOUMONT","LUIK"]
[4987,"Stoumont","Neen","STOUMONT","LUIK"]
[4990,"Arbrefontaine","Ja","LIERNEUX","LUIK"]
[4990,"Bra","Ja","LIERNEUX","LUIK"]
[4990,"Lierneux","Neen","LIERNEUX","LUIK"]
[5000,"Beez","Ja","NAMUR","NAMEN"]
[5000,"Namur","Neen","NAMUR","NAMEN"]
[5001,"Belgrade","Ja","NAMUR","NAMEN"]
[5002,"Saint-Servais","Ja","NAMUR","NAMEN"]
[5003,"Saint-Marc","Ja","NAMUR","NAMEN"]
[5004,"Bouge","Ja","NAMUR","NAMEN"]
[5010,"SA SudPresse",null,"SA SudPresse"]
[5012,"Parlement Wallon",null,"Parlement Wallon"]
[5020,"Champion","Ja","NAMUR","NAMEN"]
[5020,"Daussoulx","Ja","NAMUR","NAMEN"]
[5020,"Flawinne","Ja","NAMUR","NAMEN"]
[5020,"Malonne","Ja","NAMUR","NAMEN"]
[5020,"Suarlée","Ja","NAMUR","NAMEN"]
[5020,"Temploux","Ja","NAMUR","NAMEN"]
[5020,"Vedrin","Ja","NAMUR","NAMEN"]
[5021,"Boninne","Ja","NAMUR","NAMEN"]
[5022,"Cognelée","Ja","NAMUR","NAMEN"]
[5024,"Gelbressée","Ja","NAMUR","NAMEN"]
[5024,"Marche-les-Dames","Ja","NAMUR","NAMEN"]
[5030,"Beuzet","Ja","GEMBLOUX","NAMEN"]
[5030,"Ernage","Ja","GEMBLOUX","NAMEN"]
[5030,"Gembloux","Neen","GEMBLOUX","NAMEN"]
[5030,"Grand-Manil","Ja","GEMBLOUX","NAMEN"]
[5030,"Lonzée","Ja","GEMBLOUX","NAMEN"]
[5030,"Sauvenière","Ja","GEMBLOUX","NAMEN"]
[5031,"Grand-Leez","Ja","GEMBLOUX","NAMEN"]
[5032,"Bossière","Ja","GEMBLOUX","NAMEN"]
[5032,"Bothey","Ja","GEMBLOUX","NAMEN"]
[5032,"Corroy-le-Château","Ja","GEMBLOUX","NAMEN"]
[5032,"Isnes","Ja","GEMBLOUX","NAMEN"]
[5032,"Mazy","Ja","GEMBLOUX","NAMEN"]
[5060,"Arsimont","Ja","SAMBREVILLE","NAMEN"]
[5060,"Auvelais","Ja","SAMBREVILLE","NAMEN"]
[5060,"Falisolle","Ja","SAMBREVILLE","NAMEN"]
[5060,"Keumiée","Ja","SAMBREVILLE","NAMEN"]
[5060,"Moignelée","Ja","SAMBREVILLE","NAMEN"]
[5060,"Tamines","Ja","SAMBREVILLE","NAMEN"]
[5060,"Velaine-sur-Sambre","Ja","SAMBREVILLE","NAMEN"]
[5070,"Aisemont","Ja","FOSSES-LA-VILLE","NAMEN"]
[5070,"Fosses-la-Ville","Neen","FOSSES-LA-VILLE","NAMEN"]
[5070,"Le Roux","Ja","FOSSES-LA-VILLE","NAMEN"]
[5070,"Sart-Eustache","Ja","FOSSES-LA-VILLE","NAMEN"]
[5070,"Sart-Saint-Laurent","Ja","FOSSES-LA-VILLE","NAMEN"]
[5070,"Vitrival","Ja","FOSSES-LA-VILLE","NAMEN"]
[5080,"Emines","Ja","LA BRUYÈRE","NAMEN"]
[5080,"Rhisnes","Ja","LA BRUYÈRE","NAMEN"]
[5080,"Villers-lez-Heest","Ja","LA BRUYÈRE","NAMEN"]
[5080,"Warisoulx","Ja","LA BRUYÈRE","NAMEN"]
[5081,"Bovesse","Ja","LA BRUYÈRE","NAMEN"]
[5081,"Meux","Ja","LA BRUYÈRE","NAMEN"]
[5081,"Saint-Denis-Bovesse","Ja","LA BRUYÈRE","NAMEN"]
[5100,"Dave","Ja","NAMUR","NAMEN"]
[5100,"Jambes","Ja","NAMUR","NAMEN"]
[5100,"Naninne","Ja","NAMUR","NAMEN"]
[5100,"Wépion","Ja","NAMUR","NAMEN"]
[5100,"Wierde","Ja","NAMUR","NAMEN"]
[5101,"Erpent","Ja","NAMUR","NAMEN"]
[5101,"Lives-sur-Meuse","Ja","NAMUR","NAMEN"]
[5101,"Loyers","Ja","NAMUR","NAMEN"]
[5140,"Boignée","Ja","SOMBREFFE","NAMEN"]
[5140,"Ligny","Ja","SOMBREFFE","NAMEN"]
[5140,"Sombreffe","Neen","SOMBREFFE","NAMEN"]
[5140,"Tongrinne","Ja","SOMBREFFE","NAMEN"]
[5150,"Floreffe","Neen","FLOREFFE","NAMEN"]
[5150,"Floriffoux","Ja","FLOREFFE","NAMEN"]
[5150,"Franière","Ja","FLOREFFE","NAMEN"]
[5150,"Soye","Ja","FLOREFFE","NAMEN"]
[5170,"Arbre","Ja","PROFONDEVILLE","NAMEN"]
[5170,"Bois-de-Villers","Ja","PROFONDEVILLE","NAMEN"]
[5170,"Lesve","Ja","PROFONDEVILLE","NAMEN"]
[5170,"Lustin","Ja","PROFONDEVILLE","NAMEN"]
[5170,"Profondeville","Neen","PROFONDEVILLE","NAMEN"]
[5170,"Rivière","Ja","PROFONDEVILLE","NAMEN"]
[5190,"Balâtre","Ja","JEMEPPE-SUR-SAMBRE","NAMEN"]
[5190,"Ham-sur-Sambre","Ja","JEMEPPE-SUR-SAMBRE","NAMEN"]
[5190,"Jemeppe-sur-Sambre","Neen","JEMEPPE-SUR-SAMBRE","NAMEN"]
[5190,"Mornimont","Ja","JEMEPPE-SUR-SAMBRE","NAMEN"]
[5190,"Moustier-sur-Sambre","Ja","JEMEPPE-SUR-SAMBRE","NAMEN"]
[5190,"Onoz","Ja","JEMEPPE-SUR-SAMBRE","NAMEN"]
[5190,"Saint-Martin","Ja","JEMEPPE-SUR-SAMBRE","NAMEN"]
[5190,"Spy","Ja","JEMEPPE-SUR-SAMBRE","NAMEN"]
[5300,"Andenne","Neen","ANDENNE","NAMEN"]
[5300,"Bonneville","Ja","ANDENNE","NAMEN"]
[5300,"Coutisse","Ja","ANDENNE","NAMEN"]
[5300,"Landenne","Ja","ANDENNE","NAMEN"]
[5300,"Maizeret","Ja","ANDENNE","NAMEN"]
[5300,"Namêche","Ja","ANDENNE","NAMEN"]
[5300,"Sclayn","Ja","ANDENNE","NAMEN"]
[5300,"Seilles","Ja","ANDENNE","NAMEN"]
[5300,"Thon","Ja","ANDENNE","NAMEN"]
[5300,"Vezin","Ja","ANDENNE","NAMEN"]
[5310,"Aische-en-Refail","Ja","EGHEZÉE","NAMEN"]
[5310,"Bolinne","Ja","EGHEZÉE","NAMEN"]
[5310,"Boneffe","Ja","EGHEZÉE","NAMEN"]
[5310,"Branchon","Ja","EGHEZÉE","NAMEN"]
[5310,"Dhuy","Ja","EGHEZÉE","NAMEN"]
[5310,"Eghezée","Neen","EGHEZÉE","NAMEN"]
[5310,"Hanret","Ja","EGHEZÉE","NAMEN"]
[5310,"Leuze","Ja","EGHEZÉE","NAMEN"]
[5310,"Liernu","Ja","EGHEZÉE","NAMEN"]
[5310,"Longchamps","Ja","EGHEZÉE","NAMEN"]
[5310,"Mehaigne","Ja","EGHEZÉE","NAMEN"]
[5310,"Noville-sur-Mehaigne","Ja","EGHEZÉE","NAMEN"]
[5310,"Saint-Germain","Ja","EGHEZÉE","NAMEN"]
[5310,"Taviers","Ja","EGHEZÉE","NAMEN"]
[5310,"Upigny","Ja","EGHEZÉE","NAMEN"]
[5310,"Waret-la-Chaussée","Ja","EGHEZÉE","NAMEN"]
[5330,"Assesse","Neen","ASSESSE","NAMEN"]
[5330,"Maillen","Ja","ASSESSE","NAMEN"]
[5330,"Sart-Bernard","Ja","ASSESSE","NAMEN"]
[5332,"Crupet","Ja","ASSESSE","NAMEN"]
[5333,"Sorinne-la-Longue","Ja","ASSESSE","NAMEN"]
[5334,"Florée","Ja","ASSESSE","NAMEN"]
[5336,"Courrière","Ja","ASSESSE","NAMEN"]
[5340,"Faulx-les-Tombes","Ja","GESVES","NAMEN"]
[5340,"Gesves","Neen","GESVES","NAMEN"]
[5340,"Haltinne","Ja","GESVES","NAMEN"]
[5340,"Mozet","Ja","GESVES","NAMEN"]
[5340,"Sorée","Ja","GESVES","NAMEN"]
[5350,"Evelette","Ja","OHEY","NAMEN"]
[5350,"Ohey","Neen","OHEY","NAMEN"]
[5351,"Haillot","Ja","OHEY","NAMEN"]
[5352,"Perwez-Haillot","Ja","OHEY","NAMEN"]
[5353,"Goesnes","Ja","OHEY","NAMEN"]
[5354,"Jallet","Ja","OHEY","NAMEN"]
[5360,"Hamois","Neen","HAMOIS","NAMEN"]
[5360,"Natoye","Ja","HAMOIS","NAMEN"]
[5361,"Mohiville","Ja","HAMOIS","NAMEN"]
[5361,"Scy","Ja","HAMOIS","NAMEN"]
[5362,"Achet","Ja","HAMOIS","NAMEN"]
[5363,"Emptinne","Ja","HAMOIS","NAMEN"]
[5364,"Schaltin","Ja","HAMOIS","NAMEN"]
[5370,"Barvaux-Condroz","Ja","HAVELANGE","NAMEN"]
[5370,"Flostoy","Ja","HAVELANGE","NAMEN"]
[5370,"Havelange","Neen","HAVELANGE","NAMEN"]
[5370,"Jeneffe","Ja","HAVELANGE","NAMEN"]
[5370,"Porcheresse","Ja","HAVELANGE","NAMEN"]
[5370,"Verlée","Ja","HAVELANGE","NAMEN"]
[5372,"Méan","Ja","HAVELANGE","NAMEN"]
[5374,"Maffe","Ja","HAVELANGE","NAMEN"]
[5376,"Miécret","Ja","HAVELANGE","NAMEN"]
[5377,"Baillonville","Ja","SOMME-LEUZE","NAMEN"]
[5377,"Bonsin","Ja","SOMME-LEUZE","NAMEN"]
[5377,"Heure","Ja","SOMME-LEUZE","NAMEN"]
[5377,"Hogne","Ja","SOMME-LEUZE","NAMEN"]
[5377,"Nettinne","Ja","SOMME-LEUZE","NAMEN"]
[5377,"Noiseux","Ja","SOMME-LEUZE","NAMEN"]
[5377,"Sinsin","Ja","SOMME-LEUZE","NAMEN"]
[5377,"Somme-Leuze","Neen","SOMME-LEUZE","NAMEN"]
[5377,"Waillet","Ja","SOMME-LEUZE","NAMEN"]
[5380,"Bierwart","Ja","FERNELMONT","NAMEN"]
[5380,"Cortil-Wodon","Ja","FERNELMONT","NAMEN"]
[5380,"Forville","Ja","FERNELMONT","NAMEN"]
[5380,"Franc-Waret","Ja","FERNELMONT","NAMEN"]
[5380,"Hemptinne","Ja","FERNELMONT","NAMEN"]
[5380,"Hingeon","Ja","FERNELMONT","NAMEN"]
[5380,"Marchovelette","Ja","FERNELMONT","NAMEN"]
[5380,"Noville-les-Bois","Ja","FERNELMONT","NAMEN"]
[5380,"Pontillas","Ja","FERNELMONT","NAMEN"]
[5380,"Tillier","Ja","FERNELMONT","NAMEN"]
[5500,"Anseremme","Ja","DINANT","NAMEN"]
[5500,"Bouvignes-sur-Meuse","Ja","DINANT","NAMEN"]
[5500,"Dinant","Neen","DINANT","NAMEN"]
[5500,"Dréhance","Ja","DINANT","NAMEN"]
[5500,"Falmagne","Ja","DINANT","NAMEN"]
[5500,"Falmignoul","Ja","DINANT","NAMEN"]
[5500,"Furfooz","Ja","DINANT","NAMEN"]
[5501,"Lisogne","Ja","DINANT","NAMEN"]
[5502,"Thynes","Ja","DINANT","NAMEN"]
[5503,"Sorinnes","Ja","DINANT","NAMEN"]
[5504,"Foy-Notre-Dame","Ja","DINANT","NAMEN"]
[5520,"Anthée","Ja","ONHAYE","NAMEN"]
[5520,"Onhaye","Neen","ONHAYE","NAMEN"]
[5521,"Serville","Ja","ONHAYE","NAMEN"]
[5522,"Falaën","Ja","ONHAYE","NAMEN"]
[5523,"Sommière","Ja","ONHAYE","NAMEN"]
[5523,"Weillen","Ja","ONHAYE","NAMEN"]
[5524,"Gérin","Ja","ONHAYE","NAMEN"]
[5530,"Dorinne","Ja","YVOIR","NAMEN"]
[5530,"Durnal","Ja","YVOIR","NAMEN"]
[5530,"Evrehailles","Ja","YVOIR","NAMEN"]
[5530,"Godinne","Ja","YVOIR","NAMEN"]
[5530,"Houx","Ja","YVOIR","NAMEN"]
[5530,"Mont","Ja","YVOIR","NAMEN"]
[5530,"Purnode","Ja","YVOIR","NAMEN"]
[5530,"Spontin","Ja","YVOIR","NAMEN"]
[5530,"Yvoir","Neen","YVOIR","NAMEN"]
[5537,"Anhée","Neen","ANHÉE","NAMEN"]
[5537,"Annevoie-Rouillon","Ja","ANHÉE","NAMEN"]
[5537,"Bioul","Ja","ANHÉE","NAMEN"]
[5537,"Denée","Ja","ANHÉE","NAMEN"]
[5537,"Haut-le-Wastia","Ja","ANHÉE","NAMEN"]
[5537,"Sosoye","Ja","ANHÉE","NAMEN"]
[5537,"Warnant","Ja","ANHÉE","NAMEN"]
[5540,"Hastière-Lavaux","Ja","HASTIÈRE","NAMEN"]
[5540,"Hermeton-sur-Meuse","Ja","HASTIÈRE","NAMEN"]
[5540,"Waulsort","Ja","HASTIÈRE","NAMEN"]
[5541,"Hastière-par-Delà","Ja","HASTIÈRE","NAMEN"]
[5542,"Blaimont","Ja","HASTIÈRE","NAMEN"]
[5543,"Heer","Ja","HASTIÈRE","NAMEN"]
[5544,"Agimont","Ja","HASTIÈRE","NAMEN"]
[5550,"Alle","Ja","VRESSE-SUR-SEMOIS","NAMEN"]
[5550,"Bagimont","Ja","VRESSE-SUR-SEMOIS","NAMEN"]
[5550,"Bohan","Ja","VRESSE-SUR-SEMOIS","NAMEN"]
[5550,"Chairière","Ja","VRESSE-SUR-SEMOIS","NAMEN"]
[5550,"Laforêt","Ja","VRESSE-SUR-SEMOIS","NAMEN"]
[5550,"Membre","Ja","VRESSE-SUR-SEMOIS","NAMEN"]
[5550,"Mouzaive","Ja","VRESSE-SUR-SEMOIS","NAMEN"]
[5550,"Nafraiture","Ja","VRESSE-SUR-SEMOIS","NAMEN"]
[5550,"Orchimont","Ja","VRESSE-SUR-SEMOIS","NAMEN"]
[5550,"Pussemange","Ja","VRESSE-SUR-SEMOIS","NAMEN"]
[5550,"Sugny","Ja","VRESSE-SUR-SEMOIS","NAMEN"]
[5550,"Vresse-sur-Semois","Neen","VRESSE-SUR-SEMOIS","NAMEN"]
[5555,"Baillamont","Ja","BIÈVRE","NAMEN"]
[5555,"Bellefontaine","Ja","BIÈVRE","NAMEN"]
[5555,"Bièvre","Neen","BIÈVRE","NAMEN"]
[5555,"Cornimont","Ja","BIÈVRE","NAMEN"]
[5555,"Graide","Ja","BIÈVRE","NAMEN"]
[5555,"Gros-Fays","Ja","BIÈVRE","NAMEN"]
[5555,"Monceau-en-Ardenne","Ja","BIÈVRE","NAMEN"]
[5555,"Naomé","Ja","BIÈVRE","NAMEN"]
[5555,"Oizy","Ja","BIÈVRE","NAMEN"]
[5555,"Petit-Fays","Ja","BIÈVRE","NAMEN"]
[5560,"Ciergnon","Ja","HOUYET","NAMEN"]
[5560,"Finnevaux","Ja","HOUYET","NAMEN"]
[5560,"Houyet","Neen","HOUYET","NAMEN"]
[5560,"Hulsonniaux","Ja","HOUYET","NAMEN"]
[5560,"Mesnil-Eglise","Ja","HOUYET","NAMEN"]
[5560,"Mesnil-Saint-Blaise","Ja","HOUYET","NAMEN"]
[5561,"Celles","Ja","HOUYET","NAMEN"]
[5562,"Custinne","Ja","HOUYET","NAMEN"]
[5563,"Hour","Ja","HOUYET","NAMEN"]
[5564,"Wanlin","Ja","HOUYET","NAMEN"]
[5570,"Baronville","Ja","BEAURAING","NAMEN"]
[5570,"Beauraing","Neen","BEAURAING","NAMEN"]
[5570,"Dion","Ja","BEAURAING","NAMEN"]
[5570,"Felenne","Ja","BEAURAING","NAMEN"]
[5570,"Feschaux","Ja","BEAURAING","NAMEN"]
[5570,"Honnay","Ja","BEAURAING","NAMEN"]
[5570,"Javingue","Ja","BEAURAING","NAMEN"]
[5570,"Vonêche","Ja","BEAURAING","NAMEN"]
[5570,"Wancennes","Ja","BEAURAING","NAMEN"]
[5570,"Winenne","Ja","BEAURAING","NAMEN"]
[5571,"Wiesme","Ja","BEAURAING","NAMEN"]
[5572,"Focant","Ja","BEAURAING","NAMEN"]
[5573,"Martouzin-Neuville","Ja","BEAURAING","NAMEN"]
[5574,"Pondrôme","Ja","BEAURAING","NAMEN"]
[5575,"Bourseigne-Neuve","Ja","GEDINNE","NAMEN"]
[5575,"Bourseigne-Vieille","Ja","GEDINNE","NAMEN"]
[5575,"Gedinne","Neen","GEDINNE","NAMEN"]
[5575,"Houdremont","Ja","GEDINNE","NAMEN"]
[5575,"Louette-Saint-Denis","Ja","GEDINNE","NAMEN"]
[5575,"Louette-Saint-Pierre","Ja","GEDINNE","NAMEN"]
[5575,"Malvoisin","Ja","GEDINNE","NAMEN"]
[5575,"Patignies","Ja","GEDINNE","NAMEN"]
[5575,"Rienne","Ja","GEDINNE","NAMEN"]
[5575,"Sart-Custinne","Ja","GEDINNE","NAMEN"]
[5575,"Vencimont","Ja","GEDINNE","NAMEN"]
[5575,"Willerzie","Ja","GEDINNE","NAMEN"]
[5576,"Froidfontaine","Ja","BEAURAING","NAMEN"]
[5580,"Ave-et-Auffe","Ja","ROCHEFORT","NAMEN"]
[5580,"Buissonville","Ja","ROCHEFORT","NAMEN"]
[5580,"Eprave","Ja","ROCHEFORT","NAMEN"]
[5580,"Han-sur-Lesse","Ja","ROCHEFORT","NAMEN"]
[5580,"Jemelle","Ja","ROCHEFORT","NAMEN"]
[5580,"Lavaux-Sainte-Anne","Ja","ROCHEFORT","NAMEN"]
[5580,"Lessive","Ja","ROCHEFORT","NAMEN"]
[5580,"Mont-Gauthier","Ja","ROCHEFORT","NAMEN"]
[5580,"Rochefort","Neen","ROCHEFORT","NAMEN"]
[5580,"Villers-sur-Lesse","Ja","ROCHEFORT","NAMEN"]
[5580,"Wavreille","Ja","ROCHEFORT","NAMEN"]
[5589,"Jemelle",null,"Jemelle"]
[5590,"Achêne","Ja","CINEY","NAMEN"]
[5590,"Braibant","Ja","CINEY","NAMEN"]
[5590,"Chevetogne","Ja","CINEY","NAMEN"]
[5590,"Ciney","Neen","CINEY","NAMEN"]
[5590,"Conneux","Ja","CINEY","NAMEN"]
[5590,"Haversin","Ja","CINEY","NAMEN"]
[5590,"Leignon","Ja","CINEY","NAMEN"]
[5590,"Pessoux","Ja","CINEY","NAMEN"]
[5590,"Serinchamps","Ja","CINEY","NAMEN"]
[5590,"Sovet","Ja","CINEY","NAMEN"]
[5600,"Fagnolle","Ja","PHILIPPEVILLE","NAMEN"]
[5600,"Franchimont","Ja","PHILIPPEVILLE","NAMEN"]
[5600,"Jamagne","Ja","PHILIPPEVILLE","NAMEN"]
[5600,"Jamiolle","Ja","PHILIPPEVILLE","NAMEN"]
[5600,"Merlemont","Ja","PHILIPPEVILLE","NAMEN"]
[5600,"Neuville","Ja","PHILIPPEVILLE","NAMEN"]
[5600,"Omezée","Ja","PHILIPPEVILLE","NAMEN"]
[5600,"Philippeville","Neen","PHILIPPEVILLE","NAMEN"]
[5600,"Roly","Ja","PHILIPPEVILLE","NAMEN"]
[5600,"Romedenne","Ja","PHILIPPEVILLE","NAMEN"]
[5600,"Samart","Ja","PHILIPPEVILLE","NAMEN"]
[5600,"Sart-en-Fagne","Ja","PHILIPPEVILLE","NAMEN"]
[5600,"Sautour","Ja","PHILIPPEVILLE","NAMEN"]
[5600,"Surice","Ja","PHILIPPEVILLE","NAMEN"]
[5600,"Villers-en-Fagne","Ja","PHILIPPEVILLE","NAMEN"]
[5600,"Villers-le-Gambon","Ja","PHILIPPEVILLE","NAMEN"]
[5600,"Vodecée","Ja","PHILIPPEVILLE","NAMEN"]
[5620,"Corenne","Ja","FLORENNES","NAMEN"]
[5620,"Flavion","Ja","FLORENNES","NAMEN"]
[5620,"Florennes","Neen","FLORENNES","NAMEN"]
[5620,"Hemptinne-lez-Florennes","Ja","FLORENNES","NAMEN"]
[5620,"Morville","Ja","FLORENNES","NAMEN"]
[5620,"Rosée","Ja","FLORENNES","NAMEN"]
[5620,"Saint-Aubin","Ja","FLORENNES","NAMEN"]
[5621,"Hanzinelle","Ja","FLORENNES","NAMEN"]
[5621,"Hanzinne","Ja","FLORENNES","NAMEN"]
[5621,"Morialmé","Ja","FLORENNES","NAMEN"]
[5621,"Thy-le-Bauduin","Ja","FLORENNES","NAMEN"]
[5630,"Cerfontaine","Neen","CERFONTAINE","NAMEN"]
[5630,"Daussois","Ja","CERFONTAINE","NAMEN"]
[5630,"Senzeilles","Ja","CERFONTAINE","NAMEN"]
[5630,"Silenrieux","Ja","CERFONTAINE","NAMEN"]
[5630,"Soumoy","Ja","CERFONTAINE","NAMEN"]
[5630,"Villers-Deux-Eglises","Ja","CERFONTAINE","NAMEN"]
[5640,"Biesme","Ja","METTET","NAMEN"]
[5640,"Biesmerée","Ja","METTET","NAMEN"]
[5640,"Graux","Ja","METTET","NAMEN"]
[5640,"Mettet","Neen","METTET","NAMEN"]
[5640,"Oret","Ja","METTET","NAMEN"]
[5640,"Saint-Gérard","Ja","METTET","NAMEN"]
[5641,"Furnaux","Ja","METTET","NAMEN"]
[5644,"Ermeton-sur-Biert","Ja","METTET","NAMEN"]
[5646,"Stave","Ja","METTET","NAMEN"]
[5650,"Castillon","Ja","WALCOURT","NAMEN"]
[5650,"Chastrès","Ja","WALCOURT","NAMEN"]
[5650,"Clermont","Ja","WALCOURT","NAMEN"]
[5650,"Fontenelle","Ja","WALCOURT","NAMEN"]
[5650,"Fraire","Ja","WALCOURT","NAMEN"]
[5650,"Pry","Ja","WALCOURT","NAMEN"]
[5650,"Vogenée","Ja","WALCOURT","NAMEN"]
[5650,"Walcourt","Neen","WALCOURT","NAMEN"]
[5650,"Yves-Gomezée","Ja","WALCOURT","NAMEN"]
[5651,"Berzée","Ja","WALCOURT","NAMEN"]
[5651,"Gourdinne","Ja","WALCOURT","NAMEN"]
[5651,"Laneffe","Ja","WALCOURT","NAMEN"]
[5651,"Rognée","Ja","WALCOURT","NAMEN"]
[5651,"Somzée","Ja","WALCOURT","NAMEN"]
[5651,"Tarcienne","Ja","WALCOURT","NAMEN"]
[5651,"Thy-le-Château","Ja","WALCOURT","NAMEN"]
[5660,"Aublain","Ja","COUVIN","NAMEN"]
[5660,"Boussu-en-Fagne","Ja","COUVIN","NAMEN"]
[5660,"Brûly","Ja","COUVIN","NAMEN"]
[5660,"Brûly-de-Pesche","Ja","COUVIN","NAMEN"]
[5660,"Couvin","Neen","COUVIN","NAMEN"]
[5660,"Cul-des-Sarts","Ja","COUVIN","NAMEN"]
[5660,"Dailly","Ja","COUVIN","NAMEN"]
[5660,"Frasnes","Ja","COUVIN","NAMEN"]
[5660,"Gonrieux","Ja","COUVIN","NAMEN"]
[5660,"Mariembourg","Ja","COUVIN","NAMEN"]
[5660,"Pesche","Ja","COUVIN","NAMEN"]
[5660,"Pétigny","Ja","COUVIN","NAMEN"]
[5660,"Petite-Chapelle","Ja","COUVIN","NAMEN"]
[5660,"Presgaux","Ja","COUVIN","NAMEN"]
[5670,"Dourbes","Ja","VIROINVAL","NAMEN"]
[5670,"Le Mesnil","Ja","VIROINVAL","NAMEN"]
[5670,"Mazée","Ja","VIROINVAL","NAMEN"]
[5670,"Nismes","Ja","VIROINVAL","NAMEN"]
[5670,"Oignies-en-Thiérache","Ja","VIROINVAL","NAMEN"]
[5670,"Olloy-Sur-Viroin","Ja","VIROINVAL","NAMEN"]
[5670,"Treignes","Ja","VIROINVAL","NAMEN"]
[5670,"Vierves-sur-Viroin","Ja","VIROINVAL","NAMEN"]
[5680,"Doische","Neen","DOISCHE","NAMEN"]
[5680,"Gimnée","Ja","DOISCHE","NAMEN"]
[5680,"Gochenée","Ja","DOISCHE","NAMEN"]
[5680,"Matagne-la-Grande","Ja","DOISCHE","NAMEN"]
[5680,"Matagne-la-Petite","Ja","DOISCHE","NAMEN"]
[5680,"Niverlée","Ja","DOISCHE","NAMEN"]
[5680,"Romerée","Ja","DOISCHE","NAMEN"]
[5680,"Soulme","Ja","DOISCHE","NAMEN"]
[5680,"Vaucelles","Ja","DOISCHE","NAMEN"]
[5680,"Vodelée","Ja","DOISCHE","NAMEN"]
[6000,"Charleroi","Neen","CHARLEROI","HENEGOUWEN"]
[6001,"Marcinelle","Ja","CHARLEROI","HENEGOUWEN"]
[6010,"Couillet","Ja","CHARLEROI","HENEGOUWEN"]
[6020,"Dampremy","Ja","CHARLEROI","HENEGOUWEN"]
[6030,"Goutroux","Ja","CHARLEROI","HENEGOUWEN"]
[6030,"Marchienne-au-Pont","Ja","CHARLEROI","HENEGOUWEN"]
[6031,"Monceau-sur-Sambre","Ja","CHARLEROI","HENEGOUWEN"]
[6032,"Mont-sur-Marchienne","Ja","CHARLEROI","HENEGOUWEN"]
[6040,"Jumet","Ja","CHARLEROI","HENEGOUWEN"]
[6041,"Gosselies","Ja","CHARLEROI","HENEGOUWEN"]
[6042,"Lodelinsart","Ja","CHARLEROI","HENEGOUWEN"]
[6043,"Ransart","Ja","CHARLEROI","HENEGOUWEN"]
[6044,"Roux","Ja","CHARLEROI","HENEGOUWEN"]
[6060,"Gilly","Ja","CHARLEROI","HENEGOUWEN"]
[6061,"Montignies-sur-Sambre","Ja","CHARLEROI","HENEGOUWEN"]
[6075,"CSM Charleroi X",null,"CSM Charleroi X"]
[6099,"Charleroi X",null,"Charleroi X"]
[6110,"Montigny-le-Tilleul","Neen","MONTIGNY-LE-TILLEUL","HENEGOUWEN"]
[6111,"Landelies","Ja","MONTIGNY-LE-TILLEUL","HENEGOUWEN"]
[6120,"Cour-sur-Heure","Ja","HAM-SUR-HEURE","HENEGOUWEN"]
[6120,"Ham-sur-Heure","Neen","HAM-SUR-HEURE","HENEGOUWEN"]
[6120,"Jamioulx","Ja","HAM-SUR-HEURE","HENEGOUWEN"]
[6120,"Marbaix","Ja","HAM-SUR-HEURE","HENEGOUWEN"]
[6120,"Nalinnes","Ja","HAM-SUR-HEURE","HENEGOUWEN"]
[6140,"Fontaine-l'Évêque","Neen","FONTAINE-L'EVÊQUE","HENEGOUWEN"]
[6141,"Forchies-La-Marche","Ja","FONTAINE-L'EVÊQUE","HENEGOUWEN"]
[6142,"Leernes","Ja","FONTAINE-L'EVÊQUE","HENEGOUWEN"]
[6150,"Anderlues","Neen","ANDERLUES","HENEGOUWEN"]
[6180,"Courcelles","Neen","COURCELLES","HENEGOUWEN"]
[6181,"Gouy-lez-Piéton","Ja","COURCELLES","HENEGOUWEN"]
[6182,"Souvret","Ja","COURCELLES","HENEGOUWEN"]
[6183,"Trazegnies","Ja","COURCELLES","HENEGOUWEN"]
[6200,"Bouffioulx","Ja","CHÂTELET","HENEGOUWEN"]
[6200,"Châtelet","Neen","CHÂTELET","HENEGOUWEN"]
[6200,"Châtelineau","Ja","CHÂTELET","HENEGOUWEN"]
[6210,"Frasnes-lez-Gosselies","Ja","LES BONS VILLERS","HENEGOUWEN"]
[6210,"Rèves","Ja","LES BONS VILLERS","HENEGOUWEN"]
[6210,"Villers-Perwin","Ja","LES BONS VILLERS","HENEGOUWEN"]
[6210,"Wayaux","Ja","LES BONS VILLERS","HENEGOUWEN"]
[6211,"Mellet","Ja","LES BONS VILLERS","HENEGOUWEN"]
[6220,"Fleurus","Neen","FLEURUS","HENEGOUWEN"]
[6220,"Heppignies","Ja","FLEURUS","HENEGOUWEN"]
[6220,"Lambusart","Ja","FLEURUS","HENEGOUWEN"]
[6220,"Wangenies","Ja","FLEURUS","HENEGOUWEN"]
[6221,"Saint-Amand","Ja","FLEURUS","HENEGOUWEN"]
[6222,"Brye","Ja","FLEURUS","HENEGOUWEN"]
[6223,"Wagnelée","Ja","FLEURUS","HENEGOUWEN"]
[6224,"Wanfercée-Baulet","Ja","FLEURUS","HENEGOUWEN"]
[6230,"Buzet","Ja","PONT-À-CELLES","HENEGOUWEN"]
[6230,"Obaix","Ja","PONT-À-CELLES","HENEGOUWEN"]
[6230,"Pont-à-Celles","Neen","PONT-À-CELLES","HENEGOUWEN"]
[6230,"Thiméon","Ja","PONT-À-CELLES","HENEGOUWEN"]
[6230,"Viesville","Ja","PONT-À-CELLES","HENEGOUWEN"]
[6238,"Liberchies","Ja","PONT-À-CELLES","HENEGOUWEN"]
[6238,"Luttre","Ja","PONT-À-CELLES","HENEGOUWEN"]
[6240,"Farciennes","Neen","FARCIENNES","HENEGOUWEN"]
[6240,"Pironchamps","Ja","FARCIENNES","HENEGOUWEN"]
[6250,"Aiseau","Ja","AISEAU-PRESLES","HENEGOUWEN"]
[6250,"Pont-de-Loup","Ja","AISEAU-PRESLES","HENEGOUWEN"]
[6250,"Presles","Ja","AISEAU-PRESLES","HENEGOUWEN"]
[6250,"Roselies","Ja","AISEAU-PRESLES","HENEGOUWEN"]
[6280,"Acoz","Ja","GERPINNES","HENEGOUWEN"]
[6280,"Gerpinnes","Neen","GERPINNES","HENEGOUWEN"]
[6280,"Gougnies","Ja","GERPINNES","HENEGOUWEN"]
[6280,"Joncret","Ja","GERPINNES","HENEGOUWEN"]
[6280,"Loverval","Ja","GERPINNES","HENEGOUWEN"]
[6280,"Villers-Poterie","Ja","GERPINNES","HENEGOUWEN"]
[6440,"Boussu-lez-Walcourt","Ja","FROIDCHAPELLE","HENEGOUWEN"]
[6440,"Fourbechies","Ja","FROIDCHAPELLE","HENEGOUWEN"]
[6440,"Froidchapelle","Neen","FROIDCHAPELLE","HENEGOUWEN"]
[6440,"Vergnies","Ja","FROIDCHAPELLE","HENEGOUWEN"]
[6441,"Erpion","Ja","FROIDCHAPELLE","HENEGOUWEN"]
[6460,"Bailièvre","Ja","CHIMAY","HENEGOUWEN"]
[6460,"Chimay","Neen","CHIMAY","HENEGOUWEN"]
[6460,"Robechies","Ja","CHIMAY","HENEGOUWEN"]
[6460,"Saint-Remy","Ja","CHIMAY","HENEGOUWEN"]
[6460,"Salles","Ja","CHIMAY","HENEGOUWEN"]
[6460,"Villers-la-Tour","Ja","CHIMAY","HENEGOUWEN"]
[6461,"Virelles","Ja","CHIMAY","HENEGOUWEN"]
[6462,"Vaulx-lez-Chimay","Ja","CHIMAY","HENEGOUWEN"]
[6463,"Lompret","Ja","CHIMAY","HENEGOUWEN"]
[6464,"Baileux","Ja","CHIMAY","HENEGOUWEN"]
[6464,"Bourlers","Ja","CHIMAY","HENEGOUWEN"]
[6464,"Forges","Ja","CHIMAY","HENEGOUWEN"]
[6464,"l'Escaillère","Ja","CHIMAY","HENEGOUWEN"]
[6464,"Rièzes","Ja","CHIMAY","HENEGOUWEN"]
[6470,"Grandrieu","Ja","SIVRY-RANCE","HENEGOUWEN"]
[6470,"Montbliart","Ja","SIVRY-RANCE","HENEGOUWEN"]
[6470,"Rance","Ja","SIVRY-RANCE","HENEGOUWEN"]
[6470,"Sautin","Ja","SIVRY-RANCE","HENEGOUWEN"]
[6470,"Sivry","Ja","SIVRY-RANCE","HENEGOUWEN"]
[6500,"Barbençon","Ja","BEAUMONT","HENEGOUWEN"]
[6500,"Beaumont","Neen","BEAUMONT","HENEGOUWEN"]
[6500,"Leugnies","Ja","BEAUMONT","HENEGOUWEN"]
[6500,"Leval-Chaudeville","Ja","BEAUMONT","HENEGOUWEN"]
[6500,"Renlies","Ja","BEAUMONT","HENEGOUWEN"]
[6500,"Solre-Saint-Géry","Ja","BEAUMONT","HENEGOUWEN"]
[6500,"Thirimont","Ja","BEAUMONT","HENEGOUWEN"]
[6511,"Strée","Ja","BEAUMONT","HENEGOUWEN"]
[6530,"Leers-et-Fosteau","Ja","THUIN","HENEGOUWEN"]
[6530,"Thuin","Neen","THUIN","HENEGOUWEN"]
[6531,"Biesme-sous-Thuin","Ja","THUIN","HENEGOUWEN"]
[6532,"Ragnies","Ja","THUIN","HENEGOUWEN"]
[6533,"Biercée","Ja","THUIN","HENEGOUWEN"]
[6534,"Gozée","Ja","THUIN","HENEGOUWEN"]
[6536,"Donstiennes","Ja","THUIN","HENEGOUWEN"]
[6536,"Thuillies","Ja","THUIN","HENEGOUWEN"]
[6540,"Lobbes","Neen","LOBBES","HENEGOUWEN"]
[6540,"Mont-Sainte-Geneviève","Ja","LOBBES","HENEGOUWEN"]
[6542,"Sars-la-Buissière","Ja","LOBBES","HENEGOUWEN"]
[6543,"Bienne-lez-Happart","Ja","LOBBES","HENEGOUWEN"]
[6560,"Bersillies-l'Abbaye","Ja","ERQUELINNES","HENEGOUWEN"]
[6560,"Erquelinnes","Neen","ERQUELINNES","HENEGOUWEN"]
[6560,"Grand-Reng","Ja","ERQUELINNES","HENEGOUWEN"]
[6560,"Hantes-Wihéries","Ja","ERQUELINNES","HENEGOUWEN"]
[6560,"Montignies-Saint-Christophe","Ja","ERQUELINNES","HENEGOUWEN"]
[6560,"Solre-sur-Sambre","Ja","ERQUELINNES","HENEGOUWEN"]
[6567,"Fontaine-Valmont","Ja","MERBES-LE-CHÂTEAU","HENEGOUWEN"]
[6567,"Labuissière","Ja","MERBES-LE-CHÂTEAU","HENEGOUWEN"]
[6567,"Merbes-le-Château","Neen","MERBES-LE-CHÂTEAU","HENEGOUWEN"]
[6567,"Merbes-Sainte-Marie","Ja","MERBES-LE-CHÂTEAU","HENEGOUWEN"]
[6590,"Momignies","Neen","MOMIGNIES","HENEGOUWEN"]
[6591,"Macon","Ja","MOMIGNIES","HENEGOUWEN"]
[6592,"Monceau-Imbrechies","Ja","MOMIGNIES","HENEGOUWEN"]
[6593,"Macquenoise","Ja","MOMIGNIES","HENEGOUWEN"]
[6594,"Beauwelz","Ja","MOMIGNIES","HENEGOUWEN"]
[6596,"Forge-Philippe","Ja","MOMIGNIES","HENEGOUWEN"]
[6596,"Seloignes","Ja","MOMIGNIES","HENEGOUWEN"]
[6600,"Bastogne","Neen","BASTOGNE","LUXEMBURG"]
[6600,"Longvilly","Ja","BASTOGNE","LUXEMBURG"]
[6600,"Noville","Ja","BASTOGNE","LUXEMBURG"]
[6600,"Villers-la-Bonne-Eau","Ja","BASTOGNE","LUXEMBURG"]
[6600,"Wardin","Ja","BASTOGNE","LUXEMBURG"]
[6630,"Martelange","Neen","MARTELANGE","LUXEMBURG"]
[6637,"Fauvillers","Neen","FAUVILLERS","LUXEMBURG"]
[6637,"Hollange","Ja","FAUVILLERS","LUXEMBURG"]
[6637,"Tintange","Ja","FAUVILLERS","LUXEMBURG"]
[6640,"Hompré","Ja","VAUX-SUR-SÛRE","LUXEMBURG"]
[6640,"Morhet","Ja","VAUX-SUR-SÛRE","LUXEMBURG"]
[6640,"Nives","Ja","VAUX-SUR-SÛRE","LUXEMBURG"]
[6640,"Sibret","Ja","VAUX-SUR-SÛRE","LUXEMBURG"]
[6640,"Vaux-lez-Rosières","Ja","VAUX-SUR-SÛRE","LUXEMBURG"]
[6640,"Vaux-sur-Sûre","Neen","VAUX-SUR-SÛRE","LUXEMBURG"]
[6642,"Juseret","Ja","VAUX-SUR-SÛRE","LUXEMBURG"]
[6660,"Houffalize","Neen","HOUFFALIZE","LUXEMBURG"]
[6660,"Nadrin","Ja","HOUFFALIZE","LUXEMBURG"]
[6661,"Mont","Ja","HOUFFALIZE","LUXEMBURG"]
[6661,"Tailles","Ja","HOUFFALIZE","LUXEMBURG"]
[6662,"Tavigny","Ja","HOUFFALIZE","LUXEMBURG"]
[6663,"Mabompré","Ja","HOUFFALIZE","LUXEMBURG"]
[6666,"Wibrin","Ja","HOUFFALIZE","LUXEMBURG"]
[6670,"Gouvy","Neen","GOUVY","LUXEMBURG"]
[6670,"Limerlé","Ja","GOUVY","LUXEMBURG"]
[6671,"Bovigny","Ja","GOUVY","LUXEMBURG"]
[6672,"Beho","Ja","GOUVY","LUXEMBURG"]
[6673,"Cherain","Ja","GOUVY","LUXEMBURG"]
[6674,"Montleban","Ja","GOUVY","LUXEMBURG"]
[6680,"Amberloup","Ja","SAINTE-ODE","LUXEMBURG"]
[6680,"Tillet","Ja","SAINTE-ODE","LUXEMBURG"]
[6681,"Lavacherie","Ja","SAINTE-ODE","LUXEMBURG"]
[6686,"Flamierge","Ja","BERTOGNE","LUXEMBURG"]
[6687,"Bertogne","Neen","BERTOGNE","LUXEMBURG"]
[6688,"Longchamps","Ja","BERTOGNE","LUXEMBURG"]
[6690,"Bihain","Ja","VIELSALM","LUXEMBURG"]
[6690,"Vielsalm","Neen","VIELSALM","LUXEMBURG"]
[6692,"Petit-Thier","Ja","VIELSALM","LUXEMBURG"]
[6698,"Grand-Halleux","Ja","VIELSALM","LUXEMBURG"]
[6700,"Arlon","Neen","ARLON","LUXEMBURG"]
[6700,"Bonnert","Ja","ARLON","LUXEMBURG"]
[6700,"Heinsch","Ja","ARLON","LUXEMBURG"]
[6700,"Toernich","Ja","ARLON","LUXEMBURG"]
[6704,"Guirsch","Ja","ARLON","LUXEMBURG"]
[6706,"Autelbas","Ja","ARLON","LUXEMBURG"]
[6717,"Attert","Neen","ATTERT","LUXEMBURG"]
[6717,"Nobressart","Ja","ATTERT","LUXEMBURG"]
[6717,"Nothomb","Ja","ATTERT","LUXEMBURG"]
[6717,"Thiaumont","Ja","ATTERT","LUXEMBURG"]
[6717,"Tontelange","Ja","ATTERT","LUXEMBURG"]
[6720,"Habay-la-Neuve","Ja","HABAY","LUXEMBURG"]
[6720,"Hachy","Ja","HABAY","LUXEMBURG"]
[6721,"Anlier","Ja","HABAY","LUXEMBURG"]
[6723,"Habay-la-Vieille","Ja","HABAY","LUXEMBURG"]
[6724,"Houdemont","Ja","HABAY","LUXEMBURG"]
[6724,"Rulles","Ja","HABAY","LUXEMBURG"]
[6730,"Bellefontaine","Ja","TINTIGNY","LUXEMBURG"]
[6730,"Rossignol","Ja","TINTIGNY","LUXEMBURG"]
[6730,"Saint-Vincent","Ja","TINTIGNY","LUXEMBURG"]
[6730,"Tintigny","Neen","TINTIGNY","LUXEMBURG"]
[6740,"Etalle","Neen","ETALLE","LUXEMBURG"]
[6740,"Sainte-Marie-sur-Semois","Ja","ETALLE","LUXEMBURG"]
[6740,"Villers-sur-Semois","Ja","ETALLE","LUXEMBURG"]
[6741,"Vance","Ja","ETALLE","LUXEMBURG"]
[6742,"Chantemelle","Ja","ETALLE","LUXEMBURG"]
[6743,"Buzenol","Ja","ETALLE","LUXEMBURG"]
[6747,"Châtillon","Ja","SAINT-LÉGER","LUXEMBURG"]
[6747,"Meix-le-Tige","Ja","SAINT-LÉGER","LUXEMBURG"]
[6747,"Saint-Léger","Neen","SAINT-LÉGER","LUXEMBURG"]
[6750,"Musson","Neen","MUSSON","LUXEMBURG"]
[6750,"Mussy-la-Ville","Ja","MUSSON","LUXEMBURG"]
[6750,"Signeulx","Ja","MUSSON","LUXEMBURG"]
[6760,"Bleid","Ja","VIRTON","LUXEMBURG"]
[6760,"Ethe","Ja","VIRTON","LUXEMBURG"]
[6760,"Ruette","Ja","VIRTON","LUXEMBURG"]
[6760,"Virton","Neen","VIRTON","LUXEMBURG"]
[6761,"Latour","Ja","VIRTON","LUXEMBURG"]
[6762,"Saint-Mard","Ja","VIRTON","LUXEMBURG"]
[6767,"Dampicourt","Ja","ROUVROY","LUXEMBURG"]
[6767,"Harnoncourt","Ja","ROUVROY","LUXEMBURG"]
[6767,"Lamorteau","Ja","ROUVROY","LUXEMBURG"]
[6767,"Torgny","Ja","ROUVROY","LUXEMBURG"]
[6769,"Gérouville","Ja","MEIX-DEVANT-VIRTON","LUXEMBURG"]
[6769,"Meix-devant-Virton","Neen","MEIX-DEVANT-VIRTON","LUXEMBURG"]
[6769,"Robelmont","Ja","MEIX-DEVANT-VIRTON","LUXEMBURG"]
[6769,"Sommethonne","Ja","MEIX-DEVANT-VIRTON","LUXEMBURG"]
[6769,"Villers-la-Loue","Ja","MEIX-DEVANT-VIRTON","LUXEMBURG"]
[6780,"Hondelange","Ja","MESSANCY","LUXEMBURG"]
[6780,"Messancy","Neen","MESSANCY","LUXEMBURG"]
[6780,"Wolkrange","Ja","MESSANCY","LUXEMBURG"]
[6781,"Sélange","Ja","MESSANCY","LUXEMBURG"]
[6782,"Habergy","Ja","MESSANCY","LUXEMBURG"]
[6790,"Aubange","Neen","AUBANGE","LUXEMBURG"]
[6791,"Athus","Ja","AUBANGE","LUXEMBURG"]
[6792,"Halanzy","Ja","AUBANGE","LUXEMBURG"]
[6792,"Rachecourt","Ja","AUBANGE","LUXEMBURG"]
[6800,"Bras","Ja","LIBRAMONT-CHEVIGNY","LUXEMBURG"]
[6800,"Freux","Ja","LIBRAMONT-CHEVIGNY","LUXEMBURG"]
[6800,"Libramont-Chevigny","Neen","LIBRAMONT-CHEVIGNY","LUXEMBURG"]
[6800,"Moircy","Ja","LIBRAMONT-CHEVIGNY","LUXEMBURG"]
[6800,"Recogne","Ja","LIBRAMONT-CHEVIGNY","LUXEMBURG"]
[6800,"Remagne","Ja","LIBRAMONT-CHEVIGNY","LUXEMBURG"]
[6800,"Saint-Pierre","Ja","LIBRAMONT-CHEVIGNY","LUXEMBURG"]
[6800,"Sainte-Marie-Chevigny","Ja","LIBRAMONT-CHEVIGNY","LUXEMBURG"]
[6810,"Chiny","Neen","CHINY","LUXEMBURG"]
[6810,"Izel","Ja","CHINY","LUXEMBURG"]
[6810,"Jamoigne","Ja","CHINY","LUXEMBURG"]
[6811,"Les Bulles","Ja","CHINY","LUXEMBURG"]
[6812,"Suxy","Ja","CHINY","LUXEMBURG"]
[6813,"Termes","Ja","CHINY","LUXEMBURG"]
[6820,"Florenville","Neen","FLORENVILLE","LUXEMBURG"]
[6820,"Fontenoille","Ja","FLORENVILLE","LUXEMBURG"]
[6820,"Muno","Ja","FLORENVILLE","LUXEMBURG"]
[6820,"Sainte-Cécile","Ja","FLORENVILLE","LUXEMBURG"]
[6821,"Lacuisine","Ja","FLORENVILLE","LUXEMBURG"]
[6823,"Villers-devant-Orval","Ja","FLORENVILLE","LUXEMBURG"]
[6824,"Chassepierre","Ja","FLORENVILLE","LUXEMBURG"]
[6830,"Bouillon","Neen","BOUILLON","LUXEMBURG"]
[6830,"Les Hayons","Ja","BOUILLON","LUXEMBURG"]
[6830,"Poupehan","Ja","BOUILLON","LUXEMBURG"]
[6830,"Rochehaut","Ja","BOUILLON","LUXEMBURG"]
[6831,"Noirfontaine","Ja","BOUILLON","LUXEMBURG"]
[6832,"Sensenruth","Ja","BOUILLON","LUXEMBURG"]
[6833,"Ucimont","Ja","BOUILLON","LUXEMBURG"]
[6833,"Vivy","Ja","BOUILLON","LUXEMBURG"]
[6834,"Bellevaux","Ja","BOUILLON","LUXEMBURG"]
[6836,"Dohan","Ja","BOUILLON","LUXEMBURG"]
[6838,"Corbion","Ja","BOUILLON","LUXEMBURG"]
[6840,"Grandvoir","Ja","NEUFCHÂTEAU","LUXEMBURG"]
[6840,"Grapfontaine","Ja","NEUFCHÂTEAU","LUXEMBURG"]
[6840,"Hamipré","Ja","NEUFCHÂTEAU","LUXEMBURG"]
[6840,"Longlier","Ja","NEUFCHÂTEAU","LUXEMBURG"]
[6840,"Neufchâteau","Neen","NEUFCHÂTEAU","LUXEMBURG"]
[6840,"Tournay","Ja","NEUFCHÂTEAU","LUXEMBURG"]
[6850,"Carlsbourg","Ja","PALISEUL","LUXEMBURG"]
[6850,"Offagne","Ja","PALISEUL","LUXEMBURG"]
[6850,"Paliseul","Neen","PALISEUL","LUXEMBURG"]
[6851,"Nollevaux","Ja","PALISEUL","LUXEMBURG"]
[6852,"Maissin","Ja","PALISEUL","LUXEMBURG"]
[6852,"Opont","Ja","PALISEUL","LUXEMBURG"]
[6853,"Framont","Ja","PALISEUL","LUXEMBURG"]
[6856,"Fays-les-Veneurs","Ja","PALISEUL","LUXEMBURG"]
[6860,"Assenois","Ja","LÉGLISE","LUXEMBURG"]
[6860,"Ebly","Ja","LÉGLISE","LUXEMBURG"]
[6860,"Léglise","Neen","LÉGLISE","LUXEMBURG"]
[6860,"Mellier","Ja","LÉGLISE","LUXEMBURG"]
[6860,"Witry","Ja","LÉGLISE","LUXEMBURG"]
[6870,"Arville","Ja","SAINT-HUBERT","LUXEMBURG"]
[6870,"Awenne","Ja","SAINT-HUBERT","LUXEMBURG"]
[6870,"Hatrival","Ja","SAINT-HUBERT","LUXEMBURG"]
[6870,"Mirwart","Ja","SAINT-HUBERT","LUXEMBURG"]
[6870,"Saint-Hubert","Neen","SAINT-HUBERT","LUXEMBURG"]
[6870,"Vesqueville","Ja","SAINT-HUBERT","LUXEMBURG"]
[6880,"Auby-sur-Semois","Ja","BERTRIX","LUXEMBURG"]
[6880,"Bertrix","Neen","BERTRIX","LUXEMBURG"]
[6880,"Cugnon","Ja","BERTRIX","LUXEMBURG"]
[6880,"Jehonville","Ja","BERTRIX","LUXEMBURG"]
[6880,"Orgeo","Ja","BERTRIX","LUXEMBURG"]
[6887,"Herbeumont","Neen","HERBEUMONT","LUXEMBURG"]
[6887,"Saint-Médard","Ja","HERBEUMONT","LUXEMBURG"]
[6887,"Straimont","Ja","HERBEUMONT","LUXEMBURG"]
[6890,"Anloy","Ja","LIBIN","LUXEMBURG"]
[6890,"Libin","Neen","LIBIN","LUXEMBURG"]
[6890,"Ochamps","Ja","LIBIN","LUXEMBURG"]
[6890,"Redu","Ja","LIBIN","LUXEMBURG"]
[6890,"Smuid","Ja","LIBIN","LUXEMBURG"]
[6890,"Transinne","Ja","LIBIN","LUXEMBURG"]
[6890,"Villance","Ja","LIBIN","LUXEMBURG"]
[6900,"Aye","Ja","MARCHE-EN-FAMENNE","LUXEMBURG"]
[6900,"Hargimont","Ja","MARCHE-EN-FAMENNE","LUXEMBURG"]
[6900,"Humain","Ja","MARCHE-EN-FAMENNE","LUXEMBURG"]
[6900,"Marche-en-Famenne","Neen","MARCHE-EN-FAMENNE","LUXEMBURG"]
[6900,"On","Ja","MARCHE-EN-FAMENNE","LUXEMBURG"]
[6900,"Roy","Ja","MARCHE-EN-FAMENNE","LUXEMBURG"]
[6900,"Waha","Ja","MARCHE-EN-FAMENNE","LUXEMBURG"]
[6920,"Sohier","Ja","WELLIN","LUXEMBURG"]
[6920,"Wellin","Neen","WELLIN","LUXEMBURG"]
[6921,"Chanly","Ja","WELLIN","LUXEMBURG"]
[6922,"Halma","Ja","WELLIN","LUXEMBURG"]
[6924,"Lomprez","Ja","WELLIN","LUXEMBURG"]
[6927,"Bure","Ja","TELLIN","LUXEMBURG"]
[6927,"Grupont","Ja","TELLIN","LUXEMBURG"]
[6927,"Resteigne","Ja","TELLIN","LUXEMBURG"]
[6927,"Tellin","Neen","TELLIN","LUXEMBURG"]
[6929,"Daverdisse","Neen","DAVERDISSE","LUXEMBURG"]
[6929,"Gembes","Ja","DAVERDISSE","LUXEMBURG"]
[6929,"Haut-Fays","Ja","DAVERDISSE","LUXEMBURG"]
[6929,"Porcheresse","Ja","DAVERDISSE","LUXEMBURG"]
[6940,"Barvaux-sur-Ourthe","Ja","DURBUY","LUXEMBURG"]
[6940,"Durbuy","Neen","DURBUY","LUXEMBURG"]
[6940,"Grandhan","Ja","DURBUY","LUXEMBURG"]
[6940,"Septon","Ja","DURBUY","LUXEMBURG"]
[6940,"Wéris","Ja","DURBUY","LUXEMBURG"]
[6941,"Bende","Ja","DURBUY","LUXEMBURG"]
[6941,"Bomal-sur-Ourthe","Ja","DURBUY","LUXEMBURG"]
[6941,"Borlon","Ja","DURBUY","LUXEMBURG"]
[6941,"Heyd","Ja","DURBUY","LUXEMBURG"]
[6941,"Izier","Ja","DURBUY","LUXEMBURG"]
[6941,"Tohogne","Ja","DURBUY","LUXEMBURG"]
[6941,"Villers-Sainte-Gertrude","Ja","DURBUY","LUXEMBURG"]
[6950,"Harsin","Ja","NASSOGNE","LUXEMBURG"]
[6950,"Nassogne","Neen","NASSOGNE","LUXEMBURG"]
[6951,"Bande","Ja","NASSOGNE","LUXEMBURG"]
[6952,"Grune","Ja","NASSOGNE","LUXEMBURG"]
[6953,"Ambly","Ja","NASSOGNE","LUXEMBURG"]
[6953,"Forrières","Ja","NASSOGNE","LUXEMBURG"]
[6953,"Lesterny","Ja","NASSOGNE","LUXEMBURG"]
[6953,"Masbourg","Ja","NASSOGNE","LUXEMBURG"]
[6960,"Dochamps","Ja","MANHAY","LUXEMBURG"]
[6960,"Grandménil","Ja","MANHAY","LUXEMBURG"]
[6960,"Harre","Ja","MANHAY","LUXEMBURG"]
[6960,"Malempré","Ja","MANHAY","LUXEMBURG"]
[6960,"Odeigne","Ja","MANHAY","LUXEMBURG"]
[6960,"Vaux-Chavanne","Ja","MANHAY","LUXEMBURG"]
[6970,"Tenneville","Neen","TENNEVILLE","LUXEMBURG"]
[6971,"Champlon","Ja","TENNEVILLE","LUXEMBURG"]
[6972,"Erneuville","Ja","TENNEVILLE","LUXEMBURG"]
[6980,"Beausaint","Ja","LA ROCHE-EN-ARDENNE","LUXEMBURG"]
[6980,"La Roche-en-Ardenne","Neen","LA ROCHE-EN-ARDENNE","LUXEMBURG"]
[6982,"Samrée","Ja","LA ROCHE-EN-ARDENNE","LUXEMBURG"]
[6983,"Ortho","Ja","LA ROCHE-EN-ARDENNE","LUXEMBURG"]
[6984,"Hives","Ja","LA ROCHE-EN-ARDENNE","LUXEMBURG"]
[6986,"Halleux","Ja","LA ROCHE-EN-ARDENNE","LUXEMBURG"]
[6987,"Beffe","Ja","RENDEUX","LUXEMBURG"]
[6987,"Hodister","Ja","RENDEUX","LUXEMBURG"]
[6987,"Marcourt","Ja","RENDEUX","LUXEMBURG"]
[6987,"Rendeux","Neen","RENDEUX","LUXEMBURG"]
[6990,"Fronville","Ja","HOTTON","LUXEMBURG"]
[6990,"Hampteau","Ja","HOTTON","LUXEMBURG"]
[6990,"Hotton","Neen","HOTTON","LUXEMBURG"]
[6990,"Marenne","Ja","HOTTON","LUXEMBURG"]
[6997,"Amonines","Ja","EREZÉE","LUXEMBURG"]
[6997,"Erezée","Neen","EREZÉE","LUXEMBURG"]
[6997,"Mormont","Ja","EREZÉE","LUXEMBURG"]
[6997,"Soy","Ja","EREZÉE","LUXEMBURG"]
[7000,"Mons","Neen","MONS","HENEGOUWEN"]
[7010,"SHAPE",null,"SHAPE"]
[7011,"Ghlin","Ja","MONS","HENEGOUWEN"]
[7012,"Flénu","Ja","MONS","HENEGOUWEN"]
[7012,"Jemappes","Ja","MONS","HENEGOUWEN"]
[7020,"Maisières","Ja","MONS","HENEGOUWEN"]
[7020,"Nimy","Ja","MONS","HENEGOUWEN"]
[7021,"Havré","Ja","MONS","HENEGOUWEN"]
[7022,"Harmignies","Ja","MONS","HENEGOUWEN"]
[7022,"Harveng","Ja","MONS","HENEGOUWEN"]
[7022,"Hyon","Ja","MONS","HENEGOUWEN"]
[7022,"Mesvin","Ja","MONS","HENEGOUWEN"]
[7022,"Nouvelles","Ja","MONS","HENEGOUWEN"]
[7024,"Ciply","Ja","MONS","HENEGOUWEN"]
[7030,"Saint-Symphorien","Ja","MONS","HENEGOUWEN"]
[7031,"Villers-Saint-Ghislain","Ja","MONS","HENEGOUWEN"]
[7032,"Spiennes","Ja","MONS","HENEGOUWEN"]
[7033,"Cuesmes","Ja","MONS","HENEGOUWEN"]
[7034,"Obourg","Ja","MONS","HENEGOUWEN"]
[7034,"Saint-Denis","Ja","MONS","HENEGOUWEN"]
[7040,"Asquillies","Ja","QUÉVY","HENEGOUWEN"]
[7040,"Aulnois","Ja","QUÉVY","HENEGOUWEN"]
[7040,"Blaregnies","Ja","QUÉVY","HENEGOUWEN"]
[7040,"Bougnies","Ja","QUÉVY","HENEGOUWEN"]
[7040,"Genly","Ja","QUÉVY","HENEGOUWEN"]
[7040,"Goegnies-Chaussée","Ja","QUÉVY","HENEGOUWEN"]
[7040,"Quévy-le-Grand","Ja","QUÉVY","HENEGOUWEN"]
[7040,"Quévy-le-Petit","Ja","QUÉVY","HENEGOUWEN"]
[7041,"Givry","Ja","QUÉVY","HENEGOUWEN"]
[7041,"Havay","Ja","QUÉVY","HENEGOUWEN"]
[7050,"Erbaut","Ja","JURBISE","HENEGOUWEN"]
[7050,"Erbisoeul","Ja","JURBISE","HENEGOUWEN"]
[7050,"Herchies","Ja","JURBISE","HENEGOUWEN"]
[7050,"Jurbise","Neen","JURBISE","HENEGOUWEN"]
[7050,"Masnuy-Saint-Jean","Ja","JURBISE","HENEGOUWEN"]
[7050,"Masnuy-Saint-Pierre","Ja","JURBISE","HENEGOUWEN"]
[7060,"Horrues","Ja","SOIGNIES","HENEGOUWEN"]
[7060,"Soignies","Neen","SOIGNIES","HENEGOUWEN"]
[7061,"Casteau","Ja","SOIGNIES","HENEGOUWEN"]
[7061,"Thieusies","Ja","SOIGNIES","HENEGOUWEN"]
[7062,"Naast","Ja","SOIGNIES","HENEGOUWEN"]
[7063,"Chaussée-Notre-Dame-Louvignies","Ja","SOIGNIES","HENEGOUWEN"]
[7063,"Neufvilles","Ja","SOIGNIES","HENEGOUWEN"]
[7070,"Gottignies","Ja","LE ROEULX","HENEGOUWEN"]
[7070,"Le Roeulx","Neen","LE ROEULX","HENEGOUWEN"]
[7070,"Mignault","Ja","LE ROEULX","HENEGOUWEN"]
[7070,"Thieu","Ja","LE ROEULX","HENEGOUWEN"]
[7070,"Ville-sur-Haine","Ja","LE ROEULX","HENEGOUWEN"]
[7080,"Eugies","Ja","FRAMERIES","HENEGOUWEN"]
[7080,"Frameries","Neen","FRAMERIES","HENEGOUWEN"]
[7080,"La Bouverie","Ja","FRAMERIES","HENEGOUWEN"]
[7080,"Noirchain","Ja","FRAMERIES","HENEGOUWEN"]
[7080,"Sars-la-Bruyère","Ja","FRAMERIES","HENEGOUWEN"]
[7090,"Braine-le-Comte","Neen","BRAINE-LE-COMTE","HENEGOUWEN"]
[7090,"Hennuyères","Ja","BRAINE-LE-COMTE","HENEGOUWEN"]
[7090,"Henripont","Ja","BRAINE-LE-COMTE","HENEGOUWEN"]
[7090,"Petit-R\u009culx-lez-Braine","Ja","BRAINE-LE-COMTE","HENEGOUWEN"]
[7090,"Ronquières","Ja","BRAINE-LE-COMTE","HENEGOUWEN"]
[7090,"Steenkerque","Ja","BRAINE-LE-COMTE","HENEGOUWEN"]
[7100,"Haine-Saint-Paul","Ja","LA LOUVIÈRE","HENEGOUWEN"]
[7100,"Haine-Saint-Pierre","Ja","LA LOUVIÈRE","HENEGOUWEN"]
[7100,"La Louvière","Neen","LA LOUVIÈRE","HENEGOUWEN"]
[7100,"Saint-Vaast","Ja","LA LOUVIÈRE","HENEGOUWEN"]
[7100,"Trivières","Ja","LA LOUVIÈRE","HENEGOUWEN"]
[7110,"Boussoit","Ja","LA LOUVIÈRE","HENEGOUWEN"]
[7110,"Houdeng-Aimeries","Ja","LA LOUVIÈRE","HENEGOUWEN"]
[7110,"Houdeng-Goegnies","Ja","LA LOUVIÈRE","HENEGOUWEN"]
[7110,"Maurage","Ja","LA LOUVIÈRE","HENEGOUWEN"]
[7110,"Strépy-Bracquegnies","Ja","LA LOUVIÈRE","HENEGOUWEN"]
[7120,"Croix-lez-Rouveroy","Ja","ESTINNES","HENEGOUWEN"]
[7120,"Estinnes-au-Mont","Ja","ESTINNES","HENEGOUWEN"]
[7120,"Estinnes-au-Val","Ja","ESTINNES","HENEGOUWEN"]
[7120,"Fauroeulx","Ja","ESTINNES","HENEGOUWEN"]
[7120,"Haulchin","Ja","ESTINNES","HENEGOUWEN"]
[7120,"Peissant","Ja","ESTINNES","HENEGOUWEN"]
[7120,"Rouveroy","Ja","ESTINNES","HENEGOUWEN"]
[7120,"Vellereille-le-Sec","Ja","ESTINNES","HENEGOUWEN"]
[7120,"Vellereille-les-Brayeux","Ja","ESTINNES","HENEGOUWEN"]
[7130,"Battignies","Ja","BINCHE","HENEGOUWEN"]
[7130,"Binche","Neen","BINCHE","HENEGOUWEN"]
[7130,"Bray","Ja","BINCHE","HENEGOUWEN"]
[7131,"Waudrez","Ja","BINCHE","HENEGOUWEN"]
[7133,"Buvrinnes","Ja","BINCHE","HENEGOUWEN"]
[7134,"Epinois","Ja","BINCHE","HENEGOUWEN"]
[7134,"Leval-Trahegnies","Ja","BINCHE","HENEGOUWEN"]
[7134,"Péronnes-lez-Binche","Ja","BINCHE","HENEGOUWEN"]
[7134,"Ressaix","Ja","BINCHE","HENEGOUWEN"]
[7140,"Morlanwelz-Mariemont","Ja","MORLANWELZ","HENEGOUWEN"]
[7141,"Carnières","Ja","MORLANWELZ","HENEGOUWEN"]
[7141,"Mont-Sainte-Aldegonde","Ja","MORLANWELZ","HENEGOUWEN"]
[7160,"Chapelle-lez-Herlaimont","Neen","CHAPELLE-LEZ-HERLAIMONT","HENEGOUWEN"]
[7160,"Godarville","Ja","CHAPELLE-LEZ-HERLAIMONT","HENEGOUWEN"]
[7160,"Piéton","Ja","CHAPELLE-LEZ-HERLAIMONT","HENEGOUWEN"]
[7170,"Bellecourt","Ja","MANAGE","HENEGOUWEN"]
[7170,"Bois-d'Haine","Ja","MANAGE","HENEGOUWEN"]
[7170,"Fayt-lez-Manage","Ja","MANAGE","HENEGOUWEN"]
[7170,"La Hestre","Ja","MANAGE","HENEGOUWEN"]
[7170,"Manage","Neen","MANAGE","HENEGOUWEN"]
[7180,"Seneffe","Neen","SENEFFE","HENEGOUWEN"]
[7181,"Arquennes","Ja","SENEFFE","HENEGOUWEN"]
[7181,"Familleureux","Ja","SENEFFE","HENEGOUWEN"]
[7181,"Feluy","Ja","SENEFFE","HENEGOUWEN"]
[7181,"Petit-R\u009culx-lez-Nivelles","Ja","SENEFFE","HENEGOUWEN"]
[7190,"Écaussinnes-d'Enghien","Ja","ECAUSSINNES","HENEGOUWEN"]
[7190,"Marche-lez-Écaussinnes","Ja","ECAUSSINNES","HENEGOUWEN"]
[7191,"Ecaussinnes-Lalaing","Ja","ECAUSSINNES","HENEGOUWEN"]
[7300,"Boussu","Neen","BOUSSU","HENEGOUWEN"]
[7301,"Hornu","Ja","BOUSSU","HENEGOUWEN"]
[7320,"Bernissart","Neen","BERNISSART","HENEGOUWEN"]
[7321,"Blaton","Ja","BERNISSART","HENEGOUWEN"]
[7321,"Harchies","Ja","BERNISSART","HENEGOUWEN"]
[7322,"Pommeroeul","Ja","BERNISSART","HENEGOUWEN"]
[7322,"Ville-Pommeroeul","Ja","BERNISSART","HENEGOUWEN"]
[7330,"Saint-Ghislain","Neen","SAINT-GHISLAIN","HENEGOUWEN"]
[7331,"Baudour","Ja","SAINT-GHISLAIN","HENEGOUWEN"]
[7332,"Neufmaison","Ja","SAINT-GHISLAIN","HENEGOUWEN"]
[7332,"Sirault","Ja","SAINT-GHISLAIN","HENEGOUWEN"]
[7333,"Tertre","Ja","SAINT-GHISLAIN","HENEGOUWEN"]
[7334,"Hautrage","Ja","SAINT-GHISLAIN","HENEGOUWEN"]
[7334,"Villerot","Ja","SAINT-GHISLAIN","HENEGOUWEN"]
[7340,"Colfontaine","Neen","COLFONTAINE","HENEGOUWEN"]
[7340,"Pâturages","Ja","COLFONTAINE","HENEGOUWEN"]
[7340,"Warquignies","Ja","COLFONTAINE","HENEGOUWEN"]
[7340,"Wasmes","Ja","COLFONTAINE","HENEGOUWEN"]
[7350,"Hainin","Ja","HENSIES","HENEGOUWEN"]
[7350,"Hensies","Neen","HENSIES","HENEGOUWEN"]
[7350,"Montr\u009cul-sur-Haine","Ja","HENSIES","HENEGOUWEN"]
[7350,"Thulin","Ja","HENSIES","HENEGOUWEN"]
[7370,"Blaugies","Ja","DOUR","HENEGOUWEN"]
[7370,"Dour","Neen","DOUR","HENEGOUWEN"]
[7370,"Elouges","Ja","DOUR","HENEGOUWEN"]
[7370,"Wihéries","Ja","DOUR","HENEGOUWEN"]
[7380,"Baisieux","Ja","QUIÉVRAIN","HENEGOUWEN"]
[7380,"Quiévrain","Neen","QUIÉVRAIN","HENEGOUWEN"]
[7382,"Audregnies","Ja","QUIÉVRAIN","HENEGOUWEN"]
[7387,"Angre","Ja","HONNELLES","HENEGOUWEN"]
[7387,"Angreau","Ja","HONNELLES","HENEGOUWEN"]
[7387,"Athis","Ja","HONNELLES","HENEGOUWEN"]
[7387,"Autreppe","Ja","HONNELLES","HENEGOUWEN"]
[7387,"Erquennes","Ja","HONNELLES","HENEGOUWEN"]
[7387,"Fayt-le-Franc","Ja","HONNELLES","HENEGOUWEN"]
[7387,"Marchipont","Ja","HONNELLES","HENEGOUWEN"]
[7387,"Montignies-sur-Roc","Ja","HONNELLES","HENEGOUWEN"]
[7387,"Onnezies","Ja","HONNELLES","HENEGOUWEN"]
[7387,"Roisin","Ja","HONNELLES","HENEGOUWEN"]
[7390,"Quaregnon","Neen","QUAREGNON","HENEGOUWEN"]
[7390,"Wasmuel","Ja","QUAREGNON","HENEGOUWEN"]
[7500,"Ere","Ja","TOURNAI","HENEGOUWEN"]
[7500,"Saint-Maur","Ja","TOURNAI","HENEGOUWEN"]
[7500,"Tournai","Neen","TOURNAI","HENEGOUWEN"]
[7501,"Orcq","Ja","TOURNAI","HENEGOUWEN"]
[7502,"Esplechin","Ja","TOURNAI","HENEGOUWEN"]
[7503,"Froyennes","Ja","TOURNAI","HENEGOUWEN"]
[7504,"Froidmont","Ja","TOURNAI","HENEGOUWEN"]
[7506,"Willemeau","Ja","TOURNAI","HENEGOUWEN"]
[7510,"3 Suisses",null,"3 Suisses"]
[7511,"Vitrine Magique",null,"Vitrine Magique"]
[7512,"DANIEL JOUVANCE",null,"DANIEL JOUVANCE"]
[7513,"Yves Rocher",null,"Yves Rocher"]
[7520,"Ramegnies-Chin","Ja","TOURNAI","HENEGOUWEN"]
[7520,"Templeuve","Ja","TOURNAI","HENEGOUWEN"]
[7521,"Chercq","Ja","TOURNAI","HENEGOUWEN"]
[7522,"Blandain","Ja","TOURNAI","HENEGOUWEN"]
[7522,"Hertain","Ja","TOURNAI","HENEGOUWEN"]
[7522,"Lamain","Ja","TOURNAI","HENEGOUWEN"]
[7522,"Marquain","Ja","TOURNAI","HENEGOUWEN"]
[7530,"Gaurain-Ramecroix","Ja","TOURNAI","HENEGOUWEN"]
[7531,"Havinnes","Ja","TOURNAI","HENEGOUWEN"]
[7532,"Béclers","Ja","TOURNAI","HENEGOUWEN"]
[7533,"Thimougies","Ja","TOURNAI","HENEGOUWEN"]
[7534,"Barry","Ja","TOURNAI","HENEGOUWEN"]
[7534,"Maulde","Ja","TOURNAI","HENEGOUWEN"]
[7536,"Vaulx","Ja","TOURNAI","HENEGOUWEN"]
[7538,"Vezon","Ja","TOURNAI","HENEGOUWEN"]
[7540,"Kain","Ja","TOURNAI","HENEGOUWEN"]
[7540,"Melles","Ja","TOURNAI","HENEGOUWEN"]
[7540,"Quartes","Ja","TOURNAI","HENEGOUWEN"]
[7540,"Rumillies","Ja","TOURNAI","HENEGOUWEN"]
[7542,"Mont-Saint-Aubert","Ja","TOURNAI","HENEGOUWEN"]
[7543,"Mourcourt","Ja","TOURNAI","HENEGOUWEN"]
[7548,"Warchin","Ja","TOURNAI","HENEGOUWEN"]
[7600,"Péruwelz","Neen","PÉRUWELZ","HENEGOUWEN"]
[7601,"Roucourt","Ja","PÉRUWELZ","HENEGOUWEN"]
[7602,"Bury","Ja","PÉRUWELZ","HENEGOUWEN"]
[7603,"Bon-Secours","Ja","PÉRUWELZ","HENEGOUWEN"]
[7604,"Baugnies","Ja","PÉRUWELZ","HENEGOUWEN"]
[7604,"Braffe","Ja","PÉRUWELZ","HENEGOUWEN"]
[7604,"Brasménil","Ja","PÉRUWELZ","HENEGOUWEN"]
[7604,"Callenelle","Ja","PÉRUWELZ","HENEGOUWEN"]
[7604,"Wasmes-Audemez-Briffoeil","Ja","PÉRUWELZ","HENEGOUWEN"]
[7608,"Wiers","Ja","PÉRUWELZ","HENEGOUWEN"]
[7610,"Rumes","Neen","RUMES","HENEGOUWEN"]
[7611,"La Glanerie","Ja","RUMES","HENEGOUWEN"]
[7618,"Taintignies","Ja","RUMES","HENEGOUWEN"]
[7620,"Bléharies","Ja","BRUNEHAUT","HENEGOUWEN"]
[7620,"Guignies","Ja","BRUNEHAUT","HENEGOUWEN"]
[7620,"Hollain","Ja","BRUNEHAUT","HENEGOUWEN"]
[7620,"Jollain-Merlin","Ja","BRUNEHAUT","HENEGOUWEN"]
[7620,"Wez-Velvain","Ja","BRUNEHAUT","HENEGOUWEN"]
[7621,"Lesdain","Ja","BRUNEHAUT","HENEGOUWEN"]
[7622,"Laplaigne","Ja","BRUNEHAUT","HENEGOUWEN"]
[7623,"Rongy","Ja","BRUNEHAUT","HENEGOUWEN"]
[7624,"Howardries","Ja","BRUNEHAUT","HENEGOUWEN"]
[7640,"Antoing","Neen","ANTOING","HENEGOUWEN"]
[7640,"Maubray","Ja","ANTOING","HENEGOUWEN"]
[7640,"Péronnes-lez-Antoing","Ja","ANTOING","HENEGOUWEN"]
[7641,"Bruyelle","Ja","ANTOING","HENEGOUWEN"]
[7642,"Calonne","Ja","ANTOING","HENEGOUWEN"]
[7643,"Fontenoy","Ja","ANTOING","HENEGOUWEN"]
[7700,"Luingne","Ja","MOESKROEN","HENEGOUWEN"]
[7700,"Moeskroen","Neen","MOESKROEN","HENEGOUWEN"]
[7711,"Dottenijs","Ja","MOESKROEN","HENEGOUWEN"]
[7712,"Herseaux","Ja","MOESKROEN","HENEGOUWEN"]
[7730,"Bailleul","Ja","ESTAIMPUIS","HENEGOUWEN"]
[7730,"Estaimbourg","Ja","ESTAIMPUIS","HENEGOUWEN"]
[7730,"Estaimpuis","Neen","ESTAIMPUIS","HENEGOUWEN"]
[7730,"Evregnies","Ja","ESTAIMPUIS","HENEGOUWEN"]
[7730,"Leers-Nord","Ja","ESTAIMPUIS","HENEGOUWEN"]
[7730,"Néchin","Ja","ESTAIMPUIS","HENEGOUWEN"]
[7730,"Saint-Léger","Ja","ESTAIMPUIS","HENEGOUWEN"]
[7740,"Pecq","Neen","PECQ","HENEGOUWEN"]
[7740,"Warcoing","Ja","PECQ","HENEGOUWEN"]
[7742,"Hérinnes-lez-Pecq","Ja","PECQ","HENEGOUWEN"]
[7743,"Esquelmes","Ja","PECQ","HENEGOUWEN"]
[7743,"Obigies","Ja","PECQ","HENEGOUWEN"]
[7750,"Amougies","Ja","MONT-DE-L'ENCLUS","HENEGOUWEN"]
[7750,"Anseroeul","Ja","MONT-DE-L'ENCLUS","HENEGOUWEN"]
[7750,"Orroir","Ja","MONT-DE-L'ENCLUS","HENEGOUWEN"]
[7750,"Russeignies","Ja","MONT-DE-L'ENCLUS","HENEGOUWEN"]
[7760,"Celles","Neen","CELLES","HENEGOUWEN"]
[7760,"Escanaffles","Ja","CELLES","HENEGOUWEN"]
[7760,"Molenbaix","Ja","CELLES","HENEGOUWEN"]
[7760,"Popuelles","Ja","CELLES","HENEGOUWEN"]
[7760,"Pottes","Ja","CELLES","HENEGOUWEN"]
[7760,"Velaines","Ja","CELLES","HENEGOUWEN"]
[7780,"Komen","Ja","KOMEN-WAASTEN","HENEGOUWEN"]
[7780,"Komen-Waasten","Neen","KOMEN-WAASTEN","HENEGOUWEN"]
[7781,"Houthem","Ja","KOMEN-WAASTEN","HENEGOUWEN"]
[7782,"Ploegsteert","Ja","KOMEN-WAASTEN","HENEGOUWEN"]
[7783,"Bizet","Ja","KOMEN-WAASTEN","HENEGOUWEN"]
[7784,"Neerwaasten","Ja","KOMEN-WAASTEN","HENEGOUWEN"]
[7784,"Waasten","Ja","KOMEN-WAASTEN","HENEGOUWEN"]
[7800,"Ath","Neen","ATH","HENEGOUWEN"]
[7800,"Lanquesaint","Ja","ATH","HENEGOUWEN"]
[7801,"Irchonwelz","Ja","ATH","HENEGOUWEN"]
[7802,"Ormeignies","Ja","ATH","HENEGOUWEN"]
[7803,"Bouvignies","Ja","ATH","HENEGOUWEN"]
[7804,"Ostiches","Ja","ATH","HENEGOUWEN"]
[7804,"Rebaix","Ja","ATH","HENEGOUWEN"]
[7810,"Maffle","Ja","ATH","HENEGOUWEN"]
[7811,"Arbre","Ja","ATH","HENEGOUWEN"]
[7812,"Houtaing","Ja","ATH","HENEGOUWEN"]
[7812,"Ligne","Ja","ATH","HENEGOUWEN"]
[7812,"Mainvault","Ja","ATH","HENEGOUWEN"]
[7812,"Moulbaix","Ja","ATH","HENEGOUWEN"]
[7812,"Villers-Notre-Dame","Ja","ATH","HENEGOUWEN"]
[7812,"Villers-Saint-Amand","Ja","ATH","HENEGOUWEN"]
[7822,"Ghislenghien","Ja","ATH","HENEGOUWEN"]
[7822,"Isières","Ja","ATH","HENEGOUWEN"]
[7822,"Meslin-l'Évêque","Ja","ATH","HENEGOUWEN"]
[7823,"Gibecq","Ja","ATH","HENEGOUWEN"]
[7830,"Bassilly","Ja","SILLY","HENEGOUWEN"]
[7830,"Fouleng","Ja","SILLY","HENEGOUWEN"]
[7830,"Gondregnies","Ja","SILLY","HENEGOUWEN"]
[7830,"Graty","Ja","SILLY","HENEGOUWEN"]
[7830,"Hellebecq","Ja","SILLY","HENEGOUWEN"]
[7830,"Hoves","Ja","SILLY","HENEGOUWEN"]
[7830,"Silly","Neen","SILLY","HENEGOUWEN"]
[7830,"Thoricourt","Ja","SILLY","HENEGOUWEN"]
[7850,"Edingen","Neen","EDINGEN","HENEGOUWEN"]
[7850,"Lettelingen","Ja","EDINGEN","HENEGOUWEN"]
[7850,"Mark","Ja","EDINGEN","HENEGOUWEN"]
[7860,"Lessines","Neen","LESSINES","HENEGOUWEN"]
[7861,"Papignies","Ja","LESSINES","HENEGOUWEN"]
[7861,"Wannebecq","Ja","LESSINES","HENEGOUWEN"]
[7862,"Ogy","Ja","LESSINES","HENEGOUWEN"]
[7863,"Ghoy","Ja","LESSINES","HENEGOUWEN"]
[7864,"Deux-Acren","Ja","LESSINES","HENEGOUWEN"]
[7866,"Bois-de-Lessines","Ja","LESSINES","HENEGOUWEN"]
[7866,"Ollignies","Ja","LESSINES","HENEGOUWEN"]
[7870,"Bauffe","Ja","LENS","HENEGOUWEN"]
[7870,"Cambron-Saint-Vincent","Ja","LENS","HENEGOUWEN"]
[7870,"Lens","Neen","LENS","HENEGOUWEN"]
[7870,"Lombise","Ja","LENS","HENEGOUWEN"]
[7870,"Montignies-lez-Lens","Ja","LENS","HENEGOUWEN"]
[7880,"Vloesberg","Neen","VLOESBERG","HENEGOUWEN"]
[7890,"Ellezelles","Neen","ELLEZELLES","HENEGOUWEN"]
[7890,"Lahamaide","Ja","ELLEZELLES","HENEGOUWEN"]
[7890,"Wodecq","Ja","ELLEZELLES","HENEGOUWEN"]
[7900,"Grandmetz","Ja","LEUZE-EN-HAINAUT","HENEGOUWEN"]
[7900,"Leuze-en-Hainaut","Neen","LEUZE-EN-HAINAUT","HENEGOUWEN"]
[7901,"Thieulain","Ja","LEUZE-EN-HAINAUT","HENEGOUWEN"]
[7903,"Blicquy","Ja","LEUZE-EN-HAINAUT","HENEGOUWEN"]
[7903,"Chapelle-à-Oie","Ja","LEUZE-EN-HAINAUT","HENEGOUWEN"]
[7903,"Chapelle-à-Wattines","Ja","LEUZE-EN-HAINAUT","HENEGOUWEN"]
[7904,"Pipaix","Ja","LEUZE-EN-HAINAUT","HENEGOUWEN"]
[7904,"Tourpes","Ja","LEUZE-EN-HAINAUT","HENEGOUWEN"]
[7904,"Willaupuis","Ja","LEUZE-EN-HAINAUT","HENEGOUWEN"]
[7906,"Gallaix","Ja","LEUZE-EN-HAINAUT","HENEGOUWEN"]
[7910,"Anvaing","Ja","FRASNES-LEZ-ANVAING","HENEGOUWEN"]
[7910,"Arc-Ainières","Ja","FRASNES-LEZ-ANVAING","HENEGOUWEN"]
[7910,"Arc-Wattripont","Ja","FRASNES-LEZ-ANVAING","HENEGOUWEN"]
[7910,"Cordes","Ja","FRASNES-LEZ-ANVAING","HENEGOUWEN"]
[7910,"Ellignies-lez-Frasnes","Ja","FRASNES-LEZ-ANVAING","HENEGOUWEN"]
[7910,"Forest","Ja","FRASNES-LEZ-ANVAING","HENEGOUWEN"]
[7910,"Wattripont","Ja","FRASNES-LEZ-ANVAING","HENEGOUWEN"]
[7911,"Buissenal","Ja","FRASNES-LEZ-ANVAING","HENEGOUWEN"]
[7911,"Frasnes-lez-Buissenal","Ja","FRASNES-LEZ-ANVAING","HENEGOUWEN"]
[7911,"Hacquegnies","Ja","FRASNES-LEZ-ANVAING","HENEGOUWEN"]
[7911,"Herquegies","Ja","FRASNES-LEZ-ANVAING","HENEGOUWEN"]
[7911,"Montr\u009cul-au-Bois","Ja","FRASNES-LEZ-ANVAING","HENEGOUWEN"]
[7911,"Moustier","Ja","FRASNES-LEZ-ANVAING","HENEGOUWEN"]
[7911,"Oeudeghien","Ja","FRASNES-LEZ-ANVAING","HENEGOUWEN"]
[7912,"Dergneau","Ja","FRASNES-LEZ-ANVAING","HENEGOUWEN"]
[7912,"Saint-Sauveur","Ja","FRASNES-LEZ-ANVAING","HENEGOUWEN"]
[7940,"Brugelette","Neen","BRUGELETTE","HENEGOUWEN"]
[7940,"Cambron-Casteau","Ja","BRUGELETTE","HENEGOUWEN"]
[7941,"Attre","Ja","BRUGELETTE","HENEGOUWEN"]
[7942,"Mévergnies-lez-Lens","Ja","BRUGELETTE","HENEGOUWEN"]
[7943,"Gages","Ja","BRUGELETTE","HENEGOUWEN"]
[7950,"Chièvres","Neen","CHIÈVRES","HENEGOUWEN"]
[7950,"Grosage","Ja","CHIÈVRES","HENEGOUWEN"]
[7950,"Huissignies","Ja","CHIÈVRES","HENEGOUWEN"]
[7950,"Ladeuze","Ja","CHIÈVRES","HENEGOUWEN"]
[7950,"Tongre-Saint-Martin","Ja","CHIÈVRES","HENEGOUWEN"]
[7951,"Tongre-Notre-Dame","Ja","CHIÈVRES","HENEGOUWEN"]
[7970,"Beloeil","Neen","BELOEIL","HENEGOUWEN"]
[7971,"Basècles","Ja","BELOEIL","HENEGOUWEN"]
[7971,"Ramegnies","Ja","BELOEIL","HENEGOUWEN"]
[7971,"Thumaide","Ja","BELOEIL","HENEGOUWEN"]
[7971,"Wadelincourt","Ja","BELOEIL","HENEGOUWEN"]
[7972,"Aubechies","Ja","BELOEIL","HENEGOUWEN"]
[7972,"Ellignies-Sainte-Anne","Ja","BELOEIL","HENEGOUWEN"]
[7972,"Quevaucamps","Ja","BELOEIL","HENEGOUWEN"]
[7973,"Grandglise","Ja","BELOEIL","HENEGOUWEN"]
[7973,"Stambruges","Ja","BELOEIL","HENEGOUWEN"]
[8000,"Brugge","Neen","BRUGGE","WEST-VLAANDEREN"]
[8000,"Koolkerke","Ja","BRUGGE","WEST-VLAANDEREN"]
[8020,"Hertsberge","Ja","OOSTKAMP","WEST-VLAANDEREN"]
[8020,"Oostkamp","Neen","OOSTKAMP","WEST-VLAANDEREN"]
[8020,"Ruddervoorde","Ja","OOSTKAMP","WEST-VLAANDEREN"]
[8020,"Waardamme","Ja","OOSTKAMP","WEST-VLAANDEREN"]
[8200,"Sint-Andries","Ja","BRUGGE","WEST-VLAANDEREN"]
[8200,"Sint-Michiels","Ja","BRUGGE","WEST-VLAANDEREN"]
[8210,"Loppem","Ja","ZEDELGEM","WEST-VLAANDEREN"]
[8210,"Veldegem","Ja","ZEDELGEM","WEST-VLAANDEREN"]
[8210,"Zedelgem","Neen","ZEDELGEM","WEST-VLAANDEREN"]
[8211,"Aartrijke","Ja","ZEDELGEM","WEST-VLAANDEREN"]
[8300,"Knokke","Ja","KNOKKE-HEIST","WEST-VLAANDEREN"]
[8300,"Westkapelle","Ja","KNOKKE-HEIST","WEST-VLAANDEREN"]
[8301,"Heist-aan-Zee","Ja","KNOKKE-HEIST","WEST-VLAANDEREN"]
[8301,"Ramskapelle","Ja","KNOKKE-HEIST","WEST-VLAANDEREN"]
[8310,"Assebroek","Ja","BRUGGE","WEST-VLAANDEREN"]
[8310,"Sint-Kruis","Ja","BRUGGE","WEST-VLAANDEREN"]
[8340,"Damme","Neen","DAMME","WEST-VLAANDEREN"]
[8340,"Hoeke","Ja","DAMME","WEST-VLAANDEREN"]
[8340,"Lapscheure","Ja","DAMME","WEST-VLAANDEREN"]
[8340,"Moerkerke","Ja","DAMME","WEST-VLAANDEREN"]
[8340,"Oostkerke","Ja","DAMME","WEST-VLAANDEREN"]
[8340,"Sijsele","Ja","DAMME","WEST-VLAANDEREN"]
[8370,"Blankenberge","Neen","BLANKENBERGE","WEST-VLAANDEREN"]
[8370,"Uitkerke","Ja","BLANKENBERGE","WEST-VLAANDEREN"]
[8377,"Houtave","Ja","ZUIENKERKE","WEST-VLAANDEREN"]
[8377,"Meetkerke","Ja","ZUIENKERKE","WEST-VLAANDEREN"]
[8377,"Nieuwmunster","Ja","ZUIENKERKE","WEST-VLAANDEREN"]
[8377,"Zuienkerke","Neen","ZUIENKERKE","WEST-VLAANDEREN"]
[8380,"Dudzele","Ja","BRUGGE","WEST-VLAANDEREN"]
[8380,"Lissewege","Ja","BRUGGE","WEST-VLAANDEREN"]
[8380,"Zeebrugge","Ja","BRUGGE","WEST-VLAANDEREN"]
[8400,"Oostende","Neen","OOSTENDE","WEST-VLAANDEREN"]
[8400,"Stene","Ja","OOSTENDE","WEST-VLAANDEREN"]
[8400,"Zandvoorde","Ja","OOSTENDE","WEST-VLAANDEREN"]
[8420,"De Haan","Neen","DE HAAN","WEST-VLAANDEREN"]
[8420,"Klemskerke","Ja","DE HAAN","WEST-VLAANDEREN"]
[8420,"Wenduine","Ja","DE HAAN","WEST-VLAANDEREN"]
[8421,"Vlissegem","Ja","DE HAAN","WEST-VLAANDEREN"]
[8430,"Middelkerke","Neen","MIDDELKERKE","WEST-VLAANDEREN"]
[8431,"Wilskerke","Ja","MIDDELKERKE","WEST-VLAANDEREN"]
[8432,"Leffinge","Ja","MIDDELKERKE","WEST-VLAANDEREN"]
[8433,"Mannekensvere","Ja","MIDDELKERKE","WEST-VLAANDEREN"]
[8433,"Schore","Ja","MIDDELKERKE","WEST-VLAANDEREN"]
[8433,"Sint-Pieters-Kapelle","Ja","MIDDELKERKE","WEST-VLAANDEREN"]
[8433,"Slijpe","Ja","MIDDELKERKE","WEST-VLAANDEREN"]
[8434,"Lombardsijde","Ja","MIDDELKERKE","WEST-VLAANDEREN"]
[8434,"Westende","Ja","MIDDELKERKE","WEST-VLAANDEREN"]
[8450,"Bredene","Neen","BREDENE","WEST-VLAANDEREN"]
[8460,"Ettelgem","Ja","OUDENBURG","WEST-VLAANDEREN"]
[8460,"Oudenburg","Neen","OUDENBURG","WEST-VLAANDEREN"]
[8460,"Roksem","Ja","OUDENBURG","WEST-VLAANDEREN"]
[8460,"Westkerke","Ja","OUDENBURG","WEST-VLAANDEREN"]
[8470,"Gistel","Neen","GISTEL","WEST-VLAANDEREN"]
[8470,"Moere","Ja","GISTEL","WEST-VLAANDEREN"]
[8470,"Snaaskerke","Ja","GISTEL","WEST-VLAANDEREN"]
[8470,"Zevekote","Ja","GISTEL","WEST-VLAANDEREN"]
[8480,"Bekegem","Ja","ICHTEGEM","WEST-VLAANDEREN"]
[8480,"Eernegem","Ja","ICHTEGEM","WEST-VLAANDEREN"]
[8480,"Ichtegem","Neen","ICHTEGEM","WEST-VLAANDEREN"]
[8490,"Jabbeke","Neen","JABBEKE","WEST-VLAANDEREN"]
[8490,"Snellegem","Ja","JABBEKE","WEST-VLAANDEREN"]
[8490,"Stalhille","Ja","JABBEKE","WEST-VLAANDEREN"]
[8490,"Varsenare","Ja","JABBEKE","WEST-VLAANDEREN"]
[8490,"Zerkegem","Ja","JABBEKE","WEST-VLAANDEREN"]
[8500,"Kortrijk","Neen","KORTRIJK","WEST-VLAANDEREN"]
[8501,"Bissegem","Ja","KORTRIJK","WEST-VLAANDEREN"]
[8501,"Heule","Ja","KORTRIJK","WEST-VLAANDEREN"]
[8510,"Bellegem","Ja","KORTRIJK","WEST-VLAANDEREN"]
[8510,"Kooigem","Ja","KORTRIJK","WEST-VLAANDEREN"]
[8510,"Marke","Ja","KORTRIJK","WEST-VLAANDEREN"]
[8510,"Rollegem","Ja","KORTRIJK","WEST-VLAANDEREN"]
[8511,"Aalbeke","Ja","KORTRIJK","WEST-VLAANDEREN"]
[8520,"Kuurne","Neen","KUURNE","WEST-VLAANDEREN"]
[8530,"Harelbeke","Neen","HARELBEKE","WEST-VLAANDEREN"]
[8531,"Bavikhove","Ja","HARELBEKE","WEST-VLAANDEREN"]
[8531,"Hulste","Ja","HARELBEKE","WEST-VLAANDEREN"]
[8540,"Deerlijk","Neen","DEERLIJK","WEST-VLAANDEREN"]
[8550,"Zwevegem","Neen","ZWEVEGEM","WEST-VLAANDEREN"]
[8551,"Heestert","Ja","ZWEVEGEM","WEST-VLAANDEREN"]
[8552,"Moen","Ja","ZWEVEGEM","WEST-VLAANDEREN"]
[8553,"Otegem","Ja","ZWEVEGEM","WEST-VLAANDEREN"]
[8554,"Sint-Denijs","Ja","ZWEVEGEM","WEST-VLAANDEREN"]
[8560,"Gullegem","Ja","WEVELGEM","WEST-VLAANDEREN"]
[8560,"Moorsele","Ja","WEVELGEM","WEST-VLAANDEREN"]
[8560,"Wevelgem","Neen","WEVELGEM","WEST-VLAANDEREN"]
[8570,"Anzegem","Neen","ANZEGEM","WEST-VLAANDEREN"]
[8570,"Gijzelbrechtegem","Ja","ANZEGEM","WEST-VLAANDEREN"]
[8570,"Ingooigem","Ja","ANZEGEM","WEST-VLAANDEREN"]
[8570,"Vichte","Ja","ANZEGEM","WEST-VLAANDEREN"]
[8572,"Kaster","Ja","ANZEGEM","WEST-VLAANDEREN"]
[8573,"Tiegem","Ja","ANZEGEM","WEST-VLAANDEREN"]
[8580,"Avelgem","Neen","AVELGEM","WEST-VLAANDEREN"]
[8581,"Kerkhove","Ja","AVELGEM","WEST-VLAANDEREN"]
[8581,"Waarmaarde","Ja","AVELGEM","WEST-VLAANDEREN"]
[8582,"Outrijve","Ja","AVELGEM","WEST-VLAANDEREN"]
[8583,"Bossuit","Ja","AVELGEM","WEST-VLAANDEREN"]
[8587,"Helkijn","Ja","SPIERE-HELKIJN","WEST-VLAANDEREN"]
[8587,"Spiere","Ja","SPIERE-HELKIJN","WEST-VLAANDEREN"]
[8600,"Beerst","Ja","DIKSMUIDE","WEST-VLAANDEREN"]
[8600,"Diksmuide","Neen","DIKSMUIDE","WEST-VLAANDEREN"]
[8600,"Driekapellen","Ja","DIKSMUIDE","WEST-VLAANDEREN"]
[8600,"Esen","Ja","DIKSMUIDE","WEST-VLAANDEREN"]
[8600,"Kaaskerke","Ja","DIKSMUIDE","WEST-VLAANDEREN"]
[8600,"Keiem","Ja","DIKSMUIDE","WEST-VLAANDEREN"]
[8600,"Lampernisse","Ja","DIKSMUIDE","WEST-VLAANDEREN"]
[8600,"Leke","Ja","DIKSMUIDE","WEST-VLAANDEREN"]
[8600,"Nieuwkapelle","Ja","DIKSMUIDE","WEST-VLAANDEREN"]
[8600,"Oostkerke","Ja","DIKSMUIDE","WEST-VLAANDEREN"]
[8600,"Oudekapelle","Ja","DIKSMUIDE","WEST-VLAANDEREN"]
[8600,"Pervijze","Ja","DIKSMUIDE","WEST-VLAANDEREN"]
[8600,"Sint-Jacobs-Kapelle","Ja","DIKSMUIDE","WEST-VLAANDEREN"]
[8600,"Stuivekenskerke","Ja","DIKSMUIDE","WEST-VLAANDEREN"]
[8600,"Vladslo","Ja","DIKSMUIDE","WEST-VLAANDEREN"]
[8600,"Woumen","Ja","DIKSMUIDE","WEST-VLAANDEREN"]
[8610,"Handzame","Ja","KORTEMARK","WEST-VLAANDEREN"]
[8610,"Kortemark","Neen","KORTEMARK","WEST-VLAANDEREN"]
[8610,"Werken","Ja","KORTEMARK","WEST-VLAANDEREN"]
[8610,"Zarren","Ja","KORTEMARK","WEST-VLAANDEREN"]
[8620,"Nieuwpoort","Neen","NIEUWPOORT","WEST-VLAANDEREN"]
[8620,"Ramskapelle","Ja","NIEUWPOORT","WEST-VLAANDEREN"]
[8620,"Sint-Joris","Ja","NIEUWPOORT","WEST-VLAANDEREN"]
[8630,"Avekapelle","Ja","VEURNE","WEST-VLAANDEREN"]
[8630,"Booitshoeke","Ja","VEURNE","WEST-VLAANDEREN"]
[8630,"Bulskamp","Ja","VEURNE","WEST-VLAANDEREN"]
[8630,"De Moeren","Ja","VEURNE","WEST-VLAANDEREN"]
[8630,"Eggewaartskapelle","Ja","VEURNE","WEST-VLAANDEREN"]
[8630,"Houtem","Ja","VEURNE","WEST-VLAANDEREN"]
[8630,"Steenkerke","Ja","VEURNE","WEST-VLAANDEREN"]
[8630,"Veurne","Neen","VEURNE","WEST-VLAANDEREN"]
[8630,"Vinkem","Ja","VEURNE","WEST-VLAANDEREN"]
[8630,"Wulveringem","Ja","VEURNE","WEST-VLAANDEREN"]
[8630,"Zoutenaaie","Ja","VEURNE","WEST-VLAANDEREN"]
[8640,"Oostvleteren","Ja","VLETEREN","WEST-VLAANDEREN"]
[8640,"Westvleteren","Ja","VLETEREN","WEST-VLAANDEREN"]
[8640,"Woesten","Ja","VLETEREN","WEST-VLAANDEREN"]
[8647,"Lo","Ja","LO-RENINGE","WEST-VLAANDEREN"]
[8647,"Noordschote","Ja","LO-RENINGE","WEST-VLAANDEREN"]
[8647,"Pollinkhove","Ja","LO-RENINGE","WEST-VLAANDEREN"]
[8647,"Reninge","Ja","LO-RENINGE","WEST-VLAANDEREN"]
[8650,"Houthulst","Neen","HOUTHULST","WEST-VLAANDEREN"]
[8650,"Klerken","Ja","HOUTHULST","WEST-VLAANDEREN"]
[8650,"Merkem","Ja","HOUTHULST","WEST-VLAANDEREN"]
[8660,"Adinkerke","Ja","DE PANNE","WEST-VLAANDEREN"]
[8660,"De Panne","Neen","DE PANNE","WEST-VLAANDEREN"]
[8670,"Koksijde","Neen","KOKSIJDE","WEST-VLAANDEREN"]
[8670,"Oostduinkerke","Ja","KOKSIJDE","WEST-VLAANDEREN"]
[8670,"Wulpen","Ja","KOKSIJDE","WEST-VLAANDEREN"]
[8680,"Bovekerke","Ja","KOEKELARE","WEST-VLAANDEREN"]
[8680,"Koekelare","Neen","KOEKELARE","WEST-VLAANDEREN"]
[8680,"Zande","Ja","KOEKELARE","WEST-VLAANDEREN"]
[8690,"Alveringem","Neen","ALVERINGEM","WEST-VLAANDEREN"]
[8690,"Hoogstade","Ja","ALVERINGEM","WEST-VLAANDEREN"]
[8690,"Oeren","Ja","ALVERINGEM","WEST-VLAANDEREN"]
[8690,"Sint-Rijkers","Ja","ALVERINGEM","WEST-VLAANDEREN"]
[8691,"Beveren-aan-de-IJzer","Ja","ALVERINGEM","WEST-VLAANDEREN"]
[8691,"Gijverinkhove","Ja","ALVERINGEM","WEST-VLAANDEREN"]
[8691,"Izenberge","Ja","ALVERINGEM","WEST-VLAANDEREN"]
[8691,"Leisele","Ja","ALVERINGEM","WEST-VLAANDEREN"]
[8691,"Stavele","Ja","ALVERINGEM","WEST-VLAANDEREN"]
[8700,"Aarsele","Ja","TIELT","WEST-VLAANDEREN"]
[8700,"Kanegem","Ja","TIELT","WEST-VLAANDEREN"]
[8700,"Schuiferskapelle","Ja","TIELT","WEST-VLAANDEREN"]
[8700,"Tielt","Neen","TIELT","WEST-VLAANDEREN"]
[8710,"Ooigem","Ja","WIELSBEKE","WEST-VLAANDEREN"]
[8710,"Sint-Baafs-Vijve","Ja","WIELSBEKE","WEST-VLAANDEREN"]
[8710,"Wielsbeke","Neen","WIELSBEKE","WEST-VLAANDEREN"]
[8720,"Dentergem","Neen","DENTERGEM","WEST-VLAANDEREN"]
[8720,"Markegem","Ja","DENTERGEM","WEST-VLAANDEREN"]
[8720,"Oeselgem","Ja","DENTERGEM","WEST-VLAANDEREN"]
[8720,"Wakken","Ja","DENTERGEM","WEST-VLAANDEREN"]
[8730,"Beernem","Neen","BEERNEM","WEST-VLAANDEREN"]
[8730,"Oedelem","Ja","BEERNEM","WEST-VLAANDEREN"]
[8730,"Sint-Joris","Ja","BEERNEM","WEST-VLAANDEREN"]
[8740,"Egem","Ja","PITTEM","WEST-VLAANDEREN"]
[8740,"Pittem","Neen","PITTEM","WEST-VLAANDEREN"]
[8750,"Wingene","Neen","WINGENE","WEST-VLAANDEREN"]
[8750,"Zwevezele","Ja","WINGENE","WEST-VLAANDEREN"]
[8755,"Ruiselede","Neen","RUISELEDE","WEST-VLAANDEREN"]
[8760,"Meulebeke","Neen","MEULEBEKE","WEST-VLAANDEREN"]
[8770,"Ingelmunster","Neen","INGELMUNSTER","WEST-VLAANDEREN"]
[8780,"Oostrozebeke","Neen","OOSTROZEBEKE","WEST-VLAANDEREN"]
[8790,"Waregem","Neen","WAREGEM","WEST-VLAANDEREN"]
[8791,"Beveren","Ja","WAREGEM","WEST-VLAANDEREN"]
[8792,"Desselgem","Ja","WAREGEM","WEST-VLAANDEREN"]
[8793,"Sint-Eloois-Vijve","Ja","WAREGEM","WEST-VLAANDEREN"]
[8800,"Beveren","Ja","ROESELARE","WEST-VLAANDEREN"]
[8800,"Oekene","Ja","ROESELARE","WEST-VLAANDEREN"]
[8800,"Roeselare","Neen","ROESELARE","WEST-VLAANDEREN"]
[8800,"Rumbeke","Ja","ROESELARE","WEST-VLAANDEREN"]
[8810,"Lichtervelde","Neen","LICHTERVELDE","WEST-VLAANDEREN"]
[8820,"Torhout","Neen","TORHOUT","WEST-VLAANDEREN"]
[8830,"Gits","Ja","HOOGLEDE","WEST-VLAANDEREN"]
[8830,"Hooglede","Neen","HOOGLEDE","WEST-VLAANDEREN"]
[8840,"Oostnieuwkerke","Ja","STADEN","WEST-VLAANDEREN"]
[8840,"Staden","Neen","STADEN","WEST-VLAANDEREN"]
[8840,"Westrozebeke","Ja","STADEN","WEST-VLAANDEREN"]
[8850,"Ardooie","Neen","ARDOOIE","WEST-VLAANDEREN"]
[8851,"Koolskamp","Ja","ARDOOIE","WEST-VLAANDEREN"]
[8860,"Lendelede","Neen","LENDELEDE","WEST-VLAANDEREN"]
[8870,"Emelgem","Ja","IZEGEM","WEST-VLAANDEREN"]
[8870,"Izegem","Neen","IZEGEM","WEST-VLAANDEREN"]
[8870,"Kachtem","Ja","IZEGEM","WEST-VLAANDEREN"]
[8880,"Ledegem","Neen","LEDEGEM","WEST-VLAANDEREN"]
[8880,"Rollegem-Kapelle","Ja","LEDEGEM","WEST-VLAANDEREN"]
[8880,"Sint-Eloois-Winkel","Ja","LEDEGEM","WEST-VLAANDEREN"]
[8890,"Dadizele","Ja","MOORSLEDE","WEST-VLAANDEREN"]
[8890,"Moorslede","Neen","MOORSLEDE","WEST-VLAANDEREN"]
[8900,"Brielen","Ja","IEPER","WEST-VLAANDEREN"]
[8900,"Dikkebus","Ja","IEPER","WEST-VLAANDEREN"]
[8900,"Ieper","Neen","IEPER","WEST-VLAANDEREN"]
[8900,"Sint-Jan","Ja","IEPER","WEST-VLAANDEREN"]
[8902,"Hollebeke","Ja","IEPER","WEST-VLAANDEREN"]
[8902,"Voormezele","Ja","IEPER","WEST-VLAANDEREN"]
[8902,"Zillebeke","Ja","IEPER","WEST-VLAANDEREN"]
[8904,"Boezinge","Ja","IEPER","WEST-VLAANDEREN"]
[8904,"Zuidschote","Ja","IEPER","WEST-VLAANDEREN"]
[8906,"Elverdinge","Ja","IEPER","WEST-VLAANDEREN"]
[8908,"Vlamertinge","Ja","IEPER","WEST-VLAANDEREN"]
[8920,"Bikschote","Ja","LANGEMARK-POELKAPELLE","WEST-VLAANDEREN"]
[8920,"Langemark","Ja","LANGEMARK-POELKAPELLE","WEST-VLAANDEREN"]
[8920,"Poelkapelle","Ja","LANGEMARK-POELKAPELLE","WEST-VLAANDEREN"]
[8930,"Lauwe","Ja","MENEN","WEST-VLAANDEREN"]
[8930,"Menen","Neen","MENEN","WEST-VLAANDEREN"]
[8930,"Rekkem","Ja","MENEN","WEST-VLAANDEREN"]
[8940,"Geluwe","Ja","WERVIK","WEST-VLAANDEREN"]
[8940,"Wervik","Neen","WERVIK","WEST-VLAANDEREN"]
[8950,"Nieuwkerke","Ja","HEUVELLAND","WEST-VLAANDEREN"]
[8951,"Dranouter","Ja","HEUVELLAND","WEST-VLAANDEREN"]
[8952,"Wulvergem","Ja","HEUVELLAND","WEST-VLAANDEREN"]
[8953,"Wijtschate","Ja","HEUVELLAND","WEST-VLAANDEREN"]
[8954,"Westouter","Ja","HEUVELLAND","WEST-VLAANDEREN"]
[8956,"Kemmel","Ja","HEUVELLAND","WEST-VLAANDEREN"]
[8957,"Mesen","Neen","MESEN","WEST-VLAANDEREN"]
[8958,"Loker","Ja","HEUVELLAND","WEST-VLAANDEREN"]
[8970,"Poperinge","Neen","POPERINGE","WEST-VLAANDEREN"]
[8970,"Reningelst","Ja","POPERINGE","WEST-VLAANDEREN"]
[8972,"Krombeke","Ja","POPERINGE","WEST-VLAANDEREN"]
[8972,"Proven","Ja","POPERINGE","WEST-VLAANDEREN"]
[8972,"Roesbrugge-Haringe","Ja","POPERINGE","WEST-VLAANDEREN"]
[8978,"Watou","Ja","POPERINGE","WEST-VLAANDEREN"]
[8980,"Beselare","Ja","ZONNEBEKE","WEST-VLAANDEREN"]
[8980,"Geluveld","Ja","ZONNEBEKE","WEST-VLAANDEREN"]
[8980,"Passendale","Ja","ZONNEBEKE","WEST-VLAANDEREN"]
[8980,"Zandvoorde","Ja","ZONNEBEKE","WEST-VLAANDEREN"]
[8980,"Zonnebeke","Neen","ZONNEBEKE","WEST-VLAANDEREN"]
[9000,"Gent","Neen","GENT","OOST-VLAANDEREN"]
[9030,"Mariakerke","Ja","GENT","OOST-VLAANDEREN"]
[9031,"Drongen","Ja","GENT","OOST-VLAANDEREN"]
[9032,"Wondelgem","Ja","GENT","OOST-VLAANDEREN"]
[9040,"Sint-Amandsberg","Ja","GENT","OOST-VLAANDEREN"]
[9041,"Oostakker","Ja","GENT","OOST-VLAANDEREN"]
[9042,"Desteldonk","Ja","GENT","OOST-VLAANDEREN"]
[9042,"Mendonk","Ja","GENT","OOST-VLAANDEREN"]
[9042,"Sint-Kruis-Winkel","Ja","GENT","OOST-VLAANDEREN"]
[9050,"Gentbrugge","Ja","GENT","OOST-VLAANDEREN"]
[9050,"Ledeberg","Ja","GENT","OOST-VLAANDEREN"]
[9051,"Afsnee","Ja","GENT","OOST-VLAANDEREN"]
[9051,"Sint-Denijs-Westrem","Ja","GENT","OOST-VLAANDEREN"]
[9052,"Zwijnaarde","Ja","GENT","OOST-VLAANDEREN"]
[9060,"Zelzate","Neen","ZELZATE","OOST-VLAANDEREN"]
[9070,"Destelbergen","Neen","DESTELBERGEN","OOST-VLAANDEREN"]
[9070,"Heusden","Ja","DESTELBERGEN","OOST-VLAANDEREN"]
[9075,"CSM Gent X",null,"CSM Gent X"]
[9080,"Beervelde","Ja","LOCHRISTI","OOST-VLAANDEREN"]
[9080,"Lochristi","Neen","LOCHRISTI","OOST-VLAANDEREN"]
[9080,"Zaffelare","Ja","LOCHRISTI","OOST-VLAANDEREN"]
[9080,"Zeveneken","Ja","LOCHRISTI","OOST-VLAANDEREN"]
[9090,"Gontrode","Ja","MELLE","OOST-VLAANDEREN"]
[9090,"Melle","Neen","MELLE","OOST-VLAANDEREN"]
[9099,"Gent X",null,"Gent X"]
[9100,"Nieuwkerken-Waas","Ja","SINT-NIKLAAS","OOST-VLAANDEREN"]
[9100,"Sint-Niklaas","Neen","SINT-NIKLAAS","OOST-VLAANDEREN"]
[9111,"Belsele","Ja","SINT-NIKLAAS","OOST-VLAANDEREN"]
[9112,"Sinaai-Waas","Ja","SINT-NIKLAAS","OOST-VLAANDEREN"]
[9120,"Beveren-Waas","Neen","BEVEREN-WAAS","OOST-VLAANDEREN"]
[9120,"Haasdonk","Ja","BEVEREN-WAAS","OOST-VLAANDEREN"]
[9120,"Kallo","Ja","BEVEREN-WAAS","OOST-VLAANDEREN"]
[9120,"Melsele","Ja","BEVEREN-WAAS","OOST-VLAANDEREN"]
[9120,"Vrasene","Ja","BEVEREN-WAAS","OOST-VLAANDEREN"]
[9130,"Doel","Ja","BEVEREN-WAAS","OOST-VLAANDEREN"]
[9130,"Kallo","Ja","BEVEREN-WAAS","OOST-VLAANDEREN"]
[9130,"Kieldrecht","Ja","BEVEREN-WAAS","OOST-VLAANDEREN"]
[9130,"Verrebroek","Ja","BEVEREN-WAAS","OOST-VLAANDEREN"]
[9140,"Elversele","Ja","TEMSE","OOST-VLAANDEREN"]
[9140,"Steendorp","Ja","TEMSE","OOST-VLAANDEREN"]
[9140,"Temse","Neen","TEMSE","OOST-VLAANDEREN"]
[9140,"Tielrode","Ja","TEMSE","OOST-VLAANDEREN"]
[9150,"Bazel","Ja","KRUIBEKE","OOST-VLAANDEREN"]
[9150,"Kruibeke","Neen","KRUIBEKE","OOST-VLAANDEREN"]
[9150,"Rupelmonde","Ja","KRUIBEKE","OOST-VLAANDEREN"]
[9160,"Daknam","Ja","LOKEREN","OOST-VLAANDEREN"]
[9160,"Eksaarde","Ja","LOKEREN","OOST-VLAANDEREN"]
[9160,"Lokeren","Neen","LOKEREN","OOST-VLAANDEREN"]
[9170,"De Klinge","Ja","SINT-GILLIS-WAAS","OOST-VLAANDEREN"]
[9170,"Meerdonk","Ja","SINT-GILLIS-WAAS","OOST-VLAANDEREN"]
[9170,"Sint-Gillis-Waas","Neen","SINT-GILLIS-WAAS","OOST-VLAANDEREN"]
[9170,"Sint-Pauwels","Ja","SINT-GILLIS-WAAS","OOST-VLAANDEREN"]
[9180,"Moerbeke-Waas","Neen","MOERBEKE-WAAS","OOST-VLAANDEREN"]
[9185,"Wachtebeke","Neen","WACHTEBEKE","OOST-VLAANDEREN"]
[9190,"Kemzeke","Ja","STEKENE","OOST-VLAANDEREN"]
[9190,"Stekene","Neen","STEKENE","OOST-VLAANDEREN"]
[9200,"Appels","Ja","DENDERMONDE","OOST-VLAANDEREN"]
[9200,"Baasrode","Ja","DENDERMONDE","OOST-VLAANDEREN"]
[9200,"Dendermonde","Neen","DENDERMONDE","OOST-VLAANDEREN"]
[9200,"Grembergen","Ja","DENDERMONDE","OOST-VLAANDEREN"]
[9200,"Mespelare","Ja","DENDERMONDE","OOST-VLAANDEREN"]
[9200,"Oudegem","Ja","DENDERMONDE","OOST-VLAANDEREN"]
[9200,"Schoonaarde","Ja","DENDERMONDE","OOST-VLAANDEREN"]
[9200,"Sint-Gillis-Dendermonde","Ja","DENDERMONDE","OOST-VLAANDEREN"]
[9220,"Hamme","Neen","HAMME","OOST-VLAANDEREN"]
[9220,"Moerzeke","Ja","HAMME","OOST-VLAANDEREN"]
[9230,"Massemen","Ja","WETTEREN","OOST-VLAANDEREN"]
[9230,"Westrem","Ja","WETTEREN","OOST-VLAANDEREN"]
[9230,"Wetteren","Neen","WETTEREN","OOST-VLAANDEREN"]
[9240,"Zele","Neen","ZELE","OOST-VLAANDEREN"]
[9250,"Waasmunster","Neen","WAASMUNSTER","OOST-VLAANDEREN"]
[9255,"Buggenhout","Neen","BUGGENHOUT","OOST-VLAANDEREN"]
[9255,"Opdorp","Ja","BUGGENHOUT","OOST-VLAANDEREN"]
[9260,"Schellebelle","Ja","WICHELEN","OOST-VLAANDEREN"]
[9260,"Serskamp","Ja","WICHELEN","OOST-VLAANDEREN"]
[9260,"Wichelen","Neen","WICHELEN","OOST-VLAANDEREN"]
[9270,"Kalken","Ja","LAARNE","OOST-VLAANDEREN"]
[9270,"Laarne","Neen","LAARNE","OOST-VLAANDEREN"]
[9280,"Denderbelle","Ja","LEBBEKE","OOST-VLAANDEREN"]
[9280,"Lebbeke","Neen","LEBBEKE","OOST-VLAANDEREN"]
[9280,"Wieze","Ja","LEBBEKE","OOST-VLAANDEREN"]
[9290,"Berlare","Neen","BERLARE","OOST-VLAANDEREN"]
[9290,"Overmere","Ja","BERLARE","OOST-VLAANDEREN"]
[9290,"Uitbergen","Ja","BERLARE","OOST-VLAANDEREN"]
[9300,"Aalst","Neen","AALST","OOST-VLAANDEREN"]
[9308,"Gijzegem","Ja","AALST","OOST-VLAANDEREN"]
[9308,"Hofstade","Ja","AALST","OOST-VLAANDEREN"]
[9310,"Baardegem","Ja","AALST","OOST-VLAANDEREN"]
[9310,"Herdersem","Ja","AALST","OOST-VLAANDEREN"]
[9310,"Meldert","Ja","AALST","OOST-VLAANDEREN"]
[9310,"Moorsel","Ja","AALST","OOST-VLAANDEREN"]
[9320,"Erembodegem","Ja","AALST","OOST-VLAANDEREN"]
[9320,"Nieuwerkerken","Ja","AALST","OOST-VLAANDEREN"]
[9340,"Impe","Ja","LEDE","OOST-VLAANDEREN"]
[9340,"Lede","Neen","LEDE","OOST-VLAANDEREN"]
[9340,"Oordegem","Ja","LEDE","OOST-VLAANDEREN"]
[9340,"Smetlede","Ja","LEDE","OOST-VLAANDEREN"]
[9340,"Wanzele","Ja","LEDE","OOST-VLAANDEREN"]
[9400,"Appelterre-Eichem","Ja","NINOVE","OOST-VLAANDEREN"]
[9400,"Denderwindeke","Ja","NINOVE","OOST-VLAANDEREN"]
[9400,"Lieferinge","Ja","NINOVE","OOST-VLAANDEREN"]
[9400,"Nederhasselt","Ja","NINOVE","OOST-VLAANDEREN"]
[9400,"Ninove","Neen","NINOVE","OOST-VLAANDEREN"]
[9400,"Okegem","Ja","NINOVE","OOST-VLAANDEREN"]
[9400,"Voorde","Ja","NINOVE","OOST-VLAANDEREN"]
[9401,"Pollare","Ja","NINOVE","OOST-VLAANDEREN"]
[9402,"Meerbeke","Ja","NINOVE","OOST-VLAANDEREN"]
[9403,"Neigem","Ja","NINOVE","OOST-VLAANDEREN"]
[9404,"Aspelare","Ja","NINOVE","OOST-VLAANDEREN"]
[9406,"Outer","Ja","NINOVE","OOST-VLAANDEREN"]
[9420,"Aaigem","Ja","ERPE-MERE","OOST-VLAANDEREN"]
[9420,"Bambrugge","Ja","ERPE-MERE","OOST-VLAANDEREN"]
[9420,"Burst","Ja","ERPE-MERE","OOST-VLAANDEREN"]
[9420,"Erondegem","Ja","ERPE-MERE","OOST-VLAANDEREN"]
[9420,"Erpe","Ja","ERPE-MERE","OOST-VLAANDEREN"]
[9420,"Mere","Ja","ERPE-MERE","OOST-VLAANDEREN"]
[9420,"Ottergem","Ja","ERPE-MERE","OOST-VLAANDEREN"]
[9420,"Vlekkem","Ja","ERPE-MERE","OOST-VLAANDEREN"]
[9450,"Denderhoutem","Ja","HAALTERT","OOST-VLAANDEREN"]
[9450,"Haaltert","Neen","HAALTERT","OOST-VLAANDEREN"]
[9450,"Heldergem","Ja","HAALTERT","OOST-VLAANDEREN"]
[9451,"Kerksken","Ja","HAALTERT","OOST-VLAANDEREN"]
[9470,"Denderleeuw","Neen","DENDERLEEUW","OOST-VLAANDEREN"]
[9472,"Iddergem","Ja","DENDERLEEUW","OOST-VLAANDEREN"]
[9473,"Welle","Ja","DENDERLEEUW","OOST-VLAANDEREN"]
[9500,"Geraardsbergen","Neen","GERAARDSBERGEN","OOST-VLAANDEREN"]
[9500,"Goeferdinge","Ja","GERAARDSBERGEN","OOST-VLAANDEREN"]
[9500,"Moerbeke","Ja","GERAARDSBERGEN","OOST-VLAANDEREN"]
[9500,"Nederboelare","Ja","GERAARDSBERGEN","OOST-VLAANDEREN"]
[9500,"Onkerzele","Ja","GERAARDSBERGEN","OOST-VLAANDEREN"]
[9500,"Ophasselt","Ja","GERAARDSBERGEN","OOST-VLAANDEREN"]
[9500,"Overboelare","Ja","GERAARDSBERGEN","OOST-VLAANDEREN"]
[9500,"Viane","Ja","GERAARDSBERGEN","OOST-VLAANDEREN"]
[9500,"Zarlardinge","Ja","GERAARDSBERGEN","OOST-VLAANDEREN"]
[9506,"Grimminge","Ja","GERAARDSBERGEN","OOST-VLAANDEREN"]
[9506,"Idegem","Ja","GERAARDSBERGEN","OOST-VLAANDEREN"]
[9506,"Nieuwenhove","Ja","GERAARDSBERGEN","OOST-VLAANDEREN"]
[9506,"Schendelbeke","Ja","GERAARDSBERGEN","OOST-VLAANDEREN"]
[9506,"Smeerebbe-Vloerzegem","Ja","GERAARDSBERGEN","OOST-VLAANDEREN"]
[9506,"Waarbeke","Ja","GERAARDSBERGEN","OOST-VLAANDEREN"]
[9506,"Zandbergen","Ja","GERAARDSBERGEN","OOST-VLAANDEREN"]
[9520,"Bavegem","Ja","SINT-LIEVENS-HOUTEM","OOST-VLAANDEREN"]
[9520,"Oombergen","Ja","SINT-LIEVENS-HOUTEM","OOST-VLAANDEREN"]
[9520,"Sint-Lievens-Houtem","Neen","SINT-LIEVENS-HOUTEM","OOST-VLAANDEREN"]
[9520,"Vlierzele","Ja","SINT-LIEVENS-HOUTEM","OOST-VLAANDEREN"]
[9520,"Zonnegem","Ja","SINT-LIEVENS-HOUTEM","OOST-VLAANDEREN"]
[9521,"Letterhoutem","Ja","SINT-LIEVENS-HOUTEM","OOST-VLAANDEREN"]
[9550,"Herzele","Neen","HERZELE","OOST-VLAANDEREN"]
[9550,"Hillegem","Ja","HERZELE","OOST-VLAANDEREN"]
[9550,"Sint-Antelinks","Ja","HERZELE","OOST-VLAANDEREN"]
[9550,"Sint-Lievens-Esse","Ja","HERZELE","OOST-VLAANDEREN"]
[9550,"Steenhuize-Wijnhuize","Ja","HERZELE","OOST-VLAANDEREN"]
[9550,"Woubrechtegem","Ja","HERZELE","OOST-VLAANDEREN"]
[9551,"Ressegem","Ja","HERZELE","OOST-VLAANDEREN"]
[9552,"Borsbeke","Ja","HERZELE","OOST-VLAANDEREN"]
[9570,"Deftinge","Ja","LIERDE","OOST-VLAANDEREN"]
[9570,"Sint-Maria-Lierde","Ja","LIERDE","OOST-VLAANDEREN"]
[9571,"Hemelveerdegem","Ja","LIERDE","OOST-VLAANDEREN"]
[9572,"Sint-Martens-Lierde","Ja","LIERDE","OOST-VLAANDEREN"]
[9600,"Ronse","Neen","RONSE","OOST-VLAANDEREN"]
[9620,"Elene","Ja","ZOTTEGEM","OOST-VLAANDEREN"]
[9620,"Erwetegem","Ja","ZOTTEGEM","OOST-VLAANDEREN"]
[9620,"Godveerdegem","Ja","ZOTTEGEM","OOST-VLAANDEREN"]
[9620,"Grotenberge","Ja","ZOTTEGEM","OOST-VLAANDEREN"]
[9620,"Leeuwergem","Ja","ZOTTEGEM","OOST-VLAANDEREN"]
[9620,"Oombergen","Ja","ZOTTEGEM","OOST-VLAANDEREN"]
[9620,"Sint-Goriks-Oudenhove","Ja","ZOTTEGEM","OOST-VLAANDEREN"]
[9620,"Sint-Maria-Oudenhove","Ja","ZOTTEGEM","OOST-VLAANDEREN"]
[9620,"Strijpen","Ja","ZOTTEGEM","OOST-VLAANDEREN"]
[9620,"Velzeke-Ruddershove","Ja","ZOTTEGEM","OOST-VLAANDEREN"]
[9620,"Zottegem","Neen","ZOTTEGEM","OOST-VLAANDEREN"]
[9630,"Beerlegem","Ja","ZWALM","OOST-VLAANDEREN"]
[9630,"Dikkele","Ja","ZWALM","OOST-VLAANDEREN"]
[9630,"Hundelgem","Ja","ZWALM","OOST-VLAANDEREN"]
[9630,"Meilegem","Ja","ZWALM","OOST-VLAANDEREN"]
[9630,"Munkzwalm","Ja","ZWALM","OOST-VLAANDEREN"]
[9630,"Paulatem","Ja","ZWALM","OOST-VLAANDEREN"]
[9630,"Roborst","Ja","ZWALM","OOST-VLAANDEREN"]
[9630,"Rozebeke","Ja","ZWALM","OOST-VLAANDEREN"]
[9630,"Sint-Blasius-Boekel","Ja","ZWALM","OOST-VLAANDEREN"]
[9630,"Sint-Denijs-Boekel","Ja","ZWALM","OOST-VLAANDEREN"]
[9630,"Sint-Maria-Latem","Ja","ZWALM","OOST-VLAANDEREN"]
[9636,"Nederzwalm-Hermelgem","Ja","ZWALM","OOST-VLAANDEREN"]
[9660,"Brakel","Neen","BRAKEL","OOST-VLAANDEREN"]
[9660,"Elst","Ja","BRAKEL","OOST-VLAANDEREN"]
[9660,"Everbeek","Ja","BRAKEL","OOST-VLAANDEREN"]
[9660,"Michelbeke","Ja","BRAKEL","OOST-VLAANDEREN"]
[9660,"Nederbrakel","Ja","BRAKEL","OOST-VLAANDEREN"]
[9660,"Opbrakel","Ja","BRAKEL","OOST-VLAANDEREN"]
[9660,"Sint-Maria-Oudenhove","Ja","BRAKEL","OOST-VLAANDEREN"]
[9660,"Zegelsem","Ja","BRAKEL","OOST-VLAANDEREN"]
[9661,"Parike","Ja","BRAKEL","OOST-VLAANDEREN"]
[9667,"Sint-Kornelis-Horebeke","Ja","HOREBEKE","OOST-VLAANDEREN"]
[9667,"Sint-Maria-Horebeke","Ja","HOREBEKE","OOST-VLAANDEREN"]
[9680,"Etikhove","Ja","MAARKEDAL","OOST-VLAANDEREN"]
[9680,"Maarke-Kerkem","Ja","MAARKEDAL","OOST-VLAANDEREN"]
[9681,"Nukerke","Ja","MAARKEDAL","OOST-VLAANDEREN"]
[9688,"Schorisse","Ja","MAARKEDAL","OOST-VLAANDEREN"]
[9690,"Berchem","Ja","KLUISBERGEN","OOST-VLAANDEREN"]
[9690,"Kwaremont","Ja","KLUISBERGEN","OOST-VLAANDEREN"]
[9690,"Ruien","Ja","KLUISBERGEN","OOST-VLAANDEREN"]
[9690,"Zulzeke","Ja","KLUISBERGEN","OOST-VLAANDEREN"]
[9700,"Bevere","Ja","OUDENAARDE","OOST-VLAANDEREN"]
[9700,"Edelare","Ja","OUDENAARDE","OOST-VLAANDEREN"]
[9700,"Eine","Ja","OUDENAARDE","OOST-VLAANDEREN"]
[9700,"Ename","Ja","OUDENAARDE","OOST-VLAANDEREN"]
[9700,"Heurne","Ja","OUDENAARDE","OOST-VLAANDEREN"]
[9700,"Leupegem","Ja","OUDENAARDE","OOST-VLAANDEREN"]
[9700,"Mater","Ja","OUDENAARDE","OOST-VLAANDEREN"]
[9700,"Melden","Ja","OUDENAARDE","OOST-VLAANDEREN"]
[9700,"Mullem","Ja","OUDENAARDE","OOST-VLAANDEREN"]
[9700,"Nederename","Ja","OUDENAARDE","OOST-VLAANDEREN"]
[9700,"Ooike","Ja","OUDENAARDE","OOST-VLAANDEREN"]
[9700,"Oudenaarde","Neen","OUDENAARDE","OOST-VLAANDEREN"]
[9700,"Volkegem","Ja","OUDENAARDE","OOST-VLAANDEREN"]
[9700,"Welden","Ja","OUDENAARDE","OOST-VLAANDEREN"]
[9750,"Huise","Ja","KRUISEM","OOST-VLAANDEREN"]
[9750,"Ouwegem","Ja","KRUISEM","OOST-VLAANDEREN"]
[9750,"Zingem","Ja","KRUISEM","OOST-VLAANDEREN"]
[9770,"Kruishoutem","Ja","KRUISEM","OOST-VLAANDEREN"]
[9771,"Nokere","Ja","KRUISEM","OOST-VLAANDEREN"]
[9772,"Wannegem-Lede","Ja","KRUISEM","OOST-VLAANDEREN"]
[9790,"Elsegem","Ja","WORTEGEM-PETEGEM","OOST-VLAANDEREN"]
[9790,"Moregem","Ja","WORTEGEM-PETEGEM","OOST-VLAANDEREN"]
[9790,"Ooike","Ja","WORTEGEM-PETEGEM","OOST-VLAANDEREN"]
[9790,"Petegem-aan-de-Schelde","Ja","WORTEGEM-PETEGEM","OOST-VLAANDEREN"]
[9790,"Wortegem","Ja","WORTEGEM-PETEGEM","OOST-VLAANDEREN"]
[9800,"Astene","Ja","DEINZE","OOST-VLAANDEREN"]
[9800,"Bachte-Maria-Leerne","Ja","DEINZE","OOST-VLAANDEREN"]
[9800,"Deinze","Neen","DEINZE","OOST-VLAANDEREN"]
[9800,"Gottem","Ja","DEINZE","OOST-VLAANDEREN"]
[9800,"Grammene","Ja","DEINZE","OOST-VLAANDEREN"]
[9800,"Meigem","Ja","DEINZE","OOST-VLAANDEREN"]
[9800,"Petegem-aan-de-Leie","Ja","DEINZE","OOST-VLAANDEREN"]
[9800,"Sint-Martens-Leerne","Ja","DEINZE","OOST-VLAANDEREN"]
[9800,"Vinkt","Ja","DEINZE","OOST-VLAANDEREN"]
[9800,"Wontergem","Ja","DEINZE","OOST-VLAANDEREN"]
[9800,"Zeveren","Ja","DEINZE","OOST-VLAANDEREN"]
[9810,"Eke","Ja","NAZARETH","OOST-VLAANDEREN"]
[9810,"Nazareth","Neen","NAZARETH","OOST-VLAANDEREN"]
[9820,"Bottelare","Ja","MERELBEKE","OOST-VLAANDEREN"]
[9820,"Lemberge","Ja","MERELBEKE","OOST-VLAANDEREN"]
[9820,"Melsen","Ja","MERELBEKE","OOST-VLAANDEREN"]
[9820,"Merelbeke","Neen","MERELBEKE","OOST-VLAANDEREN"]
[9820,"Munte","Ja","MERELBEKE","OOST-VLAANDEREN"]
[9820,"Schelderode","Ja","MERELBEKE","OOST-VLAANDEREN"]
[9830,"Sint-Martens-Latem","Neen","SINT-MARTENS-LATEM","OOST-VLAANDEREN"]
[9831,"Deurle","Ja","SINT-MARTENS-LATEM","OOST-VLAANDEREN"]
[9840,"De Pinte","Neen","DE PINTE","OOST-VLAANDEREN"]
[9840,"Zevergem","Ja","DE PINTE","OOST-VLAANDEREN"]
[9850,"Hansbeke","Ja","DEINZE","OOST-VLAANDEREN"]
[9850,"Landegem","Ja","DEINZE","OOST-VLAANDEREN"]
[9850,"Merendree","Ja","DEINZE","OOST-VLAANDEREN"]
[9850,"Nevele","Ja","DEINZE","OOST-VLAANDEREN"]
[9850,"Poesele","Ja","DEINZE","OOST-VLAANDEREN"]
[9850,"Vosselare","Ja","DEINZE","OOST-VLAANDEREN"]
[9860,"Balegem","Ja","OOSTERZELE","OOST-VLAANDEREN"]
[9860,"Gijzenzele","Ja","OOSTERZELE","OOST-VLAANDEREN"]
[9860,"Landskouter","Ja","OOSTERZELE","OOST-VLAANDEREN"]
[9860,"Moortsele","Ja","OOSTERZELE","OOST-VLAANDEREN"]
[9860,"Oosterzele","Neen","OOSTERZELE","OOST-VLAANDEREN"]
[9860,"Scheldewindeke","Ja","OOSTERZELE","OOST-VLAANDEREN"]
[9870,"Machelen","Ja","ZULTE","OOST-VLAANDEREN"]
[9870,"Olsene","Ja","ZULTE","OOST-VLAANDEREN"]
[9870,"Zulte","Neen","ZULTE","OOST-VLAANDEREN"]
[9880,"Aalter","Neen","AALTER","OOST-VLAANDEREN"]
[9880,"Lotenhulle","Ja","AALTER","OOST-VLAANDEREN"]
[9880,"Poeke","Ja","AALTER","OOST-VLAANDEREN"]
[9881,"Bellem","Ja","AALTER","OOST-VLAANDEREN"]
[9890,"Asper","Ja","GAVERE","OOST-VLAANDEREN"]
[9890,"Baaigem","Ja","GAVERE","OOST-VLAANDEREN"]
[9890,"Dikkelvenne","Ja","GAVERE","OOST-VLAANDEREN"]
[9890,"Gavere","Neen","GAVERE","OOST-VLAANDEREN"]
[9890,"Semmerzake","Ja","GAVERE","OOST-VLAANDEREN"]
[9890,"Vurste","Ja","GAVERE","OOST-VLAANDEREN"]
[9900,"Eeklo","Neen","EEKLO","OOST-VLAANDEREN"]
[9910,"Knesselare","Ja","AALTER","OOST-VLAANDEREN"]
[9910,"Ursel","Ja","AALTER","OOST-VLAANDEREN"]
[9920,"Lovendegem","Ja","LIEVEGEM","OOST-VLAANDEREN"]
[9921,"Vinderhoute","Ja","LIEVEGEM","OOST-VLAANDEREN"]
[9930,"Zomergem","Ja","LIEVEGEM","OOST-VLAANDEREN"]
[9931,"Oostwinkel","Ja","LIEVEGEM","OOST-VLAANDEREN"]
[9932,"Ronsele","Ja","LIEVEGEM","OOST-VLAANDEREN"]
[9940,"Ertvelde","Ja","EVERGEM","OOST-VLAANDEREN"]
[9940,"Evergem","Neen","EVERGEM","OOST-VLAANDEREN"]
[9940,"Kluizen","Ja","EVERGEM","OOST-VLAANDEREN"]
[9940,"Sleidinge","Ja","EVERGEM","OOST-VLAANDEREN"]
[9950,"Waarschoot","Ja","LIEVEGEM","OOST-VLAANDEREN"]
[9960,"Assenede","Neen","ASSENEDE","OOST-VLAANDEREN"]
[9961,"Boekhoute","Ja","ASSENEDE","OOST-VLAANDEREN"]
[9968,"Bassevelde","Ja","ASSENEDE","OOST-VLAANDEREN"]
[9968,"Oosteeklo","Ja","ASSENEDE","OOST-VLAANDEREN"]
[9970,"Kaprijke","Neen","KAPRIJKE","OOST-VLAANDEREN"]
[9971,"Lembeke","Ja","KAPRIJKE","OOST-VLAANDEREN"]
[9980,"Sint-Laureins","Neen","SINT-LAUREINS","OOST-VLAANDEREN"]
[9981,"Sint-Margriete","Ja","SINT-LAUREINS","OOST-VLAANDEREN"]
[9982,"Sint-Jan-in-Eremo","Ja","SINT-LAUREINS","OOST-VLAANDEREN"]
[9988,"Waterland-Oudeman","Ja","SINT-LAUREINS","OOST-VLAANDEREN"]
[9988,"Watervliet","Ja","SINT-LAUREINS","OOST-VLAANDEREN"]
[9990,"Maldegem","Neen","MALDEGEM","OOST-VLAANDEREN"]
[9991,"Adegem","Ja","MALDEGEM","OOST-VLAANDEREN"]
[9992,"Middelburg","Ja","MALDEGEM","OOST-VLAANDEREN"]